Workbook

Sheet Instructions

Sheet Input
A1: Inputs | B1: 2 | C1: Made by: Aksel Holmberg & Oscar Pettersson, Malardalen University | I1: Result | M1: Optimal result | O1: Oversized
A2: Zone | C2: in collaboration with Namibia Energy Institute | I2: PV-module | M2: PV-module (Wp) | N2: 1154 | O2: =1-(N2/J3) -> 0.05795918367
A3: Azimuth_angle 0=north | B3: 0 | I3: Required Power_rated_PV STC (Wp) | J3: 1225 | M3: Battery (Ah) | N3: =(Q3/J12)*1.05 -> 630 | O3: =1-(N3/J10) -> 0.0625 | Q3: 7200
A4: 1 | I4: Required amount of PV-modules | J4: =J3/B26 -> 5 | M4: Reliability | N4: 0.9651826484
A5: MAIN INPUT LOAD | B5: Amount | C5: Effect[W] | D5: Use[h] | E5: =B6&" "&IF(E6=1,"",IF(E6=2,"Custom",IF(E6=3,"Lights",IF(E6=4,"TV",IF(E6=5,"Microwave",IF(E6=6,"Radio",IF(E6=7,"Cellphone charger",IF(E6=8,"Laptop",IF(E6=9,"Gambling machine",IF(E6=10,"printer",IF(E6=11,"DVD player",IF(E6=12,"Hair clipper",IF(E6=13,"Fridge",IF(E6=14,"Freezer",""))))))))))))))&IF(E6=1,""," "&C6&" W, ")&B7&" "&IF(E7=1,"",IF(E7=2,"Custom",IF(E7=3,"Lights",IF(E7=4,"TV",IF(E7=5,"Microwave",IF(E7=6,"Radio",IF(E7=7,"Cellphone charger",IF(E7=8,"Laptop",IF(E7=9,"Gambling machine",IF(E7=10,"printer",IF(E7=11,"DVD player",IF(E7=12,"Hair clipper",IF(E7=13,"Fridge",IF(E7=14,"Freezer",""))))))))))))))&IF(E7=1,""," "&C7&" W, ")&B8&" "&IF(E8=1,"",IF(E8=2,"Custom",IF(E8=3,"Lights",IF(E8=4,"TV",IF(E8=5,"Microwave",IF(E8=6,"Radio",IF(E8=7,"Cellphone charger",IF(E8=8,"Laptop",IF(E8=9,"Gambling machine",IF(E8=10,"printer",IF(E8=11,"DVD player",IF(E8=12,"Hair clipper",IF(E8=13,"Fridge",IF(E8=14,"Freezer",""))))))))))))))&IF(E8=1,""," "&C8&" W, ")&B9&" "&IF(E9=1,"",IF(E9=2,"Custom",IF(E9=3,"Lights",IF(E9=4,"TV",IF(E9=5,"Microwave",IF(E9=6,"Radio",IF(E9=7,"Cellphone charger",IF(E9=8,"Laptop",IF(E9=9,"Gambling machine",IF(E9=10,"printer",IF(E9=11,"DVD player",IF(E9=12,"Hair clipper",IF(E9=13,"Fridge",IF(E9=14,"Freezer",""))))))))))))))&IF(E9=1,""," "&C9&" W, ")&B10&" "&IF(E10=1,"",IF(E10=2,"Custom",IF(E10=3,"Lights",IF(E10=4,"TV",IF(E10=5,"Microwave",IF(E10=6,"Radio",IF(E10=7,"Cellphone charger",IF(E10=8,"Laptop",IF(E10=9,"Gambling machine",IF(E10=10,"printer",IF(E10=11,"DVD player",IF(E10=12,"Hair clipper",IF(E10=13,"Fridge",IF(E10=14,"Freezer",""))))))))))))))&IF(E10=1,""," "&C10&" W ,") -> 0 Lights 11 W, 0 TV 3 W, 0 Cellphone charger 5 W, 1 Fridge 390 W, 1 Microwave 700 W , | I5: Design tilt | J5: =IF(B1=1,-20,IF(B1=2,-25,IF(B1=3,-30,"Wrong input"))) -> -25 | M5: Amount of battaries | N5: =ROUNDUP((N3*J12)/(B39*B40),0) -> 7
B6: 0 | C6: 11 | D6: 0 | E6: 3 | F6: =B11&" "&IF(E11=1,"",IF(E11=2,"Custom",IF(E11=3,"Lights",IF(E11=4,"TV",IF(E11=5,"Microwave",IF(E11=6,"Radio",IF(E11=7,"Cellphone charger",IF(E11=8,"Laptop",IF(E11=9,"Gambling machine",IF(E11=10,"printer",IF(E11=11,"DVD player",IF(E11=12,"Hair clipper",IF(E11=13,"Fridge",IF(E11=14,"Freezer",""))))))))))))))&IF(E11=1,""," "&C11&" W, ")&B12&" "&IF(E12=1,"",IF(E12=2,"Custom",IF(E12=3,"Lights",IF(E12=4,"TV",IF(E12=5,"Microwave",IF(E12=6,"Radio",IF(E12=7,"Cellphone charger",IF(E12=8,"Laptop",IF(E12=9,"Gambling machine",IF(E12=10,"printer",IF(E12=11,"DVD player",IF(E12=12,"Hair clipper",IF(E12=13,"Fridge",IF(E12=14,"Freezer",""))))))))))))))&IF(E12=1,""," "&C12&" W, ")&B13&" "&IF(E13=1,"",IF(E13=2,"Custom",IF(E13=3,"Lights",IF(E13=4,"TV",IF(E13=5,"Microwave",IF(E13=6,"Radio",IF(E13=7,"Cellphone charger",IF(E13=8,"Laptop",IF(E13=9,"Gambling machine",IF(E13=10,"printer",IF(E13=11,"DVD player",IF(E13=12,"Hair clipper",IF(E13=13,"Fridge",IF(E13=14,"Freezer",""))))))))))))))&IF(E13=1,""," "&C13&" W, ")&B14&" "&IF(E14=1,"",IF(E14=2,"Custom",IF(E14=3,"Lights",IF(E14=4,"TV",IF(E14=5,"Microwave",IF(E14=6,"Radio",IF(E14=7,"Cellphone charger",IF(E14=8,"Laptop",IF(E14=9,"Gambling machine",IF(E14=10,"printer",IF(E14=11,"DVD player",IF(E14=12,"Hair clipper",IF(E14=13,"Fridge",IF(E14=14,"Freezer",""))))))))))))))&IF(E14=1,""," "&C14&" W, ")&B15&" "&IF(E15=1,"",IF(E15=2,"Custom",IF(E15=3,"Lights",IF(E15=4,"TV",IF(E15=5,"Microwave",IF(E15=6,"Radio",IF(E15=7,"Cellphone charger",IF(E15=8,"Laptop",IF(E15=9,"Gambling machine",IF(E15=10,"printer",IF(E15=11,"DVD player",IF(E15=12,"Hair clipper",IF(E15=13,"Fridge",IF(E15=14,"Freezer",""))))))))))))))&IF(E15=1,""," "&C15&" W ,")&B16&" "&IF(E16=1,"",IF(E16=2,"Custom",IF(E16=3,"Lights",IF(E16=4,"TV",IF(E16=5,"Microwave",IF(E16=6,"Radio",IF(E16=7,"Cellphone charger",IF(E16=8,"Laptop",IF(E16=9,"Gambling machine",IF(E16=10,"printer",IF(E16=11,"DVD player",IF(E16=12,"Hair clipper",IF(E16=13,"Fridge",IF(E16=14,"Freezer",""))))))))))))))&IF(E16=1,""," "&C16&" W, ")&B17&" "&IF(E17=1,"",IF(E17=2,"Custom",IF(E17=3,"Lights",IF(E17=4,"TV",IF(E17=5,"Microwave",IF(E17=6,"Radio",IF(E17=7,"Cellphone charger",IF(E17=8,"Laptop",IF(E17=9,"Gambling machine",IF(E17=10,"printer",IF(E17=11,"DVD player",IF(E17=12,"Hair clipper",IF(E17=13,"Fridge",IF(E17=14,"Freezer",""))))))))))))))&IF(E17=1,""," "&C17&" W, ") -> 1 1 Lights 100 W, | I6: Modules in series | J6: 1 | M6: Recomended system voltage (v) | N6: 12
B7: 0 | C7: 3 | D7: 0 | E7: 4 | I7: Modules in parallel | J7: 5 | M7: Recomended batteries series | N7: 1
B8: 0 | C8: 5 | D8: 0 | E8: 7 | M8: Recomendes batteries parallel | N8: 7
B9: 1 | C9: 390 | D9: 0 | E9: 13 | I9: Battery | M9: Cost
B10: 1 | C10: 700 | D10: 1 | E10: 5 | G10: 1 | I10: Required Battery_capacity (Ah) | J10: =K10/J12 -> 672 | K10: 8064 | M10: PV-module (NAD) | N10: 15543.67347
B11: 1 | C11: 4000 | D11: 1 | E11: 1 | I11: Required amount of batteries | J11: 7 | M11: Battery (NAD) | N11: 9187.5
B12: 1 | C12: 100 | D12: 0 | E12: 3 | F12: Start Value | G12: 1 | I12: System voltage (v) | J12: =IF(D38=1,12,IF(D38=2,24,48)) -> 12 | N12: =Cabels!N15 -> 100.9166667
E13: 1 | I13: Batteries in series | J13: 1 | N13: 0
E14: 1 | I14: Batteries in parallel | J14: 7
E15: 1 | M15: Warnings and errors
E16: 1 | I16: Cabels | M16: Pv connections | N16: =IF(J7>J6*2,"WARNING 1","OK") -> WARNING 1
E17: 1 | I17: Cable size- PV module to Charge controller (mm^2) | J17: =Cabels!$B$16 -> 50 | M17: Pv oversize | N17: =IF(O2>0.4,"WARNING 2","OK") -> OK
C18: Sum (Wh/day) | D18: ='Load h'!E17 -> 4700 | I18: Cable size- Charge controller to Battery (mm^2) | J18: =Cabels!$F$16 -> 25 | M18: Battery oversize | N18: =IF(O3>0.5,"WARNING 3","OK") -> OK
A19: SIZE ESTIMATION | I19: Cable size- Battery to inverter (mm^2) | J19: =Cabels!$J$16 -> More than 50 mm2 | M19: Battery connections | N19: =IF(AND(J14>J13*3),"WARNING 4","OK") -> WARNING 4
A20: Power module pv STC (Wp) | B20: =(_xlfn.CEILING.MATH((((((J34/6)/Settings!B9))/0.9)/Settings!B4)/Settings!B5)/100)*100 -> 1358 | D20: =AVERAGE(D6:D17) -> 0.2857142857 | M20: One more battery | N20: =IF(J13*J14=N5,"OK","WARNING 5") -> OK
A21: Battery (Ah) | B21: =(_xlfn.CEILING.MATH((((J34/J12)/((1-B49)))*1.2)/100)*(IF(C37>2,C37-1,1))*100) -> 1000 | I21: Inverter | M21: Battery amount | N21: =IF(J11*B40<C38,"ERROR 1","OK") -> OK
D22: 5 | I22: Voltage (v) | J22: =J12 -> 12 | M22: Battery cable size | N22: =IF(Cabels!F15>35,"ERROR 2","OK") -> OK
I23: Minimum rated power (VA) | J23: ='Load h'!F18*2/Settings!B5 -> 10926.31579 | M23: Error BAT | N23: =IF(N5>J11,"ERROR 3","OK") -> OK
A24: MAIN INPUT PV
A25: Name | B25: Yngli 245 Wp | I25: Charge Controller
A26: Power module pv STC (Wp) | B26: 245 | I26: Minimum current (A) | J26: =IF(((B29)*J7)>(Cabels!F8),((B29)*J7),(Cabels!F8))*1.15 -> 117.3958333
A27: Efficiency STC | B27: 0.151
A28: Vmp (v) | B28: 29.6 | I28: Economy
A29: Isc (A) | B29: 8.83 | I29: Investment cost PV-module (NAD) | J29: 16500
A30: Voc (v) | B30: 37.5 | I30: Investment costs Battery (NAD) | J30: 9800
A31: Cost for the PV-module (NAD) | B31: 3300 | I31: Life cycle costs (NAD) | J31: =LCC!D59 -> 89495.59624
I33: Other Results
I34: Energy demand per day (Wh) | J34: =SUM('Load h'!K3:K26) -> 4700
C35: 6 | I35: Pv-Max_Voltage (v) | J35: 38
I36: PV-Max_Current (A) | J36: 44.15
A37: MAIN INPUT BATTERY | C37: 1 | I37: Battery life time (Cycles) | J37: =-1*(89.59-194.29*30)*EXP(-1.75*J40) -> 2927.410891
A38: Name | B38: Case1, 96Ah, 12 V | C38: =IF(D38=1,12,IF(D38=2,24,48)) -> 12 | D38: 1 | I38: Battery life time (years) | J38: =J37/365 -> 8.02030381
A39: Battery capacity (Ah ) | B39: 96 | I39: Reliability of the system | J39: =Reliability!$C$8762 -> 0.979109589
A40: Battery Voltage (v) | B40: 12 | I40: Average daily DOD | J40: =1-Battery!J369 -> 0.3846775821
A41: Cost for the battery (NAD) | B41: 1400
A42: Days of autonomy
A43: System voltage (v)
A47: CHARGE CONTROLLER
A48: Solar voltage limit (v) | B48: 80
A49: Minimum state of charge | B49: 0.5
A51: MAIN INPUT CABELS
A52: Length[m]- PV module to Charge controller | B52: 10
A53: Length[m]- Charge controller to Battery | B53: 1
A54: Length[m]- Battery to inverter | B54: 1
A56: OTHER ECONOMIC PARAMETERS
A57: Interest rate (%) | B57: 5
A58: Tax rate (%) | B58: 15
A59: Annual O&M (% ICC) | B59: 5
A60: Charge controller/Inverter (NAD/W) | B60: 5.25
A61: PV lifetime (years) | B61: 25
A62: Charge controller-Inverter lifetime (years) | B62: 10
A63: Battery lifetime (years) | B63: 4
A64: Engineering and installation costs (% ICC) | B64: 10
E132: 1

Sheet LCC (hidden)
B10: Interest rate (%) | F10: =Input!B57 -> 5
B11: Tax rate (%) | F11: =Input!B58 -> 15
B12: O&M (%) | F12: =Input!B59 -> 5
B13: PV lifetime (years) | F13: =Input!B61 -> 25
B14: Controller-Inverter lifetime (years) | F14: =Input!B62 -> 10
B15: Battery (years) | F15: =Input!B63 -> 4
B16: Longest lived system (years) | F16: =MAX(F13:F15) -> 25
B17: Ceng | C17: Cost of engineering | F17: =Input!B64 -> 10
B20: INVESTMENT COSTS (NAD)
B21: PV | D21: =Input!B31*Input!J4 -> 16500
B22: Charge controller/Inverter | D22: =Input!B60*Input!J3 -> 6431.25 | E22: Unit cost times the PV power peak
B23: Battery | D23: =Input!B41*Input!J11 -> 9800
B24: TOTAL | D24: =SUM(D21:D23) -> 32731.25
B25: Cost of engineering | D25: =F17/100*D24 -> 3273.125
B26: Others (Cost for transport and accessories, etc.) | D26: 0
B27: TOT Investment | D27: =SUM(D24:D26) -> 36004.375
A31: Year | B31: O&M COSTS (NAD) | F31: Depreciation (NAD) | I31: Year | J31: Replacements (NAD)-Charge controller/inverter | O31: Year | P31: Replacements (NAD)-Battery | T31: Salvage Value
A32: 1 | D32: =$F$12/100*$D$27*(1-$F$11/100)/((1+$F$10/100)^A32) -> 1457.31994 | F32: =($D$27-$D$27*0.1)/25*($F$11/100)/((1+$F$10/100)^A32)*0 -> 0 | I32: =F14 -> 10 | J32: =IF(I32<=$F$16,I32,0) -> 10 | K32: =IF(J32>0,$D$22*(1-$F$11/100)/((1+$F$10/100)^J32),0) -> 3355.99517 | O32: =F15 -> 4 | P32: =IF(O32<=$F$16,O32,0) -> 4 | Q32: =IF(P32>0,$D$23*(1-$F$11/100)/((1+$F$10/100)^P32),0) -> 6853.111615 | T32: =0.1*D27*(F11/100)/(1+F10/100)^F16 -> 159.482876
A33: 2 | D33: 1387.923753 | F33: 0 | I33: =I32+$I$32 -> 20 | J33: =IF(I33<=$F$16,I33,0) -> 20 | K33: =IF(J33>0,$D$22*(1-$F$11/100)/((1+$F$10/100)^J33),0) -> 2060.289914 | O33: =O32+$O$32 -> 8 | P33: =IF(O33<=$F$16,O33,0) -> 8 | Q33: =IF(P33>0,$D$23*(1-$F$11/100)/((1+$F$10/100)^P33),0) -> 5638.071886
A34: 3 | D34: 1321.832146 | F34: 0 | I34: =I33+$I$32 -> 30 | J34: =IF(I34<=$F$16,I34,0) -> 0 | K34: 0 | O34: =O33+$O$32 -> 12 | P34: 12 | Q34: 4638.455693
A35: 4 | D35: 1258.887758 | F35: 0 | I35: 40 | J35: =IF(I35<=$F$16-$I$32,I35,0) -> 0 | K35: 0 | O35: =O34+$O$32 -> 16 | P35: 16 | Q35: 3816.068978
A36: 5 | D36: 1198.940722 | F36: 0 | I36: =I35+$I$32 -> 50 | J36: 0 | K36: 0 | O36: =O35+$O$32 -> 20 | P36: 20 | Q36: 3139.489392
A37: 6 | D37: 1141.848306 | F37: 0 | I37: =I36+$I$32 -> 60 | J37: 0 | K37: 0 | O37: =O36+$O$32 -> 24 | P37: 24 | Q37: 2582.865693
A38: 7 | D38: 1087.474577 | F38: 0
A39: 8 | D39: 1035.690074 | F39: 0 | I39: TOT | K39: =SUM(K32:K37) -> 5416.285084 | Q39: =SUM(Q32:Q37) -> 26668.06326
A40: 9 | D40: 986.3714988 | F40: 0
A41: 10 | D41: 939.4014274 | F41: 0
A42: 11 | D42: 894.6680261 | F42: 0 | H42: Depreciation assumed to be 0 in such small projects
A43: 12 | D43: 852.0647868 | F43: 0
A44: 13 | D44: 811.4902731 | F44: 0
A45: 14 | D45: 772.8478792 | F45: 0
A46: 15 | D46: 736.0455992 | F46: 0
A47: 16 | D47: 700.9958088 | F47: 0
A48: 17 | D48: 667.615056 | F48: 0
A49: 18 | D49: 635.8238628 | F49: 0
A50: 19 | D50: 605.546536 | F50: 0
A51: 20 | D51: 576.7109867 | F51: 0
A52: 21 | D52: 549.2485587 | F52: 0
A53: 22 | D53: 523.0938655 | F53: 0
A54: 23 | D54: 498.1846338 | F54: 0
A55: 24 | D55: 474.461556 | F55: 0
A56: 25 | D56: 451.8681486 | F56: 0
B59: TOT LCC | D59: =SUM(D27)+SUM(D32:D56)+K39+Q39-T32 -> 89495.59624 | F59: =SUM(F32:F56) -> 0

Sheet Quotation
A1: Company name
A5: Attention: | C5: Name | F5: Date: | G5: 2016-04-15
A8: Solar Home System to supply: | C8: =_xlfn.CEILING.MATH(Input!D20) -> 1 | D8: hours use per day
A9: 4 Custom 11 W, 1 TV 70 W, 1 Cellphone charger 4 W,
J10: Inputs
J11: VAT | K11: 0.15
A12: No: | B12: Description | C12: Quantity | D12: Unit price | E12: Amount | F12: Vat | G12: Total price
A14: 1 | B14: Trina 200 Wp | C14: 2 | D14: 3000 | E14: =C14*D14 -> 6000 | F14: =$K$11*E14 -> 900 | G14: =E14+F14 -> 6900
A15: 2 | B15: Willard 105Ah, 12V | C15: 3 | D15: 1450 | E15: =C15*D15 -> 4350 | F15: =$K$11*E15 -> 652.5 | G15: =E15+F15 -> 5002.5
A16: 3 | E16: 0 | F16: 0 | G16: 0
A17: 4 | E17: 0 | F17: 0 | G17: 0
A18: 5 | E18: 0 | F18: 0 | G18: 0
A19: 6 | E19: 0 | F19: 0 | G19: 0
A20: 7 | E20: 0 | F20: 0 | G20: 0
A21: 8 | E21: 0 | F21: 0 | G21: 0
A22: 9 | E22: 0 | F22: 0 | G22: 0
A23: 10 | E23: 0 | F23: 0 | G23: 0
A26: 11 | B26: Sub-Total | G26: =SUM(G14:G25) -> 11902.5
A29: 12 | B29: Labor | G29: 0
A30: 13 | B30: Tranport | G30: 0
A33: 14 | B33: Total | G33: =SUM(G26:G32) -> 11902.5

Sheet PV-modules (hidden)
A1: Trina 200 Wp | B1: 200 | C1: 0.156 | D1: 37.6 | E1: 5.6 | F1: 46 | G1: 3000 | H1: =IF(_xlfn.NUMBERVALUE(B1),1,"") -> 1
A2: PV 80 | B2: 80 | C2: 0.146 | D2: 18.5 | E2: 4.66 | F2: 22.5 | G2: 1200 | H2: 1
A3: ST 145Wp | B3: 145 | C3: 0.14 | D3: 18.7 | E3: 7.99 | F3: 21.5 | G3: 2300 | H3: 1
A4: Case1, 200Wp | B4: 200 | C4: 0.15 | D4: 24 | E4: 8.6 | F4: 26 | G4: 4483 | H4: 1
A5: Yngli 245 Wp | B5: 245 | C5: 0.151 | D5: 29.6 | E5: 8.83 | F5: 37.5 | G5: 3300 | H5: 1
H7: =IF(_xlfn.NUMBERVALUE(B7),1,"") -> 
H22: =SUM(H1:H21) -> 5

Sheet Battery-models (hidden)
A1: Willard 105Ah, 12V | B1: 105 | C1: 12 | D1: 1450 | E1: =IF(_xlfn.NUMBERVALUE(B1),1,"") -> 1
A2: Bat-test 120 Ah,12V | B2: 120 | C2: 12 | D2: 2570 | E2: =IF(_xlfn.NUMBERVALUE(B2),1,"") -> 1
A3: Bat 150 Ah | B3: 150 | C3: 12 | D3: 2000 | E3: =IF(_xlfn.NUMBERVALUE(B3),1,"") -> 1
A4: AGM 250 Ah,12V | B4: 250 | C4: 12 | D4: 3500 | E4: 1
A5: Case1, 96Ah, 12 V | B5: 96 | C5: 12 | D5: 18072 | E5: 1
A6: Case1, 96Ah, 12 V | B6: 96 | C6: 12 | D6: 1250 | E6: 1
A7: Case1, 96Ah, 12 V | B7: 96 | C7: 12 | D7: 1400 | E7: 1
E22: =SUM(E1:E20) -> 7

Sheet Settings (hidden)
A1: Settings
A2: Battery
A3: sigma | B3: =0.0002 -> 0.0002
A4: eta_charge_controller | B4: 0.9
A5: eta_inverter | B5: 0.95
A6: PV-module
A7: NOCT | B7: 46
A8: mu_Voc | B8: -0.127
A9: Battery round trip efficiency | B9: 0.75

Sheet Load h (hidden)
E1: Per day | J1: h | O1: 33.2 | P1: Standard | Z1: Day | AA1: =SUM(AA4:AA27) -> 1 | AD1: Evening | AE1: =SUM(AE4:AE27) -> 1
A2: MAIN INPUT LOAD | E2: Monday-Friday | J2: Time[h] | K2: LOAD (Wh)
B3: Amount | C3: Effect[W] | D3: Monday-Friday[h] | E3: Energy[Wh] | F3: Max load | J3: 1 | K3: =IF(Input!$A$4=1,$E$17*L3,IF(Input!$A$4=2,$E$17*AA4,IF(Input!$A$4=3,$E$17*AE4,""))) -> 113.253012 | L3: =P4/$O$1 -> 0.02409638554 | Q3: %
A4: =Input!A6 -> 0 | B4: =Input!B6 -> 0 | C4: =Input!C6 -> 11 | D4: =Input!D6 -> 0 | E4: =B4*IF(C4="LED",11,IF(C4="bulb",10,IF(C4="light",100,C4)))*D4 -> 0 | F4: =B4*IF(C4="LED",11,IF(C4="bulb",10,IF(C4="light",100,C4))) -> 0 | J4: 2 | K4: =IF(Input!$A$4=1,$E$17*L4,IF(Input!$A$4=2,$E$17*AA5,IF(Input!$A$4=3,$E$17*AE5,""))) -> 113.253012 | L4: =P5/$O$1 -> 0.02409638554 | P4: 0.8 | Z4: 1 | AA4: =1/(24*2) -> 0.02083333333 | AD4: 1 | AE4: =1*1.5/24 -> 0.0625
A5: =Input!A7 -> 0 | B5: =Input!B7 -> 0 | C5: =Input!C7 -> 3 | D5: =Input!D7 -> 0 | E5: =B5*IF(C5="54cm tv",80,IF(C5="TV",90,IF(C5="74cm TV",100,C5)))*D5 -> 0 | F5: =B5*IF(C5="54cm tv",80,IF(C5="BaW",90,IF(C5="74cm TV",100,C5))) -> 0 | J5: 3 | K5: =IF(Input!$A$4=1,$E$17*L5,IF(Input!$A$4=2,$E$17*AA6,IF(Input!$A$4=3,$E$17*AE6,""))) -> 113.253012 | L5: =P6/$O$1 -> 0.02409638554 | P5: 0.8 | Q5: KÄLLA: | R5: Techno-economic optimization of hybrid photovoltaic/wind/diesel/ | Z5: 2 | AA5: =1/(24*2) -> 0.02083333333 | AD5: 2 | AE5: =1*1.5/24 -> 0.0625
A6: =Input!A8 -> 0 | B6: =Input!B8 -> 0 | C6: =Input!C8 -> 5 | D6: =Input!D8 -> 0 | E6: =B6*IF(C6="Microwave",800,C6)*D6 -> 0 | F6: =B6*IF(C6="Microwave",800,C6) -> 0 | J6: 4 | K6: =IF(Input!$A$4=1,$E$17*L6,IF(Input!$A$4=2,$E$17*AA7,IF(Input!$A$4=3,$E$17*AE7,""))) -> 113.253012 | L6: 0.02409638554 | P6: 0.8 | R6: battery generation in a stand-alone power system | Z6: 3 | AA6: 0.02083333333 | AD6: 3 | AE6: =1*1.5/24 -> 0.0625
A7: =Input!A9 -> 0 | B7: =Input!B9 -> 1 | C7: =Input!C9 -> 390 | D7: =Input!D9 -> 0 | E7: =B7*C7*D7 -> 0 | F7: =B7*C7 -> 390 | J7: 5 | K7: =IF(Input!$A$4=1,$E$17*L7,IF(Input!$A$4=2,$E$17*AA8,IF(Input!$A$4=3,$E$17*AE8,""))) -> 113.253012 | L7: 0.02409638554 | P7: 0.8 | Z7: 4 | AA7: 0.02083333333 | AD7: 4 | AE7: =1/(24*2) -> 0.02083333333
A8: =Input!A10 -> 0 | B8: =Input!B10 -> 1 | C8: =Input!C10 -> 700 | D8: =Input!D10 -> 1 | E8: =B8*C8*D8 -> 700 | F8: 700 | J8: 6 | K8: =IF(Input!$A$4=1,$E$17*L8,IF(Input!$A$4=2,$E$17*AA9,IF(Input!$A$4=3,$E$17*AE9,""))) -> 155.7228916 | L8: 0.03313253012 | P8: 0.8 | Z8: 5 | AA8: 0.02083333333 | AD8: 5 | AE8: 0.02083333333
A9: =Input!A11 -> 0 | B9: =Input!B11 -> 1 | C9: =Input!C11 -> 4000 | D9: =Input!D11 -> 1 | E9: =B9*C9*D9 -> 4000 | F9: =B9*C9 -> 4000 | J9: 7 | K9: =IF(Input!$A$4=1,$E$17*L9,IF(Input!$A$4=2,$E$17*AA10,IF(Input!$A$4=3,$E$17*AE10,""))) -> 254.8192771 | L9: 0.05421686747 | P9: 1.1 | Z9: 6 | AA9: 0.02083333333 | AD9: 6 | AE9: 0.02083333333
A10: =Input!A12 -> 0 | B10: =Input!B12 -> 1 | C10: =Input!C12 -> 100 | D10: =Input!D12 -> 0 | E10: =B10*C10*D10 -> 0 | F10: =B10*C10 -> 100 | J10: 8 | K10: =IF(Input!$A$4=1,$E$17*L10,IF(Input!$A$4=2,$E$17*AA11,IF(Input!$A$4=3,$E$17*AE11,""))) -> 141.5662651 | L10: 0.03012048193 | P10: 1.8 | Z10: 7 | AA10: =1*1.5/24 -> 0.0625 | AD10: 7 | AE10: 0.02083333333
A11: =Input!A13 -> 0 | B11: =Input!B13 -> 0 | C11: =Input!C13 -> 0 | D11: =Input!D13 -> 0 | E11: 0 | F11: 0 | J11: 9 | K11: =IF(Input!$A$4=1,$E$17*L11,IF(Input!$A$4=2,$E$17*AA12,IF(Input!$A$4=3,$E$17*AE12,""))) -> 141.5662651 | L11: 0.03012048193 | P11: 1 | Z11: 8 | AA11: =1*1.5/24 -> 0.0625 | AD11: 8 | AE11: 0.02083333333
A12: =Input!A14 -> 0 | B12: =Input!B14 -> 0 | C12: =Input!C14 -> 0 | D12: =Input!D14 -> 0 | E12: 0 | F12: 0 | J12: 10 | K12: =IF(Input!$A$4=1,$E$17*L12,IF(Input!$A$4=2,$E$17*AA13,IF(Input!$A$4=3,$E$17*AE13,""))) -> 141.5662651 | L12: 0.03012048193 | P12: 1 | Z12: 9 | AA12: 0.0625 | AD12: 9 | AE12: 0.02083333333
A13: =Input!A15 -> 0 | B13: =Input!B15 -> 0 | C13: =Input!C15 -> 0 | D13: =Input!D15 -> 0 | E13: 0 | F13: 0 | J13: 11 | K13: =IF(Input!$A$4=1,$E$17*L13,IF(Input!$A$4=2,$E$17*AA14,IF(Input!$A$4=3,$E$17*AE14,""))) -> 141.5662651 | L13: 0.03012048193 | P13: 1 | Z13: 10 | AA13: 0.0625 | AD13: 10 | AE13: 0.02083333333
A14: =Input!A16 -> 0 | B14: =Input!B16 -> 0 | C14: =Input!C16 -> 0 | D14: =Input!D16 -> 0 | E14: =B14*IF(C14="Standard fridge",80,IF(C14="Energy Saving Fridge",60,C14))*D14 -> 0 | F14: =B14*IF(C14="Standard fridge",80,IF(C14="Energy Saving Fridge",60,C14)) -> 0 | J14: 12 | K14: =IF(Input!$A$4=1,$E$17*L14,IF(Input!$A$4=2,$E$17*AA15,IF(Input!$A$4=3,$E$17*AE15,""))) -> 240.6626506 | L14: 0.05120481928 | P14: 1 | Z14: 11 | AA14: 0.0625 | AD14: 11 | AE14: 0.02083333333
A15: =Input!A17 -> 0 | B15: =Input!B17 -> 0 | C15: =Input!C17 -> 0 | D15: =Input!D17 -> 0 | E15: =B15*C15*D15 -> 0 | F15: 0 | J15: 13 | K15: =IF(Input!$A$4=1,$E$17*L15,IF(Input!$A$4=2,$E$17*AA16,IF(Input!$A$4=3,$E$17*AE16,""))) -> 226.5060241 | L15: 0.04819277108 | P15: 1.7 | Z15: 12 | AA15: 0.0625 | AD15: 12 | AE15: 0.02083333333
J16: 14 | K16: =IF(Input!$A$4=1,$E$17*L16,IF(Input!$A$4=2,$E$17*AA17,IF(Input!$A$4=3,$E$17*AE17,""))) -> 113.253012 | L16: 0.02409638554 | P16: 1.6 | Z16: 13 | AA16: 0.0625 | AD16: 13 | AE16: 0.02083333333
A17: Total | E17: =SUM(E4:E15) -> 4700 | J17: 15 | K17: =IF(Input!$A$4=1,$E$17*L17,IF(Input!$A$4=2,$E$17*AA18,IF(Input!$A$4=3,$E$17*AE18,""))) -> 113.253012 | L17: 0.02409638554 | P17: 0.8 | Z17: 14 | AA17: 0.0625 | AD17: 14 | AE17: 0.02083333333
A18: maxload | F18: =SUM(F4:F17) -> 5190 | J18: 16 | K18: =IF(Input!$A$4=1,$E$17*L18,IF(Input!$A$4=2,$E$17*AA19,IF(Input!$A$4=3,$E$17*AE19,""))) -> 169.8795181 | L18: 0.03614457831 | P18: 0.8 | Z18: 15 | AA18: 0.0625 | AD18: 15 | AE18: 0.02083333333
J19: 17 | K19: =IF(Input!$A$4=1,$E$17*L19,IF(Input!$A$4=2,$E$17*AA20,IF(Input!$A$4=3,$E$17*AE20,""))) -> 240.6626506 | L19: 0.05120481928 | P19: 1.2 | Z19: 16 | AA19: 0.0625 | AD19: 16 | AE19: =1*1.5/24 -> 0.0625
J20: 18 | K20: =IF(Input!$A$4=1,$E$17*L20,IF(Input!$A$4=2,$E$17*AA21,IF(Input!$A$4=3,$E$17*AE21,""))) -> 240.6626506 | L20: 0.05120481928 | P20: 1.7 | Z20: 17 | AA20: 0.0625 | AD20: 17 | AE20: =1*1.5/24 -> 0.0625
J21: 19 | K21: =IF(Input!$A$4=1,$E$17*L21,IF(Input!$A$4=2,$E$17*AA22,IF(Input!$A$4=3,$E$17*AE22,""))) -> 325.6024096 | L21: 0.06927710843 | P21: 1.7 | Z21: 18 | AA21: =1*1.5/24 -> 0.0625 | AD21: 18 | AE21: =1*1.5/24 -> 0.0625
J22: 20 | K22: =IF(Input!$A$4=1,$E$17*L22,IF(Input!$A$4=2,$E$17*AA23,IF(Input!$A$4=3,$E$17*AE23,""))) -> 424.6987952 | L22: 0.09036144578 | P22: 2.3 | Z22: 19 | AA22: =1/(24*2) -> 0.02083333333 | AD22: 19 | AE22: 0.0625
J23: 21 | K23: =IF(Input!$A$4=1,$E$17*L23,IF(Input!$A$4=2,$E$17*AA24,IF(Input!$A$4=3,$E$17*AE24,""))) -> 424.6987952 | L23: 0.09036144578 | P23: 3 | Z23: 20 | AA23: =1/(24*2) -> 0.02083333333 | AD23: 20 | AE23: 0.0625
J24: 22 | K24: =IF(Input!$A$4=1,$E$17*L24,IF(Input!$A$4=2,$E$17*AA25,IF(Input!$A$4=3,$E$17*AE25,""))) -> 353.9156627 | L24: 0.07530120482 | P24: 3 | Z24: 21 | AA24: =1/(24*2) -> 0.02083333333 | AD24: 21 | AE24: 0.0625
J25: 23 | K25: =IF(Input!$A$4=1,$E$17*L25,IF(Input!$A$4=2,$E$17*AA26,IF(Input!$A$4=3,$E$17*AE26,""))) -> 169.8795181 | L25: 0.03614457831 | P25: 2.5 | Z25: 22 | AA25: 0.02083333333 | AD25: 22 | AE25: 0.0625
A26: Chosen battery bus voltage (12, 24 or 48) | J26: 24 | K26: =IF(Input!$A$4=1,$E$17*L26,IF(Input!$A$4=2,$E$17*AA27,IF(Input!$A$4=3,$E$17*AE27,""))) -> 113.253012 | L26: 0.02409638554 | P26: 1.2 | Z26: 23 | AA26: 0.02083333333 | AD26: 23 | AE26: 0.0625
A27: 12 | J27: =J3 -> 1 | K27: =IF(Input!$A$4=1,$E$17*L27,IF(Input!$A$4=2,$E$17*AA28,IF(Input!$A$4=3,$E$17*AE28,""))) -> 113.253012 | L27: =L3 -> 0.02409638554 | P27: 0.8 | Z27: 24 | AA27: =1/(24*2) -> 0.02083333333 | AD27: 24 | AE27: 0.0625
A28: 24 | J28: =J4 -> 2 | K28: =IF(Input!$A$4=1,$E$17*L28,IF(Input!$A$4=2,$E$17*AA29,IF(Input!$A$4=3,$E$17*AE29,""))) -> 113.253012 | L28: =L4 -> 0.02409638554 | P28: =SUM(P4:P27) -> 33.2 | Z28: =Z4 -> 1 | AA28: =AA4 -> 0.02083333333 | AD28: =AD4 -> 1 | AE28: =AE4 -> 0.0625
A29: 48 | J29: 3 | K29: =IF(Input!$A$4=1,$E$17*L29,IF(Input!$A$4=2,$E$17*AA30,IF(Input!$A$4=3,$E$17*AE30,""))) -> 113.253012 | L29: 0.02409638554 | Z29: =Z5 -> 2 | AA29: 0.02083333333 | AD29: =AD5 -> 2 | AE29: 0.0625
J30: 4 | K30: =IF(Input!$A$4=1,$E$17*L30,IF(Input!$A$4=2,$E$17*AA31,IF(Input!$A$4=3,$E$17*AE31,""))) -> 113.253012 | L30: 0.02409638554 | Z30: 3 | AA30: 0.02083333333 | AD30: 3 | AE30: 0.0625
A31: Load | J31: 5 | K31: =IF(Input!$A$4=1,$E$17*L31,IF(Input!$A$4=2,$E$17*AA32,IF(Input!$A$4=3,$E$17*AE32,""))) -> 113.253012 | L31: 0.02409638554 | Z31: 4 | AA31: 0.02083333333 | AD31: 4 | AE31: 0.02083333333
A32: NON | J32: 6 | K32: =IF(Input!$A$4=1,$E$17*L32,IF(Input!$A$4=2,$E$17*AA33,IF(Input!$A$4=3,$E$17*AE33,""))) -> 155.7228916 | L32: 0.03313253012 | Z32: 5 | AA32: 0.02083333333 | AD32: 5 | AE32: 0.02083333333
A33: Custom | J33: 7 | K33: =IF(Input!$A$4=1,$E$17*L33,IF(Input!$A$4=2,$E$17*AA34,IF(Input!$A$4=3,$E$17*AE34,""))) -> 254.8192771 | L33: 0.05421686747 | Z33: 6 | AA33: 0.02083333333 | AD33: 6 | AE33: 0.02083333333
A34: Lights | J34: 8 | K34: =IF(Input!$A$4=1,$E$17*L34,IF(Input!$A$4=2,$E$17*AA35,IF(Input!$A$4=3,$E$17*AE35,""))) -> 141.5662651 | L34: 0.03012048193 | Z34: 7 | AA34: 0.0625 | AD34: 7 | AE34: 0.02083333333
A35: TV | J35: 9 | K35: =IF(Input!$A$4=1,$E$17*L35,IF(Input!$A$4=2,$E$17*AA36,IF(Input!$A$4=3,$E$17*AE36,""))) -> 141.5662651 | L35: 0.03012048193 | Z35: 8 | AA35: 0.0625 | AD35: 8 | AE35: 0.02083333333
A36: Microwave | J36: 10 | K36: =IF(Input!$A$4=1,$E$17*L36,IF(Input!$A$4=2,$E$17*AA37,IF(Input!$A$4=3,$E$17*AE37,""))) -> 141.5662651 | L36: 0.03012048193 | Z36: 9 | AA36: 0.0625 | AD36: 9 | AE36: 0.02083333333
A37: Radio | J37: 11 | K37: =IF(Input!$A$4=1,$E$17*L37,IF(Input!$A$4=2,$E$17*AA38,IF(Input!$A$4=3,$E$17*AE38,""))) -> 141.5662651 | L37: 0.03012048193 | Z37: 10 | AA37: 0.0625 | AD37: 10 | AE37: 0.02083333333
A38: Cellphone Charger | J38: 12 | K38: =IF(Input!$A$4=1,$E$17*L38,IF(Input!$A$4=2,$E$17*AA39,IF(Input!$A$4=3,$E$17*AE39,""))) -> 240.6626506 | L38: 0.05120481928 | Z38: 11 | AA38: 0.0625 | AD38: 11 | AE38: 0.02083333333
A39: Laptop | J39: 13 | K39: =IF(Input!$A$4=1,$E$17*L39,IF(Input!$A$4=2,$E$17*AA40,IF(Input!$A$4=3,$E$17*AE40,""))) -> 226.5060241 | L39: 0.04819277108 | Z39: 12 | AA39: 0.0625 | AD39: 12 | AE39: 0.02083333333
A40: Gambling machine | J40: 14 | K40: =IF(Input!$A$4=1,$E$17*L40,IF(Input!$A$4=2,$E$17*AA41,IF(Input!$A$4=3,$E$17*AE41,""))) -> 113.253012 | L40: 0.02409638554 | Z40: 13 | AA40: 0.0625 | AD40: 13 | AE40: 0.02083333333
A41: Printer | J41: 15 | K41: =IF(Input!$A$4=1,$E$17*L41,IF(Input!$A$4=2,$E$17*AA42,IF(Input!$A$4=3,$E$17*AE42,""))) -> 113.253012 | L41: 0.02409638554 | Z41: 14 | AA41: 0.0625 | AD41: 14 | AE41: 0.02083333333
A42: DVD player | J42: 16 | K42: =IF(Input!$A$4=1,$E$17*L42,IF(Input!$A$4=2,$E$17*AA43,IF(Input!$A$4=3,$E$17*AE43,""))) -> 169.8795181 | L42: 0.03614457831 | Z42: 15 | AA42: 0.0625 | AD42: 15 | AE42: 0.02083333333
A43: Hair Clipper | J43: 17 | K43: =IF(Input!$A$4=1,$E$17*L43,IF(Input!$A$4=2,$E$17*AA44,IF(Input!$A$4=3,$E$17*AE44,""))) -> 240.6626506 | L43: 0.05120481928 | Z43: 16 | AA43: 0.0625 | AD43: 16 | AE43: 0.0625
A44: Fridge | J44: 18 | K44: =IF(Input!$A$4=1,$E$17*L44,IF(Input!$A$4=2,$E$17*AA45,IF(Input!$A$4=3,$E$17*AE45,""))) -> 240.6626506 | L44: 0.05120481928 | Z44: 17 | AA44: 0.0625 | AD44: 17 | AE44: 0.0625
A45: Freezer | J45: 19 | K45: =IF(Input!$A$4=1,$E$17*L45,IF(Input!$A$4=2,$E$17*AA46,IF(Input!$A$4=3,$E$17*AE46,""))) -> 325.6024096 | L45: 0.06927710843 | Z45: 18 | AA45: 0.0625 | AD45: 18 | AE45: 0.0625
J46: 20 | K46: =IF(Input!$A$4=1,$E$17*L46,IF(Input!$A$4=2,$E$17*AA47,IF(Input!$A$4=3,$E$17*AE47,""))) -> 424.6987952 | L46: 0.09036144578 | Z46: 19 | AA46: 0.02083333333 | AD46: 19 | AE46: 0.0625
J47: 21 | K47: =IF(Input!$A$4=1,$E$17*L47,IF(Input!$A$4=2,$E$17*AA48,IF(Input!$A$4=3,$E$17*AE48,""))) -> 424.6987952 | L47: 0.09036144578 | Z47: 20 | AA47: 0.02083333333 | AD47: 20 | AE47: 0.0625
J48: 22 | K48: =IF(Input!$A$4=1,$E$17*L48,IF(Input!$A$4=2,$E$17*AA49,IF(Input!$A$4=3,$E$17*AE49,""))) -> 353.9156627 | L48: 0.07530120482 | Z48: 21 | AA48: 0.02083333333 | AD48: 21 | AE48: 0.0625
A49: Days of storage (0=day, 1=day; 2=week) | J49: 23 | K49: =IF(Input!$A$4=1,$E$17*L49,IF(Input!$A$4=2,$E$17*AA50,IF(Input!$A$4=3,$E$17*AE50,""))) -> 169.8795181 | L49: 0.03614457831 | Z49: 22 | AA49: 0.02083333333 | AD49: 22 | AE49: 0.0625
A50: 1 Day-Reliability 95% | J50: 24 | K50: =IF(Input!$A$4=1,$E$17*L50,IF(Input!$A$4=2,$E$17*AA51,IF(Input!$A$4=3,$E$17*AE51,""))) -> 113.253012 | L50: 0.02409638554 | Z50: 23 | AA50: 0.02083333333 | AD50: 23 | AE50: 0.0625
A51: 1 Day-Reliability 99,9% | J51: 1 | K51: =IF(Input!$A$4=1,$E$17*L51,IF(Input!$A$4=2,$E$17*AA52,IF(Input!$A$4=3,$E$17*AE52,""))) -> 113.253012 | L51: 0.02409638554 | Z51: 24 | AA51: 0.02083333333 | AD51: 24 | AE51: 0.0625
A52: 2 Days | J52: 2 | K52: =IF(Input!$A$4=1,$E$17*L52,IF(Input!$A$4=2,$E$17*AA53,IF(Input!$A$4=3,$E$17*AE53,""))) -> 113.253012 | L52: 0.02409638554 | Z52: 1 | AA52: 0.02083333333 | AD52: 1 | AE52: 0.0625
A53: 3 Days | J53: 3 | K53: =IF(Input!$A$4=1,$E$17*L53,IF(Input!$A$4=2,$E$17*AA54,IF(Input!$A$4=3,$E$17*AE54,""))) -> 113.253012 | L53: 0.02409638554 | Z53: 2 | AA53: 0.02083333333 | AD53: 2 | AE53: 0.0625
A54: 4 Days | J54: 4 | K54: =IF(Input!$A$4=1,$E$17*L54,IF(Input!$A$4=2,$E$17*AA55,IF(Input!$A$4=3,$E$17*AE55,""))) -> 113.253012 | L54: 0.02409638554 | Z54: 3 | AA54: 0.02083333333 | AD54: 3 | AE54: 0.0625
A55: 5 Days | J55: 5 | K55: =IF(Input!$A$4=1,$E$17*L55,IF(Input!$A$4=2,$E$17*AA56,IF(Input!$A$4=3,$E$17*AE56,""))) -> 113.253012 | L55: 0.02409638554 | Z55: 4 | AA55: 0.02083333333 | AD55: 4 | AE55: 0.02083333333
A56: 6 Days | J56: 6 | K56: =IF(Input!$A$4=1,$E$17*L56,IF(Input!$A$4=2,$E$17*AA57,IF(Input!$A$4=3,$E$17*AE57,""))) -> 155.7228916 | L56: 0.03313253012 | Z56: 5 | AA56: 0.02083333333 | AD56: 5 | AE56: 0.02083333333
A57: 7 Days | J57: 7 | K57: =IF(Input!$A$4=1,$E$17*L57,IF(Input!$A$4=2,$E$17*AA58,IF(Input!$A$4=3,$E$17*AE58,""))) -> 254.8192771 | L57: 0.05421686747 | Z57: 6 | AA57: 0.02083333333 | AD57: 6 | AE57: 0.02083333333
J58: 8 | K58: =IF(Input!$A$4=1,$E$17*L58,IF(Input!$A$4=2,$E$17*AA59,IF(Input!$A$4=3,$E$17*AE59,""))) -> 141.5662651 | L58: 0.03012048193 | Z58: 7 | AA58: 0.0625 | AD58: 7 | AE58: 0.02083333333
A59: Load profile | J59: 9 | K59: =IF(Input!$A$4=1,$E$17*L59,IF(Input!$A$4=2,$E$17*AA60,IF(Input!$A$4=3,$E$17*AE60,""))) -> 141.5662651 | L59: 0.03012048193 | Z59: 8 | AA59: 0.0625 | AD59: 8 | AE59: 0.02083333333
A60: Standard | J60: 10 | K60: =IF(Input!$A$4=1,$E$17*L60,IF(Input!$A$4=2,$E$17*AA61,IF(Input!$A$4=3,$E$17*AE61,""))) -> 141.5662651 | L60: 0.03012048193 | Z60: 9 | AA60: 0.0625 | AD60: 9 | AE60: 0.02083333333
A61: Day | J61: 11 | K61: =IF(Input!$A$4=1,$E$17*L61,IF(Input!$A$4=2,$E$17*AA62,IF(Input!$A$4=3,$E$17*AE62,""))) -> 141.5662651 | L61: 0.03012048193 | Z61: 10 | AA61: 0.0625 | AD61: 10 | AE61: 0.02083333333
A62: Evening | J62: 12 | K62: =IF(Input!$A$4=1,$E$17*L62,IF(Input!$A$4=2,$E$17*AA63,IF(Input!$A$4=3,$E$17*AE63,""))) -> 240.6626506 | L62: 0.05120481928 | Z62: 11 | AA62: 0.0625 | AD62: 11 | AE62: 0.02083333333
J63: 13 | K63: =IF(Input!$A$4=1,$E$17*L63,IF(Input!$A$4=2,$E$17*AA64,IF(Input!$A$4=3,$E$17*AE64,""))) -> 226.5060241 | L63: 0.04819277108 | Z63: 12 | AA63: 0.0625 | AD63: 12 | AE63: 0.02083333333
J64: 14 | K64: =IF(Input!$A$4=1,$E$17*L64,IF(Input!$A$4=2,$E$17*AA65,IF(Input!$A$4=3,$E$17*AE65,""))) -> 113.253012 | L64: 0.02409638554 | Z64: 13 | AA64: 0.0625 | AD64: 13 | AE64: 0.02083333333
J65: 15 | K65: =IF(Input!$A$4=1,$E$17*L65,IF(Input!$A$4=2,$E$17*AA66,IF(Input!$A$4=3,$E$17*AE66,""))) -> 113.253012 | L65: 0.02409638554 | Z65: 14 | AA65: 0.0625 | AD65: 14 | AE65: 0.02083333333
J66: 16 | K66: =IF(Input!$A$4=1,$E$17*L66,IF(Input!$A$4=2,$E$17*AA67,IF(Input!$A$4=3,$E$17*AE67,""))) -> 169.8795181 | L66: 0.03614457831 | Z66: 15 | AA66: 0.0625 | AD66: 15 | AE66: 0.02083333333
J67: 17 | K67: =IF(Input!$A$4=1,$E$17*L67,IF(Input!$A$4=2,$E$17*AA68,IF(Input!$A$4=3,$E$17*AE68,""))) -> 240.6626506 | L67: 0.05120481928 | Z67: 16 | AA67: 0.0625 | AD67: 16 | AE67: 0.0625
J68: 18 | K68: =IF(Input!$A$4=1,$E$17*L68,IF(Input!$A$4=2,$E$17*AA69,IF(Input!$A$4=3,$E$17*AE69,""))) -> 240.6626506 | L68: 0.05120481928 | Z68: 17 | AA68: 0.0625 | AD68: 17 | AE68: 0.0625
J69: 19 | K69: =IF(Input!$A$4=1,$E$17*L69,IF(Input!$A$4=2,$E$17*AA70,IF(Input!$A$4=3,$E$17*AE70,""))) -> 325.6024096 | L69: 0.06927710843 | Z69: 18 | AA69: 0.0625 | AD69: 18 | AE69: 0.0625
J70: 20 | K70: =IF(Input!$A$4=1,$E$17*L70,IF(Input!$A$4=2,$E$17*AA71,IF(Input!$A$4=3,$E$17*AE71,""))) -> 424.6987952 | L70: 0.09036144578 | Z70: 19 | AA70: 0.02083333333 | AD70: 19 | AE70: 0.0625
J71: 21 | K71: =IF(Input!$A$4=1,$E$17*L71,IF(Input!$A$4=2,$E$17*AA72,IF(Input!$A$4=3,$E$17*AE72,""))) -> 424.6987952 | L71: 0.09036144578 | Z71: 20 | AA71: 0.02083333333 | AD71: 20 | AE71: 0.0625
J72: 22 | K72: =IF(Input!$A$4=1,$E$17*L72,IF(Input!$A$4=2,$E$17*AA73,IF(Input!$A$4=3,$E$17*AE73,""))) -> 353.9156627 | L72: 0.07530120482 | Z72: 21 | AA72: 0.02083333333 | AD72: 21 | AE72: 0.0625
J73: 23 | K73: =IF(Input!$A$4=1,$E$17*L73,IF(Input!$A$4=2,$E$17*AA74,IF(Input!$A$4=3,$E$17*AE74,""))) -> 169.8795181 | L73: 0.03614457831 | Z73: 22 | AA73: 0.02083333333 | AD73: 22 | AE73: 0.0625
J74: 24 | K74: =IF(Input!$A$4=1,$E$17*L74,IF(Input!$A$4=2,$E$17*AA75,IF(Input!$A$4=3,$E$17*AE75,""))) -> 113.253012 | L74: 0.02409638554 | Z74: 23 | AA74: 0.02083333333 | AD74: 23 | AE74: 0.0625
J75: 1 | K75: =IF(Input!$A$4=1,$E$17*L75,IF(Input!$A$4=2,$E$17*AA76,IF(Input!$A$4=3,$E$17*AE76,""))) -> 113.253012 | L75: 0.02409638554 | Z75: 24 | AA75: 0.02083333333 | AD75: 24 | AE75: 0.0625
J76: 2 | K76: =IF(Input!$A$4=1,$E$17*L76,IF(Input!$A$4=2,$E$17*AA77,IF(Input!$A$4=3,$E$17*AE77,""))) -> 113.253012 | L76: 0.02409638554 | Z76: 1 | AA76: 0.02083333333 | AD76: 1 | AE76: 0.0625
J77: 3 | K77: =IF(Input!$A$4=1,$E$17*L77,IF(Input!$A$4=2,$E$17*AA78,IF(Input!$A$4=3,$E$17*AE78,""))) -> 113.253012 | L77: 0.02409638554 | Z77: 2 | AA77: 0.02083333333 | AD77: 2 | AE77: 0.0625
J78: 4 | K78: =IF(Input!$A$4=1,$E$17*L78,IF(Input!$A$4=2,$E$17*AA79,IF(Input!$A$4=3,$E$17*AE79,""))) -> 113.253012 | L78: 0.02409638554 | Z78: 3 | AA78: 0.02083333333 | AD78: 3 | AE78: 0.0625
J79: 5 | K79: =IF(Input!$A$4=1,$E$17*L79,IF(Input!$A$4=2,$E$17*AA80,IF(Input!$A$4=3,$E$17*AE80,""))) -> 113.253012 | L79: 0.02409638554 | Z79: 4 | AA79: 0.02083333333 | AD79: 4 | AE79: 0.02083333333
J80: 6 | K80: =IF(Input!$A$4=1,$E$17*L80,IF(Input!$A$4=2,$E$17*AA81,IF(Input!$A$4=3,$E$17*AE81,""))) -> 155.7228916 | L80: 0.03313253012 | Z80: 5 | AA80: 0.02083333333 | AD80: 5 | AE80: 0.02083333333
J81: 7 | K81: =IF(Input!$A$4=1,$E$17*L81,IF(Input!$A$4=2,$E$17*AA82,IF(Input!$A$4=3,$E$17*AE82,""))) -> 254.8192771 | L81: 0.05421686747 | Z81: 6 | AA81: 0.02083333333 | AD81: 6 | AE81: 0.02083333333
J82: 8 | K82: =IF(Input!$A$4=1,$E$17*L82,IF(Input!$A$4=2,$E$17*AA83,IF(Input!$A$4=3,$E$17*AE83,""))) -> 141.5662651 | L82: 0.03012048193 | Z82: 7 | AA82: 0.0625 | AD82: 7 | AE82: 0.02083333333
J83: 9 | K83: =IF(Input!$A$4=1,$E$17*L83,IF(Input!$A$4=2,$E$17*AA84,IF(Input!$A$4=3,$E$17*AE84,""))) -> 141.5662651 | L83: 0.03012048193 | Z83: 8 | AA83: 0.0625 | AD83: 8 | AE83: 0.02083333333
J84: 10 | K84: =IF(Input!$A$4=1,$E$17*L84,IF(Input!$A$4=2,$E$17*AA85,IF(Input!$A$4=3,$E$17*AE85,""))) -> 141.5662651 | L84: 0.03012048193 | Z84: 9 | AA84: 0.0625 | AD84: 9 | AE84: 0.02083333333
J85: 11 | K85: =IF(Input!$A$4=1,$E$17*L85,IF(Input!$A$4=2,$E$17*AA86,IF(Input!$A$4=3,$E$17*AE86,""))) -> 141.5662651 | L85: 0.03012048193 | Z85: 10 | AA85: 0.0625 | AD85: 10 | AE85: 0.02083333333
J86: 12 | K86: =IF(Input!$A$4=1,$E$17*L86,IF(Input!$A$4=2,$E$17*AA87,IF(Input!$A$4=3,$E$17*AE87,""))) -> 240.6626506 | L86: 0.05120481928 | Z86: 11 | AA86: 0.0625 | AD86: 11 | AE86: 0.02083333333
J87: 13 | K87: =IF(Input!$A$4=1,$E$17*L87,IF(Input!$A$4=2,$E$17*AA88,IF(Input!$A$4=3,$E$17*AE88,""))) -> 226.5060241 | L87: 0.04819277108 | Z87: 12 | AA87: 0.0625 | AD87: 12 | AE87: 0.02083333333
J88: 14 | K88: =IF(Input!$A$4=1,$E$17*L88,IF(Input!$A$4=2,$E$17*AA89,IF(Input!$A$4=3,$E$17*AE89,""))) -> 113.253012 | L88: 0.02409638554 | Z88: 13 | AA88: 0.0625 | AD88: 13 | AE88: 0.02083333333
J89: 15 | K89: =IF(Input!$A$4=1,$E$17*L89,IF(Input!$A$4=2,$E$17*AA90,IF(Input!$A$4=3,$E$17*AE90,""))) -> 113.253012 | L89: 0.02409638554 | Z89: 14 | AA89: 0.0625 | AD89: 14 | AE89: 0.02083333333
J90: 16 | K90: =IF(Input!$A$4=1,$E$17*L90,IF(Input!$A$4=2,$E$17*AA91,IF(Input!$A$4=3,$E$17*AE91,""))) -> 169.8795181 | L90: 0.03614457831 | Z90: 15 | AA90: 0.0625 | AD90: 15 | AE90: 0.02083333333
J91: 17 | K91: =IF(Input!$A$4=1,$E$17*L91,IF(Input!$A$4=2,$E$17*AA92,IF(Input!$A$4=3,$E$17*AE92,""))) -> 240.6626506 | L91: 0.05120481928 | Z91: 16 | AA91: 0.0625 | AD91: 16 | AE91: 0.0625
J92: =J68 -> 18 | K92: =IF(Input!$A$4=1,$E$17*L92,IF(Input!$A$4=2,$E$17*AA93,IF(Input!$A$4=3,$E$17*AE93,""))) -> 240.6626506 | L92: =L68 -> 0.05120481928 | Z92: 17 | AA92: 0.0625 | AD92: 17 | AE92: 0.0625
J93: 19 | K93: =IF(Input!$A$4=1,$E$17*L93,IF(Input!$A$4=2,$E$17*AA94,IF(Input!$A$4=3,$E$17*AE94,""))) -> 325.6024096 | L93: 0.06927710843 | Z93: =Z69 -> 18 | AA93: 0.0625 | AD93: =AD69 -> 18 | AE93: 0.0625
J94: 20 | K94: =IF(Input!$A$4=1,$E$17*L94,IF(Input!$A$4=2,$E$17*AA95,IF(Input!$A$4=3,$E$17*AE95,""))) -> 424.6987952 | L94: 0.09036144578 | Z94: 19 | AA94: 0.02083333333 | AD94: 19 | AE94: 0.0625
J95: 21 | K95: =IF(Input!$A$4=1,$E$17*L95,IF(Input!$A$4=2,$E$17*AA96,IF(Input!$A$4=3,$E$17*AE96,""))) -> 424.6987952 | L95: 0.09036144578 | Z95: 20 | AA95: 0.02083333333 | AD95: 20 | AE95: 0.0625
J96: 22 | K96: =IF(Input!$A$4=1,$E$17*L96,IF(Input!$A$4=2,$E$17*AA97,IF(Input!$A$4=3,$E$17*AE97,""))) -> 353.9156627 | L96: 0.07530120482 | Z96: 21 | AA96: 0.02083333333 | AD96: 21 | AE96: 0.0625
J97: 23 | K97: =IF(Input!$A$4=1,$E$17*L97,IF(Input!$A$4=2,$E$17*AA98,IF(Input!$A$4=3,$E$17*AE98,""))) -> 169.8795181 | L97: 0.03614457831 | Z97: 22 | AA97: 0.02083333333 | AD97: 22 | AE97: 0.0625
J98: 24 | K98: =IF(Input!$A$4=1,$E$17*L98,IF(Input!$A$4=2,$E$17*AA99,IF(Input!$A$4=3,$E$17*AE99,""))) -> 113.253012 | L98: 0.02409638554 | Z98: 23 | AA98: 0.02083333333 | AD98: 23 | AE98: 0.0625
J99: 1 | K99: =IF(Input!$A$4=1,$E$17*L99,IF(Input!$A$4=2,$E$17*AA100,IF(Input!$A$4=3,$E$17*AE100,""))) -> 113.253012 | L99: 0.02409638554 | Z99: 24 | AA99: 0.02083333333 | AD99: 24 | AE99: 0.0625
J100: 2 | K100: =IF(Input!$A$4=1,$E$17*L100,IF(Input!$A$4=2,$E$17*AA101,IF(Input!$A$4=3,$E$17*AE101,""))) -> 113.253012 | L100: 0.02409638554 | Z100: 1 | AA100: 0.02083333333 | AD100: 1 | AE100: 0.0625
J101: 3 | K101: =IF(Input!$A$4=1,$E$17*L101,IF(Input!$A$4=2,$E$17*AA102,IF(Input!$A$4=3,$E$17*AE102,""))) -> 113.253012 | L101: 0.02409638554 | Z101: 2 | AA101: 0.02083333333 | AD101: 2 | AE101: 0.0625
J102: 4 | K102: =IF(Input!$A$4=1,$E$17*L102,IF(Input!$A$4=2,$E$17*AA103,IF(Input!$A$4=3,$E$17*AE103,""))) -> 113.253012 | L102: 0.02409638554 | Z102: 3 | AA102: 0.02083333333 | AD102: 3 | AE102: 0.0625
J103: 5 | K103: =IF(Input!$A$4=1,$E$17*L103,IF(Input!$A$4=2,$E$17*AA104,IF(Input!$A$4=3,$E$17*AE104,""))) -> 113.253012 | L103: 0.02409638554 | Z103: 4 | AA103: 0.02083333333 | AD103: 4 | AE103: 0.02083333333
J104: 6 | K104: =IF(Input!$A$4=1,$E$17*L104,IF(Input!$A$4=2,$E$17*AA105,IF(Input!$A$4=3,$E$17*AE105,""))) -> 155.7228916 | L104: 0.03313253012 | Z104: 5 | AA104: 0.02083333333 | AD104: 5 | AE104: 0.02083333333
J105: 7 | K105: =IF(Input!$A$4=1,$E$17*L105,IF(Input!$A$4=2,$E$17*AA106,IF(Input!$A$4=3,$E$17*AE106,""))) -> 254.8192771 | L105: 0.05421686747 | Z105: 6 | AA105: 0.02083333333 | AD105: 6 | AE105: 0.02083333333
J106: 8 | K106: =IF(Input!$A$4=1,$E$17*L106,IF(Input!$A$4=2,$E$17*AA107,IF(Input!$A$4=3,$E$17*AE107,""))) -> 141.5662651 | L106: 0.03012048193 | Z106: 7 | AA106: 0.0625 | AD106: 7 | AE106: 0.02083333333
J107: 9 | K107: =IF(Input!$A$4=1,$E$17*L107,IF(Input!$A$4=2,$E$17*AA108,IF(Input!$A$4=3,$E$17*AE108,""))) -> 141.5662651 | L107: 0.03012048193 | Z107: 8 | AA107: 0.0625 | AD107: 8 | AE107: 0.02083333333
J108: 10 | K108: =IF(Input!$A$4=1,$E$17*L108,IF(Input!$A$4=2,$E$17*AA109,IF(Input!$A$4=3,$E$17*AE109,""))) -> 141.5662651 | L108: 0.03012048193 | Z108: 9 | AA108: 0.0625 | AD108: 9 | AE108: 0.02083333333
J109: 11 | K109: =IF(Input!$A$4=1,$E$17*L109,IF(Input!$A$4=2,$E$17*AA110,IF(Input!$A$4=3,$E$17*AE110,""))) -> 141.5662651 | L109: 0.03012048193 | Z109: 10 | AA109: 0.0625 | AD109: 10 | AE109: 0.02083333333
J110: 12 | K110: =IF(Input!$A$4=1,$E$17*L110,IF(Input!$A$4=2,$E$17*AA111,IF(Input!$A$4=3,$E$17*AE111,""))) -> 240.6626506 | L110: 0.05120481928 | Z110: 11 | AA110: 0.0625 | AD110: 11 | AE110: 0.02083333333
J111: 13 | K111: =IF(Input!$A$4=1,$E$17*L111,IF(Input!$A$4=2,$E$17*AA112,IF(Input!$A$4=3,$E$17*AE112,""))) -> 226.5060241 | L111: 0.04819277108 | Z111: 12 | AA111: 0.0625 | AD111: 12 | AE111: 0.02083333333
J112: 14 | K112: =IF(Input!$A$4=1,$E$17*L112,IF(Input!$A$4=2,$E$17*AA113,IF(Input!$A$4=3,$E$17*AE113,""))) -> 113.253012 | L112: 0.02409638554 | Z112: 13 | AA112: 0.0625 | AD112: 13 | AE112: 0.02083333333
J113: 15 | K113: =IF(Input!$A$4=1,$E$17*L113,IF(Input!$A$4=2,$E$17*AA114,IF(Input!$A$4=3,$E$17*AE114,""))) -> 113.253012 | L113: 0.02409638554 | Z113: 14 | AA113: 0.0625 | AD113: 14 | AE113: 0.02083333333
J114: 16 | K114: =IF(Input!$A$4=1,$E$17*L114,IF(Input!$A$4=2,$E$17*AA115,IF(Input!$A$4=3,$E$17*AE115,""))) -> 169.8795181 | L114: 0.03614457831 | Z114: 15 | AA114: 0.0625 | AD114: 15 | AE114: 0.02083333333
J115: 17 | K115: =IF(Input!$A$4=1,$E$17*L115,IF(Input!$A$4=2,$E$17*AA116,IF(Input!$A$4=3,$E$17*AE116,""))) -> 240.6626506 | L115: 0.05120481928 | Z115: 16 | AA115: 0.0625 | AD115: 16 | AE115: 0.0625
J116: 18 | K116: =IF(Input!$A$4=1,$E$17*L116,IF(Input!$A$4=2,$E$17*AA117,IF(Input!$A$4=3,$E$17*AE117,""))) -> 240.6626506 | L116: 0.05120481928 | Z116: 17 | AA116: 0.0625 | AD116: 17 | AE116: 0.0625
J117: 19 | K117: =IF(Input!$A$4=1,$E$17*L117,IF(Input!$A$4=2,$E$17*AA118,IF(Input!$A$4=3,$E$17*AE118,""))) -> 325.6024096 | L117: 0.06927710843 | Z117: 18 | AA117: 0.0625 | AD117: 18 | AE117: 0.0625
J118: 20 | K118: =IF(Input!$A$4=1,$E$17*L118,IF(Input!$A$4=2,$E$17*AA119,IF(Input!$A$4=3,$E$17*AE119,""))) -> 424.6987952 | L118: 0.09036144578 | Z118: 19 | AA118: 0.02083333333 | AD118: 19 | AE118: 0.0625
J119: 21 | K119: =IF(Input!$A$4=1,$E$17*L119,IF(Input!$A$4=2,$E$17*AA120,IF(Input!$A$4=3,$E$17*AE120,""))) -> 424.6987952 | L119: 0.09036144578 | Z119: 20 | AA119: 0.02083333333 | AD119: 20 | AE119: 0.0625
J120: 22 | K120: =IF(Input!$A$4=1,$E$17*L120,IF(Input!$A$4=2,$E$17*AA121,IF(Input!$A$4=3,$E$17*AE121,""))) -> 353.9156627 | L120: 0.07530120482 | Z120: 21 | AA120: 0.02083333333 | AD120: 21 | AE120: 0.0625
J121: 23 | K121: =IF(Input!$A$4=1,$E$17*L121,IF(Input!$A$4=2,$E$17*AA122,IF(Input!$A$4=3,$E$17*AE122,""))) -> 169.8795181 | L121: 0.03614457831 | Z121: 22 | AA121: 0.02083333333 | AD121: 22 | AE121: 0.0625
J122: 24 | K122: =IF(Input!$A$4=1,$E$17*L122,IF(Input!$A$4=2,$E$17*AA123,IF(Input!$A$4=3,$E$17*AE123,""))) -> 113.253012 | L122: 0.02409638554 | Z122: 23 | AA122: 0.02083333333 | AD122: 23 | AE122: 0.0625
J123: 1 | K123: =IF(Input!$A$4=1,$E$17*L123,IF(Input!$A$4=2,$E$17*AA124,IF(Input!$A$4=3,$E$17*AE124,""))) -> 113.253012 | L123: 0.02409638554 | Z123: 24 | AA123: 0.02083333333 | AD123: 24 | AE123: 0.0625
J124: 2 | K124: =IF(Input!$A$4=1,$E$17*L124,IF(Input!$A$4=2,$E$17*AA125,IF(Input!$A$4=3,$E$17*AE125,""))) -> 113.253012 | L124: 0.02409638554 | Z124: 1 | AA124: 0.02083333333 | AD124: 1 | AE124: 0.0625
J125: 3 | K125: =IF(Input!$A$4=1,$E$17*L125,IF(Input!$A$4=2,$E$17*AA126,IF(Input!$A$4=3,$E$17*AE126,""))) -> 113.253012 | L125: 0.02409638554 | Z125: 2 | AA125: 0.02083333333 | AD125: 2 | AE125: 0.0625
J126: 4 | K126: =IF(Input!$A$4=1,$E$17*L126,IF(Input!$A$4=2,$E$17*AA127,IF(Input!$A$4=3,$E$17*AE127,""))) -> 113.253012 | L126: 0.02409638554 | Z126: 3 | AA126: 0.02083333333 | AD126: 3 | AE126: 0.0625
J127: 5 | K127: =IF(Input!$A$4=1,$E$17*L127,IF(Input!$A$4=2,$E$17*AA128,IF(Input!$A$4=3,$E$17*AE128,""))) -> 113.253012 | L127: 0.02409638554 | Z127: 4 | AA127: 0.02083333333 | AD127: 4 | AE127: 0.02083333333
J128: 6 | K128: =IF(Input!$A$4=1,$E$17*L128,IF(Input!$A$4=2,$E$17*AA129,IF(Input!$A$4=3,$E$17*AE129,""))) -> 155.7228916 | L128: 0.03313253012 | Z128: 5 | AA128: 0.02083333333 | AD128: 5 | AE128: 0.02083333333
J129: 7 | K129: =IF(Input!$A$4=1,$E$17*L129,IF(Input!$A$4=2,$E$17*AA130,IF(Input!$A$4=3,$E$17*AE130,""))) -> 254.8192771 | L129: 0.05421686747 | Z129: 6 | AA129: 0.02083333333 | AD129: 6 | AE129: 0.02083333333
J130: 8 | K130: =IF(Input!$A$4=1,$E$17*L130,IF(Input!$A$4=2,$E$17*AA131,IF(Input!$A$4=3,$E$17*AE131,""))) -> 141.5662651 | L130: 0.03012048193 | Z130: 7 | AA130: 0.0625 | AD130: 7 | AE130: 0.02083333333
J131: 9 | K131: =IF(Input!$A$4=1,$E$17*L131,IF(Input!$A$4=2,$E$17*AA132,IF(Input!$A$4=3,$E$17*AE132,""))) -> 141.5662651 | L131: 0.03012048193 | Z131: 8 | AA131: 0.0625 | AD131: 8 | AE131: 0.02083333333
J132: 10 | K132: =IF(Input!$A$4=1,$E$17*L132,IF(Input!$A$4=2,$E$17*AA133,IF(Input!$A$4=3,$E$17*AE133,""))) -> 141.5662651 | L132: 0.03012048193 | Z132: 9 | AA132: 0.0625 | AD132: 9 | AE132: 0.02083333333
J133: 11 | K133: =IF(Input!$A$4=1,$E$17*L133,IF(Input!$A$4=2,$E$17*AA134,IF(Input!$A$4=3,$E$17*AE134,""))) -> 141.5662651 | L133: 0.03012048193 | Z133: 10 | AA133: 0.0625 | AD133: 10 | AE133: 0.02083333333
J134: 12 | K134: =IF(Input!$A$4=1,$E$17*L134,IF(Input!$A$4=2,$E$17*AA135,IF(Input!$A$4=3,$E$17*AE135,""))) -> 240.6626506 | L134: 0.05120481928 | Z134: 11 | AA134: 0.0625 | AD134: 11 | AE134: 0.02083333333
J135: 13 | K135: =IF(Input!$A$4=1,$E$17*L135,IF(Input!$A$4=2,$E$17*AA136,IF(Input!$A$4=3,$E$17*AE136,""))) -> 226.5060241 | L135: 0.04819277108 | Z135: 12 | AA135: 0.0625 | AD135: 12 | AE135: 0.02083333333
J136: 14 | K136: =IF(Input!$A$4=1,$E$17*L136,IF(Input!$A$4=2,$E$17*AA137,IF(Input!$A$4=3,$E$17*AE137,""))) -> 113.253012 | L136: 0.02409638554 | Z136: 13 | AA136: 0.0625 | AD136: 13 | AE136: 0.02083333333
J137: 15 | K137: =IF(Input!$A$4=1,$E$17*L137,IF(Input!$A$4=2,$E$17*AA138,IF(Input!$A$4=3,$E$17*AE138,""))) -> 113.253012 | L137: 0.02409638554 | Z137: 14 | AA137: 0.0625 | AD137: 14 | AE137: 0.02083333333
J138: 16 | K138: =IF(Input!$A$4=1,$E$17*L138,IF(Input!$A$4=2,$E$17*AA139,IF(Input!$A$4=3,$E$17*AE139,""))) -> 169.8795181 | L138: 0.03614457831 | Z138: 15 | AA138: 0.0625 | AD138: 15 | AE138: 0.02083333333
J139: 17 | K139: =IF(Input!$A$4=1,$E$17*L139,IF(Input!$A$4=2,$E$17*AA140,IF(Input!$A$4=3,$E$17*AE140,""))) -> 240.6626506 | L139: 0.05120481928 | Z139: 16 | AA139: 0.0625 | AD139: 16 | AE139: 0.0625
J140: 18 | K140: =IF(Input!$A$4=1,$E$17*L140,IF(Input!$A$4=2,$E$17*AA141,IF(Input!$A$4=3,$E$17*AE141,""))) -> 240.6626506 | L140: 0.05120481928 | Z140: 17 | AA140: 0.0625 | AD140: 17 | AE140: 0.0625
J141: 19 | K141: =IF(Input!$A$4=1,$E$17*L141,IF(Input!$A$4=2,$E$17*AA142,IF(Input!$A$4=3,$E$17*AE142,""))) -> 325.6024096 | L141: 0.06927710843 | Z141: 18 | AA141: 0.0625 | AD141: 18 | AE141: 0.0625
J142: 20 | K142: =IF(Input!$A$4=1,$E$17*L142,IF(Input!$A$4=2,$E$17*AA143,IF(Input!$A$4=3,$E$17*AE143,""))) -> 424.6987952 | L142: 0.09036144578 | Z142: 19 | AA142: 0.02083333333 | AD142: 19 | AE142: 0.0625
J143: 21 | K143: =IF(Input!$A$4=1,$E$17*L143,IF(Input!$A$4=2,$E$17*AA144,IF(Input!$A$4=3,$E$17*AE144,""))) -> 424.6987952 | L143: 0.09036144578 | Z143: 20 | AA143: 0.02083333333 | AD143: 20 | AE143: 0.0625
J144: 22 | K144: =IF(Input!$A$4=1,$E$17*L144,IF(Input!$A$4=2,$E$17*AA145,IF(Input!$A$4=3,$E$17*AE145,""))) -> 353.9156627 | L144: 0.07530120482 | Z144: 21 | AA144: 0.02083333333 | AD144: 21 | AE144: 0.0625
J145: 23 | K145: =IF(Input!$A$4=1,$E$17*L145,IF(Input!$A$4=2,$E$17*AA146,IF(Input!$A$4=3,$E$17*AE146,""))) -> 169.8795181 | L145: 0.03614457831 | Z145: 22 | AA145: 0.02083333333 | AD145: 22 | AE145: 0.0625
J146: 24 | K146: =IF(Input!$A$4=1,$E$17*L146,IF(Input!$A$4=2,$E$17*AA147,IF(Input!$A$4=3,$E$17*AE147,""))) -> 113.253012 | L146: 0.02409638554 | Z146: 23 | AA146: 0.02083333333 | AD146: 23 | AE146: 0.0625
J147: 1 | K147: =IF(Input!$A$4=1,$E$17*L147,IF(Input!$A$4=2,$E$17*AA148,IF(Input!$A$4=3,$E$17*AE148,""))) -> 113.253012 | L147: 0.02409638554 | Z147: 24 | AA147: 0.02083333333 | AD147: 24 | AE147: 0.0625
J148: 2 | K148: =IF(Input!$A$4=1,$E$17*L148,IF(Input!$A$4=2,$E$17*AA149,IF(Input!$A$4=3,$E$17*AE149,""))) -> 113.253012 | L148: 0.02409638554 | Z148: 1 | AA148: 0.02083333333 | AD148: 1 | AE148: 0.0625
J149: 3 | K149: =IF(Input!$A$4=1,$E$17*L149,IF(Input!$A$4=2,$E$17*AA150,IF(Input!$A$4=3,$E$17*AE150,""))) -> 113.253012 | L149: 0.02409638554 | Z149: 2 | AA149: 0.02083333333 | AD149: 2 | AE149: 0.0625
J150: 4 | K150: =IF(Input!$A$4=1,$E$17*L150,IF(Input!$A$4=2,$E$17*AA151,IF(Input!$A$4=3,$E$17*AE151,""))) -> 113.253012 | L150: 0.02409638554 | Z150: 3 | AA150: 0.02083333333 | AD150: 3 | AE150: 0.0625
J151: 5 | K151: =IF(Input!$A$4=1,$E$17*L151,IF(Input!$A$4=2,$E$17*AA152,IF(Input!$A$4=3,$E$17*AE152,""))) -> 113.253012 | L151: 0.02409638554 | Z151: 4 | AA151: 0.02083333333 | AD151: 4 | AE151: 0.02083333333
J152: 6 | K152: =IF(Input!$A$4=1,$E$17*L152,IF(Input!$A$4=2,$E$17*AA153,IF(Input!$A$4=3,$E$17*AE153,""))) -> 155.7228916 | L152: 0.03313253012 | Z152: 5 | AA152: 0.02083333333 | AD152: 5 | AE152: 0.02083333333
J153: 7 | K153: =IF(Input!$A$4=1,$E$17*L153,IF(Input!$A$4=2,$E$17*AA154,IF(Input!$A$4=3,$E$17*AE154,""))) -> 254.8192771 | L153: 0.05421686747 | Z153: 6 | AA153: 0.02083333333 | AD153: 6 | AE153: 0.02083333333
J154: 8 | K154: =IF(Input!$A$4=1,$E$17*L154,IF(Input!$A$4=2,$E$17*AA155,IF(Input!$A$4=3,$E$17*AE155,""))) -> 141.5662651 | L154: 0.03012048193 | Z154: 7 | AA154: 0.0625 | AD154: 7 | AE154: 0.02083333333
J155: 9 | K155: =IF(Input!$A$4=1,$E$17*L155,IF(Input!$A$4=2,$E$17*AA156,IF(Input!$A$4=3,$E$17*AE156,""))) -> 141.5662651 | L155: 0.03012048193 | Z155: 8 | AA155: 0.0625 | AD155: 8 | AE155: 0.02083333333
J156: =J132 -> 10 | K156: =IF(Input!$A$4=1,$E$17*L156,IF(Input!$A$4=2,$E$17*AA157,IF(Input!$A$4=3,$E$17*AE157,""))) -> 141.5662651 | L156: =L132 -> 0.03012048193 | Z156: 9 | AA156: 0.0625 | AD156: 9 | AE156: 0.02083333333
J157: 11 | K157: =IF(Input!$A$4=1,$E$17*L157,IF(Input!$A$4=2,$E$17*AA158,IF(Input!$A$4=3,$E$17*AE158,""))) -> 141.5662651 | L157: 0.03012048193 | Z157: =Z133 -> 10 | AA157: 0.0625 | AD157: =AD133 -> 10 | AE157: 0.02083333333
J158: 12 | K158: =IF(Input!$A$4=1,$E$17*L158,IF(Input!$A$4=2,$E$17*AA159,IF(Input!$A$4=3,$E$17*AE159,""))) -> 240.6626506 | L158: 0.05120481928 | Z158: 11 | AA158: 0.0625 | AD158: 11 | AE158: 0.02083333333
J159: 13 | K159: =IF(Input!$A$4=1,$E$17*L159,IF(Input!$A$4=2,$E$17*AA160,IF(Input!$A$4=3,$E$17*AE160,""))) -> 226.5060241 | L159: 0.04819277108 | Z159: 12 | AA159: 0.0625 | AD159: 12 | AE159: 0.02083333333
J160: 14 | K160: =IF(Input!$A$4=1,$E$17*L160,IF(Input!$A$4=2,$E$17*AA161,IF(Input!$A$4=3,$E$17*AE161,""))) -> 113.253012 | L160: 0.02409638554 | Z160: 13 | AA160: 0.0625 | AD160: 13 | AE160: 0.02083333333
J161: 15 | K161: =IF(Input!$A$4=1,$E$17*L161,IF(Input!$A$4=2,$E$17*AA162,IF(Input!$A$4=3,$E$17*AE162,""))) -> 113.253012 | L161: 0.02409638554 | Z161: 14 | AA161: 0.0625 | AD161: 14 | AE161: 0.02083333333
J162: 16 | K162: =IF(Input!$A$4=1,$E$17*L162,IF(Input!$A$4=2,$E$17*AA163,IF(Input!$A$4=3,$E$17*AE163,""))) -> 169.8795181 | L162: 0.03614457831 | Z162: 15 | AA162: 0.0625 | AD162: 15 | AE162: 0.02083333333
J163: 17 | K163: =IF(Input!$A$4=1,$E$17*L163,IF(Input!$A$4=2,$E$17*AA164,IF(Input!$A$4=3,$E$17*AE164,""))) -> 240.6626506 | L163: 0.05120481928 | Z163: 16 | AA163: 0.0625 | AD163: 16 | AE163: 0.0625
J164: 18 | K164: =IF(Input!$A$4=1,$E$17*L164,IF(Input!$A$4=2,$E$17*AA165,IF(Input!$A$4=3,$E$17*AE165,""))) -> 240.6626506 | L164: 0.05120481928 | Z164: 17 | AA164: 0.0625 | AD164: 17 | AE164: 0.0625
J165: 19 | K165: =IF(Input!$A$4=1,$E$17*L165,IF(Input!$A$4=2,$E$17*AA166,IF(Input!$A$4=3,$E$17*AE166,""))) -> 325.6024096 | L165: 0.06927710843 | Z165: 18 | AA165: 0.0625 | AD165: 18 | AE165: 0.0625
J166: 20 | K166: =IF(Input!$A$4=1,$E$17*L166,IF(Input!$A$4=2,$E$17*AA167,IF(Input!$A$4=3,$E$17*AE167,""))) -> 424.6987952 | L166: 0.09036144578 | Z166: 19 | AA166: 0.02083333333 | AD166: 19 | AE166: 0.0625
J167: 21 | K167: =IF(Input!$A$4=1,$E$17*L167,IF(Input!$A$4=2,$E$17*AA168,IF(Input!$A$4=3,$E$17*AE168,""))) -> 424.6987952 | L167: 0.09036144578 | Z167: 20 | AA167: 0.02083333333 | AD167: 20 | AE167: 0.0625
J168: 22 | K168: =IF(Input!$A$4=1,$E$17*L168,IF(Input!$A$4=2,$E$17*AA169,IF(Input!$A$4=3,$E$17*AE169,""))) -> 353.9156627 | L168: 0.07530120482 | Z168: 21 | AA168: 0.02083333333 | AD168: 21 | AE168: 0.0625
J169: 23 | K169: =IF(Input!$A$4=1,$E$17*L169,IF(Input!$A$4=2,$E$17*AA170,IF(Input!$A$4=3,$E$17*AE170,""))) -> 169.8795181 | L169: 0.03614457831 | Z169: 22 | AA169: 0.02083333333 | AD169: 22 | AE169: 0.0625
J170: 24 | K170: =IF(Input!$A$4=1,$E$17*L170,IF(Input!$A$4=2,$E$17*AA171,IF(Input!$A$4=3,$E$17*AE171,""))) -> 113.253012 | L170: 0.02409638554 | Z170: 23 | AA170: 0.02083333333 | AD170: 23 | AE170: 0.0625
J171: 1 | K171: =IF(Input!$A$4=1,$E$17*L171,IF(Input!$A$4=2,$E$17*AA172,IF(Input!$A$4=3,$E$17*AE172,""))) -> 113.253012 | L171: 0.02409638554 | Z171: 24 | AA171: 0.02083333333 | AD171: 24 | AE171: 0.0625
J172: 2 | K172: =IF(Input!$A$4=1,$E$17*L172,IF(Input!$A$4=2,$E$17*AA173,IF(Input!$A$4=3,$E$17*AE173,""))) -> 113.253012 | L172: 0.02409638554 | Z172: 1 | AA172: 0.02083333333 | AD172: 1 | AE172: 0.0625
J173: 3 | K173: =IF(Input!$A$4=1,$E$17*L173,IF(Input!$A$4=2,$E$17*AA174,IF(Input!$A$4=3,$E$17*AE174,""))) -> 113.253012 | L173: 0.02409638554 | Z173: 2 | AA173: 0.02083333333 | AD173: 2 | AE173: 0.0625
J174: 4 | K174: =IF(Input!$A$4=1,$E$17*L174,IF(Input!$A$4=2,$E$17*AA175,IF(Input!$A$4=3,$E$17*AE175,""))) -> 113.253012 | L174: 0.02409638554 | Z174: 3 | AA174: 0.02083333333 | AD174: 3 | AE174: 0.0625
J175: 5 | K175: =IF(Input!$A$4=1,$E$17*L175,IF(Input!$A$4=2,$E$17*AA176,IF(Input!$A$4=3,$E$17*AE176,""))) -> 113.253012 | L175: 0.02409638554 | Z175: 4 | AA175: 0.02083333333 | AD175: 4 | AE175: 0.02083333333
J176: 6 | K176: =IF(Input!$A$4=1,$E$17*L176,IF(Input!$A$4=2,$E$17*AA177,IF(Input!$A$4=3,$E$17*AE177,""))) -> 155.7228916 | L176: 0.03313253012 | Z176: 5 | AA176: 0.02083333333 | AD176: 5 | AE176: 0.02083333333
J177: 7 | K177: =IF(Input!$A$4=1,$E$17*L177,IF(Input!$A$4=2,$E$17*AA178,IF(Input!$A$4=3,$E$17*AE178,""))) -> 254.8192771 | L177: 0.05421686747 | Z177: 6 | AA177: 0.02083333333 | AD177: 6 | AE177: 0.02083333333
J178: 8 | K178: =IF(Input!$A$4=1,$E$17*L178,IF(Input!$A$4=2,$E$17*AA179,IF(Input!$A$4=3,$E$17*AE179,""))) -> 141.5662651 | L178: 0.03012048193 | Z178: 7 | AA178: 0.0625 | AD178: 7 | AE178: 0.02083333333
J179: 9 | K179: =IF(Input!$A$4=1,$E$17*L179,IF(Input!$A$4=2,$E$17*AA180,IF(Input!$A$4=3,$E$17*AE180,""))) -> 141.5662651 | L179: 0.03012048193 | Z179: 8 | AA179: 0.0625 | AD179: 8 | AE179: 0.02083333333
J180: 10 | K180: =IF(Input!$A$4=1,$E$17*L180,IF(Input!$A$4=2,$E$17*AA181,IF(Input!$A$4=3,$E$17*AE181,""))) -> 141.5662651 | L180: 0.03012048193 | Z180: 9 | AA180: 0.0625 | AD180: 9 | AE180: 0.02083333333
J181: 11 | K181: =IF(Input!$A$4=1,$E$17*L181,IF(Input!$A$4=2,$E$17*AA182,IF(Input!$A$4=3,$E$17*AE182,""))) -> 141.5662651 | L181: 0.03012048193 | Z181: 10 | AA181: 0.0625 | AD181: 10 | AE181: 0.02083333333
J182: 12 | K182: =IF(Input!$A$4=1,$E$17*L182,IF(Input!$A$4=2,$E$17*AA183,IF(Input!$A$4=3,$E$17*AE183,""))) -> 240.6626506 | L182: 0.05120481928 | Z182: 11 | AA182: 0.0625 | AD182: 11 | AE182: 0.02083333333
J183: 13 | K183: =IF(Input!$A$4=1,$E$17*L183,IF(Input!$A$4=2,$E$17*AA184,IF(Input!$A$4=3,$E$17*AE184,""))) -> 226.5060241 | L183: 0.04819277108 | Z183: 12 | AA183: 0.0625 | AD183: 12 | AE183: 0.02083333333
J184: 14 | K184: =IF(Input!$A$4=1,$E$17*L184,IF(Input!$A$4=2,$E$17*AA185,IF(Input!$A$4=3,$E$17*AE185,""))) -> 113.253012 | L184: 0.02409638554 | Z184: 13 | AA184: 0.0625 | AD184: 13 | AE184: 0.02083333333
J185: 15 | K185: =IF(Input!$A$4=1,$E$17*L185,IF(Input!$A$4=2,$E$17*AA186,IF(Input!$A$4=3,$E$17*AE186,""))) -> 113.253012 | L185: 0.02409638554 | Z185: 14 | AA185: 0.0625 | AD185: 14 | AE185: 0.02083333333
J186: 16 | K186: =IF(Input!$A$4=1,$E$17*L186,IF(Input!$A$4=2,$E$17*AA187,IF(Input!$A$4=3,$E$17*AE187,""))) -> 169.8795181 | L186: 0.03614457831 | Z186: 15 | AA186: 0.0625 | AD186: 15 | AE186: 0.02083333333
J187: 17 | K187: =IF(Input!$A$4=1,$E$17*L187,IF(Input!$A$4=2,$E$17*AA188,IF(Input!$A$4=3,$E$17*AE188,""))) -> 240.6626506 | L187: 0.05120481928 | Z187: 16 | AA187: 0.0625 | AD187: 16 | AE187: 0.0625
J188: 18 | K188: =IF(Input!$A$4=1,$E$17*L188,IF(Input!$A$4=2,$E$17*AA189,IF(Input!$A$4=3,$E$17*AE189,""))) -> 240.6626506 | L188: 0.05120481928 | Z188: 17 | AA188: 0.0625 | AD188: 17 | AE188: 0.0625
J189: 19 | K189: =IF(Input!$A$4=1,$E$17*L189,IF(Input!$A$4=2,$E$17*AA190,IF(Input!$A$4=3,$E$17*AE190,""))) -> 325.6024096 | L189: 0.06927710843 | Z189: 18 | AA189: 0.0625 | AD189: 18 | AE189: 0.0625
J190: 20 | K190: =IF(Input!$A$4=1,$E$17*L190,IF(Input!$A$4=2,$E$17*AA191,IF(Input!$A$4=3,$E$17*AE191,""))) -> 424.6987952 | L190: 0.09036144578 | Z190: 19 | AA190: 0.02083333333 | AD190: 19 | AE190: 0.0625
J191: 21 | K191: =IF(Input!$A$4=1,$E$17*L191,IF(Input!$A$4=2,$E$17*AA192,IF(Input!$A$4=3,$E$17*AE192,""))) -> 424.6987952 | L191: 0.09036144578 | Z191: 20 | AA191: 0.02083333333 | AD191: 20 | AE191: 0.0625
J192: 22 | K192: =IF(Input!$A$4=1,$E$17*L192,IF(Input!$A$4=2,$E$17*AA193,IF(Input!$A$4=3,$E$17*AE193,""))) -> 353.9156627 | L192: 0.07530120482 | Z192: 21 | AA192: 0.02083333333 | AD192: 21 | AE192: 0.0625
J193: 23 | K193: =IF(Input!$A$4=1,$E$17*L193,IF(Input!$A$4=2,$E$17*AA194,IF(Input!$A$4=3,$E$17*AE194,""))) -> 169.8795181 | L193: 0.03614457831 | Z193: 22 | AA193: 0.02083333333 | AD193: 22 | AE193: 0.0625
J194: 24 | K194: =IF(Input!$A$4=1,$E$17*L194,IF(Input!$A$4=2,$E$17*AA195,IF(Input!$A$4=3,$E$17*AE195,""))) -> 113.253012 | L194: 0.02409638554 | Z194: 23 | AA194: 0.02083333333 | AD194: 23 | AE194: 0.0625
J195: 1 | K195: =IF(Input!$A$4=1,$E$17*L195,IF(Input!$A$4=2,$E$17*AA196,IF(Input!$A$4=3,$E$17*AE196,""))) -> 113.253012 | L195: 0.02409638554 | Z195: 24 | AA195: 0.02083333333 | AD195: 24 | AE195: 0.0625
J196: 2 | K196: =IF(Input!$A$4=1,$E$17*L196,IF(Input!$A$4=2,$E$17*AA197,IF(Input!$A$4=3,$E$17*AE197,""))) -> 113.253012 | L196: 0.02409638554 | Z196: 1 | AA196: 0.02083333333 | AD196: 1 | AE196: 0.0625
J197: 3 | K197: =IF(Input!$A$4=1,$E$17*L197,IF(Input!$A$4=2,$E$17*AA198,IF(Input!$A$4=3,$E$17*AE198,""))) -> 113.253012 | L197: 0.02409638554 | Z197: 2 | AA197: 0.02083333333 | AD197: 2 | AE197: 0.0625
J198: 4 | K198: =IF(Input!$A$4=1,$E$17*L198,IF(Input!$A$4=2,$E$17*AA199,IF(Input!$A$4=3,$E$17*AE199,""))) -> 113.253012 | L198: 0.02409638554 | Z198: 3 | AA198: 0.02083333333 | AD198: 3 | AE198: 0.0625
J199: 5 | K199: =IF(Input!$A$4=1,$E$17*L199,IF(Input!$A$4=2,$E$17*AA200,IF(Input!$A$4=3,$E$17*AE200,""))) -> 113.253012 | L199: 0.02409638554 | Z199: 4 | AA199: 0.02083333333 | AD199: 4 | AE199: 0.02083333333
J200: 6 | K200: =IF(Input!$A$4=1,$E$17*L200,IF(Input!$A$4=2,$E$17*AA201,IF(Input!$A$4=3,$E$17*AE201,""))) -> 155.7228916 | L200: 0.03313253012 | Z200: 5 | AA200: 0.02083333333 | AD200: 5 | AE200: 0.02083333333
... 2050 more rows

Sheet Radiation data (hidden)
A1: Tsumeb | B1: Tsumeb | C1: Tsumeb | D1: Windhoek | E1: Windhoek | F1: Windhoek | G1: Keetmanshoop | H1: Keetmanshoop | I1: Keetmanshoop | K1: Tsumeb | N1: North-Zone 1
A2: G_H_R (W/h) | B2: D_H_R (W/h) | C2: Ambient_temperature (°C) | D2: G_H_R (W/h) | E2: D_H_R (W/h) | F2: Ambient_temperature (°C) | G2: G_H_R (W/h) | H2: D_H_R (W/h) | I2: Ambient_temperature (°C) | K2: MAIN INPUT SOLAR RADIATION | N2: Central-Zone 2
A3: 0 | B3: 0 | C3: 23.3 | D3: 0 | E3: 0 | F3: 22.3 | G3: 0 | H3: 0 | I3: 26.1 | K3: Latitude | L3: -19.24 | N3: South-Zone 3
A4: 0 | B4: 0 | C4: 23.2 | D4: 0 | E4: 0 | F4: 22.1 | G4: 0 | H4: 0 | I4: 25.9 | K4: Standard_meridian | L4: 15
A5: 0 | B5: 0 | C5: 23 | D5: 0 | E5: 0 | F5: 22 | G5: 0 | H5: 0 | I5: 25.7 | K5: Local_meridian | L5: 17.72
A6: 0 | B6: 0 | C6: 23 | D6: 0 | E6: 0 | F6: 22 | G6: 0 | H6: 0 | I6: 25.6 | K6: Ground_reflectance | L6: 0.2
A7: 0 | B7: 0 | C7: 23.1 | D7: 0 | E7: 0 | F7: 22 | G7: 0 | H7: 0 | I7: 25.4
A8: 0 | B8: 0 | C8: 23.1 | D8: 0 | E8: 0 | F8: 22 | G8: 0 | H8: 0 | I8: 25.3
A9: 15 | B9: 15 | C9: 23.5 | D9: 20 | E9: 20 | F9: 22.4 | G9: 29 | H9: 29 | I9: 25.9 | K9: Windhoek
A10: 249 | B10: 114 | C10: 25.5 | D10: 262 | E10: 119 | F10: 24.6 | G10: 230 | H10: 129 | I10: 27.7 | K10: MAIN INPUT SOLAR RADIATION
A11: 499 | B11: 56 | C11: 27.7 | D11: 508 | E11: 56 | F11: 26.8 | G11: 457 | H11: 142 | I11: 29.8 | K11: Latitude | L11: -22.56
A12: 729 | B12: 81 | C12: 29.8 | D12: 733 | E12: 81 | F12: 29 | G12: 648 | H12: 225 | I12: 31.7 | K12: Standard_meridian | L12: 15
A13: 917 | B13: 111 | C13: 31.7 | D13: 917 | E13: 111 | F13: 30.9 | G13: 802 | H13: 282 | I13: 33.4 | K13: Local_meridian | L13: 17.08
A14: 1042 | B14: 142 | C14: 33.4 | D14: 1040 | E14: 143 | F14: 32.6 | G14: 883 | H14: 336 | I14: 34.8 | K14: Ground_reflectance | L14: 0.2
A15: 1099 | B15: 173 | C15: 34.7 | D15: 1098 | E15: 177 | F15: 34 | G15: 941 | H15: 376 | I15: 35.9
A16: 1087 | B16: 172 | C16: 35.8 | D16: 1089 | E16: 178 | F16: 35.1 | G16: 924 | H16: 369 | I16: 36.7
A17: 1006 | B17: 145 | C17: 35 | D17: 1013 | E17: 149 | F17: 34.7 | G17: 861 | H17: 312 | I17: 37.2 | K17: Keetmanshoop
A18: 861 | B18: 113 | C18: 35 | D18: 875 | E18: 116 | F18: 34.7 | G18: 734 | H18: 270 | I18: 37.4 | K18: MAIN INPUT SOLAR RADIATION
A19: 663 | B19: 78 | C19: 35 | D19: 687 | E19: 80 | F19: 34.7 | G19: 573 | H19: 210 | I19: 37.2 | K19: Latitude | L19: -26.56
A20: 426 | B20: 55 | C20: 35 | D20: 457 | E20: 55 | F20: 35.3 | G20: 364 | H20: 155 | I20: 36.4 | K20: Standard_meridian | L20: 15
A21: 181 | B21: 93 | C21: 35 | D21: 215 | E21: 104 | F21: 34.3 | G21: 178 | H21: 110 | I21: 35.3 | K21: Local_meridian | L21: 18.11
A22: 3 | B22: 3 | C22: 33.8 | D22: 7 | E22: 7 | F22: 32.9 | G22: 7 | H22: 7 | I22: 34 | K22: Ground_reflectance | L22: 0.2
A23: 0 | B23: 0 | C23: 32.8 | D23: 0 | E23: 0 | F23: 32.1 | G23: 0 | H23: 0 | I23: 32.6
A24: 0 | B24: 0 | C24: 31.9 | D24: 0 | E24: 0 | F24: 31.4 | G24: 0 | H24: 0 | I24: 31.2
A25: 0 | B25: 0 | C25: 30.9 | D25: 0 | E25: 0 | F25: 30.6 | G25: 0 | H25: 0 | I25: 29.8 | K25: Solar Radiation
A26: 0 | B26: 0 | C26: 30 | D26: 0 | E26: 0 | F26: 29.8 | G26: 0 | H26: 0 | I26: 28.3 | K26: Latitude | L26: =IF(Input!$B$1=1,'Radiation data'!L3,IF(Input!$B$1=2,'Radiation data'!L11,IF(Input!$B$1=3,'Radiation data'!L19,"Wrong input"))) -> -22.56
A27: 0 | B27: 0 | C27: 28.5 | D27: 0 | E27: 0 | F27: 28.6 | G27: 0 | H27: 0 | I27: 26.9 | K27: Standard_meridian | L27: =IF(Input!$B$1=1,'Radiation data'!L4,IF(Input!$B$1=2,'Radiation data'!L12,IF(Input!$B$1=3,'Radiation data'!L20,"Wrong input"))) -> 15
A28: 0 | B28: 0 | C28: 26.8 | D28: 0 | E28: 0 | F28: 27.3 | G28: 0 | H28: 0 | I28: 25.4 | K28: Local_meridian | L28: =IF(Input!$B$1=1,'Radiation data'!L5,IF(Input!$B$1=2,'Radiation data'!L13,IF(Input!$B$1=3,'Radiation data'!L21,"Wrong input"))) -> 17.08
A29: 0 | B29: 0 | C29: 25.1 | D29: 0 | E29: 0 | F29: 25.9 | G29: 0 | H29: 0 | I29: 23.9 | K29: Ground_reflectance | L29: =IF(Input!$B$1=1,'Radiation data'!L6,IF(Input!$B$1=2,'Radiation data'!L14,IF(Input!$B$1=3,'Radiation data'!L22,"Wrong input"))) -> 0.2
A30: 0 | B30: 0 | C30: 24.2 | D30: 0 | E30: 0 | F30: 25.2 | G30: 0 | H30: 0 | I30: 23.1 | K30: Temperature STC | L30: 25
A31: 0 | B31: 0 | C31: 23.3 | D31: 0 | E31: 0 | F31: 24.5 | G31: 0 | H31: 0 | I31: 22.2
A32: 0 | B32: 0 | C32: 22.7 | D32: 0 | E32: 0 | F32: 24 | G32: 0 | H32: 0 | I32: 21.6
A33: 12 | B33: 12 | C33: 22.7 | D33: 8 | E33: 8 | F33: 24 | G33: 34 | H33: 34 | I33: 22
A34: 237 | B34: 108 | C34: 24.4 | D34: 112 | E34: 105 | F34: 24.8 | G34: 274 | H34: 116 | I34: 23.8
A35: 611 | B35: 168 | C35: 26.8 | D35: 272 | E35: 235 | F35: 25.8 | G35: 502 | H35: 85 | I35: 25.6
A36: 893 | B36: 214 | C36: 29.1 | D36: 391 | E36: 337 | F36: 26.8 | G36: 720 | H36: 117 | I36: 27.2
A37: 1121 | B37: 433 | C37: 31.1 | D37: 488 | E37: 409 | F37: 27.6 | G37: 884 | H37: 178 | I37: 28.7
A38: 675 | B38: 434 | C38: 31.3 | D38: 517 | E38: 480 | F38: 28.2 | G38: 999 | H38: 226 | I38: 30
A39: 768 | B39: 552 | C39: 31.5 | D39: 564 | E39: 489 | F39: 28.7 | G39: 1053 | H39: 263 | I39: 30.9
A40: 718 | B40: 548 | C40: 31.6 | D40: 548 | E40: 480 | F40: 29 | G40: 1041 | H40: 262 | I40: 31.6
A41: 680 | B41: 502 | C41: 31.5 | D41: 516 | E41: 447 | F41: 29.2 | G41: 963 | H41: 228 | I41: 32
A42: 536 | B42: 400 | C42: 31.1 | D42: 433 | E42: 393 | F42: 29.2 | G42: 824 | H42: 186 | I42: 32
A43: 416 | B43: 306 | C43: 30.4 | D43: 342 | E43: 316 | F43: 29 | G43: 644 | H43: 125 | I43: 31.7
A44: 185 | B44: 176 | C44: 29.1 | D44: 203 | E44: 194 | F44: 28.5 | G44: 434 | H44: 75 | I44: 30.9
A45: 106 | B45: 84 | C45: 28.2 | D45: 106 | E45: 93 | F45: 27.8 | G45: 208 | H45: 101 | I45: 29.7
A46: 2 | B46: 2 | C46: 27 | D46: 3 | E46: 3 | F46: 27 | G46: 11 | H46: 11 | I46: 28.3
A47: 0 | B47: 0 | C47: 26 | D47: 0 | E47: 0 | F47: 26.1 | G47: 0 | H47: 0 | I47: 27.1
A48: 0 | B48: 0 | C48: 24.8 | D48: 0 | E48: 0 | F48: 25.3 | G48: 0 | H48: 0 | I48: 25.8
A49: 0 | B49: 0 | C49: 23.7 | D49: 0 | E49: 0 | F49: 24.4 | G49: 0 | H49: 0 | I49: 24.6
A50: 0 | B50: 0 | C50: 22.6 | D50: 0 | E50: 0 | F50: 23.5 | G50: 0 | H50: 0 | I50: 23.3
A51: 0 | B51: 0 | C51: 22.2 | D51: 0 | E51: 0 | F51: 23.1 | G51: 0 | H51: 0 | I51: 22.7
A52: 0 | B52: 0 | C52: 21.8 | D52: 0 | E52: 0 | F52: 22.7 | G52: 0 | H52: 0 | I52: 22
A53: 0 | B53: 0 | C53: 21.4 | D53: 0 | E53: 0 | F53: 22.2 | G53: 0 | H53: 0 | I53: 21.3
A54: 0 | B54: 0 | C54: 21.2 | D54: 0 | E54: 0 | F54: 22 | G54: 0 | H54: 0 | I54: 21
A55: 0 | B55: 0 | C55: 21.1 | D55: 0 | E55: 0 | F55: 21.8 | G55: 0 | H55: 0 | I55: 20.6
A56: 0 | B56: 0 | C56: 20.9 | D56: 0 | E56: 0 | F56: 21.6 | G56: 0 | H56: 0 | I56: 20.3
A57: 14 | B57: 14 | C57: 21.2 | D57: 23 | E57: 23 | F57: 22 | G57: 39 | H57: 39 | I57: 21
A58: 248 | B58: 116 | C58: 23.4 | D58: 318 | E58: 179 | F58: 24.8 | G58: 324 | H58: 157 | I58: 23.5
A59: 499 | B59: 55 | C59: 25.8 | D59: 616 | E59: 146 | F59: 27.5 | G59: 596 | H59: 88 | I59: 25.9
A60: 734 | B60: 76 | C60: 28 | D60: 916 | E60: 254 | F60: 30.3 | G60: 842 | H60: 115 | I60: 28.1
A61: 918 | B61: 108 | C61: 30.1 | D61: 1116 | E61: 427 | F61: 32.7 | G61: 1038 | H61: 135 | I61: 30.2
A62: 1047 | B62: 134 | C62: 31.9 | D62: 644 | E62: 443 | F62: 32.8 | G62: 1172 | H62: 141 | I62: 31.9
A63: 1110 | B63: 158 | C63: 33.4 | D63: 677 | E63: 503 | F63: 33 | G63: 1230 | H63: 146 | I63: 33.3
A64: 1101 | B64: 155 | C64: 34.4 | D64: 656 | E64: 540 | F64: 33 | G64: 1214 | H64: 140 | I64: 34.3
A65: 1022 | B65: 129 | C65: 35.1 | D65: 587 | E65: 492 | F65: 32.9 | G65: 1120 | H65: 124 | I65: 34.9
A66: 877 | B66: 102 | C66: 35.4 | D66: 472 | E66: 396 | F66: 32.4 | G66: 957 | H66: 105 | I66: 35
A67: 680 | B67: 71 | C67: 35.2 | D67: 369 | E67: 312 | F67: 31.6 | G67: 739 | H67: 78 | I67: 34.6
A68: 445 | B68: 65 | C68: 34.4 | D68: 268 | E68: 225 | F68: 30.7 | G68: 482 | H68: 73 | I68: 33.7
A69: 195 | B69: 104 | C69: 33.1 | D69: 128 | E69: 97 | F69: 29.6 | G69: 222 | H69: 106 | I69: 32.2
A70: 4 | B70: 4 | C70: 31.6 | D70: 4 | E70: 4 | F70: 28.4 | G70: 6 | H70: 6 | I70: 30.5
A71: 0 | B71: 0 | C71: 30.4 | D71: 0 | E71: 0 | F71: 27.3 | G71: 0 | H71: 0 | I71: 29.2
A72: 0 | B72: 0 | C72: 29.3 | D72: 0 | E72: 0 | F72: 26.2 | G72: 0 | H72: 0 | I72: 27.9
A73: 0 | B73: 0 | C73: 28.1 | D73: 0 | E73: 0 | F73: 25.2 | G73: 0 | H73: 0 | I73: 26.5
A74: 0 | B74: 0 | C74: 26.9 | D74: 0 | E74: 0 | F74: 24.1 | G74: 0 | H74: 0 | I74: 25.2
A75: 0 | B75: 0 | C75: 25.6 | D75: 0 | E75: 0 | F75: 23.2 | G75: 0 | H75: 0 | I75: 24.1
A76: 0 | B76: 0 | C76: 24.1 | D76: 0 | E76: 0 | F76: 22.3 | G76: 0 | H76: 0 | I76: 23
A77: 0 | B77: 0 | C77: 22.7 | D77: 0 | E77: 0 | F77: 21.3 | G77: 0 | H77: 0 | I77: 21.8
A78: 0 | B78: 0 | C78: 21.9 | D78: 0 | E78: 0 | F78: 20.8 | G78: 0 | H78: 0 | I78: 21.2
A79: 0 | B79: 0 | C79: 21.1 | D79: 0 | E79: 0 | F79: 20.2 | G79: 0 | H79: 0 | I79: 20.5
A80: 0 | B80: 0 | C80: 20.6 | D80: 0 | E80: 0 | F80: 19.9 | G80: 0 | H80: 0 | I80: 20.1
A81: 13 | B81: 13 | C81: 20.7 | D81: 18 | E81: 18 | F81: 20.1 | G81: 35 | H81: 35 | I81: 20.6
A82: 290 | B82: 160 | C82: 22.9 | D82: 311 | E82: 173 | F82: 22.6 | G82: 293 | H82: 131 | I82: 22.7
A83: 607 | B83: 144 | C83: 25.3 | D83: 629 | E83: 167 | F83: 25.2 | G83: 543 | H83: 56 | I83: 24.7
A84: 890 | B84: 214 | C84: 27.7 | D84: 910 | E84: 246 | F84: 27.7 | G84: 769 | H84: 76 | I84: 26.6
A85: 1006 | B85: 251 | C85: 29.5 | D85: 1017 | E85: 298 | F85: 29.6 | G85: 953 | H85: 100 | I85: 28.4
A86: 700 | B86: 419 | C86: 29.7 | D86: 568 | E86: 447 | F86: 29.5 | G86: 1073 | H86: 119 | I86: 29.9
A87: 707 | B87: 505 | C87: 29.9 | D87: 567 | E87: 505 | F87: 29.3 | G87: 1132 | H87: 138 | I87: 31
A88: 840 | B88: 467 | C88: 30.3 | D88: 707 | E88: 498 | F88: 29.5 | G88: 1126 | H88: 133 | I88: 31.9
A89: 724 | B89: 429 | C89: 30.4 | D89: 600 | E89: 464 | F89: 29.5 | G89: 1049 | H89: 113 | I89: 32.3
A90: 579 | B90: 392 | C90: 30.1 | D90: 474 | E90: 395 | F90: 29 | G90: 910 | H90: 93 | I90: 32.5
A91: 408 | B91: 315 | C91: 29.3 | D91: 331 | E91: 308 | F91: 28.2 | G91: 711 | H91: 70 | I91: 32.1
A92: 291 | B92: 220 | C92: 28.3 | D92: 252 | E92: 219 | F92: 27.4 | G92: 478 | H92: 52 | I92: 31.3
A93: 127 | B93: 82 | C93: 27.3 | D93: 121 | E93: 98 | F93: 26.3 | G93: 229 | H93: 111 | I93: 30
A94: 2 | B94: 2 | C94: 26 | D94: 3 | E94: 3 | F94: 25.2 | G94: 12 | H94: 12 | I94: 28.5
A95: 0 | B95: 0 | C95: 24.7 | D95: 0 | E95: 0 | F95: 24.2 | G95: 0 | H95: 0 | I95: 27.4
A96: 0 | B96: 0 | C96: 23.3 | D96: 0 | E96: 0 | F96: 23.2 | G96: 0 | H96: 0 | I96: 26.3
A97: 0 | B97: 0 | C97: 22 | D97: 0 | E97: 0 | F97: 22.2 | G97: 0 | H97: 0 | I97: 25.2
A98: 0 | B98: 0 | C98: 20.6 | D98: 0 | E98: 0 | F98: 21.3 | G98: 0 | H98: 0 | I98: 24.1
A99: 0 | B99: 0 | C99: 19.9 | D99: 0 | E99: 0 | F99: 20.7 | G99: 0 | H99: 0 | I99: 23.5
A100: 0 | B100: 0 | C100: 19 | D100: 0 | E100: 0 | F100: 20.2 | G100: 0 | H100: 0 | I100: 22.9
A101: 0 | B101: 0 | C101: 18.2 | D101: 0 | E101: 0 | F101: 19.6 | G101: 0 | H101: 0 | I101: 22.2
A102: 0 | B102: 0 | C102: 17.8 | D102: 0 | E102: 0 | F102: 19.3 | G102: 0 | H102: 0 | I102: 21.9
A103: 0 | B103: 0 | C103: 17.4 | D103: 0 | E103: 0 | F103: 19 | G103: 0 | H103: 0 | I103: 21.6
A104: 0 | B104: 0 | C104: 17 | D104: 0 | E104: 0 | F104: 18.8 | G104: 0 | H104: 0 | I104: 21.3
A105: 13 | B105: 13 | C105: 17.2 | D105: 19 | E105: 19 | F105: 19.1 | G105: 31 | H105: 31 | I105: 21.8
A106: 261 | B106: 131 | C106: 19.6 | D106: 299 | E106: 163 | F106: 21.6 | G106: 313 | H106: 150 | I106: 24
A107: 538 | B107: 73 | C107: 22.2 | D107: 590 | E107: 119 | F107: 24.3 | G107: 606 | H107: 102 | I107: 26.4
A108: 794 | B108: 97 | C108: 24.8 | D108: 896 | E108: 224 | F108: 27 | G108: 867 | H108: 147 | I108: 28.6
A109: 998 | B109: 115 | C109: 27.1 | D109: 1113 | E109: 425 | F109: 29.5 | G109: 964 | H109: 259 | I109: 30.3
A110: 1137 | B110: 120 | C110: 29 | D110: 582 | E110: 448 | F110: 29.4 | G110: 643 | H110: 447 | I110: 30.4
A111: 1200 | B111: 129 | C111: 30.6 | D111: 569 | E111: 525 | F111: 29.3 | G111: 646 | H111: 506 | I111: 30.6
A112: 1192 | B112: 127 | C112: 31.7 | D112: 566 | E112: 489 | F112: 29.2 | G112: 772 | H112: 477 | I112: 30.9
A113: 1104 | B113: 115 | C113: 32.4 | D113: 540 | E113: 449 | F113: 29 | G113: 663 | H113: 456 | I113: 30.9
A114: 946 | B114: 102 | C114: 32.7 | D114: 469 | E114: 395 | F114: 28.6 | G114: 530 | H114: 402 | I114: 30.7
A115: 727 | B115: 79 | C115: 32.3 | D115: 409 | E115: 323 | F115: 28.1 | G115: 375 | H115: 315 | I115: 30
A116: 465 | B116: 58 | C116: 31.3 | D116: 281 | E116: 230 | F116: 27.3 | G116: 276 | H116: 229 | I116: 29.2
A117: 197 | B117: 105 | C117: 29.7 | D117: 137 | E117: 97 | F117: 26.3 | G117: 131 | H117: 101 | I117: 28.2
A118: 3 | B118: 3 | C118: 27.9 | D118: 8 | E118: 8 | F118: 25.1 | G118: 3 | H118: 3 | I118: 27.1
A119: 0 | B119: 0 | C119: 26.5 | D119: 0 | E119: 0 | F119: 23.9 | G119: 0 | H119: 0 | I119: 26
A120: 0 | B120: 0 | C120: 25.1 | D120: 0 | E120: 0 | F120: 22.7 | G120: 0 | H120: 0 | I120: 24.8
A121: 0 | B121: 0 | C121: 23.7 | D121: 0 | E121: 0 | F121: 21.5 | G121: 0 | H121: 0 | I121: 23.7
A122: 0 | B122: 0 | C122: 22.3 | D122: 0 | E122: 0 | F122: 20.3 | G122: 0 | H122: 0 | I122: 22.5
A123: 0 | B123: 0 | C123: 21.1 | D123: 0 | E123: 0 | F123: 19.3 | G123: 0 | H123: 0 | I123: 21.6
A124: 0 | B124: 0 | C124: 19.9 | D124: 0 | E124: 0 | F124: 18.3 | G124: 0 | H124: 0 | I124: 20.7
A125: 0 | B125: 0 | C125: 18.6 | D125: 0 | E125: 0 | F125: 17.3 | G125: 0 | H125: 0 | I125: 19.8
A126: 0 | B126: 0 | C126: 18 | D126: 0 | E126: 0 | F126: 16.8 | G126: 0 | H126: 0 | I126: 19.2
A127: 0 | B127: 0 | C127: 17.3 | D127: 0 | E127: 0 | F127: 16.2 | G127: 0 | H127: 0 | I127: 18.7
A128: 0 | B128: 0 | C128: 16.8 | D128: 0 | E128: 0 | F128: 15.8 | G128: 0 | H128: 0 | I128: 18.3
A129: 15 | B129: 15 | C129: 17 | D129: 17 | E129: 17 | F129: 16.1 | G129: 32 | H129: 32 | I129: 18.8
A130: 233 | B130: 107 | C130: 19 | D130: 276 | E130: 142 | F130: 18.5 | G130: 289 | H130: 130 | I130: 21
A131: 452 | B131: 136 | C131: 21 | D131: 548 | E131: 79 | F131: 21 | G131: 543 | H131: 56 | I131: 23.1
A132: 830 | B132: 247 | C132: 23.8 | D132: 796 | E132: 99 | F132: 23.5 | G132: 777 | H132: 76 | I132: 25.2
A133: 892 | B133: 180 | C133: 25.7 | D133: 996 | E133: 115 | F133: 25.7 | G133: 962 | H133: 98 | I133: 27
A134: 1043 | B134: 166 | C134: 27.4 | D134: 1132 | E134: 119 | F134: 27.6 | G134: 1088 | H134: 112 | I134: 28.6
A135: 1177 | B135: 177 | C135: 28.9 | D135: 1197 | E135: 127 | F135: 29.1 | G135: 1145 | H135: 130 | I135: 29.8
A136: 1262 | B136: 186 | C136: 30.3 | D136: 1186 | E136: 125 | F136: 30.2 | G136: 1137 | H136: 127 | I136: 30.7
A137: 1175 | B137: 177 | C137: 31.1 | D137: 1104 | E137: 112 | F137: 30.8 | G137: 1056 | H137: 111 | I137: 31.2
A138: 1013 | B138: 164 | C138: 31.4 | D138: 947 | E138: 96 | F138: 31 | G138: 912 | H138: 93 | I138: 31.4
A139: 786 | B139: 133 | C139: 31.2 | D139: 734 | E139: 73 | F139: 30.7 | G139: 712 | H139: 70 | I139: 31
A140: 512 | B140: 97 | C140: 30.3 | D140: 483 | E140: 54 | F140: 29.7 | G140: 471 | H140: 53 | I140: 30.2
A141: 223 | B141: 116 | C141: 28.8 | D141: 222 | E141: 106 | F141: 28.1 | G141: 224 | H141: 106 | I141: 28.9
A142: 21 | B142: 21 | C142: 27 | D142: 4 | E142: 4 | F142: 26.3 | G142: 11 | H142: 11 | I142: 27.3
A143: 0 | B143: 0 | C143: 26 | D143: 0 | E143: 0 | F143: 25.1 | G143: 0 | H143: 0 | I143: 26.1
A144: 0 | B144: 0 | C144: 25 | D144: 0 | E144: 0 | F144: 23.9 | G144: 0 | H144: 0 | I144: 24.9
A145: 0 | B145: 0 | C145: 24 | D145: 0 | E145: 0 | F145: 22.8 | G145: 0 | H145: 0 | I145: 23.8
A146: 0 | B146: 0 | C146: 23 | D146: 0 | E146: 0 | F146: 21.6 | G146: 0 | H146: 0 | I146: 22.6
A147: 0 | B147: 0 | C147: 22.5 | D147: 0 | E147: 0 | F147: 20.9 | G147: 0 | H147: 0 | I147: 21.8
A148: 0 | B148: 0 | C148: 22.1 | D148: 0 | E148: 0 | F148: 20 | G148: 0 | H148: 0 | I148: 20.9
A149: 0 | B149: 0 | C149: 21.6 | D149: 0 | E149: 0 | F149: 19.2 | G149: 0 | H149: 0 | I149: 20.1
A150: 0 | B150: 0 | C150: 21.2 | D150: 0 | E150: 0 | F150: 18.8 | G150: 0 | H150: 0 | I150: 19.6
A151: 0 | B151: 0 | C151: 20.6 | D151: 0 | E151: 0 | F151: 18.3 | G151: 0 | H151: 0 | I151: 19.2
A152: 0 | B152: 0 | C152: 21 | D152: 0 | E152: 0 | F152: 18 | G152: 0 | H152: 0 | I152: 18.8
A153: 3 | B153: 3 | C153: 21.1 | D153: 11 | E153: 11 | F153: 18.1 | G153: 35 | H153: 35 | I153: 19.4
A154: 22 | B154: 22 | C154: 21.3 | D154: 201 | E154: 119 | F154: 19.9 | G154: 261 | H154: 113 | I154: 21.4
A155: 46 | B155: 46 | C155: 21.6 | D155: 380 | E155: 180 | F155: 21.6 | G155: 466 | H155: 150 | I155: 23.2
A156: 68 | B156: 68 | C156: 21.9 | D156: 604 | E156: 216 | F156: 23.6 | G156: 828 | H156: 224 | I156: 25.7
A157: 202 | B157: 201 | C157: 22.5 | D157: 755 | E157: 287 | F157: 25.3 | G157: 877 | H157: 219 | I157: 27.4
A158: 179 | B158: 174 | C158: 23 | D158: 861 | E158: 353 | F158: 26.8 | G158: 1021 | H158: 196 | I158: 28.9
A159: 637 | B159: 482 | C159: 24.7 | D159: 871 | E159: 419 | F159: 27.8 | G159: 1147 | H159: 175 | I159: 30.3
A160: 725 | B160: 491 | C160: 26.2 | D160: 892 | E160: 379 | F160: 28.7 | G160: 1227 | H160: 150 | I160: 31.5
A161: 856 | B161: 341 | C161: 27.6 | D161: 821 | E161: 348 | F161: 29.1 | G161: 1144 | H161: 141 | I161: 32.2
A162: 845 | B162: 213 | C162: 28.8 | D162: 725 | E162: 296 | F162: 29.3 | G162: 991 | H162: 130 | I162: 32.5
A163: 602 | B163: 175 | C163: 29.3 | D163: 582 | E163: 215 | F163: 29.1 | G163: 778 | H163: 106 | I163: 32.4
A164: 418 | B164: 89 | C164: 29.4 | D164: 419 | E164: 105 | F164: 28.5 | G164: 521 | H164: 78 | I164: 31.6
A165: 240 | B165: 146 | C165: 29 | D165: 184 | E165: 109 | F165: 27.4 | G165: 251 | H165: 109 | I165: 30.4
A166: 18 | B166: 18 | C166: 28.1 | D166: 4 | E166: 4 | F166: 25.9 | G166: 41 | H166: 41 | I166: 28.8
A167: 0 | B167: 0 | C167: 27.2 | D167: 0 | E167: 0 | F167: 25.2 | G167: 0 | H167: 0 | I167: 27.4
A168: 0 | B168: 0 | C168: 26.3 | D168: 0 | E168: 0 | F168: 24.4 | G168: 0 | H168: 0 | I168: 26.1
A169: 0 | B169: 0 | C169: 25.4 | D169: 0 | E169: 0 | F169: 23.6 | G169: 0 | H169: 0 | I169: 24.7
A170: 0 | B170: 0 | C170: 24.5 | D170: 0 | E170: 0 | F170: 22.9 | G170: 0 | H170: 0 | I170: 23.3
A171: 0 | B171: 0 | C171: 23.4 | D171: 0 | E171: 0 | F171: 22.1 | G171: 0 | H171: 0 | I171: 22.3
A172: 0 | B172: 0 | C172: 22.3 | D172: 0 | E172: 0 | F172: 22.1 | G172: 0 | H172: 0 | I172: 21.2
A173: 0 | B173: 0 | C173: 21.2 | D173: 0 | E173: 0 | F173: 21.7 | G173: 0 | H173: 0 | I173: 20
A174: 0 | B174: 0 | C174: 20.6 | D174: 0 | E174: 0 | F174: 21.5 | G174: 0 | H174: 0 | I174: 19.4
A175: 0 | B175: 0 | C175: 20 | D175: 0 | E175: 0 | F175: 21.3 | G175: 0 | H175: 0 | I175: 18.8
A176: 0 | B176: 0 | C176: 19.6 | D176: 0 | E176: 0 | F176: 21 | G176: 0 | H176: 0 | I176: 18.3
A177: 6 | B177: 6 | C177: 19.6 | D177: 4 | E177: 4 | F177: 20.9 | G177: 30 | H177: 30 | I177: 18.8
A178: 141 | B178: 104 | C178: 20.7 | D178: 63 | E178: 63 | F178: 21.6 | G178: 288 | H178: 132 | I178: 20.9
A179: 271 | B179: 232 | C179: 21.7 | D179: 102 | E179: 102 | F179: 22 | G179: 541 | H179: 57 | I179: 22.9
A180: 426 | B180: 334 | C180: 22.9 | D180: 123 | E180: 123 | F180: 22.1 | G180: 775 | H180: 76 | I180: 24.9
A181: 550 | B181: 433 | C181: 24 | D181: 156 | E181: 156 | F181: 22.3 | G181: 962 | H181: 98 | I181: 26.7
A182: 647 | B182: 512 | C182: 25 | D182: 175 | E182: 173 | F182: 22.8 | G182: 1089 | H182: 111 | I182: 28.2
A183: 725 | B183: 553 | C183: 25.9 | D183: 220 | E183: 217 | F183: 23.1 | G183: 1148 | H183: 128 | I183: 29.4
A184: 733 | B184: 550 | C184: 26.5 | D184: 228 | E184: 222 | F184: 23.2 | G184: 1136 | H184: 128 | I184: 30.3
A185: 625 | B185: 500 | C185: 26.7 | D185: 263 | E185: 257 | F185: 23.4 | G185: 1058 | H185: 111 | I185: 30.8
A186: 535 | B186: 419 | C186: 26.9 | D186: 226 | E186: 225 | F186: 23.3 | G186: 908 | H186: 94 | I186: 30.9
A187: 399 | B187: 315 | C187: 26.6 | D187: 169 | E187: 169 | F187: 23 | G187: 705 | H187: 72 | I187: 30.6
A188: 235 | B188: 206 | C188: 26 | D188: 104 | E188: 104 | F188: 22.1 | G188: 467 | H188: 55 | I188: 29.7
A189: 100 | B189: 86 | C189: 25.1 | D189: 64 | E189: 64 | F189: 21.3 | G189: 220 | H189: 104 | I189: 28.4
A190: 2 | B190: 2 | C190: 23.7 | D190: 5 | E190: 5 | F190: 22.1 | G190: 9 | H190: 9 | I190: 26.8
A191: 0 | B191: 0 | C191: 23.1 | D191: 0 | E191: 0 | F191: 20.4 | G191: 0 | H191: 0 | I191: 25.6
A192: 0 | B192: 0 | C192: 22.2 | D192: 0 | E192: 0 | F192: 20.9 | G192: 0 | H192: 0 | I192: 24.3
A193: 0 | B193: 0 | C193: 21.2 | D193: 0 | E193: 0 | F193: 20.9 | G193: 0 | H193: 0 | I193: 23.1
A194: 0 | B194: 0 | C194: 20.3 | D194: 0 | E194: 0 | F194: 20.8 | G194: 0 | H194: 0 | I194: 21.8
A195: 0 | B195: 0 | C195: 19.7 | D195: 0 | E195: 0 | F195: 20.4 | G195: 0 | H195: 0 | I195: 21
A196: 0 | B196: 0 | C196: 19 | D196: 0 | E196: 0 | F196: 19.6 | G196: 0 | H196: 0 | I196: 20.2
A197: 0 | B197: 0 | C197: 18.4 | D197: 0 | E197: 0 | F197: 19.4 | G197: 0 | H197: 0 | I197: 19.3
A198: 0 | B198: 0 | C198: 18 | D198: 0 | E198: 0 | F198: 19.4 | G198: 0 | H198: 0 | I198: 18.8
A199: 0 | B199: 0 | C199: 17.7 | D199: 0 | E199: 0 | F199: 19.1 | G199: 0 | H199: 0 | I199: 18.3
A200: 0 | B200: 0 | C200: 17.4 | D200: 0 | E200: 0 | F200: 19 | G200: 0 | H200: 0 | I200: 18
... 4300 more rows

Sheet Solar radiation and angles (hidden)
A1: Day_year | B1: Hour_day | C1: c | D1: Day_year_c | E1: G_H_R (W/h) | F1: D_H_R (W/h) | G1: B_H_R (W/h) | H1: Ambient_temperature (°C) | I1: declination | J1: Time_correction_B | K1: Time_correction_E | L1: Time_correction | M1: Local_solar_time | N1: Hour_angle | O1: Solar_altitude | P1: Solar_azimuth | Q1: Angle_incidence | R1: B_N_R | S1: B_T_R | T1: D_T_R | U1: G_R_R | V1: G_T_R
A2: 1 | B2: 0.0001 | C2: 0.0416 | D2: =A2+C2 -> 1.0416 | E2: =IF(Input!$B$1=1,'Radiation data'!A3,IF(Input!$B$1=2,'Radiation data'!D3,IF(Input!$B$1=3,'Radiation data'!G3,"Wrong input"))) -> 0 | F2: =IF(Input!$B$1=1,'Radiation data'!B3,IF(Input!$B$1=2,'Radiation data'!E3,IF(Input!$B$1=3,'Radiation data'!H3,"Wrong input"))) -> 0 | G2: =E2-F2 -> 0 | H2: =IF(Input!$B$1=1,'Radiation data'!C3,IF(Input!$B$1=2,'Radiation data'!F3,IF(Input!$B$1=3,'Radiation data'!I3,"Wrong input"))) -> 22.3 | I2: =23.45*SIN(PI()*2*((284+D2)/365)) -> -23.00839903 | J2: =360*(D2-1)/365 -> 0.04103013699 | K2: =229.2*(0.000075+0.001868*COS(J2*PI()/180)-0.032077*SIN(J2*PI()/180)-0.014615*COS(2*J2*PI()/180)-0.04089*SIN(2*J2*PI()/180)) -> -2.923106719 | L2: =4*('Radiation data'!L27-'Radiation data'!L28)+K2 -> -11.24310672 | M2: =B2+L2/60 -> -0.187285112 | N2: =((B2-12)+(L2/60))*15 -> -182.8092767 | O2: =ASIN(COS(I2*PI()/180)*COS(N2*PI()/180)*COS('Radiation data'!$L$26*PI()/180)+SIN('Solar radiation and angles'!I2*PI()/180)*SIN('Radiation data'!$L$26*PI()/180))*180/PI() -> -44.34969414 | P2: =IF(N2=0,0,ACOS((COS(I2*PI()/180)*COS(N2*PI()/180)*SIN('Radiation data'!$L$26*PI()/180)-SIN(I2*PI()/180)*COS('Radiation data'!$L$26*PI()/180))/COS(O2*PI()/180))*N2/ABS(N2)*180/PI()) -> -3.617006878 | Q2: =ACOS(COS(O2*PI()/180)*SIN(Input!$J$5*PI()/180)*COS(('Solar radiation and angles'!P2-Input!$B$3)*PI()/180)+SIN('Solar radiation and angles'!O2*PI()/180)*COS(Input!$J$5*PI()/180))*180/PI() -> 159.2521124 | R2: =IF(O2<3,0,G2/(COS((90-O2)*PI()/180))) -> 0 | S2: =IF(Q2>90,0,R2*COS(Q2*PI()/180)) -> 0 | T2: =F2*(1+COS(Input!$J$5*PI()/180))/2 -> 0 | U2: ='Radiation data'!$L$29*E2*(1-COS(Input!$J$5*PI()/180))/2 -> 0 | V2: =S2+T2+U2 -> 0
A3: 1 | B3: 1 | C3: 0.0832 | D3: =A3+C3 -> 1.0832 | E3: =IF(Input!$B$1=1,'Radiation data'!A4,IF(Input!$B$1=2,'Radiation data'!D4,IF(Input!$B$1=3,'Radiation data'!G4,"Wrong input"))) -> 0 | F3: =IF(Input!$B$1=1,'Radiation data'!B4,IF(Input!$B$1=2,'Radiation data'!E4,IF(Input!$B$1=3,'Radiation data'!H4,"Wrong input"))) -> 0 | G3: =E3-F3 -> 0 | H3: =IF(Input!$B$1=1,'Radiation data'!C4,IF(Input!$B$1=2,'Radiation data'!F4,IF(Input!$B$1=3,'Radiation data'!I4,"Wrong input"))) -> 22.1 | I3: -23.00514953 | J3: =360*(D3-1)/365 -> 0.08206027397 | K3: =229.2*(0.000075+0.001868*COS(J3*PI()/180)-0.032077*SIN(J3*PI()/180)-0.014615*COS(2*J3*PI()/180)-0.04089*SIN(2*J3*PI()/180)) -> -2.941784356 | L3: =4*('Radiation data'!$L$27-'Radiation data'!$L$28)+K3 -> -11.26178436 | M3: =B3+L3/60 -> 0.8123035941 | N3: =((B3-12)+(L3/60))*15 -> -167.8154461 | O3: =ASIN(COS(I3*PI()/180)*COS(N3*PI()/180)*COS('Radiation data'!$L$26*PI()/180)+SIN('Solar radiation and angles'!I3*PI()/180)*SIN('Radiation data'!$L$26*PI()/180))*180/PI() -> -42.91784082 | P3: =IF(N3=0,0,ACOS((COS(I3*PI()/180)*COS(N3*PI()/180)*SIN('Radiation data'!$L$26*PI()/180)-SIN(I3*PI()/180)*COS('Radiation data'!$L$26*PI()/180))/COS(O3*PI()/180))*N3/ABS(N3)*180/PI()) -> -15.38381749 | Q3: =ACOS(COS(O3*PI()/180)*SIN(Input!$J$5*PI()/180)*COS(('Solar radiation and angles'!P3-Input!$B$3)*PI()/180)+SIN('Solar radiation and angles'!O3*PI()/180)*COS(Input!$J$5*PI()/180))*180/PI() -> 156.2848947 | R3: =IF(O3<3,0,G3/(COS((90-O3)*PI()/180))) -> 0 | S3: =IF(Q3>90,0,R3*COS(Q3*PI()/180)) -> 0 | T3: =F3*(1+COS(Input!$J$5*PI()/180))/2 -> 0 | U3: ='Radiation data'!$L$29*E3*(1-COS(Input!$J$5*PI()/180))/2 -> 0 | V3: =S3+T3+U3 -> 0
A4: 1 | B4: 2 | C4: 0.1248 | D4: 1.1248 | E4: =IF(Input!$B$1=1,'Radiation data'!A5,IF(Input!$B$1=2,'Radiation data'!D5,IF(Input!$B$1=3,'Radiation data'!G5,"Wrong input"))) -> 0 | F4: =IF(Input!$B$1=1,'Radiation data'!B5,IF(Input!$B$1=2,'Radiation data'!E5,IF(Input!$B$1=3,'Radiation data'!H5,"Wrong input"))) -> 0 | G4: 0 | H4: =IF(Input!$B$1=1,'Radiation data'!C5,IF(Input!$B$1=2,'Radiation data'!F5,IF(Input!$B$1=3,'Radiation data'!I5,"Wrong input"))) -> 22 | I4: -23.00188823 | J4: 0.123090411 | K4: -2.960455281 | L4: =4*('Radiation data'!$L$27-'Radiation data'!$L$28)+K4 -> -11.28045528 | M4: 1.811992412 | N4: -152.8201138 | O4: =ASIN(COS(I4*PI()/180)*COS(N4*PI()/180)*COS('Radiation data'!$L$26*PI()/180)+SIN('Solar radiation and angles'!I4*PI()/180)*SIN('Radiation data'!$L$26*PI()/180))*180/PI() -> -37.32048017 | P4: =IF(N4=0,0,ACOS((COS(I4*PI()/180)*COS(N4*PI()/180)*SIN('Radiation data'!$L$26*PI()/180)-SIN(I4*PI()/180)*COS('Radiation data'!$L$26*PI()/180))/COS(O4*PI()/180))*N4/ABS(N4)*180/PI()) -> -31.91895634 | Q4: =ACOS(COS(O4*PI()/180)*SIN(Input!$J$5*PI()/180)*COS(('Solar radiation and angles'!P4-Input!$B$3)*PI()/180)+SIN('Solar radiation and angles'!O4*PI()/180)*COS(Input!$J$5*PI()/180))*180/PI() -> 146.5889659 | R4: 0 | S4: 0 | T4: =F4*(1+COS(Input!$J$5*PI()/180))/2 -> 0 | U4: ='Radiation data'!$L$29*E4*(1-COS(Input!$J$5*PI()/180))/2 -> 0 | V4: 0
A5: 1 | B5: 3 | C5: 0.1664 | D5: 1.1664 | E5: =IF(Input!$B$1=1,'Radiation data'!A6,IF(Input!$B$1=2,'Radiation data'!D6,IF(Input!$B$1=3,'Radiation data'!G6,"Wrong input"))) -> 0 | F5: =IF(Input!$B$1=1,'Radiation data'!B6,IF(Input!$B$1=2,'Radiation data'!E6,IF(Input!$B$1=3,'Radiation data'!H6,"Wrong input"))) -> 0 | G5: 0 | H5: =IF(Input!$B$1=1,'Radiation data'!C6,IF(Input!$B$1=2,'Radiation data'!F6,IF(Input!$B$1=3,'Radiation data'!I6,"Wrong input"))) -> 22 | I5: -22.99861513 | J5: 0.1641205479 | K5: -2.979119463 | L5: =4*('Radiation data'!$L$27-'Radiation data'!$L$28)+K5 -> -11.29911946 | M5: 2.811681342 | N5: -137.8247799 | O5: =ASIN(COS(I5*PI()/180)*COS(N5*PI()/180)*COS('Radiation data'!$L$26*PI()/180)+SIN('Solar radiation and angles'!I5*PI()/180)*SIN('Radiation data'!$L$26*PI()/180))*180/PI() -> -28.69131935 | P5: =IF(N5=0,0,ACOS((COS(I5*PI()/180)*COS(N5*PI()/180)*SIN('Radiation data'!$L$26*PI()/180)-SIN(I5*PI()/180)*COS('Radiation data'!$L$26*PI()/180))/COS(O5*PI()/180))*N5/ABS(N5)*180/PI()) -> -44.79217364 | Q5: =ACOS(COS(O5*PI()/180)*SIN(Input!$J$5*PI()/180)*COS(('Solar radiation and angles'!P5-Input!$B$3)*PI()/180)+SIN('Solar radiation and angles'!O5*PI()/180)*COS(Input!$J$5*PI()/180))*180/PI() -> 134.2830707 | R5: 0 | S5: 0 | T5: =F5*(1+COS(Input!$J$5*PI()/180))/2 -> 0 | U5: ='Radiation data'!$L$29*E5*(1-COS(Input!$J$5*PI()/180))/2 -> 0 | V5: 0
A6: 1 | B6: 4 | C6: 0.208 | D6: 1.208 | E6: =IF(Input!$B$1=1,'Radiation data'!A7,IF(Input!$B$1=2,'Radiation data'!D7,IF(Input!$B$1=3,'Radiation data'!G7,"Wrong input"))) -> 0 | F6: =IF(Input!$B$1=1,'Radiation data'!B7,IF(Input!$B$1=2,'Radiation data'!E7,IF(Input!$B$1=3,'Radiation data'!H7,"Wrong input"))) -> 0 | G6: 0 | H6: =IF(Input!$B$1=1,'Radiation data'!C7,IF(Input!$B$1=2,'Radiation data'!F7,IF(Input!$B$1=3,'Radiation data'!I7,"Wrong input"))) -> 22 | I6: -22.99533025 | J6: 0.2051506849 | K6: -2.997776873 | L6: =4*('Radiation data'!$L$27-'Radiation data'!$L$28)+K6 -> -11.31777687 | M6: 3.811370385 | N6: -122.8294442 | O6: =ASIN(COS(I6*PI()/180)*COS(N6*PI()/180)*COS('Radiation data'!$L$26*PI()/180)+SIN('Solar radiation and angles'!I6*PI()/180)*SIN('Radiation data'!$L$26*PI()/180))*180/PI() -> -18.11923128 | P6: =IF(N6=0,0,ACOS((COS(I6*PI()/180)*COS(N6*PI()/180)*SIN('Radiation data'!$L$26*PI()/180)-SIN(I6*PI()/180)*COS('Radiation data'!$L$26*PI()/180))/COS(O6*PI()/180))*N6/ABS(N6)*180/PI()) -> -54.47627189 | Q6: =ACOS(COS(O6*PI()/180)*SIN(Input!$J$5*PI()/180)*COS(('Solar radiation and angles'!P6-Input!$B$3)*PI()/180)+SIN('Solar radiation and angles'!O6*PI()/180)*COS(Input!$J$5*PI()/180))*180/PI() -> 121.0134217 | R6: 0 | S6: 0 | T6: =F6*(1+COS(Input!$J$5*PI()/180))/2 -> 0 | U6: ='Radiation data'!$L$29*E6*(1-COS(Input!$J$5*PI()/180))/2 -> 0 | V6: 0
A7: 1 | B7: 5 | C7: 0.2496 | D7: 1.2496 | E7: =IF(Input!$B$1=1,'Radiation data'!A8,IF(Input!$B$1=2,'Radiation data'!D8,IF(Input!$B$1=3,'Radiation data'!G8,"Wrong input"))) -> 0 | F7: =IF(Input!$B$1=1,'Radiation data'!B8,IF(Input!$B$1=2,'Radiation data'!E8,IF(Input!$B$1=3,'Radiation data'!H8,"Wrong input"))) -> 0 | G7: 0 | H7: =IF(Input!$B$1=1,'Radiation data'!C8,IF(Input!$B$1=2,'Radiation data'!F8,IF(Input!$B$1=3,'Radiation data'!I8,"Wrong input"))) -> 22 | I7: -22.99203357 | J7: 0.2461808219 | K7: -3.016427481 | L7: =4*('Radiation data'!$L$27-'Radiation data'!$L$28)+K7 -> -11.33642748 | M7: 4.811059542 | N7: -107.8341069 | O7: =ASIN(COS(I7*PI()/180)*COS(N7*PI()/180)*COS('Radiation data'!$L$26*PI()/180)+SIN('Solar radiation and angles'!I7*PI()/180)*SIN('Radiation data'!$L$26*PI()/180))*180/PI() -> -6.34432403 | P7: =IF(N7=0,0,ACOS((COS(I7*PI()/180)*COS(N7*PI()/180)*SIN('Radiation data'!$L$26*PI()/180)-SIN(I7*PI()/180)*COS('Radiation data'!$L$26*PI()/180))/COS(O7*PI()/180))*N7/ABS(N7)*180/PI()) -> -61.85099085 | Q7: =ACOS(COS(O7*PI()/180)*SIN(Input!$J$5*PI()/180)*COS(('Solar radiation and angles'!P7-Input!$B$3)*PI()/180)+SIN('Solar radiation and angles'!O7*PI()/180)*COS(Input!$J$5*PI()/180))*180/PI() -> 107.3558811 | R7: 0 | S7: 0 | T7: =F7*(1+COS(Input!$J$5*PI()/180))/2 -> 0 | U7: ='Radiation data'!$L$29*E7*(1-COS(Input!$J$5*PI()/180))/2 -> 0 | V7: 0
A8: 1 | B8: 6 | C8: 0.2912 | D8: 1.2912 | E8: =IF(Input!$B$1=1,'Radiation data'!A9,IF(Input!$B$1=2,'Radiation data'!D9,IF(Input!$B$1=3,'Radiation data'!G9,"Wrong input"))) -> 20 | F8: =IF(Input!$B$1=1,'Radiation data'!B9,IF(Input!$B$1=2,'Radiation data'!E9,IF(Input!$B$1=3,'Radiation data'!H9,"Wrong input"))) -> 20 | G8: 0 | H8: =IF(Input!$B$1=1,'Radiation data'!C9,IF(Input!$B$1=2,'Radiation data'!F9,IF(Input!$B$1=3,'Radiation data'!I9,"Wrong input"))) -> 22.4 | I8: -22.9887251 | J8: 0.2872109589 | K8: -3.035071255 | L8: =4*('Radiation data'!$L$27-'Radiation data'!$L$28)+K8 -> -11.35507126 | M8: 5.810748812 | N8: -92.83876781 | O8: =ASIN(COS(I8*PI()/180)*COS(N8*PI()/180)*COS('Radiation data'!$L$26*PI()/180)+SIN('Solar radiation and angles'!I8*PI()/180)*SIN('Radiation data'!$L$26*PI()/180))*180/PI() -> 6.184547906 | P8: =IF(N8=0,0,ACOS((COS(I8*PI()/180)*COS(N8*PI()/180)*SIN('Radiation data'!$L$26*PI()/180)-SIN(I8*PI()/180)*COS('Radiation data'!$L$26*PI()/180))/COS(O8*PI()/180))*N8/ABS(N8)*180/PI()) -> -67.64341608 | Q8: =ACOS(COS(O8*PI()/180)*SIN(Input!$J$5*PI()/180)*COS(('Solar radiation and angles'!P8-Input!$B$3)*PI()/180)+SIN('Solar radiation and angles'!O8*PI()/180)*COS(Input!$J$5*PI()/180))*180/PI() -> 93.56483378 | R8: 0 | S8: 0 | T8: =F8*(1+COS(Input!$J$5*PI()/180))/2 -> 19.06307787 | U8: ='Radiation data'!$L$29*E8*(1-COS(Input!$J$5*PI()/180))/2 -> 0.1873844259 | V8: 19.2504623
A9: 1 | B9: 7 | C9: 0.3328 | D9: 1.3328 | E9: =IF(Input!$B$1=1,'Radiation data'!A10,IF(Input!$B$1=2,'Radiation data'!D10,IF(Input!$B$1=3,'Radiation data'!G10,"Wrong input"))) -> 262 | F9: =IF(Input!$B$1=1,'Radiation data'!B10,IF(Input!$B$1=2,'Radiation data'!E10,IF(Input!$B$1=3,'Radiation data'!H10,"Wrong input"))) -> 119 | G9: 143 | H9: =IF(Input!$B$1=1,'Radiation data'!C10,IF(Input!$B$1=2,'Radiation data'!F10,IF(Input!$B$1=3,'Radiation data'!I10,"Wrong input"))) -> 24.6 | I9: -22.98540484 | J9: 0.3282410959 | K9: -3.053708167 | L9: =4*('Radiation data'!$L$27-'Radiation data'!$L$28)+K9 -> -11.37370817 | M9: 6.810438197 | N9: -77.84342704 | O9: =ASIN(COS(I9*PI()/180)*COS(N9*PI()/180)*COS('Radiation data'!$L$26*PI()/180)+SIN('Solar radiation and angles'!I9*PI()/180)*SIN('Radiation data'!$L$26*PI()/180))*180/PI() -> 19.19862179 | P9: =IF(N9=0,0,ACOS((COS(I9*PI()/180)*COS(N9*PI()/180)*SIN('Radiation data'!$L$26*PI()/180)-SIN(I9*PI()/180)*COS('Radiation data'!$L$26*PI()/180))/COS(O9*PI()/180))*N9/ABS(N9)*180/PI()) -> -72.35636 | Q9: =ACOS(COS(O9*PI()/180)*SIN(Input!$J$5*PI()/180)*COS(('Solar radiation and angles'!P9-Input!$B$3)*PI()/180)+SIN('Solar radiation and angles'!O9*PI()/180)*COS(Input!$J$5*PI()/180))*180/PI() -> 79.80120625 | R9: 434.8567415 | S9: 76.99748272 | T9: =F9*(1+COS(Input!$J$5*PI()/180))/2 -> 113.4253133 | U9: ='Radiation data'!$L$29*E9*(1-COS(Input!$J$5*PI()/180))/2 -> 2.45473598 | V9: 192.877532
A10: 1 | B10: 8 | C10: 0.3744 | D10: 1.3744 | E10: =IF(Input!$B$1=1,'Radiation data'!A11,IF(Input!$B$1=2,'Radiation data'!D11,IF(Input!$B$1=3,'Radiation data'!G11,"Wrong input"))) -> 508 | F10: =IF(Input!$B$1=1,'Radiation data'!B11,IF(Input!$B$1=2,'Radiation data'!E11,IF(Input!$B$1=3,'Radiation data'!H11,"Wrong input"))) -> 56 | G10: 452 | H10: =IF(Input!$B$1=1,'Radiation data'!C11,IF(Input!$B$1=2,'Radiation data'!F11,IF(Input!$B$1=3,'Radiation data'!I11,"Wrong input"))) -> 26.8 | I10: -22.98207279 | J10: 0.3692712329 | K10: -3.072338185 | L10: =4*('Radiation data'!$L$27-'Radiation data'!$L$28)+K10 -> -11.39233819 | M10: 7.810127697 | N10: -62.84808455 | O10: =ASIN(COS(I10*PI()/180)*COS(N10*PI()/180)*COS('Radiation data'!$L$26*PI()/180)+SIN('Solar radiation and angles'!I10*PI()/180)*SIN('Radiation data'!$L$26*PI()/180))*180/PI() -> 32.53224293 | P10: =IF(N10=0,0,ACOS((COS(I10*PI()/180)*COS(N10*PI()/180)*SIN('Radiation data'!$L$26*PI()/180)-SIN(I10*PI()/180)*COS('Radiation data'!$L$26*PI()/180))/COS(O10*PI()/180))*N10/ABS(N10)*180/PI()) -> -76.32048347 | Q10: =ACOS(COS(O10*PI()/180)*SIN(Input!$J$5*PI()/180)*COS(('Solar radiation and angles'!P10-Input!$B$3)*PI()/180)+SIN('Solar radiation and angles'!O10*PI()/180)*COS(Input!$J$5*PI()/180))*180/PI() -> 66.22624879 | R10: 840.5015567 | S10: 338.8281024 | T10: =F10*(1+COS(Input!$J$5*PI()/180))/2 -> 53.37661804 | U10: ='Radiation data'!$L$29*E10*(1-COS(Input!$J$5*PI()/180))/2 -> 4.759564419 | V10: 396.9642848
A11: 1 | B11: 9 | C11: 0.416 | D11: 1.416 | E11: =IF(Input!$B$1=1,'Radiation data'!A12,IF(Input!$B$1=2,'Radiation data'!D12,IF(Input!$B$1=3,'Radiation data'!G12,"Wrong input"))) -> 733 | F11: =IF(Input!$B$1=1,'Radiation data'!B12,IF(Input!$B$1=2,'Radiation data'!E12,IF(Input!$B$1=3,'Radiation data'!H12,"Wrong input"))) -> 81 | G11: 652 | H11: =IF(Input!$B$1=1,'Radiation data'!C12,IF(Input!$B$1=2,'Radiation data'!F12,IF(Input!$B$1=3,'Radiation data'!I12,"Wrong input"))) -> 29 | I11: -22.97872896 | J11: 0.4103013699 | K11: -3.090961281 | L11: =4*('Radiation data'!$L$27-'Radiation data'!$L$28)+K11 -> -11.41096128 | M11: 8.809817312 | N11: -47.85274032 | O11: =ASIN(COS(I11*PI()/180)*COS(N11*PI()/180)*COS('Radiation data'!$L$26*PI()/180)+SIN('Solar radiation and angles'!I11*PI()/180)*SIN('Radiation data'!$L$26*PI()/180))*180/PI() -> 46.07843657 | P11: =IF(N11=0,0,ACOS((COS(I11*PI()/180)*COS(N11*PI()/180)*SIN('Radiation data'!$L$26*PI()/180)-SIN(I11*PI()/180)*COS('Radiation data'!$L$26*PI()/180))/COS(O11*PI()/180))*N11/ABS(N11)*180/PI()) -> -79.74451337 | Q11: =ACOS(COS(O11*PI()/180)*SIN(Input!$J$5*PI()/180)*COS(('Solar radiation and angles'!P11-Input!$B$3)*PI()/180)+SIN('Solar radiation and angles'!O11*PI()/180)*COS(Input!$J$5*PI()/180))*180/PI() -> 53.08631782 | R11: 905.1908429 | S11: 543.6677332 | T11: =F11*(1+COS(Input!$J$5*PI()/180))/2 -> 77.20546537 | U11: ='Radiation data'!$L$29*E11*(1-COS(Input!$J$5*PI()/180))/2 -> 6.86763921 | V11: 627.7408378
A12: 1 | B12: 10 | C12: 0.4576 | D12: 1.4576 | E12: =IF(Input!$B$1=1,'Radiation data'!A13,IF(Input!$B$1=2,'Radiation data'!D13,IF(Input!$B$1=3,'Radiation data'!G13,"Wrong input"))) -> 917 | F12: =IF(Input!$B$1=1,'Radiation data'!B13,IF(Input!$B$1=2,'Radiation data'!E13,IF(Input!$B$1=3,'Radiation data'!H13,"Wrong input"))) -> 111 | G12: 806 | H12: =IF(Input!$B$1=1,'Radiation data'!C13,IF(Input!$B$1=2,'Radiation data'!F13,IF(Input!$B$1=3,'Radiation data'!I13,"Wrong input"))) -> 30.9 | I12: -22.97537334 | J12: 0.4513315068 | K12: -3.109577423 | L12: =4*('Radiation data'!$L$27-'Radiation data'!$L$28)+K12 -> -11.42957742 | M12: 9.809507043 | N12: -32.85739436 | O12: =ASIN(COS(I12*PI()/180)*COS(N12*PI()/180)*COS('Radiation data'!$L$26*PI()/180)+SIN('Solar radiation and angles'!I12*PI()/180)*SIN('Radiation data'!$L$26*PI()/180))*180/PI() -> 59.76397294 | P12: =IF(N12=0,0,ACOS((COS(I12*PI()/180)*COS(N12*PI()/180)*SIN('Radiation data'!$L$26*PI()/180)-SIN(I12*PI()/180)*COS('Radiation data'!$L$26*PI()/180))/COS(O12*PI()/180))*N12/ABS(N12)*180/PI()) -> -82.72628417 | Q12: =ACOS(COS(O12*PI()/180)*SIN(Input!$J$5*PI()/180)*COS(('Solar radiation and angles'!P12-Input!$B$3)*PI()/180)+SIN('Solar radiation and angles'!O12*PI()/180)*COS(Input!$J$5*PI()/180))*180/PI() -> 40.88124516 | R12: 932.9153568 | S12: 705.3472123 | T12: =F12*(1+COS(Input!$J$5*PI()/180))/2 -> 105.8000822 | U12: ='Radiation data'!$L$29*E12*(1-COS(Input!$J$5*PI()/180))/2 -> 8.591575929 | V12: 819.7388704
A13: 1 | B13: 11 | C13: 0.4992 | D13: 1.4992 | E13: =IF(Input!$B$1=1,'Radiation data'!A14,IF(Input!$B$1=2,'Radiation data'!D14,IF(Input!$B$1=3,'Radiation data'!G14,"Wrong input"))) -> 1040 | F13: =IF(Input!$B$1=1,'Radiation data'!B14,IF(Input!$B$1=2,'Radiation data'!E14,IF(Input!$B$1=3,'Radiation data'!H14,"Wrong input"))) -> 143 | G13: 897 | H13: =IF(Input!$B$1=1,'Radiation data'!C14,IF(Input!$B$1=2,'Radiation data'!F14,IF(Input!$B$1=3,'Radiation data'!I14,"Wrong input"))) -> 32.6 | I13: -22.97200594 | J13: 0.4923616438 | K13: -3.128186581 | L13: =4*('Radiation data'!$L$27-'Radiation data'!$L$28)+K13 -> -11.44818658 | M13: 10.80919689 | N13: -17.86204665 | O13: =ASIN(COS(I13*PI()/180)*COS(N13*PI()/180)*COS('Radiation data'!$L$26*PI()/180)+SIN('Solar radiation and angles'!I13*PI()/180)*SIN('Radiation data'!$L$26*PI()/180))*180/PI() -> 73.53450102 | P13: =IF(N13=0,0,ACOS((COS(I13*PI()/180)*COS(N13*PI()/180)*SIN('Radiation data'!$L$26*PI()/180)-SIN(I13*PI()/180)*COS('Radiation data'!$L$26*PI()/180))/COS(O13*PI()/180))*N13/ABS(N13)*180/PI()) -> -85.09865018 | Q13: =ACOS(COS(O13*PI()/180)*SIN(Input!$J$5*PI()/180)*COS(('Solar radiation and angles'!P13-Input!$B$3)*PI()/180)+SIN('Solar radiation and angles'!O13*PI()/180)*COS(Input!$J$5*PI()/180))*180/PI() -> 30.80602301 | R13: 935.3585074 | S13: 803.3850954 | T13: =F13*(1+COS(Input!$J$5*PI()/180))/2 -> 136.3010068 | U13: ='Radiation data'!$L$29*E13*(1-COS(Input!$J$5*PI()/180))/2 -> 9.743990148 | V13: 949.4300923
A14: 1 | B14: 12 | C14: 0.5408 | D14: 1.5408 | E14: =IF(Input!$B$1=1,'Radiation data'!A15,IF(Input!$B$1=2,'Radiation data'!D15,IF(Input!$B$1=3,'Radiation data'!G15,"Wrong input"))) -> 1098 | F14: =IF(Input!$B$1=1,'Radiation data'!B15,IF(Input!$B$1=2,'Radiation data'!E15,IF(Input!$B$1=3,'Radiation data'!H15,"Wrong input"))) -> 177 | G14: 921 | H14: =IF(Input!$B$1=1,'Radiation data'!C15,IF(Input!$B$1=2,'Radiation data'!F15,IF(Input!$B$1=3,'Radiation data'!I15,"Wrong input"))) -> 34 | I14: -22.96862676 | J14: 0.5333917808 | K14: -3.146788727 | L14: =4*('Radiation data'!$L$27-'Radiation data'!$L$28)+K14 -> -11.46678873 | M14: 11.80888685 | N14: -2.866697182 | O14: =ASIN(COS(I14*PI()/180)*COS(N14*PI()/180)*COS('Radiation data'!$L$26*PI()/180)+SIN('Solar radiation and angles'!I14*PI()/180)*SIN('Radiation data'!$L$26*PI()/180))*180/PI() -> 87.32525822 | P14: =IF(N14=0,0,ACOS((COS(I14*PI()/180)*COS(N14*PI()/180)*SIN('Radiation data'!$L$26*PI()/180)-SIN(I14*PI()/180)*COS('Radiation data'!$L$26*PI()/180))/COS(O14*PI()/180))*N14/ABS(N14)*180/PI()) -> -80.65963592 | Q14: =ACOS(COS(O14*PI()/180)*SIN(Input!$J$5*PI()/180)*COS(('Solar radiation and angles'!P14-Input!$B$3)*PI()/180)+SIN('Solar radiation and angles'!O14*PI()/180)*COS(Input!$J$5*PI()/180))*180/PI() -> 25.56191307 | R14: 922.0044831 | S14: 831.7582719 | T14: =F14*(1+COS(Input!$J$5*PI()/180))/2 -> 168.7082392 | U14: ='Radiation data'!$L$29*E14*(1-COS(Input!$J$5*PI()/180))/2 -> 10.28740498 | V14: 1010.753916
A15: 1 | B15: 13 | C15: 0.5824 | D15: 1.5824 | E15: =IF(Input!$B$1=1,'Radiation data'!A16,IF(Input!$B$1=2,'Radiation data'!D16,IF(Input!$B$1=3,'Radiation data'!G16,"Wrong input"))) -> 1089 | F15: =IF(Input!$B$1=1,'Radiation data'!B16,IF(Input!$B$1=2,'Radiation data'!E16,IF(Input!$B$1=3,'Radiation data'!H16,"Wrong input"))) -> 178 | G15: 911 | H15: =IF(Input!$B$1=1,'Radiation data'!C16,IF(Input!$B$1=2,'Radiation data'!F16,IF(Input!$B$1=3,'Radiation data'!I16,"Wrong input"))) -> 35.1 | I15: -22.96523581 | J15: 0.5744219178 | K15: -3.165383828 | L15: =4*('Radiation data'!$L$27-'Radiation data'!$L$28)+K15 -> -11.48538383 | M15: 12.80857694 | N15: 12.12865404 | O15: =ASIN(COS(I15*PI()/180)*COS(N15*PI()/180)*COS('Radiation data'!$L$26*PI()/180)+SIN('Solar radiation and angles'!I15*PI()/180)*SIN('Radiation data'!$L$26*PI()/180))*180/PI() -> 78.81180883 | P15: =IF(N15=0,0,ACOS((COS(I15*PI()/180)*COS(N15*PI()/180)*SIN('Radiation data'!$L$26*PI()/180)-SIN(I15*PI()/180)*COS('Radiation data'!$L$26*PI()/180))/COS(O15*PI()/180))*N15/ABS(N15)*180/PI()) -> 85.57877189 | Q15: =ACOS(COS(O15*PI()/180)*SIN(Input!$J$5*PI()/180)*COS(('Solar radiation and angles'!P15-Input!$B$3)*PI()/180)+SIN('Solar radiation and angles'!O15*PI()/180)*COS(Input!$J$5*PI()/180))*180/PI() -> 28.0226189 | R15: 928.6488159 | S15: 819.7760613 | T15: =F15*(1+COS(Input!$J$5*PI()/180))/2 -> 169.661393 | U15: ='Radiation data'!$L$29*E15*(1-COS(Input!$J$5*PI()/180))/2 -> 10.20308199 | V15: 999.6405363
A16: 1 | B16: 14 | C16: 0.624 | D16: 1.624 | E16: =IF(Input!$B$1=1,'Radiation data'!A17,IF(Input!$B$1=2,'Radiation data'!D17,IF(Input!$B$1=3,'Radiation data'!G17,"Wrong input"))) -> 1013 | F16: =IF(Input!$B$1=1,'Radiation data'!B17,IF(Input!$B$1=2,'Radiation data'!E17,IF(Input!$B$1=3,'Radiation data'!H17,"Wrong input"))) -> 149 | G16: 864 | H16: =IF(Input!$B$1=1,'Radiation data'!C17,IF(Input!$B$1=2,'Radiation data'!F17,IF(Input!$B$1=3,'Radiation data'!I17,"Wrong input"))) -> 34.7 | I16: -22.96183307 | J16: 0.6154520548 | K16: -3.183971857 | L16: =4*('Radiation data'!$L$27-'Radiation data'!$L$28)+K16 -> -11.50397186 | M16: 13.80826714 | N16: 27.12400704 | O16: =ASIN(COS(I16*PI()/180)*COS(N16*PI()/180)*COS('Radiation data'!$L$26*PI()/180)+SIN('Solar radiation and angles'!I16*PI()/180)*SIN('Radiation data'!$L$26*PI()/180))*180/PI() -> 65.02068231 | P16: =IF(N16=0,0,ACOS((COS(I16*PI()/180)*COS(N16*PI()/180)*SIN('Radiation data'!$L$26*PI()/180)-SIN(I16*PI()/180)*COS('Radiation data'!$L$26*PI()/180))/COS(O16*PI()/180))*N16/ABS(N16)*180/PI()) -> 83.76504697 | Q16: =ACOS(COS(O16*PI()/180)*SIN(Input!$J$5*PI()/180)*COS(('Solar radiation and angles'!P16-Input!$B$3)*PI()/180)+SIN('Solar radiation and angles'!O16*PI()/180)*COS(Input!$J$5*PI()/180))*180/PI() -> 36.66415603 | R16: 953.1581436 | S16: 764.5751937 | T16: =F16*(1+COS(Input!$J$5*PI()/180))/2 -> 142.0199301 | U16: ='Radiation data'!$L$29*E16*(1-COS(Input!$J$5*PI()/180))/2 -> 9.491021173 | V16: 916.086145
A17: 1 | B17: 15 | C17: 0.6656 | D17: 1.6656 | E17: =IF(Input!$B$1=1,'Radiation data'!A18,IF(Input!$B$1=2,'Radiation data'!D18,IF(Input!$B$1=3,'Radiation data'!G18,"Wrong input"))) -> 875 | F17: =IF(Input!$B$1=1,'Radiation data'!B18,IF(Input!$B$1=2,'Radiation data'!E18,IF(Input!$B$1=3,'Radiation data'!H18,"Wrong input"))) -> 116 | G17: 759 | H17: =IF(Input!$B$1=1,'Radiation data'!C18,IF(Input!$B$1=2,'Radiation data'!F18,IF(Input!$B$1=3,'Radiation data'!I18,"Wrong input"))) -> 34.7 | I17: -22.95841856 | J17: 0.6564821918 | K17: -3.202552781 | L17: =4*('Radiation data'!$L$27-'Radiation data'!$L$28)+K17 -> -11.52255278 | M17: 14.80795745 | N17: 42.1193618 | O17: =ASIN(COS(I17*PI()/180)*COS(N17*PI()/180)*COS('Radiation data'!$L$26*PI()/180)+SIN('Solar radiation and angles'!I17*PI()/180)*SIN('Radiation data'!$L$26*PI()/180))*180/PI() -> 51.2951981 | P17: =IF(N17=0,0,ACOS((COS(I17*PI()/180)*COS(N17*PI()/180)*SIN('Radiation data'!$L$26*PI()/180)-SIN(I17*PI()/180)*COS('Radiation data'!$L$26*PI()/180))/COS(O17*PI()/180))*N17/ABS(N17)*180/PI()) -> 80.9662433 | Q17: =ACOS(COS(O17*PI()/180)*SIN(Input!$J$5*PI()/180)*COS(('Solar radiation and angles'!P17-Input!$B$3)*PI()/180)+SIN('Solar radiation and angles'!O17*PI()/180)*COS(Input!$J$5*PI()/180))*180/PI() -> 48.2586916 | R17: 972.6055789 | S17: 647.5301415 | T17: =F17*(1+COS(Input!$J$5*PI()/180))/2 -> 110.5658516 | U17: ='Radiation data'!$L$29*E17*(1-COS(Input!$J$5*PI()/180))/2 -> 8.198068634 | V17: 766.2940618
A18: 1 | B18: 16 | C18: 0.7072 | D18: 1.7072 | E18: =IF(Input!$B$1=1,'Radiation data'!A19,IF(Input!$B$1=2,'Radiation data'!D19,IF(Input!$B$1=3,'Radiation data'!G19,"Wrong input"))) -> 687 | F18: =IF(Input!$B$1=1,'Radiation data'!B19,IF(Input!$B$1=2,'Radiation data'!E19,IF(Input!$B$1=3,'Radiation data'!H19,"Wrong input"))) -> 80 | G18: 607 | H18: =IF(Input!$B$1=1,'Radiation data'!C19,IF(Input!$B$1=2,'Radiation data'!F19,IF(Input!$B$1=3,'Radiation data'!I19,"Wrong input"))) -> 34.7 | I18: -22.95499228 | J18: 0.6975123288 | K18: -3.221126572 | L18: =4*('Radiation data'!$L$27-'Radiation data'!$L$28)+K18 -> -11.54112657 | M18: 15.80764789 | N18: 57.11471836 | O18: =ASIN(COS(I18*PI()/180)*COS(N18*PI()/180)*COS('Radiation data'!$L$26*PI()/180)+SIN('Solar radiation and angles'!I18*PI()/180)*SIN('Radiation data'!$L$26*PI()/180))*180/PI() -> 37.68583943 | P18: =IF(N18=0,0,ACOS((COS(I18*PI()/180)*COS(N18*PI()/180)*SIN('Radiation data'!$L$26*PI()/180)-SIN(I18*PI()/180)*COS('Radiation data'!$L$26*PI()/180))/COS(O18*PI()/180))*N18/ABS(N18)*180/PI()) -> 77.71734133 | Q18: =ACOS(COS(O18*PI()/180)*SIN(Input!$J$5*PI()/180)*COS(('Solar radiation and angles'!P18-Input!$B$3)*PI()/180)+SIN('Solar radiation and angles'!O18*PI()/180)*COS(Input!$J$5*PI()/180))*180/PI() -> 61.12466273 | R18: 992.914692 | S18: 479.4839643 | T18: =F18*(1+COS(Input!$J$5*PI()/180))/2 -> 76.25231148 | U18: ='Radiation data'!$L$29*E18*(1-COS(Input!$J$5*PI()/180))/2 -> 6.436655031 | V18: 562.1729308
A19: 1 | B19: 17 | C19: 0.7488 | D19: 1.7488 | E19: =IF(Input!$B$1=1,'Radiation data'!A20,IF(Input!$B$1=2,'Radiation data'!D20,IF(Input!$B$1=3,'Radiation data'!G20,"Wrong input"))) -> 457 | F19: =IF(Input!$B$1=1,'Radiation data'!B20,IF(Input!$B$1=2,'Radiation data'!E20,IF(Input!$B$1=3,'Radiation data'!H20,"Wrong input"))) -> 55 | G19: 402 | H19: =IF(Input!$B$1=1,'Radiation data'!C20,IF(Input!$B$1=2,'Radiation data'!F20,IF(Input!$B$1=3,'Radiation data'!I20,"Wrong input"))) -> 35.3 | I19: -22.95155422 | J19: 0.7385424658 | K19: -3.2396932 | L19: =4*('Radiation data'!$L$27-'Radiation data'!$L$28)+K19 -> -11.5596932 | M19: 16.80733845 | N19: 72.1100767 | O19: =ASIN(COS(I19*PI()/180)*COS(N19*PI()/180)*COS('Radiation data'!$L$26*PI()/180)+SIN('Solar radiation and angles'!I19*PI()/180)*SIN('Radiation data'!$L$26*PI()/180))*180/PI() -> 24.25701368 | P19: =IF(N19=0,0,ACOS((COS(I19*PI()/180)*COS(N19*PI()/180)*SIN('Radiation data'!$L$26*PI()/180)-SIN(I19*PI()/180)*COS('Radiation data'!$L$26*PI()/180))/COS(O19*PI()/180))*N19/ABS(N19)*180/PI()) -> 73.98120337 | Q19: =ACOS(COS(O19*PI()/180)*SIN(Input!$J$5*PI()/180)*COS(('Solar radiation and angles'!P19-Input!$B$3)*PI()/180)+SIN('Solar radiation and angles'!O19*PI()/180)*COS(Input!$J$5*PI()/180))*180/PI() -> 74.57286938 | R19: 978.5058296 | S19: 260.2948846 | T19: =F19*(1+COS(Input!$J$5*PI()/180))/2 -> 52.42346414 | U19: ='Radiation data'!$L$29*E19*(1-COS(Input!$J$5*PI()/180))/2 -> 4.281734132 | V19: 317.0000829
A20: 1 | B20: 18 | C20: 0.7904 | D20: 1.7904 | E20: =IF(Input!$B$1=1,'Radiation data'!A21,IF(Input!$B$1=2,'Radiation data'!D21,IF(Input!$B$1=3,'Radiation data'!G21,"Wrong input"))) -> 215 | F20: =IF(Input!$B$1=1,'Radiation data'!B21,IF(Input!$B$1=2,'Radiation data'!E21,IF(Input!$B$1=3,'Radiation data'!H21,"Wrong input"))) -> 104 | G20: 111 | H20: =IF(Input!$B$1=1,'Radiation data'!C21,IF(Input!$B$1=2,'Radiation data'!F21,IF(Input!$B$1=3,'Radiation data'!I21,"Wrong input"))) -> 34.3 | I20: -22.9481044 | J20: 0.7795726027 | K20: -3.258252634 | L20: =4*('Radiation data'!$L$27-'Radiation data'!$L$28)+K20 -> -11.57825263 | M20: 17.80702912 | N20: 87.10543684 | O20: =ASIN(COS(I20*PI()/180)*COS(N20*PI()/180)*COS('Radiation data'!$L$26*PI()/180)+SIN('Solar radiation and angles'!I20*PI()/180)*SIN('Radiation data'!$L$26*PI()/180))*180/PI() -> 11.10033016 | P20: =IF(N20=0,0,ACOS((COS(I20*PI()/180)*COS(N20*PI()/180)*SIN('Radiation data'!$L$26*PI()/180)-SIN(I20*PI()/180)*COS('Radiation data'!$L$26*PI()/180))/COS(O20*PI()/180))*N20/ABS(N20)*180/PI()) -> 69.58938367 | Q20: =ACOS(COS(O20*PI()/180)*SIN(Input!$J$5*PI()/180)*COS(('Solar radiation and angles'!P20-Input!$B$3)*PI()/180)+SIN('Solar radiation and angles'!O20*PI()/180)*COS(Input!$J$5*PI()/180))*180/PI() -> 88.28887391 | R20: 576.5406511 | S20: 17.21570276 | T20: =F20*(1+COS(Input!$J$5*PI()/180))/2 -> 99.12800493 | U20: ='Radiation data'!$L$29*E20*(1-COS(Input!$J$5*PI()/180))/2 -> 2.014382579 | V20: 118.3580903
A21: 1 | B21: 19 | C21: 0.832 | D21: 1.832 | E21: =IF(Input!$B$1=1,'Radiation data'!A22,IF(Input!$B$1=2,'Radiation data'!D22,IF(Input!$B$1=3,'Radiation data'!G22,"Wrong input"))) -> 7 | F21: =IF(Input!$B$1=1,'Radiation data'!B22,IF(Input!$B$1=2,'Radiation data'!E22,IF(Input!$B$1=3,'Radiation data'!H22,"Wrong input"))) -> 7 | G21: 0 | H21: =IF(Input!$B$1=1,'Radiation data'!C22,IF(Input!$B$1=2,'Radiation data'!F22,IF(Input!$B$1=3,'Radiation data'!I22,"Wrong input"))) -> 32.9 | I21: -22.94464281 | J21: 0.8206027397 | K21: -3.276804844 | L21: =4*('Radiation data'!$L$27-'Radiation data'!$L$28)+K21 -> -11.59680484 | M21: 18.80671992 | N21: 102.1007988 | O21: =ASIN(COS(I21*PI()/180)*COS(N21*PI()/180)*COS('Radiation data'!$L$26*PI()/180)+SIN('Solar radiation and angles'!I21*PI()/180)*SIN('Radiation data'!$L$26*PI()/180))*180/PI() -> -1.645259582 | P21: =IF(N21=0,0,ACOS((COS(I21*PI()/180)*COS(N21*PI()/180)*SIN('Radiation data'!$L$26*PI()/180)-SIN(I21*PI()/180)*COS('Radiation data'!$L$26*PI()/180))/COS(O21*PI()/180))*N21/ABS(N21)*180/PI()) -> 64.26231294 | Q21: =ACOS(COS(O21*PI()/180)*SIN(Input!$J$5*PI()/180)*COS(('Solar radiation and angles'!P21-Input!$B$3)*PI()/180)+SIN('Solar radiation and angles'!O21*PI()/180)*COS(Input!$J$5*PI()/180))*180/PI() -> 102.091193 | R21: 0 | S21: 0 | T21: =F21*(1+COS(Input!$J$5*PI()/180))/2 -> 6.672077255 | U21: ='Radiation data'!$L$29*E21*(1-COS(Input!$J$5*PI()/180))/2 -> 0.06558454907 | V21: 6.737661804
A22: 1 | B22: 20 | C22: 0.8736 | D22: 1.8736 | E22: =IF(Input!$B$1=1,'Radiation data'!A23,IF(Input!$B$1=2,'Radiation data'!D23,IF(Input!$B$1=3,'Radiation data'!G23,"Wrong input"))) -> 0 | F22: =IF(Input!$B$1=1,'Radiation data'!B23,IF(Input!$B$1=2,'Radiation data'!E23,IF(Input!$B$1=3,'Radiation data'!H23,"Wrong input"))) -> 0 | G22: 0 | H22: =IF(Input!$B$1=1,'Radiation data'!C23,IF(Input!$B$1=2,'Radiation data'!F23,IF(Input!$B$1=3,'Radiation data'!I23,"Wrong input"))) -> 32.1 | I22: -22.94116945 | J22: 0.8616328767 | K22: -3.295349801 | L22: =4*('Radiation data'!$L$27-'Radiation data'!$L$28)+K22 -> -11.6153498 | M22: 19.80641084 | N22: 117.0961625 | O22: =ASIN(COS(I22*PI()/180)*COS(N22*PI()/180)*COS('Radiation data'!$L$26*PI()/180)+SIN('Solar radiation and angles'!I22*PI()/180)*SIN('Radiation data'!$L$26*PI()/180))*180/PI() -> -13.75788889 | P22: =IF(N22=0,0,ACOS((COS(I22*PI()/180)*COS(N22*PI()/180)*SIN('Radiation data'!$L$26*PI()/180)-SIN(I22*PI()/180)*COS('Radiation data'!$L$26*PI()/180))/COS(O22*PI()/180))*N22/ABS(N22)*180/PI()) -> 57.56989528 | Q22: =ACOS(COS(O22*PI()/180)*SIN(Input!$J$5*PI()/180)*COS(('Solar radiation and angles'!P22-Input!$B$3)*PI()/180)+SIN('Solar radiation and angles'!O22*PI()/180)*COS(Input!$J$5*PI()/180))*180/PI() -> 115.8281284 | R22: 0 | S22: 0 | T22: =F22*(1+COS(Input!$J$5*PI()/180))/2 -> 0 | U22: ='Radiation data'!$L$29*E22*(1-COS(Input!$J$5*PI()/180))/2 -> 0 | V22: 0
A23: 1 | B23: 21 | C23: 0.9152 | D23: 1.9152 | E23: =IF(Input!$B$1=1,'Radiation data'!A24,IF(Input!$B$1=2,'Radiation data'!D24,IF(Input!$B$1=3,'Radiation data'!G24,"Wrong input"))) -> 0 | F23: =IF(Input!$B$1=1,'Radiation data'!B24,IF(Input!$B$1=2,'Radiation data'!E24,IF(Input!$B$1=3,'Radiation data'!H24,"Wrong input"))) -> 0 | G23: 0 | H23: =IF(Input!$B$1=1,'Radiation data'!C24,IF(Input!$B$1=2,'Radiation data'!F24,IF(Input!$B$1=3,'Radiation data'!I24,"Wrong input"))) -> 31.4 | I23: -22.93768432 | J23: 0.9026630137 | K23: -3.313887475 | L23: =4*('Radiation data'!$L$27-'Radiation data'!$L$28)+K23 -> -11.63388747 | M23: 20.80610188 | N23: 132.0915281 | O23: =ASIN(COS(I23*PI()/180)*COS(N23*PI()/180)*COS('Radiation data'!$L$26*PI()/180)+SIN('Solar radiation and angles'!I23*PI()/180)*SIN('Radiation data'!$L$26*PI()/180))*180/PI() -> -24.86972045 | P23: =IF(N23=0,0,ACOS((COS(I23*PI()/180)*COS(N23*PI()/180)*SIN('Radiation data'!$L$26*PI()/180)-SIN(I23*PI()/180)*COS('Radiation data'!$L$26*PI()/180))/COS(O23*PI()/180))*N23/ABS(N23)*180/PI()) -> 48.87270655 | Q23: =ACOS(COS(O23*PI()/180)*SIN(Input!$J$5*PI()/180)*COS(('Solar radiation and angles'!P23-Input!$B$3)*PI()/180)+SIN('Solar radiation and angles'!O23*PI()/180)*COS(Input!$J$5*PI()/180))*180/PI() -> 129.2974771 | R23: 0 | S23: 0 | T23: =F23*(1+COS(Input!$J$5*PI()/180))/2 -> 0 | U23: ='Radiation data'!$L$29*E23*(1-COS(Input!$J$5*PI()/180))/2 -> 0 | V23: 0
A24: 1 | B24: 22 | C24: 0.9568 | D24: 1.9568 | E24: =IF(Input!$B$1=1,'Radiation data'!A25,IF(Input!$B$1=2,'Radiation data'!D25,IF(Input!$B$1=3,'Radiation data'!G25,"Wrong input"))) -> 0 | F24: =IF(Input!$B$1=1,'Radiation data'!B25,IF(Input!$B$1=2,'Radiation data'!E25,IF(Input!$B$1=3,'Radiation data'!H25,"Wrong input"))) -> 0 | G24: 0 | H24: =IF(Input!$B$1=1,'Radiation data'!C25,IF(Input!$B$1=2,'Radiation data'!F25,IF(Input!$B$1=3,'Radiation data'!I25,"Wrong input"))) -> 30.6 | I24: -22.93418744 | J24: 0.9436931507 | K24: -3.332417835 | L24: =4*('Radiation data'!$L$27-'Radiation data'!$L$28)+K24 -> -11.65241784 | M24: 21.80579304 | N24: 147.0868955 | O24: =ASIN(COS(I24*PI()/180)*COS(N24*PI()/180)*COS('Radiation data'!$L$26*PI()/180)+SIN('Solar radiation and angles'!I24*PI()/180)*SIN('Radiation data'!$L$26*PI()/180))*180/PI() -> -34.36589934 | P24: =IF(N24=0,0,ACOS((COS(I24*PI()/180)*COS(N24*PI()/180)*SIN('Radiation data'!$L$26*PI()/180)-SIN(I24*PI()/180)*COS('Radiation data'!$L$26*PI()/180))/COS(O24*PI()/180))*N24/ABS(N24)*180/PI()) -> 37.31763939 | Q24: =ACOS(COS(O24*PI()/180)*SIN(Input!$J$5*PI()/180)*COS(('Solar radiation and angles'!P24-Input!$B$3)*PI()/180)+SIN('Solar radiation and angles'!O24*PI()/180)*COS(Input!$J$5*PI()/180))*180/PI() -> 142.0944634 | R24: 0 | S24: 0 | T24: =F24*(1+COS(Input!$J$5*PI()/180))/2 -> 0 | U24: ='Radiation data'!$L$29*E24*(1-COS(Input!$J$5*PI()/180))/2 -> 0 | V24: 0
A25: 1 | B25: 23 | C25: 0.9984 | D25: 1.9984 | E25: =IF(Input!$B$1=1,'Radiation data'!A26,IF(Input!$B$1=2,'Radiation data'!D26,IF(Input!$B$1=3,'Radiation data'!G26,"Wrong input"))) -> 0 | F25: =IF(Input!$B$1=1,'Radiation data'!B26,IF(Input!$B$1=2,'Radiation data'!E26,IF(Input!$B$1=3,'Radiation data'!H26,"Wrong input"))) -> 0 | G25: 0 | H25: =IF(Input!$B$1=1,'Radiation data'!C26,IF(Input!$B$1=2,'Radiation data'!F26,IF(Input!$B$1=3,'Radiation data'!I26,"Wrong input"))) -> 29.8 | I25: -22.93067879 | J25: 0.9847232877 | K25: -3.350940852 | L25: =4*('Radiation data'!$L$27-'Radiation data'!$L$28)+K25 -> -11.67094085 | M25: 22.80548432 | N25: 162.0822648 | O25: =ASIN(COS(I25*PI()/180)*COS(N25*PI()/180)*COS('Radiation data'!$L$26*PI()/180)+SIN('Solar radiation and angles'!I25*PI()/180)*SIN('Radiation data'!$L$26*PI()/180))*180/PI() -> -41.28273596 | P25: =IF(N25=0,0,ACOS((COS(I25*PI()/180)*COS(N25*PI()/180)*SIN('Radiation data'!$L$26*PI()/180)-SIN(I25*PI()/180)*COS('Radiation data'!$L$26*PI()/180))/COS(O25*PI()/180))*N25/ABS(N25)*180/PI()) -> 22.15111358 | Q25: =ACOS(COS(O25*PI()/180)*SIN(Input!$J$5*PI()/180)*COS(('Solar radiation and angles'!P25-Input!$B$3)*PI()/180)+SIN('Solar radiation and angles'!O25*PI()/180)*COS(Input!$J$5*PI()/180))*180/PI() -> 153.1385263 | R25: 0 | S25: 0 | T25: =F25*(1+COS(Input!$J$5*PI()/180))/2 -> 0 | U25: ='Radiation data'!$L$29*E25*(1-COS(Input!$J$5*PI()/180))/2 -> 0 | V25: 0
A26: 2 | B26: 0.0001 | C26: 0.0416 | D26: 2.0416 | E26: =IF(Input!$B$1=1,'Radiation data'!A27,IF(Input!$B$1=2,'Radiation data'!D27,IF(Input!$B$1=3,'Radiation data'!G27,"Wrong input"))) -> 0 | F26: =IF(Input!$B$1=1,'Radiation data'!B27,IF(Input!$B$1=2,'Radiation data'!E27,IF(Input!$B$1=3,'Radiation data'!H27,"Wrong input"))) -> 0 | G26: 0 | H26: =IF(Input!$B$1=1,'Radiation data'!C27,IF(Input!$B$1=2,'Radiation data'!F27,IF(Input!$B$1=3,'Radiation data'!I27,"Wrong input"))) -> 28.6 | I26: -22.92702275 | J26: 1.027331507 | K26: -3.370168489 | L26: =4*('Radiation data'!$L$27-'Radiation data'!$L$28)+K26 -> -11.69016849 | M26: -0.1947361415 | N26: -182.9210421 | O26: =ASIN(COS(I26*PI()/180)*COS(N26*PI()/180)*COS('Radiation data'!$L$26*PI()/180)+SIN('Solar radiation and angles'!I26*PI()/180)*SIN('Radiation data'!$L$26*PI()/180))*180/PI() -> -44.42425339 | P26: =IF(N26=0,0,ACOS((COS(I26*PI()/180)*COS(N26*PI()/180)*SIN('Radiation data'!$L$26*PI()/180)-SIN(I26*PI()/180)*COS('Radiation data'!$L$26*PI()/180))/COS(O26*PI()/180))*N26/ABS(N26)*180/PI()) -> -3.768059208 | Q26: =ACOS(COS(O26*PI()/180)*SIN(Input!$J$5*PI()/180)*COS(('Solar radiation and angles'!P26-Input!$B$3)*PI()/180)+SIN('Solar radiation and angles'!O26*PI()/180)*COS(Input!$J$5*PI()/180))*180/PI() -> 159.3181443 | R26: 0 | S26: 0 | T26: =F26*(1+COS(Input!$J$5*PI()/180))/2 -> 0 | U26: ='Radiation data'!$L$29*E26*(1-COS(Input!$J$5*PI()/180))/2 -> 0 | V26: 0
A27: 2 | B27: 1 | C27: 0.0832 | D27: 2.0832 | E27: =IF(Input!$B$1=1,'Radiation data'!A28,IF(Input!$B$1=2,'Radiation data'!D28,IF(Input!$B$1=3,'Radiation data'!G28,"Wrong input"))) -> 0 | F27: =IF(Input!$B$1=1,'Radiation data'!B28,IF(Input!$B$1=2,'Radiation data'!E28,IF(Input!$B$1=3,'Radiation data'!H28,"Wrong input"))) -> 0 | G27: 0 | H27: =IF(Input!$B$1=1,'Radiation data'!C28,IF(Input!$B$1=2,'Radiation data'!F28,IF(Input!$B$1=3,'Radiation data'!I28,"Wrong input"))) -> 27.3 | I27: -22.92349013 | J27: 1.068361644 | K27: -3.388676444 | L27: =4*('Radiation data'!$L$27-'Radiation data'!$L$28)+K27 -> -11.70867644 | M27: 0.8048553926 | N27: -167.9271691 | O27: =ASIN(COS(I27*PI()/180)*COS(N27*PI()/180)*COS('Radiation data'!$L$26*PI()/180)+SIN('Solar radiation and angles'!I27*PI()/180)*SIN('Radiation data'!$L$26*PI()/180))*180/PI() -> -43.02385519 | P27: =IF(N27=0,0,ACOS((COS(I27*PI()/180)*COS(N27*PI()/180)*SIN('Radiation data'!$L$26*PI()/180)-SIN(I27*PI()/180)*COS('Radiation data'!$L$26*PI()/180))/COS(O27*PI()/180))*N27/ABS(N27)*180/PI()) -> -15.27785627 | Q27: =ACOS(COS(O27*PI()/180)*SIN(Input!$J$5*PI()/180)*COS(('Solar radiation and angles'!P27-Input!$B$3)*PI()/180)+SIN('Solar radiation and angles'!O27*PI()/180)*COS(Input!$J$5*PI()/180))*180/PI() -> 156.4083075 | R27: 0 | S27: 0 | T27: =F27*(1+COS(Input!$J$5*PI()/180))/2 -> 0 | U27: ='Radiation data'!$L$29*E27*(1-COS(Input!$J$5*PI()/180))/2 -> 0 | V27: 0
A28: 2 | B28: 2 | C28: 0.1248 | D28: 2.1248 | E28: =IF(Input!$B$1=1,'Radiation data'!A29,IF(Input!$B$1=2,'Radiation data'!D29,IF(Input!$B$1=3,'Radiation data'!G29,"Wrong input"))) -> 0 | F28: =IF(Input!$B$1=1,'Radiation data'!B29,IF(Input!$B$1=2,'Radiation data'!E29,IF(Input!$B$1=3,'Radiation data'!H29,"Wrong input"))) -> 0 | G28: 0 | H28: =IF(Input!$B$1=1,'Radiation data'!C29,IF(Input!$B$1=2,'Radiation data'!F29,IF(Input!$B$1=3,'Radiation data'!I29,"Wrong input"))) -> 25.9 | I28: -22.91994576 | J28: 1.109391781 | K28: -3.407176966 | L28: =4*('Radiation data'!$L$27-'Radiation data'!$L$28)+K28 -> -11.72717697 | M28: 1.804547051 | N28: -152.9317942 | O28: =ASIN(COS(I28*PI()/180)*COS(N28*PI()/180)*COS('Radiation data'!$L$26*PI()/180)+SIN('Solar radiation and angles'!I28*PI()/180)*SIN('Radiation data'!$L$26*PI()/180))*180/PI() -> -37.44446121 | P28: =IF(N28=0,0,ACOS((COS(I28*PI()/180)*COS(N28*PI()/180)*SIN('Radiation data'!$L$26*PI()/180)-SIN(I28*PI()/180)*COS('Radiation data'!$L$26*PI()/180))/COS(O28*PI()/180))*N28/ABS(N28)*180/PI()) -> -31.86384474 | Q28: =ACOS(COS(O28*PI()/180)*SIN(Input!$J$5*PI()/180)*COS(('Solar radiation and angles'!P28-Input!$B$3)*PI()/180)+SIN('Solar radiation and angles'!O28*PI()/180)*COS(Input!$J$5*PI()/180))*180/PI() -> 146.7200462 | R28: 0 | S28: 0 | T28: =F28*(1+COS(Input!$J$5*PI()/180))/2 -> 0 | U28: ='Radiation data'!$L$29*E28*(1-COS(Input!$J$5*PI()/180))/2 -> 0 | V28: 0
A29: 2 | B29: 3 | C29: 0.1664 | D29: 2.1664 | E29: =IF(Input!$B$1=1,'Radiation data'!A30,IF(Input!$B$1=2,'Radiation data'!D30,IF(Input!$B$1=3,'Radiation data'!G30,"Wrong input"))) -> 0 | F29: =IF(Input!$B$1=1,'Radiation data'!B30,IF(Input!$B$1=2,'Radiation data'!E30,IF(Input!$B$1=3,'Radiation data'!H30,"Wrong input"))) -> 0 | G29: 0 | H29: =IF(Input!$B$1=1,'Radiation data'!C30,IF(Input!$B$1=2,'Radiation data'!F30,IF(Input!$B$1=3,'Radiation data'!I30,"Wrong input"))) -> 25.2 | I29: -22.91638964 | J29: 1.150421918 | K29: -3.425670024 | L29: =4*('Radiation data'!$L$27-'Radiation data'!$L$28)+K29 -> -11.74567002 | M29: 2.804238833 | N29: -137.9364175 | O29: =ASIN(COS(I29*PI()/180)*COS(N29*PI()/180)*COS('Radiation data'!$L$26*PI()/180)+SIN('Solar radiation and angles'!I29*PI()/180)*SIN('Radiation data'!$L$26*PI()/180))*180/PI() -> -28.82213602 | P29: =IF(N29=0,0,ACOS((COS(I29*PI()/180)*COS(N29*PI()/180)*SIN('Radiation data'!$L$26*PI()/180)-SIN(I29*PI()/180)*COS('Radiation data'!$L$26*PI()/180))/COS(O29*PI()/180))*N29/ABS(N29)*180/PI()) -> -44.77545168 | Q29: =ACOS(COS(O29*PI()/180)*SIN(Input!$J$5*PI()/180)*COS(('Solar radiation and angles'!P29-Input!$B$3)*PI()/180)+SIN('Solar radiation and angles'!O29*PI()/180)*COS(Input!$J$5*PI()/180))*180/PI() -> 134.4081159 | R29: 0 | S29: 0 | T29: =F29*(1+COS(Input!$J$5*PI()/180))/2 -> 0 | U29: ='Radiation data'!$L$29*E29*(1-COS(Input!$J$5*PI()/180))/2 -> 0 | V29: 0
A30: 2 | B30: 4 | C30: 0.208 | D30: 2.208 | E30: =IF(Input!$B$1=1,'Radiation data'!A31,IF(Input!$B$1=2,'Radiation data'!D31,IF(Input!$B$1=3,'Radiation data'!G31,"Wrong input"))) -> 0 | F30: =IF(Input!$B$1=1,'Radiation data'!B31,IF(Input!$B$1=2,'Radiation data'!E31,IF(Input!$B$1=3,'Radiation data'!H31,"Wrong input"))) -> 0 | G30: 0 | H30: =IF(Input!$B$1=1,'Radiation data'!C31,IF(Input!$B$1=2,'Radiation data'!F31,IF(Input!$B$1=3,'Radiation data'!I31,"Wrong input"))) -> 24.5 | I30: -22.91282176 | J30: 1.191452055 | K30: -3.444155588 | L30: =4*('Radiation data'!$L$27-'Radiation data'!$L$28)+K30 -> -11.76415559 | M30: 3.80393074 | N30: -122.9410389 | O30: =ASIN(COS(I30*PI()/180)*COS(N30*PI()/180)*COS('Radiation data'!$L$26*PI()/180)+SIN('Solar radiation and angles'!I30*PI()/180)*SIN('Radiation data'!$L$26*PI()/180))*180/PI() -> -18.25077257 | P30: =IF(N30=0,0,ACOS((COS(I30*PI()/180)*COS(N30*PI()/180)*SIN('Radiation data'!$L$26*PI()/180)-SIN(I30*PI()/180)*COS('Radiation data'!$L$26*PI()/180))/COS(O30*PI()/180))*N30/ABS(N30)*180/PI()) -> -54.48468047 | Q30: =ACOS(COS(O30*PI()/180)*SIN(Input!$J$5*PI()/180)*COS(('Solar radiation and angles'!P30-Input!$B$3)*PI()/180)+SIN('Solar radiation and angles'!O30*PI()/180)*COS(Input!$J$5*PI()/180))*180/PI() -> 121.1306811 | R30: 0 | S30: 0 | T30: =F30*(1+COS(Input!$J$5*PI()/180))/2 -> 0 | U30: ='Radiation data'!$L$29*E30*(1-COS(Input!$J$5*PI()/180))/2 -> 0 | V30: 0
A31: 2 | B31: 5 | C31: 0.2496 | D31: 2.2496 | E31: =IF(Input!$B$1=1,'Radiation data'!A32,IF(Input!$B$1=2,'Radiation data'!D32,IF(Input!$B$1=3,'Radiation data'!G32,"Wrong input"))) -> 0 | F31: =IF(Input!$B$1=1,'Radiation data'!B32,IF(Input!$B$1=2,'Radiation data'!E32,IF(Input!$B$1=3,'Radiation data'!H32,"Wrong input"))) -> 0 | G31: 0 | H31: =IF(Input!$B$1=1,'Radiation data'!C32,IF(Input!$B$1=2,'Radiation data'!F32,IF(Input!$B$1=3,'Radiation data'!I32,"Wrong input"))) -> 24 | I31: -22.90924213 | J31: 1.232482192 | K31: -3.462633629 | L31: =4*('Radiation data'!$L$27-'Radiation data'!$L$28)+K31 -> -11.78263363 | M31: 4.803622773 | N31: -107.9456584 | O31: =ASIN(COS(I31*PI()/180)*COS(N31*PI()/180)*COS('Radiation data'!$L$26*PI()/180)+SIN('Solar radiation and angles'!I31*PI()/180)*SIN('Radiation data'!$L$26*PI()/180))*180/PI() -> -6.473814406 | P31: =IF(N31=0,0,ACOS((COS(I31*PI()/180)*COS(N31*PI()/180)*SIN('Radiation data'!$L$26*PI()/180)-SIN(I31*PI()/180)*COS('Radiation data'!$L$26*PI()/180))/COS(O31*PI()/180))*N31/ABS(N31)*180/PI()) -> -61.87641464 | Q31: =ACOS(COS(O31*PI()/180)*SIN(Input!$J$5*PI()/180)*COS(('Solar radiation and angles'!P31-Input!$B$3)*PI()/180)+SIN('Solar radiation and angles'!O31*PI()/180)*COS(Input!$J$5*PI()/180))*180/PI() -> 107.4652187 | R31: 0 | S31: 0 | T31: =F31*(1+COS(Input!$J$5*PI()/180))/2 -> 0 | U31: ='Radiation data'!$L$29*E31*(1-COS(Input!$J$5*PI()/180))/2 -> 0 | V31: 0
A32: 2 | B32: 6 | C32: 0.2912 | D32: 2.2912 | E32: =IF(Input!$B$1=1,'Radiation data'!A33,IF(Input!$B$1=2,'Radiation data'!D33,IF(Input!$B$1=3,'Radiation data'!G33,"Wrong input"))) -> 8 | F32: =IF(Input!$B$1=1,'Radiation data'!B33,IF(Input!$B$1=2,'Radiation data'!E33,IF(Input!$B$1=3,'Radiation data'!H33,"Wrong input"))) -> 8 | G32: 0 | H32: =IF(Input!$B$1=1,'Radiation data'!C33,IF(Input!$B$1=2,'Radiation data'!F33,IF(Input!$B$1=3,'Radiation data'!I33,"Wrong input"))) -> 24 | I32: -22.90565076 | J32: 1.273512329 | K32: -3.481104116 | L32: =4*('Radiation data'!$L$27-'Radiation data'!$L$28)+K32 -> -11.80110412 | M32: 5.803314931 | N32: -92.95027603 | O32: =ASIN(COS(I32*PI()/180)*COS(N32*PI()/180)*COS('Radiation data'!$L$26*PI()/180)+SIN('Solar radiation and angles'!I32*PI()/180)*SIN('Radiation data'!$L$26*PI()/180))*180/PI() -> 6.058262652 | P32: =IF(N32=0,0,ACOS((COS(I32*PI()/180)*COS(N32*PI()/180)*SIN('Radiation data'!$L$26*PI()/180)-SIN(I32*PI()/180)*COS('Radiation data'!$L$26*PI()/180))/COS(O32*PI()/180))*N32/ABS(N32)*180/PI()) -> -67.68233392 | Q32: =ACOS(COS(O32*PI()/180)*SIN(Input!$J$5*PI()/180)*COS(('Solar radiation and angles'!P32-Input!$B$3)*PI()/180)+SIN('Solar radiation and angles'!O32*PI()/180)*COS(Input!$J$5*PI()/180))*180/PI() -> 93.66587205 | R32: 0 | S32: 0 | T32: =F32*(1+COS(Input!$J$5*PI()/180))/2 -> 7.625231148 | U32: ='Radiation data'!$L$29*E32*(1-COS(Input!$J$5*PI()/180))/2 -> 0.07495377037 | V32: 7.700184919
A33: 2 | B33: 7 | C33: 0.3328 | D33: 2.3328 | E33: =IF(Input!$B$1=1,'Radiation data'!A34,IF(Input!$B$1=2,'Radiation data'!D34,IF(Input!$B$1=3,'Radiation data'!G34,"Wrong input"))) -> 112 | F33: =IF(Input!$B$1=1,'Radiation data'!B34,IF(Input!$B$1=2,'Radiation data'!E34,IF(Input!$B$1=3,'Radiation data'!H34,"Wrong input"))) -> 105 | G33: 7 | H33: =IF(Input!$B$1=1,'Radiation data'!C34,IF(Input!$B$1=2,'Radiation data'!F34,IF(Input!$B$1=3,'Radiation data'!I34,"Wrong input"))) -> 24.8 | I33: -22.90204763 | J33: 1.314542466 | K33: -3.499567021 | L33: =4*('Radiation data'!$L$27-'Radiation data'!$L$28)+K33 -> -11.81956702 | M33: 6.803007216 | N33: -77.95489176 | O33: =ASIN(COS(I33*PI()/180)*COS(N33*PI()/180)*COS('Radiation data'!$L$26*PI()/180)+SIN('Solar radiation and angles'!I33*PI()/180)*SIN('Radiation data'!$L$26*PI()/180))*180/PI() -> 19.0760003 | P33: =IF(N33=0,0,ACOS((COS(I33*PI()/180)*COS(N33*PI()/180)*SIN('Radiation data'!$L$26*PI()/180)-SIN(I33*PI()/180)*COS('Radiation data'!$L$26*PI()/180))/COS(O33*PI()/180))*N33/ABS(N33)*180/PI()) -> -72.40873906 | Q33: =ACOS(COS(O33*PI()/180)*SIN(Input!$J$5*PI()/180)*COS(('Solar radiation and angles'!P33-Input!$B$3)*PI()/180)+SIN('Solar radiation and angles'!O33*PI()/180)*COS(Input!$J$5*PI()/180))*180/PI() -> 79.89284209 | R33: 21.4183831 | S33: 3.758706006 | T33: =F33*(1+COS(Input!$J$5*PI()/180))/2 -> 100.0811588 | U33: ='Radiation data'!$L$29*E33*(1-COS(Input!$J$5*PI()/180))/2 -> 1.049352785 | V33: 104.8892176
A34: 2 | B34: 8 | C34: 0.3744 | D34: 2.3744 | E34: =IF(Input!$B$1=1,'Radiation data'!A35,IF(Input!$B$1=2,'Radiation data'!D35,IF(Input!$B$1=3,'Radiation data'!G35,"Wrong input"))) -> 272 | F34: =IF(Input!$B$1=1,'Radiation data'!B35,IF(Input!$B$1=2,'Radiation data'!E35,IF(Input!$B$1=3,'Radiation data'!H35,"Wrong input"))) -> 235 | G34: 37 | H34: =IF(Input!$B$1=1,'Radiation data'!C35,IF(Input!$B$1=2,'Radiation data'!F35,IF(Input!$B$1=3,'Radiation data'!I35,"Wrong input"))) -> 25.8 | I34: -22.89843277 | J34: 1.355572603 | K34: -3.518022312 | L34: =4*('Radiation data'!$L$27-'Radiation data'!$L$28)+K34 -> -11.83802231 | M34: 7.802699628 | N34: -62.95950558 | O34: =ASIN(COS(I34*PI()/180)*COS(N34*PI()/180)*COS('Radiation data'!$L$26*PI()/180)+SIN('Solar radiation and angles'!I34*PI()/180)*SIN('Radiation data'!$L$26*PI()/180))*180/PI() -> 32.41347887 | P34: =IF(N34=0,0,ACOS((COS(I34*PI()/180)*COS(N34*PI()/180)*SIN('Radiation data'!$L$26*PI()/180)-SIN(I34*PI()/180)*COS('Radiation data'!$L$26*PI()/180))/COS(O34*PI()/180))*N34/ABS(N34)*180/PI()) -> -76.38979593 | Q34: =ACOS(COS(O34*PI()/180)*SIN(Input!$J$5*PI()/180)*COS(('Solar radiation and angles'!P34-Input!$B$3)*PI()/180)+SIN('Solar radiation and angles'!O34*PI()/180)*COS(Input!$J$5*PI()/180))*180/PI() -> 66.30615619 | R34: 69.02657857 | S34: 27.7382885 | T34: =F34*(1+COS(Input!$J$5*PI()/180))/2 -> 223.991165 | U34: ='Radiation data'!$L$29*E34*(1-COS(Input!$J$5*PI()/180))/2 -> 2.548428193 | V34: 254.2778817
A35: 2 | B35: 9 | C35: 0.416 | D35: 2.416 | E35: =IF(Input!$B$1=1,'Radiation data'!A36,IF(Input!$B$1=2,'Radiation data'!D36,IF(Input!$B$1=3,'Radiation data'!G36,"Wrong input"))) -> 391 | F35: =IF(Input!$B$1=1,'Radiation data'!B36,IF(Input!$B$1=2,'Radiation data'!E36,IF(Input!$B$1=3,'Radiation data'!H36,"Wrong input"))) -> 337 | G35: 54 | H35: =IF(Input!$B$1=1,'Radiation data'!C36,IF(Input!$B$1=2,'Radiation data'!F36,IF(Input!$B$1=3,'Radiation data'!I36,"Wrong input"))) -> 26.8 | I35: -22.89480616 | J35: 1.39660274 | K35: -3.536469961 | L35: =4*('Radiation data'!$L$27-'Radiation data'!$L$28)+K35 -> -11.85646996 | M35: 8.802392167 | N35: -47.96411749 | O35: =ASIN(COS(I35*PI()/180)*COS(N35*PI()/180)*COS('Radiation data'!$L$26*PI()/180)+SIN('Solar radiation and angles'!I35*PI()/180)*SIN('Radiation data'!$L$26*PI()/180))*180/PI() -> 45.96366514 | P35: =IF(N35=0,0,ACOS((COS(I35*PI()/180)*COS(N35*PI()/180)*SIN('Radiation data'!$L$26*PI()/180)-SIN(I35*PI()/180)*COS('Radiation data'!$L$26*PI()/180))/COS(O35*PI()/180))*N35/ABS(N35)*180/PI()) -> -79.83994578 | Q35: =ACOS(COS(O35*PI()/180)*SIN(Input!$J$5*PI()/180)*COS(('Solar radiation and angles'!P35-Input!$B$3)*PI()/180)+SIN('Solar radiation and angles'!O35*PI()/180)*COS(Input!$J$5*PI()/180))*180/PI() -> 53.1498935 | R35: 75.11484965 | S35: 45.04815012 | T35: =F35*(1+COS(Input!$J$5*PI()/180))/2 -> 321.2128621 | U35: ='Radiation data'!$L$29*E35*(1-COS(Input!$J$5*PI()/180))/2 -> 3.663365527 | V35: 369.9243778
A36: 2 | B36: 10 | C36: 0.4576 | D36: 2.4576 | E36: =IF(Input!$B$1=1,'Radiation data'!A37,IF(Input!$B$1=2,'Radiation data'!D37,IF(Input!$B$1=3,'Radiation data'!G37,"Wrong input"))) -> 488 | F36: =IF(Input!$B$1=1,'Radiation data'!B37,IF(Input!$B$1=2,'Radiation data'!E37,IF(Input!$B$1=3,'Radiation data'!H37,"Wrong input"))) -> 409 | G36: 79 | H36: =IF(Input!$B$1=1,'Radiation data'!C37,IF(Input!$B$1=2,'Radiation data'!F37,IF(Input!$B$1=3,'Radiation data'!I37,"Wrong input"))) -> 27.6 | I36: -22.89116781 | J36: 1.437632877 | K36: -3.554909938 | L36: =4*('Radiation data'!$L$27-'Radiation data'!$L$28)+K36 -> -11.87490994 | M36: 9.802084834 | N36: -32.96872748 | O36: =ASIN(COS(I36*PI()/180)*COS(N36*PI()/180)*COS('Radiation data'!$L$26*PI()/180)+SIN('Solar radiation and angles'!I36*PI()/180)*SIN('Radiation data'!$L$26*PI()/180))*180/PI() -> 59.65341586 | P36: =IF(N36=0,0,ACOS((COS(I36*PI()/180)*COS(N36*PI()/180)*SIN('Radiation data'!$L$26*PI()/180)-SIN(I36*PI()/180)*COS('Radiation data'!$L$26*PI()/180))/COS(O36*PI()/180))*N36/ABS(N36)*180/PI()) -> -82.87171316 | Q36: =ACOS(COS(O36*PI()/180)*SIN(Input!$J$5*PI()/180)*COS(('Solar radiation and angles'!P36-Input!$B$3)*PI()/180)+SIN('Solar radiation and angles'!O36*PI()/180)*COS(Input!$J$5*PI()/180))*180/PI() -> 40.9191851 | R36: 91.54272025 | S36: 69.17280939 | T36: =F36*(1+COS(Input!$J$5*PI()/180))/2 -> 389.8399424 | U36: ='Radiation data'!$L$29*E36*(1-COS(Input!$J$5*PI()/180))/2 -> 4.572179993 | V36: 463.5849318
A37: 2 | B37: 11 | C37: 0.4992 | D37: 2.4992 | E37: =IF(Input!$B$1=1,'Radiation data'!A38,IF(Input!$B$1=2,'Radiation data'!D38,IF(Input!$B$1=3,'Radiation data'!G38,"Wrong input"))) -> 517 | F37: =IF(Input!$B$1=1,'Radiation data'!B38,IF(Input!$B$1=2,'Radiation data'!E38,IF(Input!$B$1=3,'Radiation data'!H38,"Wrong input"))) -> 480 | G37: 37 | H37: =IF(Input!$B$1=1,'Radiation data'!C38,IF(Input!$B$1=2,'Radiation data'!F38,IF(Input!$B$1=3,'Radiation data'!I38,"Wrong input"))) -> 28.2 | I37: -22.88751772 | J37: 1.478663014 | K37: -3.573342213 | L37: =4*('Radiation data'!$L$27-'Radiation data'!$L$28)+K37 -> -11.89334221 | M37: 10.80177763 | N37: -17.97333555 | O37: =ASIN(COS(I37*PI()/180)*COS(N37*PI()/180)*COS('Radiation data'!$L$26*PI()/180)+SIN('Solar radiation and angles'!I37*PI()/180)*SIN('Radiation data'!$L$26*PI()/180))*180/PI() -> 73.42881519 | P37: =IF(N37=0,0,ACOS((COS(I37*PI()/180)*COS(N37*PI()/180)*SIN('Radiation data'!$L$26*PI()/180)-SIN(I37*PI()/180)*COS('Radiation data'!$L$26*PI()/180))/COS(O37*PI()/180))*N37/ABS(N37)*180/PI()) -> -85.38164535 | Q37: =ACOS(COS(O37*PI()/180)*SIN(Input!$J$5*PI()/180)*COS(('Solar radiation and angles'!P37-Input!$B$3)*PI()/180)+SIN('Solar radiation and angles'!O37*PI()/180)*COS(Input!$J$5*PI()/180))*180/PI() -> 30.79996832 | R37: 38.6033463 | S37: 33.15873729 | T37: =F37*(1+COS(Input!$J$5*PI()/180))/2 -> 457.5138689 | U37: ='Radiation data'!$L$29*E37*(1-COS(Input!$J$5*PI()/180))/2 -> 4.84388741 | V37: 495.5164936
A38: 2 | B38: 12 | C38: 0.5408 | D38: 2.5408 | E38: =IF(Input!$B$1=1,'Radiation data'!A39,IF(Input!$B$1=2,'Radiation data'!D39,IF(Input!$B$1=3,'Radiation data'!G39,"Wrong input"))) -> 564 | F38: =IF(Input!$B$1=1,'Radiation data'!B39,IF(Input!$B$1=2,'Radiation data'!E39,IF(Input!$B$1=3,'Radiation data'!H39,"Wrong input"))) -> 489 | G38: 75 | H38: =IF(Input!$B$1=1,'Radiation data'!C39,IF(Input!$B$1=2,'Radiation data'!F39,IF(Input!$B$1=3,'Radiation data'!I39,"Wrong input"))) -> 28.7 | I38: -22.8838559 | J38: 1.519693151 | K38: -3.591766756 | L38: =4*('Radiation data'!$L$27-'Radiation data'!$L$28)+K38 -> -11.91176676 | M38: 11.80147055 | N38: -2.977941689 | O38: =ASIN(COS(I38*PI()/180)*COS(N38*PI()/180)*COS('Radiation data'!$L$26*PI()/180)+SIN('Solar radiation and angles'!I38*PI()/180)*SIN('Radiation data'!$L$26*PI()/180))*180/PI() -> 87.23420102 | P38: =IF(N38=0,0,ACOS((COS(I38*PI()/180)*COS(N38*PI()/180)*SIN('Radiation data'!$L$26*PI()/180)-SIN(I38*PI()/180)*COS('Radiation data'!$L$26*PI()/180))/COS(O38*PI()/180))*N38/ABS(N38)*180/PI()) -> -82.70202834 | Q38: =ACOS(COS(O38*PI()/180)*SIN(Input!$J$5*PI()/180)*COS(('Solar radiation and angles'!P38-Input!$B$3)*PI()/180)+SIN('Solar radiation and angles'!O38*PI()/180)*COS(Input!$J$5*PI()/180))*180/PI() -> 25.48984743 | R38: 75.08746798 | S38: 67.7785706 | T38: =F38*(1+COS(Input!$J$5*PI()/180))/2 -> 466.0922539 | U38: ='Radiation data'!$L$29*E38*(1-COS(Input!$J$5*PI()/180))/2 -> 5.284240811 | V38: 539.1550653
A39: 2 | B39: 13 | C39: 0.5824 | D39: 2.5824 | E39: =IF(Input!$B$1=1,'Radiation data'!A40,IF(Input!$B$1=2,'Radiation data'!D40,IF(Input!$B$1=3,'Radiation data'!G40,"Wrong input"))) -> 548 | F39: =IF(Input!$B$1=1,'Radiation data'!B40,IF(Input!$B$1=2,'Radiation data'!E40,IF(Input!$B$1=3,'Radiation data'!H40,"Wrong input"))) -> 480 | G39: 68 | H39: =IF(Input!$B$1=1,'Radiation data'!C40,IF(Input!$B$1=2,'Radiation data'!F40,IF(Input!$B$1=3,'Radiation data'!I40,"Wrong input"))) -> 29 | I39: -22.88018233 | J39: 1.560723288 | K39: -3.610183538 | L39: =4*('Radiation data'!$L$27-'Radiation data'!$L$28)+K39 -> -11.93018354 | M39: 12.80116361 | N39: 12.01745412 | O39: =ASIN(COS(I39*PI()/180)*COS(N39*PI()/180)*COS('Radiation data'!$L$26*PI()/180)+SIN('Solar radiation and angles'!I39*PI()/180)*SIN('Radiation data'!$L$26*PI()/180))*180/PI() -> 78.91350749 | P39: =IF(N39=0,0,ACOS((COS(I39*PI()/180)*COS(N39*PI()/180)*SIN('Radiation data'!$L$26*PI()/180)-SIN(I39*PI()/180)*COS('Radiation data'!$L$26*PI()/180))/COS(O39*PI()/180))*N39/ABS(N39)*180/PI()) -> 86.0235504 | Q39: =ACOS(COS(O39*PI()/180)*SIN(Input!$J$5*PI()/180)*COS(('Solar radiation and angles'!P39-Input!$B$3)*PI()/180)+SIN('Solar radiation and angles'!O39*PI()/180)*COS(Input!$J$5*PI()/180))*180/PI() -> 27.90083411 | R39: 69.29314706 | S39: 61.23842973 | T39: =F39*(1+COS(Input!$J$5*PI()/180))/2 -> 457.5138689 | U39: ='Radiation data'!$L$29*E39*(1-COS(Input!$J$5*PI()/180))/2 -> 5.13433327 | V39: 523.8866319
A40: 2 | B40: 14 | C40: 0.624 | D40: 2.624 | E40: =IF(Input!$B$1=1,'Radiation data'!A41,IF(Input!$B$1=2,'Radiation data'!D41,IF(Input!$B$1=3,'Radiation data'!G41,"Wrong input"))) -> 516 | F40: =IF(Input!$B$1=1,'Radiation data'!B41,IF(Input!$B$1=2,'Radiation data'!E41,IF(Input!$B$1=3,'Radiation data'!H41,"Wrong input"))) -> 447 | G40: 69 | H40: =IF(Input!$B$1=1,'Radiation data'!C41,IF(Input!$B$1=2,'Radiation data'!F41,IF(Input!$B$1=3,'Radiation data'!I41,"Wrong input"))) -> 29.2 | I40: -22.87649704 | J40: 1.601753425 | K40: -3.628592528 | L40: =4*('Radiation data'!$L$27-'Radiation data'!$L$28)+K40 -> -11.94859253 | M40: 13.80085679 | N40: 27.01285187 | O40: =ASIN(COS(I40*PI()/180)*COS(N40*PI()/180)*COS('Radiation data'!$L$26*PI()/180)+SIN('Solar radiation and angles'!I40*PI()/180)*SIN('Radiation data'!$L$26*PI()/180))*180/PI() -> 65.11603995 | P40: =IF(N40=0,0,ACOS((COS(I40*PI()/180)*COS(N40*PI()/180)*SIN('Radiation data'!$L$26*PI()/180)-SIN(I40*PI()/180)*COS('Radiation data'!$L$26*PI()/180))/COS(O40*PI()/180))*N40/ABS(N40)*180/PI()) -> 83.9859471 | Q40: =ACOS(COS(O40*PI()/180)*SIN(Input!$J$5*PI()/180)*COS(('Solar radiation and angles'!P40-Input!$B$3)*PI()/180)+SIN('Solar radiation and angles'!O40*PI()/180)*COS(Input!$J$5*PI()/180))*180/PI() -> 36.53087971 | R40: 76.06139982 | S40: 61.11808533 | T40: =F40*(1+COS(Input!$J$5*PI()/180))/2 -> 426.0597904 | U40: ='Radiation data'!$L$29*E40*(1-COS(Input!$J$5*PI()/180))/2 -> 4.834518189 | V40: 492.0123939
A41: 2 | B41: 15 | C41: 0.6656 | D41: 2.6656 | E41: =IF(Input!$B$1=1,'Radiation data'!A42,IF(Input!$B$1=2,'Radiation data'!D42,IF(Input!$B$1=3,'Radiation data'!G42,"Wrong input"))) -> 433 | F41: =IF(Input!$B$1=1,'Radiation data'!B42,IF(Input!$B$1=2,'Radiation data'!E42,IF(Input!$B$1=3,'Radiation data'!H42,"Wrong input"))) -> 393 | G41: 40 | H41: =IF(Input!$B$1=1,'Radiation data'!C42,IF(Input!$B$1=2,'Radiation data'!F42,IF(Input!$B$1=3,'Radiation data'!I42,"Wrong input"))) -> 29.2 | I41: -22.87280001 | J41: 1.642783562 | K41: -3.646993698 | L41: =4*('Radiation data'!$L$27-'Radiation data'!$L$28)+K41 -> -11.9669937 | M41: 14.80055011 | N41: 42.00825158 | O41: =ASIN(COS(I41*PI()/180)*COS(N41*PI()/180)*COS('Radiation data'!$L$26*PI()/180)+SIN('Solar radiation and angles'!I41*PI()/180)*SIN('Radiation data'!$L$26*PI()/180))*180/PI() -> 51.38471076 | P41: =IF(N41=0,0,ACOS((COS(I41*PI()/180)*COS(N41*PI()/180)*SIN('Radiation data'!$L$26*PI()/180)-SIN(I41*PI()/180)*COS('Radiation data'!$L$26*PI()/180))/COS(O41*PI()/180))*N41/ABS(N41)*180/PI()) -> 81.12464524 | Q41: =ACOS(COS(O41*PI()/180)*SIN(Input!$J$5*PI()/180)*COS(('Solar radiation and angles'!P41-Input!$B$3)*PI()/180)+SIN('Solar radiation and angles'!O41*PI()/180)*COS(Input!$J$5*PI()/180))*180/PI() -> 48.12911504 | R41: 51.19318753 | S41: 34.16911033 | T41: =F41*(1+COS(Input!$J$5*PI()/180))/2 -> 374.5894802 | U41: ='Radiation data'!$L$29*E41*(1-COS(Input!$J$5*PI()/180))/2 -> 4.056872821 | V41: 412.8154633
A42: 2 | B42: 16 | C42: 0.7072 | D42: 2.7072 | E42: =IF(Input!$B$1=1,'Radiation data'!A43,IF(Input!$B$1=2,'Radiation data'!D43,IF(Input!$B$1=3,'Radiation data'!G43,"Wrong input"))) -> 342 | F42: =IF(Input!$B$1=1,'Radiation data'!B43,IF(Input!$B$1=2,'Radiation data'!E43,IF(Input!$B$1=3,'Radiation data'!H43,"Wrong input"))) -> 316 | G42: 26 | H42: =IF(Input!$B$1=1,'Radiation data'!C43,IF(Input!$B$1=2,'Radiation data'!F43,IF(Input!$B$1=3,'Radiation data'!I43,"Wrong input"))) -> 29 | I42: -22.86909126 | J42: 1.683813699 | K42: -3.665387018 | L42: =4*('Radiation data'!$L$27-'Radiation data'!$L$28)+K42 -> -11.98538702 | M42: 15.80024355 | N42: 57.00365325 | O42: =ASIN(COS(I42*PI()/180)*COS(N42*PI()/180)*COS('Radiation data'!$L$26*PI()/180)+SIN('Solar radiation and angles'!I42*PI()/180)*SIN('Radiation data'!$L$26*PI()/180))*180/PI() -> 37.76893585 | P42: =IF(N42=0,0,ACOS((COS(I42*PI()/180)*COS(N42*PI()/180)*SIN('Radiation data'!$L$26*PI()/180)-SIN(I42*PI()/180)*COS('Radiation data'!$L$26*PI()/180))/COS(O42*PI()/180))*N42/ABS(N42)*180/PI()) -> 77.84958212 | Q42: =ACOS(COS(O42*PI()/180)*SIN(Input!$J$5*PI()/180)*COS(('Solar radiation and angles'!P42-Input!$B$3)*PI()/180)+SIN('Solar radiation and angles'!O42*PI()/180)*COS(Input!$J$5*PI()/180))*180/PI() -> 61.00203873 | R42: 42.45046526 | S42: 20.57907282 | T42: =F42*(1+COS(Input!$J$5*PI()/180))/2 -> 301.1966304 | U42: ='Radiation data'!$L$29*E42*(1-COS(Input!$J$5*PI()/180))/2 -> 3.204273683 | V42: 324.9799769
A43: 2 | B43: 17 | C43: 0.7488 | D43: 2.7488 | E43: =IF(Input!$B$1=1,'Radiation data'!A44,IF(Input!$B$1=2,'Radiation data'!D44,IF(Input!$B$1=3,'Radiation data'!G44,"Wrong input"))) -> 203 | F43: =IF(Input!$B$1=1,'Radiation data'!B44,IF(Input!$B$1=2,'Radiation data'!E44,IF(Input!$B$1=3,'Radiation data'!H44,"Wrong input"))) -> 194 | G43: 9 | H43: =IF(Input!$B$1=1,'Radiation data'!C44,IF(Input!$B$1=2,'Radiation data'!F44,IF(Input!$B$1=3,'Radiation data'!I44,"Wrong input"))) -> 28.5 | I43: -22.86537078 | J43: 1.724843836 | K43: -3.683772457 | L43: =4*('Radiation data'!$L$27-'Radiation data'!$L$28)+K43 -> -12.00377246 | M43: 16.79993713 | N43: 71.99905689 | O43: =ASIN(COS(I43*PI()/180)*COS(N43*PI()/180)*COS('Radiation data'!$L$26*PI()/180)+SIN('Solar radiation and angles'!I43*PI()/180)*SIN('Radiation data'!$L$26*PI()/180))*180/PI() -> 24.33264413 | P43: =IF(N43=0,0,ACOS((COS(I43*PI()/180)*COS(N43*PI()/180)*SIN('Radiation data'!$L$26*PI()/180)-SIN(I43*PI()/180)*COS('Radiation data'!$L$26*PI()/180))/COS(O43*PI()/180))*N43/ABS(N43)*180/PI()) -> 74.10221735 | Q43: =ACOS(COS(O43*PI()/180)*SIN(Input!$J$5*PI()/180)*COS(('Solar radiation and angles'!P43-Input!$B$3)*PI()/180)+SIN('Solar radiation and angles'!O43*PI()/180)*COS(Input!$J$5*PI()/180))*180/PI() -> 74.45778512 | R43: 21.84288087 | S43: 5.852762696 | T43: =F43*(1+COS(Input!$J$5*PI()/180))/2 -> 184.9118553 | U43: ='Radiation data'!$L$29*E43*(1-COS(Input!$J$5*PI()/180))/2 -> 1.901951923 | V43: 192.66657
A44: 2 | B44: 18 | C44: 0.7904 | D44: 2.7904 | E44: =IF(Input!$B$1=1,'Radiation data'!A45,IF(Input!$B$1=2,'Radiation data'!D45,IF(Input!$B$1=3,'Radiation data'!G45,"Wrong input"))) -> 106 | F44: =IF(Input!$B$1=1,'Radiation data'!B45,IF(Input!$B$1=2,'Radiation data'!E45,IF(Input!$B$1=3,'Radiation data'!H45,"Wrong input"))) -> 93 | G44: 13 | H44: =IF(Input!$B$1=1,'Radiation data'!C45,IF(Input!$B$1=2,'Radiation data'!F45,IF(Input!$B$1=3,'Radiation data'!I45,"Wrong input"))) -> 27.8 | I44: -22.86163857 | J44: 1.765873973 | K44: -3.702149988 | L44: =4*('Radiation data'!$L$27-'Radiation data'!$L$28)+K44 -> -12.02214999 | M44: 17.79963083 | N44: 86.9944625 | O44: =ASIN(COS(I44*PI()/180)*COS(N44*PI()/180)*COS('Radiation data'!$L$26*PI()/180)+SIN('Solar radiation and angles'!I44*PI()/180)*SIN('Radiation data'!$L$26*PI()/180))*180/PI() -> 11.16690215 | P44: =IF(N44=0,0,ACOS((COS(I44*PI()/180)*COS(N44*PI()/180)*SIN('Radiation data'!$L$26*PI()/180)-SIN(I44*PI()/180)*COS('Radiation data'!$L$26*PI()/180))/COS(O44*PI()/180))*N44/ABS(N44)*180/PI()) -> 69.7077769 | Q44: =ACOS(COS(O44*PI()/180)*SIN(Input!$J$5*PI()/180)*COS(('Solar radiation and angles'!P44-Input!$B$3)*PI()/180)+SIN('Solar radiation and angles'!O44*PI()/180)*COS(Input!$J$5*PI()/180))*180/PI() -> 88.18170561 | R44: 67.12530322 | S44: 2.129878969 | T44: =F44*(1+COS(Input!$J$5*PI()/180))/2 -> 88.6433121 | U44: ='Radiation data'!$L$29*E44*(1-COS(Input!$J$5*PI()/180))/2 -> 0.9931374574 | V44: 91.76632852
A45: 2 | B45: 19 | C45: 0.832 | D45: 2.832 | E45: =IF(Input!$B$1=1,'Radiation data'!A46,IF(Input!$B$1=2,'Radiation data'!D46,IF(Input!$B$1=3,'Radiation data'!G46,"Wrong input"))) -> 3 | F45: =IF(Input!$B$1=1,'Radiation data'!B46,IF(Input!$B$1=2,'Radiation data'!E46,IF(Input!$B$1=3,'Radiation data'!H46,"Wrong input"))) -> 3 | G45: 0 | H45: =IF(Input!$B$1=1,'Radiation data'!C46,IF(Input!$B$1=2,'Radiation data'!F46,IF(Input!$B$1=3,'Radiation data'!I46,"Wrong input"))) -> 27 | I45: -22.85789464 | J45: 1.80690411 | K45: -3.720519578 | L45: =4*('Radiation data'!$L$27-'Radiation data'!$L$28)+K45 -> -12.04051958 | M45: 18.79932467 | N45: 101.9898701 | O45: =ASIN(COS(I45*PI()/180)*COS(N45*PI()/180)*COS('Radiation data'!$L$26*PI()/180)+SIN('Solar radiation and angles'!I45*PI()/180)*SIN('Radiation data'!$L$26*PI()/180))*180/PI() -> -1.590113064 | P45: =IF(N45=0,0,ACOS((COS(I45*PI()/180)*COS(N45*PI()/180)*SIN('Radiation data'!$L$26*PI()/180)-SIN(I45*PI()/180)*COS('Radiation data'!$L$26*PI()/180))/COS(O45*PI()/180))*N45/ABS(N45)*180/PI()) -> 64.3845331 | Q45: =ACOS(COS(O45*PI()/180)*SIN(Input!$J$5*PI()/180)*COS(('Solar radiation and angles'!P45-Input!$B$3)*PI()/180)+SIN('Solar radiation and angles'!O45*PI()/180)*COS(Input!$J$5*PI()/180))*180/PI() -> 101.9928202 | R45: 0 | S45: 0 | T45: =F45*(1+COS(Input!$J$5*PI()/180))/2 -> 2.859461681 | U45: ='Radiation data'!$L$29*E45*(1-COS(Input!$J$5*PI()/180))/2 -> 0.02810766389 | V45: 2.887569344
A46: 2 | B46: 20 | C46: 0.8736 | D46: 2.8736 | E46: =IF(Input!$B$1=1,'Radiation data'!A47,IF(Input!$B$1=2,'Radiation data'!D47,IF(Input!$B$1=3,'Radiation data'!G47,"Wrong input"))) -> 0 | F46: =IF(Input!$B$1=1,'Radiation data'!B47,IF(Input!$B$1=2,'Radiation data'!E47,IF(Input!$B$1=3,'Radiation data'!H47,"Wrong input"))) -> 0 | G46: 0 | H46: =IF(Input!$B$1=1,'Radiation data'!C47,IF(Input!$B$1=2,'Radiation data'!F47,IF(Input!$B$1=3,'Radiation data'!I47,"Wrong input"))) -> 26.1 | I46: -22.85413898 | J46: 1.847934247 | K46: -3.738881201 | L46: =4*('Radiation data'!$L$27-'Radiation data'!$L$28)+K46 -> -12.0588812 | M46: 19.79901865 | N46: 116.9852797 | O46: =ASIN(COS(I46*PI()/180)*COS(N46*PI()/180)*COS('Radiation data'!$L$26*PI()/180)+SIN('Solar radiation and angles'!I46*PI()/180)*SIN('Radiation data'!$L$26*PI()/180))*180/PI() -> -13.71769662 | P46: =IF(N46=0,0,ACOS((COS(I46*PI()/180)*COS(N46*PI()/180)*SIN('Radiation data'!$L$26*PI()/180)-SIN(I46*PI()/180)*COS('Radiation data'!$L$26*PI()/180))/COS(O46*PI()/180))*N46/ABS(N46)*180/PI()) -> 57.70169931 | Q46: =ACOS(COS(O46*PI()/180)*SIN(Input!$J$5*PI()/180)*COS(('Solar radiation and angles'!P46-Input!$B$3)*PI()/180)+SIN('Solar radiation and angles'!O46*PI()/180)*COS(Input!$J$5*PI()/180))*180/PI() -> 115.7404719 | R46: 0 | S46: 0 | T46: =F46*(1+COS(Input!$J$5*PI()/180))/2 -> 0 | U46: ='Radiation data'!$L$29*E46*(1-COS(Input!$J$5*PI()/180))/2 -> 0 | V46: 0
A47: 2 | B47: 21 | C47: 0.9152 | D47: 2.9152 | E47: =IF(Input!$B$1=1,'Radiation data'!A48,IF(Input!$B$1=2,'Radiation data'!D48,IF(Input!$B$1=3,'Radiation data'!G48,"Wrong input"))) -> 0 | F47: =IF(Input!$B$1=1,'Radiation data'!B48,IF(Input!$B$1=2,'Radiation data'!E48,IF(Input!$B$1=3,'Radiation data'!H48,"Wrong input"))) -> 0 | G47: 0 | H47: =IF(Input!$B$1=1,'Radiation data'!C48,IF(Input!$B$1=2,'Radiation data'!F48,IF(Input!$B$1=3,'Radiation data'!I48,"Wrong input"))) -> 25.3 | I47: -22.85037161 | J47: 1.888964384 | K47: -3.757234825 | L47: =4*('Radiation data'!$L$27-'Radiation data'!$L$28)+K47 -> -12.07723482 | M47: 20.79871275 | N47: 131.9806913 | O47: =ASIN(COS(I47*PI()/180)*COS(N47*PI()/180)*COS('Radiation data'!$L$26*PI()/180)+SIN('Solar radiation and angles'!I47*PI()/180)*SIN('Radiation data'!$L$26*PI()/180))*180/PI() -> -24.84969441 | P47: =IF(N47=0,0,ACOS((COS(I47*PI()/180)*COS(N47*PI()/180)*SIN('Radiation data'!$L$26*PI()/180)-SIN(I47*PI()/180)*COS('Radiation data'!$L$26*PI()/180))/COS(O47*PI()/180))*N47/ABS(N47)*180/PI()) -> 49.01911914 | Q47: =ACOS(COS(O47*PI()/180)*SIN(Input!$J$5*PI()/180)*COS(('Solar radiation and angles'!P47-Input!$B$3)*PI()/180)+SIN('Solar radiation and angles'!O47*PI()/180)*COS(Input!$J$5*PI()/180))*180/PI() -> 129.2245464 | R47: 0 | S47: 0 | T47: =F47*(1+COS(Input!$J$5*PI()/180))/2 -> 0 | U47: ='Radiation data'!$L$29*E47*(1-COS(Input!$J$5*PI()/180))/2 -> 0 | V47: 0
A48: 2 | B48: 22 | C48: 0.9568 | D48: 2.9568 | E48: =IF(Input!$B$1=1,'Radiation data'!A49,IF(Input!$B$1=2,'Radiation data'!D49,IF(Input!$B$1=3,'Radiation data'!G49,"Wrong input"))) -> 0 | F48: =IF(Input!$B$1=1,'Radiation data'!B49,IF(Input!$B$1=2,'Radiation data'!E49,IF(Input!$B$1=3,'Radiation data'!H49,"Wrong input"))) -> 0 | G48: 0 | H48: =IF(Input!$B$1=1,'Radiation data'!C49,IF(Input!$B$1=2,'Radiation data'!F49,IF(Input!$B$1=3,'Radiation data'!I49,"Wrong input"))) -> 24.4 | I48: -22.84659252 | J48: 1.929994521 | K48: -3.775580421 | L48: =4*('Radiation data'!$L$27-'Radiation data'!$L$28)+K48 -> -12.09558042 | M48: 21.79840699 | N48: 146.9761049 | O48: =ASIN(COS(I48*PI()/180)*COS(N48*PI()/180)*COS('Radiation data'!$L$26*PI()/180)+SIN('Solar radiation and angles'!I48*PI()/180)*SIN('Radiation data'!$L$26*PI()/180))*180/PI() -> -34.37324758 | P48: =IF(N48=0,0,ACOS((COS(I48*PI()/180)*COS(N48*PI()/180)*SIN('Radiation data'!$L$26*PI()/180)-SIN(I48*PI()/180)*COS('Radiation data'!$L$26*PI()/180))/COS(O48*PI()/180))*N48/ABS(N48)*180/PI()) -> 37.48034503 | Q48: =ACOS(COS(O48*PI()/180)*SIN(Input!$J$5*PI()/180)*COS(('Solar radiation and angles'!P48-Input!$B$3)*PI()/180)+SIN('Solar radiation and angles'!O48*PI()/180)*COS(Input!$J$5*PI()/180))*180/PI() -> 142.0450607 | R48: 0 | S48: 0 | T48: =F48*(1+COS(Input!$J$5*PI()/180))/2 -> 0 | U48: ='Radiation data'!$L$29*E48*(1-COS(Input!$J$5*PI()/180))/2 -> 0 | V48: 0
A49: 2 | B49: 23 | C49: 0.9984 | D49: 2.9984 | E49: =IF(Input!$B$1=1,'Radiation data'!A50,IF(Input!$B$1=2,'Radiation data'!D50,IF(Input!$B$1=3,'Radiation data'!G50,"Wrong input"))) -> 0 | F49: =IF(Input!$B$1=1,'Radiation data'!B50,IF(Input!$B$1=2,'Radiation data'!E50,IF(Input!$B$1=3,'Radiation data'!H50,"Wrong input"))) -> 0 | G49: 0 | H49: =IF(Input!$B$1=1,'Radiation data'!C50,IF(Input!$B$1=2,'Radiation data'!F50,IF(Input!$B$1=3,'Radiation data'!I50,"Wrong input"))) -> 23.5 | I49: -22.84280171 | J49: 1.971024658 | K49: -3.793917959 | L49: =4*('Radiation data'!$L$27-'Radiation data'!$L$28)+K49 -> -12.11391796 | M49: 22.79810137 | N49: 161.9715205 | O49: =ASIN(COS(I49*PI()/180)*COS(N49*PI()/180)*COS('Radiation data'!$L$26*PI()/180)+SIN('Solar radiation and angles'!I49*PI()/180)*SIN('Radiation data'!$L$26*PI()/180))*180/PI() -> -41.32534386 | P49: =IF(N49=0,0,ACOS((COS(I49*PI()/180)*COS(N49*PI()/180)*SIN('Radiation data'!$L$26*PI()/180)-SIN(I49*PI()/180)*COS('Radiation data'!$L$26*PI()/180))/COS(O49*PI()/180))*N49/ABS(N49)*180/PI()) -> 22.32115099 | Q49: =ACOS(COS(O49*PI()/180)*SIN(Input!$J$5*PI()/180)*COS(('Solar radiation and angles'!P49-Input!$B$3)*PI()/180)+SIN('Solar radiation and angles'!O49*PI()/180)*COS(Input!$J$5*PI()/180))*180/PI() -> 153.1331681 | R49: 0 | S49: 0 | T49: =F49*(1+COS(Input!$J$5*PI()/180))/2 -> 0 | U49: ='Radiation data'!$L$29*E49*(1-COS(Input!$J$5*PI()/180))/2 -> 0 | V49: 0
A50: 3 | B50: 0.0001 | C50: 0.0416 | D50: 3.0416 | E50: =IF(Input!$B$1=1,'Radiation data'!A51,IF(Input!$B$1=2,'Radiation data'!D51,IF(Input!$B$1=3,'Radiation data'!G51,"Wrong input"))) -> 0 | F50: =IF(Input!$B$1=1,'Radiation data'!B51,IF(Input!$B$1=2,'Radiation data'!E51,IF(Input!$B$1=3,'Radiation data'!H51,"Wrong input"))) -> 0 | G50: 0 | H50: =IF(Input!$B$1=1,'Radiation data'!C51,IF(Input!$B$1=2,'Radiation data'!F51,IF(Input!$B$1=3,'Radiation data'!I51,"Wrong input"))) -> 23.1 | I50: -22.8388527 | J50: 2.013632877 | K50: -3.812952228 | L50: =4*('Radiation data'!$L$27-'Radiation data'!$L$28)+K50 -> -12.13295223 | M50: -0.2021158705 | N50: -183.0317381 | O50: =ASIN(COS(I50*PI()/180)*COS(N50*PI()/180)*COS('Radiation data'!$L$26*PI()/180)+SIN('Solar radiation and angles'!I50*PI()/180)*SIN('Radiation data'!$L$26*PI()/180))*180/PI() -> -44.50537196 | P50: =IF(N50=0,0,ACOS((COS(I50*PI()/180)*COS(N50*PI()/180)*SIN('Radiation data'!$L$26*PI()/180)-SIN(I50*PI()/180)*COS('Radiation data'!$L$26*PI()/180))/COS(O50*PI()/180))*N50/ABS(N50)*180/PI()) -> -3.918936113 | Q50: =ACOS(COS(O50*PI()/180)*SIN(Input!$J$5*PI()/180)*COS(('Solar radiation and angles'!P50-Input!$B$3)*PI()/180)+SIN('Solar radiation and angles'!O50*PI()/180)*COS(Input!$J$5*PI()/180))*180/PI() -> 159.3903492 | R50: 0 | S50: 0 | T50: =F50*(1+COS(Input!$J$5*PI()/180))/2 -> 0 | U50: ='Radiation data'!$L$29*E50*(1-COS(Input!$J$5*PI()/180))/2 -> 0 | V50: 0
A51: 3 | B51: 1 | C51: 0.0832 | D51: 3.0832 | E51: =IF(Input!$B$1=1,'Radiation data'!A52,IF(Input!$B$1=2,'Radiation data'!D52,IF(Input!$B$1=3,'Radiation data'!G52,"Wrong input"))) -> 0 | F51: =IF(Input!$B$1=1,'Radiation data'!B52,IF(Input!$B$1=2,'Radiation data'!E52,IF(Input!$B$1=3,'Radiation data'!H52,"Wrong input"))) -> 0 | G51: 0 | H51: =IF(Input!$B$1=1,'Radiation data'!C52,IF(Input!$B$1=2,'Radiation data'!F52,IF(Input!$B$1=3,'Radiation data'!I52,"Wrong input"))) -> 22.7 | I51: -22.83503802 | J51: 2.054663014 | K51: -3.831273251 | L51: =4*('Radiation data'!$L$27-'Radiation data'!$L$28)+K51 -> -12.15127325 | M51: 0.7974787791 | N51: -168.0378183 | O51: =ASIN(COS(I51*PI()/180)*COS(N51*PI()/180)*COS('Radiation data'!$L$26*PI()/180)+SIN('Solar radiation and angles'!I51*PI()/180)*SIN('Radiation data'!$L$26*PI()/180))*180/PI() -> -43.13602407 | P51: =IF(N51=0,0,ACOS((COS(I51*PI()/180)*COS(N51*PI()/180)*SIN('Radiation data'!$L$26*PI()/180)-SIN(I51*PI()/180)*COS('Radiation data'!$L$26*PI()/180))/COS(O51*PI()/180))*N51/ABS(N51)*180/PI()) -> -15.17508632 | Q51: =ACOS(COS(O51*PI()/180)*SIN(Input!$J$5*PI()/180)*COS(('Solar radiation and angles'!P51-Input!$B$3)*PI()/180)+SIN('Solar radiation and angles'!O51*PI()/180)*COS(Input!$J$5*PI()/180))*180/PI() -> 156.5369246 | R51: 0 | S51: 0 | T51: =F51*(1+COS(Input!$J$5*PI()/180))/2 -> 0 | U51: ='Radiation data'!$L$29*E51*(1-COS(Input!$J$5*PI()/180))/2 -> 0 | V51: 0
A52: 3 | B52: 2 | C52: 0.1248 | D52: 3.1248 | E52: =IF(Input!$B$1=1,'Radiation data'!A53,IF(Input!$B$1=2,'Radiation data'!D53,IF(Input!$B$1=3,'Radiation data'!G53,"Wrong input"))) -> 0 | F52: =IF(Input!$B$1=1,'Radiation data'!B53,IF(Input!$B$1=2,'Radiation data'!E53,IF(Input!$B$1=3,'Radiation data'!H53,"Wrong input"))) -> 0 | G52: 0 | H52: =IF(Input!$B$1=1,'Radiation data'!C53,IF(Input!$B$1=2,'Radiation data'!F53,IF(Input!$B$1=3,'Radiation data'!I53,"Wrong input"))) -> 22.2 | I52: -22.83121162 | J52: 2.095693151 | K52: -3.849586127 | L52: =4*('Radiation data'!$L$27-'Radiation data'!$L$28)+K52 -> -12.16958613 | M52: 1.797173565 | N52: -153.0423965 | O52: =ASIN(COS(I52*PI()/180)*COS(N52*PI()/180)*COS('Radiation data'!$L$26*PI()/180)+SIN('Solar radiation and angles'!I52*PI()/180)*SIN('Radiation data'!$L$26*PI()/180))*180/PI() -> -37.5736583 | P52: =IF(N52=0,0,ACOS((COS(I52*PI()/180)*COS(N52*PI()/180)*SIN('Radiation data'!$L$26*PI()/180)-SIN(I52*PI()/180)*COS('Radiation data'!$L$26*PI()/180))/COS(O52*PI()/180))*N52/ABS(N52)*180/PI()) -> -31.81395532 | Q52: =ACOS(COS(O52*PI()/180)*SIN(Input!$J$5*PI()/180)*COS(('Solar radiation and angles'!P52-Input!$B$3)*PI()/180)+SIN('Solar radiation and angles'!O52*PI()/180)*COS(Input!$J$5*PI()/180))*180/PI() -> 146.8541652 | R52: 0 | S52: 0 | T52: =F52*(1+COS(Input!$J$5*PI()/180))/2 -> 0 | U52: ='Radiation data'!$L$29*E52*(1-COS(Input!$J$5*PI()/180))/2 -> 0 | V52: 0
A53: 3 | B53: 3 | C53: 0.1664 | D53: 3.1664 | E53: =IF(Input!$B$1=1,'Radiation data'!A54,IF(Input!$B$1=2,'Radiation data'!D54,IF(Input!$B$1=3,'Radiation data'!G54,"Wrong input"))) -> 0 | F53: =IF(Input!$B$1=1,'Radiation data'!B54,IF(Input!$B$1=2,'Radiation data'!E54,IF(Input!$B$1=3,'Radiation data'!H54,"Wrong input"))) -> 0 | G53: 0 | H53: =IF(Input!$B$1=1,'Radiation data'!C54,IF(Input!$B$1=2,'Radiation data'!F54,IF(Input!$B$1=3,'Radiation data'!I54,"Wrong input"))) -> 22 | I53: -22.82737352 | J53: 2.136723288 | K53: -3.867890827 | L53: =4*('Radiation data'!$L$27-'Radiation data'!$L$28)+K53 -> -12.18789083 | M53: 2.796868486 | N53: -138.0469727 | O53: =ASIN(COS(I53*PI()/180)*COS(N53*PI()/180)*COS('Radiation data'!$L$26*PI()/180)+SIN('Solar radiation and angles'!I53*PI()/180)*SIN('Radiation data'!$L$26*PI()/180))*180/PI() -> -28.95709181 | P53: =IF(N53=0,0,ACOS((COS(I53*PI()/180)*COS(N53*PI()/180)*SIN('Radiation data'!$L$26*PI()/180)-SIN(I53*PI()/180)*COS('Radiation data'!$L$26*PI()/180))/COS(O53*PI()/180))*N53/ABS(N53)*180/PI()) -> -44.7648073 | Q53: =ACOS(COS(O53*PI()/180)*SIN(Input!$J$5*PI()/180)*COS(('Solar radiation and angles'!P53-Input!$B$3)*PI()/180)+SIN('Solar radiation and angles'!O53*PI()/180)*COS(Input!$J$5*PI()/180))*180/PI() -> 134.5346597 | R53: 0 | S53: 0 | T53: =F53*(1+COS(Input!$J$5*PI()/180))/2 -> 0 | U53: ='Radiation data'!$L$29*E53*(1-COS(Input!$J$5*PI()/180))/2 -> 0 | V53: 0
A54: 3 | B54: 4 | C54: 0.208 | D54: 3.208 | E54: =IF(Input!$B$1=1,'Radiation data'!A55,IF(Input!$B$1=2,'Radiation data'!D55,IF(Input!$B$1=3,'Radiation data'!G55,"Wrong input"))) -> 0 | F54: =IF(Input!$B$1=1,'Radiation data'!B55,IF(Input!$B$1=2,'Radiation data'!E55,IF(Input!$B$1=3,'Radiation data'!H55,"Wrong input"))) -> 0 | G54: 0 | H54: =IF(Input!$B$1=1,'Radiation data'!C55,IF(Input!$B$1=2,'Radiation data'!F55,IF(Input!$B$1=3,'Radiation data'!I55,"Wrong input"))) -> 21.8 | I54: -22.82352371 | J54: 2.177753425 | K54: -3.88618732 | L54: =4*('Radiation data'!$L$27-'Radiation data'!$L$28)+K54 -> -12.20618732 | M54: 3.796563545 | N54: -123.0515468 | O54: =ASIN(COS(I54*PI()/180)*COS(N54*PI()/180)*COS('Radiation data'!$L$26*PI()/180)+SIN('Solar radiation and angles'!I54*PI()/180)*SIN('Radiation data'!$L$26*PI()/180))*180/PI() -> -18.3854815 | P54: =IF(N54=0,0,ACOS((COS(I54*PI()/180)*COS(N54*PI()/180)*SIN('Radiation data'!$L$26*PI()/180)-SIN(I54*PI()/180)*COS('Radiation data'!$L$26*PI()/180))/COS(O54*PI()/180))*N54/ABS(N54)*180/PI()) -> -54.49940503 | Q54: =ACOS(COS(O54*PI()/180)*SIN(Input!$J$5*PI()/180)*COS(('Solar radiation and angles'!P54-Input!$B$3)*PI()/180)+SIN('Solar radiation and angles'!O54*PI()/180)*COS(Input!$J$5*PI()/180))*180/PI() -> 121.2483954 | R54: 0 | S54: 0 | T54: =F54*(1+COS(Input!$J$5*PI()/180))/2 -> 0 | U54: ='Radiation data'!$L$29*E54*(1-COS(Input!$J$5*PI()/180))/2 -> 0 | V54: 0
A55: 3 | B55: 5 | C55: 0.2496 | D55: 3.2496 | E55: =IF(Input!$B$1=1,'Radiation data'!A56,IF(Input!$B$1=2,'Radiation data'!D56,IF(Input!$B$1=3,'Radiation data'!G56,"Wrong input"))) -> 0 | F55: =IF(Input!$B$1=1,'Radiation data'!B56,IF(Input!$B$1=2,'Radiation data'!E56,IF(Input!$B$1=3,'Radiation data'!H56,"Wrong input"))) -> 0 | G55: 0 | H55: =IF(Input!$B$1=1,'Radiation data'!C56,IF(Input!$B$1=2,'Radiation data'!F56,IF(Input!$B$1=3,'Radiation data'!I56,"Wrong input"))) -> 21.6 | I55: -22.81966219 | J55: 2.218783562 | K55: -3.904475579 | L55: =4*('Radiation data'!$L$27-'Radiation data'!$L$28)+K55 -> -12.22447558 | M55: 4.79625874 | N55: -108.0561189 | O55: =ASIN(COS(I55*PI()/180)*COS(N55*PI()/180)*COS('Radiation data'!$L$26*PI()/180)+SIN('Solar radiation and angles'!I55*PI()/180)*SIN('Radiation data'!$L$26*PI()/180))*180/PI() -> -6.605664563 | P55: =IF(N55=0,0,ACOS((COS(I55*PI()/180)*COS(N55*PI()/180)*SIN('Radiation data'!$L$26*PI()/180)-SIN(I55*PI()/180)*COS('Radiation data'!$L$26*PI()/180))/COS(O55*PI()/180))*N55/ABS(N55)*180/PI()) -> -61.90823686 | Q55: =ACOS(COS(O55*PI()/180)*SIN(Input!$J$5*PI()/180)*COS(('Solar radiation and angles'!P55-Input!$B$3)*PI()/180)+SIN('Solar radiation and angles'!O55*PI()/180)*COS(Input!$J$5*PI()/180))*180/PI() -> 107.5742188 | R55: 0 | S55: 0 | T55: =F55*(1+COS(Input!$J$5*PI()/180))/2 -> 0 | U55: ='Radiation data'!$L$29*E55*(1-COS(Input!$J$5*PI()/180))/2 -> 0 | V55: 0
A56: 3 | B56: 6 | C56: 0.2912 | D56: 3.2912 | E56: =IF(Input!$B$1=1,'Radiation data'!A57,IF(Input!$B$1=2,'Radiation data'!D57,IF(Input!$B$1=3,'Radiation data'!G57,"Wrong input"))) -> 23 | F56: =IF(Input!$B$1=1,'Radiation data'!B57,IF(Input!$B$1=2,'Radiation data'!E57,IF(Input!$B$1=3,'Radiation data'!H57,"Wrong input"))) -> 23 | G56: 0 | H56: =IF(Input!$B$1=1,'Radiation data'!C57,IF(Input!$B$1=2,'Radiation data'!F57,IF(Input!$B$1=3,'Radiation data'!I57,"Wrong input"))) -> 22 | I56: -22.81578898 | J56: 2.259813699 | K56: -3.922755573 | L56: =4*('Radiation data'!$L$27-'Radiation data'!$L$28)+K56 -> -12.24275557 | M56: 5.795954074 | N56: -93.06068889 | O56: =ASIN(COS(I56*PI()/180)*COS(N56*PI()/180)*COS('Radiation data'!$L$26*PI()/180)+SIN('Solar radiation and angles'!I56*PI()/180)*SIN('Radiation data'!$L$26*PI()/180))*180/PI() -> 5.93027942 | P56: =IF(N56=0,0,ACOS((COS(I56*PI()/180)*COS(N56*PI()/180)*SIN('Radiation data'!$L$26*PI()/180)-SIN(I56*PI()/180)*COS('Radiation data'!$L$26*PI()/180))/COS(O56*PI()/180))*N56/ABS(N56)*180/PI()) -> -67.72782073 | Q56: =ACOS(COS(O56*PI()/180)*SIN(Input!$J$5*PI()/180)*COS(('Solar radiation and angles'!P56-Input!$B$3)*PI()/180)+SIN('Solar radiation and angles'!O56*PI()/180)*COS(Input!$J$5*PI()/180))*180/PI() -> 93.76589394 | R56: 0 | S56: 0 | T56: =F56*(1+COS(Input!$J$5*PI()/180))/2 -> 21.92253955 | U56: ='Radiation data'!$L$29*E56*(1-COS(Input!$J$5*PI()/180))/2 -> 0.2154920898 | V56: 22.13803164
A57: 3 | B57: 7 | C57: 0.3328 | D57: 3.3328 | E57: =IF(Input!$B$1=1,'Radiation data'!A58,IF(Input!$B$1=2,'Radiation data'!D58,IF(Input!$B$1=3,'Radiation data'!G58,"Wrong input"))) -> 318 | F57: =IF(Input!$B$1=1,'Radiation data'!B58,IF(Input!$B$1=2,'Radiation data'!E58,IF(Input!$B$1=3,'Radiation data'!H58,"Wrong input"))) -> 179 | G57: 139 | H57: =IF(Input!$B$1=1,'Radiation data'!C58,IF(Input!$B$1=2,'Radiation data'!F58,IF(Input!$B$1=3,'Radiation data'!I58,"Wrong input"))) -> 24.8 | I57: -22.81190406 | J57: 2.300843836 | K57: -3.941027272 | L57: =4*('Radiation data'!$L$27-'Radiation data'!$L$28)+K57 -> -12.26102727 | M57: 6.795649545 | N57: -78.06525682 | O57: =ASIN(COS(I57*PI()/180)*COS(N57*PI()/180)*COS('Radiation data'!$L$26*PI()/180)+SIN('Solar radiation and angles'!I57*PI()/180)*SIN('Radiation data'!$L$26*PI()/180))*180/PI() -> 18.95222855 | P57: =IF(N57=0,0,ACOS((COS(I57*PI()/180)*COS(N57*PI()/180)*SIN('Radiation data'!$L$26*PI()/180)-SIN(I57*PI()/180)*COS('Radiation data'!$L$26*PI()/180))/COS(O57*PI()/180))*N57/ABS(N57)*180/PI()) -> -72.46809426 | Q57: =ACOS(COS(O57*PI()/180)*SIN(Input!$J$5*PI()/180)*COS(('Solar radiation and angles'!P57-Input!$B$3)*PI()/180)+SIN('Solar radiation and angles'!O57*PI()/180)*COS(Input!$J$5*PI()/180))*180/PI() -> 79.98281228 | R57: 427.9824176 | S57: 74.44480019 | T57: =F57*(1+COS(Input!$J$5*PI()/180))/2 -> 170.6145469 | U57: ='Radiation data'!$L$29*E57*(1-COS(Input!$J$5*PI()/180))/2 -> 2.979412372 | V57: 248.0387595
A58: 3 | B58: 8 | C58: 0.3744 | D58: 3.3744 | E58: =IF(Input!$B$1=1,'Radiation data'!A59,IF(Input!$B$1=2,'Radiation data'!D59,IF(Input!$B$1=3,'Radiation data'!G59,"Wrong input"))) -> 616 | F58: =IF(Input!$B$1=1,'Radiation data'!B59,IF(Input!$B$1=2,'Radiation data'!E59,IF(Input!$B$1=3,'Radiation data'!H59,"Wrong input"))) -> 146 | G58: 470 | H58: =IF(Input!$B$1=1,'Radiation data'!C59,IF(Input!$B$1=2,'Radiation data'!F59,IF(Input!$B$1=3,'Radiation data'!I59,"Wrong input"))) -> 27.5 | I58: -22.80800745 | J58: 2.341873973 | K58: -3.959290649 | L58: =4*('Radiation data'!$L$27-'Radiation data'!$L$28)+K58 -> -12.27929065 | M58: 7.795345156 | N58: -63.06982266 | O58: =ASIN(COS(I58*PI()/180)*COS(N58*PI()/180)*COS('Radiation data'!$L$26*PI()/180)+SIN('Solar radiation and angles'!I58*PI()/180)*SIN('Radiation data'!$L$26*PI()/180))*180/PI() -> 32.29402524 | P58: =IF(N58=0,0,ACOS((COS(I58*PI()/180)*COS(N58*PI()/180)*SIN('Radiation data'!$L$26*PI()/180)-SIN(I58*PI()/180)*COS('Radiation data'!$L$26*PI()/180))/COS(O58*PI()/180))*N58/ABS(N58)*180/PI()) -> -76.46689381 | Q58: =ACOS(COS(O58*PI()/180)*SIN(Input!$J$5*PI()/180)*COS(('Solar radiation and angles'!P58-Input!$B$3)*PI()/180)+SIN('Solar radiation and angles'!O58*PI()/180)*COS(Input!$J$5*PI()/180))*180/PI() -> 66.38371113 | R58: 879.714563 | S58: 352.4220405 | T58: =F58*(1+COS(Input!$J$5*PI()/180))/2 -> 139.1604685 | U58: ='Radiation data'!$L$29*E58*(1-COS(Input!$J$5*PI()/180))/2 -> 5.771440319 | V58: 497.3539492
A59: 3 | B59: 9 | C59: 0.416 | D59: 3.416 | E59: =IF(Input!$B$1=1,'Radiation data'!A60,IF(Input!$B$1=2,'Radiation data'!D60,IF(Input!$B$1=3,'Radiation data'!G60,"Wrong input"))) -> 916 | F59: =IF(Input!$B$1=1,'Radiation data'!B60,IF(Input!$B$1=2,'Radiation data'!E60,IF(Input!$B$1=3,'Radiation data'!H60,"Wrong input"))) -> 254 | G59: 662 | H59: =IF(Input!$B$1=1,'Radiation data'!C60,IF(Input!$B$1=2,'Radiation data'!F60,IF(Input!$B$1=3,'Radiation data'!I60,"Wrong input"))) -> 30.3 | I59: -22.80409914 | J59: 2.38290411 | K59: -3.977545673 | L59: =4*('Radiation data'!$L$27-'Radiation data'!$L$28)+K59 -> -12.29754567 | M59: 8.795040905 | N59: -48.07438642 | O59: =ASIN(COS(I59*PI()/180)*COS(N59*PI()/180)*COS('Radiation data'!$L$26*PI()/180)+SIN('Solar radiation and angles'!I59*PI()/180)*SIN('Radiation data'!$L$26*PI()/180))*180/PI() -> 45.84859487 | P59: =IF(N59=0,0,ACOS((COS(I59*PI()/180)*COS(N59*PI()/180)*SIN('Radiation data'!$L$26*PI()/180)-SIN(I59*PI()/180)*COS('Radiation data'!$L$26*PI()/180))/COS(O59*PI()/180))*N59/ABS(N59)*180/PI()) -> -79.94469203 | Q59: =ACOS(COS(O59*PI()/180)*SIN(Input!$J$5*PI()/180)*COS(('Solar radiation and angles'!P59-Input!$B$3)*PI()/180)+SIN('Solar radiation and angles'!O59*PI()/180)*COS(Input!$J$5*PI()/180))*180/PI() -> 53.21031987 | R59: 922.64597 | S59: 552.5536322 | T59: =F59*(1+COS(Input!$J$5*PI()/180))/2 -> 242.101089 | U59: ='Radiation data'!$L$29*E59*(1-COS(Input!$J$5*PI()/180))/2 -> 8.582206707 | V59: 803.2369278
A60: 3 | B60: 10 | C60: 0.4576 | D60: 3.4576 | E60: =IF(Input!$B$1=1,'Radiation data'!A61,IF(Input!$B$1=2,'Radiation data'!D61,IF(Input!$B$1=3,'Radiation data'!G61,"Wrong input"))) -> 1116 | F60: =IF(Input!$B$1=1,'Radiation data'!B61,IF(Input!$B$1=2,'Radiation data'!E61,IF(Input!$B$1=3,'Radiation data'!H61,"Wrong input"))) -> 427 | G60: 689 | H60: =IF(Input!$B$1=1,'Radiation data'!C61,IF(Input!$B$1=2,'Radiation data'!F61,IF(Input!$B$1=3,'Radiation data'!I61,"Wrong input"))) -> 32.7 | I60: -22.80017913 | J60: 2.423934247 | K60: -3.995792314 | L60: =4*('Radiation data'!$L$27-'Radiation data'!$L$28)+K60 -> -12.31579231 | M60: 9.794736795 | N60: -33.07894808 | O60: =ASIN(COS(I60*PI()/180)*COS(N60*PI()/180)*COS('Radiation data'!$L$26*PI()/180)+SIN('Solar radiation and angles'!I60*PI()/180)*SIN('Radiation data'!$L$26*PI()/180))*180/PI() -> 59.54288084 | P60: =IF(N60=0,0,ACOS((COS(I60*PI()/180)*COS(N60*PI()/180)*SIN('Radiation data'!$L$26*PI()/180)-SIN(I60*PI()/180)*COS('Radiation data'!$L$26*PI()/180))/COS(O60*PI()/180))*N60/ABS(N60)*180/PI()) -> -83.02952831 | Q60: =ACOS(COS(O60*PI()/180)*SIN(Input!$J$5*PI()/180)*COS(('Solar radiation and angles'!P60-Input!$B$3)*PI()/180)+SIN('Solar radiation and angles'!O60*PI()/180)*COS(Input!$J$5*PI()/180))*180/PI() -> 40.95298214 | R60: 799.2958153 | S60: 603.6663252 | T60: =F60*(1+COS(Input!$J$5*PI()/180))/2 -> 406.9967125 | U60: ='Radiation data'!$L$29*E60*(1-COS(Input!$J$5*PI()/180))/2 -> 10.45605097 | V60: 1021.119089
A61: 3 | B61: 11 | C61: 0.4992 | D61: 3.4992 | E61: =IF(Input!$B$1=1,'Radiation data'!A62,IF(Input!$B$1=2,'Radiation data'!D62,IF(Input!$B$1=3,'Radiation data'!G62,"Wrong input"))) -> 644 | F61: =IF(Input!$B$1=1,'Radiation data'!B62,IF(Input!$B$1=2,'Radiation data'!E62,IF(Input!$B$1=3,'Radiation data'!H62,"Wrong input"))) -> 443 | G61: 201 | H61: =IF(Input!$B$1=1,'Radiation data'!C62,IF(Input!$B$1=2,'Radiation data'!F62,IF(Input!$B$1=3,'Radiation data'!I62,"Wrong input"))) -> 32.8 | I61: -22.79624744 | J61: 2.464964384 | K61: -4.014030544 | L61: =4*('Radiation data'!$L$27-'Radiation data'!$L$28)+K61 -> -12.33403054 | M61: 10.79443282 | N61: -18.08350764 | O61: =ASIN(COS(I61*PI()/180)*COS(N61*PI()/180)*COS('Radiation data'!$L$26*PI()/180)+SIN('Solar radiation and angles'!I61*PI()/180)*SIN('Radiation data'!$L$26*PI()/180))*180/PI() -> 73.32333753 | P61: =IF(N61=0,0,ACOS((COS(I61*PI()/180)*COS(N61*PI()/180)*SIN('Radiation data'!$L$26*PI()/180)-SIN(I61*PI()/180)*COS('Radiation data'!$L$26*PI()/180))/COS(O61*PI()/180))*N61/ABS(N61)*180/PI()) -> -85.68463276 | Q61: =ACOS(COS(O61*PI()/180)*SIN(Input!$J$5*PI()/180)*COS(('Solar radiation and angles'!P61-Input!$B$3)*PI()/180)+SIN('Solar radiation and angles'!O61*PI()/180)*COS(Input!$J$5*PI()/180))*180/PI() -> 30.78854857 | R61: 209.8253678 | S61: 180.2530461 | T61: =F61*(1+COS(Input!$J$5*PI()/180))/2 -> 422.2471748 | U61: ='Radiation data'!$L$29*E61*(1-COS(Input!$J$5*PI()/180))/2 -> 6.033778515 | V61: 608.5339995
A62: 3 | B62: 12 | C62: 0.5408 | D62: 3.5408 | E62: =IF(Input!$B$1=1,'Radiation data'!A63,IF(Input!$B$1=2,'Radiation data'!D63,IF(Input!$B$1=3,'Radiation data'!G63,"Wrong input"))) -> 677 | F62: =IF(Input!$B$1=1,'Radiation data'!B63,IF(Input!$B$1=2,'Radiation data'!E63,IF(Input!$B$1=3,'Radiation data'!H63,"Wrong input"))) -> 503 | G62: 174 | H62: =IF(Input!$B$1=1,'Radiation data'!C63,IF(Input!$B$1=2,'Radiation data'!F63,IF(Input!$B$1=3,'Radiation data'!I63,"Wrong input"))) -> 33 | I62: -22.79230405 | J62: 2.505994521 | K62: -4.032260334 | L62: =4*('Radiation data'!$L$27-'Radiation data'!$L$28)+K62 -> -12.35226033 | M62: 11.79412899 | N62: -3.088065083 | O62: =ASIN(COS(I62*PI()/180)*COS(N62*PI()/180)*COS('Radiation data'!$L$26*PI()/180)+SIN('Solar radiation and angles'!I62*PI()/180)*SIN('Radiation data'!$L$26*PI()/180))*180/PI() -> 87.14124659 | P62: =IF(N62=0,0,ACOS((COS(I62*PI()/180)*COS(N62*PI()/180)*SIN('Radiation data'!$L$26*PI()/180)-SIN(I62*PI()/180)*COS('Radiation data'!$L$26*PI()/180))/COS(O62*PI()/180))*N62/ABS(N62)*180/PI()) -> -84.74480306 | Q62: =ACOS(COS(O62*PI()/180)*SIN(Input!$J$5*PI()/180)*COS(('Solar radiation and angles'!P62-Input!$B$3)*PI()/180)+SIN('Solar radiation and angles'!O62*PI()/180)*COS(Input!$J$5*PI()/180))*180/PI() -> 25.41147591 | R62: 174.2168094 | S62: 157.361222 | T62: =F62*(1+COS(Input!$J$5*PI()/180))/2 -> 479.4364084 | U62: ='Radiation data'!$L$29*E62*(1-COS(Input!$J$5*PI()/180))/2 -> 6.342962818 | V62: 643.1405932
A63: 3 | B63: 13 | C63: 0.5824 | D63: 3.5824 | E63: =IF(Input!$B$1=1,'Radiation data'!A64,IF(Input!$B$1=2,'Radiation data'!D64,IF(Input!$B$1=3,'Radiation data'!G64,"Wrong input"))) -> 656 | F63: =IF(Input!$B$1=1,'Radiation data'!B64,IF(Input!$B$1=2,'Radiation data'!E64,IF(Input!$B$1=3,'Radiation data'!H64,"Wrong input"))) -> 540 | G63: 116 | H63: =IF(Input!$B$1=1,'Radiation data'!C64,IF(Input!$B$1=2,'Radiation data'!F64,IF(Input!$B$1=3,'Radiation data'!I64,"Wrong input"))) -> 33 | I63: -22.78834897 | J63: 2.547024658 | K63: -4.050481653 | L63: =4*('Radiation data'!$L$27-'Radiation data'!$L$28)+K63 -> -12.37048165 | M63: 12.79382531 | N63: 11.90737959 | O63: =ASIN(COS(I63*PI()/180)*COS(N63*PI()/180)*COS('Radiation data'!$L$26*PI()/180)+SIN('Solar radiation and angles'!I63*PI()/180)*SIN('Radiation data'!$L$26*PI()/180))*180/PI() -> 79.01350529 | P63: =IF(N63=0,0,ACOS((COS(I63*PI()/180)*COS(N63*PI()/180)*SIN('Radiation data'!$L$26*PI()/180)-SIN(I63*PI()/180)*COS('Radiation data'!$L$26*PI()/180))/COS(O63*PI()/180))*N63/ABS(N63)*180/PI()) -> 86.51150779 | Q63: =ACOS(COS(O63*PI()/180)*SIN(Input!$J$5*PI()/180)*COS(('Solar radiation and angles'!P63-Input!$B$3)*PI()/180)+SIN('Solar radiation and angles'!O63*PI()/180)*COS(Input!$J$5*PI()/180))*180/PI() -> 27.77353585 | R63: 118.1657258 | S63: 104.5525968 | T63: =F63*(1+COS(Input!$J$5*PI()/180))/2 -> 514.7031025 | U63: ='Radiation data'!$L$29*E63*(1-COS(Input!$J$5*PI()/180))/2 -> 6.14620917 | V63: 625.4019085
A64: 3 | B64: 14 | C64: 0.624 | D64: 3.624 | E64: =IF(Input!$B$1=1,'Radiation data'!A65,IF(Input!$B$1=2,'Radiation data'!D65,IF(Input!$B$1=3,'Radiation data'!G65,"Wrong input"))) -> 587 | F64: =IF(Input!$B$1=1,'Radiation data'!B65,IF(Input!$B$1=2,'Radiation data'!E65,IF(Input!$B$1=3,'Radiation data'!H65,"Wrong input"))) -> 492 | G64: 95 | H64: =IF(Input!$B$1=1,'Radiation data'!C65,IF(Input!$B$1=2,'Radiation data'!F65,IF(Input!$B$1=3,'Radiation data'!I65,"Wrong input"))) -> 32.9 | I64: -22.78438221 | J64: 2.588054795 | K64: -4.068694474 | L64: =4*('Radiation data'!$L$27-'Radiation data'!$L$28)+K64 -> -12.38869447 | M64: 13.79352176 | N64: 26.90282638 | O64: =ASIN(COS(I64*PI()/180)*COS(N64*PI()/180)*COS('Radiation data'!$L$26*PI()/180)+SIN('Solar radiation and angles'!I64*PI()/180)*SIN('Radiation data'!$L$26*PI()/180))*180/PI() -> 65.2096054 | P64: =IF(N64=0,0,ACOS((COS(I64*PI()/180)*COS(N64*PI()/180)*SIN('Radiation data'!$L$26*PI()/180)-SIN(I64*PI()/180)*COS('Radiation data'!$L$26*PI()/180))/COS(O64*PI()/180))*N64/ABS(N64)*180/PI()) -> 84.22418355 | Q64: =ACOS(COS(O64*PI()/180)*SIN(Input!$J$5*PI()/180)*COS(('Solar radiation and angles'!P64-Input!$B$3)*PI()/180)+SIN('Solar radiation and angles'!O64*PI()/180)*COS(Input!$J$5*PI()/180))*180/PI() -> 36.39395791 | R64: 104.6430928 | S64: 84.23312425 | T64: =F64*(1+COS(Input!$J$5*PI()/180))/2 -> 468.9517156 | U64: ='Radiation data'!$L$29*E64*(1-COS(Input!$J$5*PI()/180))/2 -> 5.499732901 | V64: 558.6845728
A65: 3 | B65: 15 | C65: 0.6656 | D65: 3.6656 | E65: =IF(Input!$B$1=1,'Radiation data'!A66,IF(Input!$B$1=2,'Radiation data'!D66,IF(Input!$B$1=3,'Radiation data'!G66,"Wrong input"))) -> 472 | F65: =IF(Input!$B$1=1,'Radiation data'!B66,IF(Input!$B$1=2,'Radiation data'!E66,IF(Input!$B$1=3,'Radiation data'!H66,"Wrong input"))) -> 396 | G65: 76 | H65: =IF(Input!$B$1=1,'Radiation data'!C66,IF(Input!$B$1=2,'Radiation data'!F66,IF(Input!$B$1=3,'Radiation data'!I66,"Wrong input"))) -> 32.4 | I65: -22.78040376 | J65: 2.629084932 | K65: -4.086898766 | L65: =4*('Radiation data'!$L$27-'Radiation data'!$L$28)+K65 -> -12.40689877 | M65: 14.79321835 | N65: 41.89827531 | O65: =ASIN(COS(I65*PI()/180)*COS(N65*PI()/180)*COS('Radiation data'!$L$26*PI()/180)+SIN('Solar radiation and angles'!I65*PI()/180)*SIN('Radiation data'!$L$26*PI()/180))*180/PI() -> 51.47216024 | P65: =IF(N65=0,0,ACOS((COS(I65*PI()/180)*COS(N65*PI()/180)*SIN('Radiation data'!$L$26*PI()/180)-SIN(I65*PI()/180)*COS('Radiation data'!$L$26*PI()/180))/COS(O65*PI()/180))*N65/ABS(N65)*180/PI()) -> 81.29411134 | Q65: =ACOS(COS(O65*PI()/180)*SIN(Input!$J$5*PI()/180)*COS(('Solar radiation and angles'!P65-Input!$B$3)*PI()/180)+SIN('Solar radiation and angles'!O65*PI()/180)*COS(Input!$J$5*PI()/180))*180/PI() -> 47.99742646 | R65: 97.1487373 | S65: 65.00843622 | T65: =F65*(1+COS(Input!$J$5*PI()/180))/2 -> 377.4489418 | U65: ='Radiation data'!$L$29*E65*(1-COS(Input!$J$5*PI()/180))/2 -> 4.422272452 | V65: 446.8796505
A66: 3 | B66: 16 | C66: 0.7072 | D66: 3.7072 | E66: =IF(Input!$B$1=1,'Radiation data'!A67,IF(Input!$B$1=2,'Radiation data'!D67,IF(Input!$B$1=3,'Radiation data'!G67,"Wrong input"))) -> 369 | F66: =IF(Input!$B$1=1,'Radiation data'!B67,IF(Input!$B$1=2,'Radiation data'!E67,IF(Input!$B$1=3,'Radiation data'!H67,"Wrong input"))) -> 312 | G66: 57 | H66: =IF(Input!$B$1=1,'Radiation data'!C67,IF(Input!$B$1=2,'Radiation data'!F67,IF(Input!$B$1=3,'Radiation data'!I67,"Wrong input"))) -> 31.6 | I66: =23.45*SIN(PI()*2*((284+D66)/365)) -> -22.77641364 | J66: 2.670115068 | K66: -4.1050945 | L66: =4*('Radiation data'!$L$27-'Radiation data'!$L$28)+K66 -> -12.4250945 | M66: 15.79291509 | N66: 56.89372638 | O66: =ASIN(COS(I66*PI()/180)*COS(N66*PI()/180)*COS('Radiation data'!$L$26*PI()/180)+SIN('Solar radiation and angles'!I66*PI()/180)*SIN('Radiation data'!$L$26*PI()/180))*180/PI() -> 37.84963871 | P66: =IF(N66=0,0,ACOS((COS(I66*PI()/180)*COS(N66*PI()/180)*SIN('Radiation data'!$L$26*PI()/180)-SIN(I66*PI()/180)*COS('Radiation data'!$L$26*PI()/180))/COS(O66*PI()/180))*N66/ABS(N66)*180/PI()) -> 77.99019858 | Q66: =ACOS(COS(O66*PI()/180)*SIN(Input!$J$5*PI()/180)*COS(('Solar radiation and angles'!P66-Input!$B$3)*PI()/180)+SIN('Solar radiation and angles'!O66*PI()/180)*COS(Input!$J$5*PI()/180))*180/PI() -> 60.87840182 | R66: 92.89569856 | S66: 45.20905936 | T66: =F66*(1+COS(Input!$J$5*PI()/180))/2 -> 297.3840148 | U66: ='Radiation data'!$L$29*E66*(1-COS(Input!$J$5*PI()/180))/2 -> 3.457242658 | V66: 346.0503168
A67: 3 | B67: 17 | C67: 0.7488 | D67: =A67+C67 -> 3.7488 | E67: =IF(Input!$B$1=1,'Radiation data'!A68,IF(Input!$B$1=2,'Radiation data'!D68,IF(Input!$B$1=3,'Radiation data'!G68,"Wrong input"))) -> 268 | F67: =IF(Input!$B$1=1,'Radiation data'!B68,IF(Input!$B$1=2,'Radiation data'!E68,IF(Input!$B$1=3,'Radiation data'!H68,"Wrong input"))) -> 225 | G67: =E67-F67 -> 43 | H67: =IF(Input!$B$1=1,'Radiation data'!C68,IF(Input!$B$1=2,'Radiation data'!F68,IF(Input!$B$1=3,'Radiation data'!I68,"Wrong input"))) -> 30.7 | I67: -22.77241183 | J67: =360*(D67-1)/365 -> 2.711145205 | K67: =229.2*(0.000075+0.001868*COS(J67*PI()/180)-0.032077*SIN(J67*PI()/180)-0.014615*COS(2*J67*PI()/180)-0.04089*SIN(2*J67*PI()/180)) -> -4.123281647 | L67: =4*('Radiation data'!$L$27-'Radiation data'!$L$28)+K67 -> -12.44328165 | M67: =B67+L67/60 -> 16.79261197 | N67: =((B67-12)+(L67/60))*15 -> 71.88917959 | O67: =ASIN(COS(I67*PI()/180)*COS(N67*PI()/180)*COS('Radiation data'!$L$26*PI()/180)+SIN('Solar radiation and angles'!I67*PI()/180)*SIN('Radiation data'!$L$26*PI()/180))*180/PI() -> 24.40550373 | P67: =IF(N67=0,0,ACOS((COS(I67*PI()/180)*COS(N67*PI()/180)*SIN('Radiation data'!$L$26*PI()/180)-SIN(I67*PI()/180)*COS('Radiation data'!$L$26*PI()/180))/COS(O67*PI()/180))*N67/ABS(N67)*180/PI()) -> 74.23019569 | Q67: =ACOS(COS(O67*PI()/180)*SIN(Input!$J$5*PI()/180)*COS(('Solar radiation and angles'!P67-Input!$B$3)*PI()/180)+SIN('Solar radiation and angles'!O67*PI()/180)*COS(Input!$J$5*PI()/180))*180/PI() -> 74.34252473 | R67: =IF(O67<3,0,G67/(COS((90-O67)*PI()/180))) -> 104.0678661 | S67: =IF(Q67>90,0,R67*COS(Q67*PI()/180)) -> 28.08644606 | T67: =F67*(1+COS(Input!$J$5*PI()/180))/2 -> 214.459626 | U67: ='Radiation data'!$L$29*E67*(1-COS(Input!$J$5*PI()/180))/2 -> 2.510951307 | V67: =S67+T67+U67 -> 245.0570234
A68: 3 | B68: 18 | C68: 0.7904 | D68: 3.7904 | E68: =IF(Input!$B$1=1,'Radiation data'!A69,IF(Input!$B$1=2,'Radiation data'!D69,IF(Input!$B$1=3,'Radiation data'!G69,"Wrong input"))) -> 128 | F68: =IF(Input!$B$1=1,'Radiation data'!B69,IF(Input!$B$1=2,'Radiation data'!E69,IF(Input!$B$1=3,'Radiation data'!H69,"Wrong input"))) -> 97 | G68: 31 | H68: =IF(Input!$B$1=1,'Radiation data'!C69,IF(Input!$B$1=2,'Radiation data'!F69,IF(Input!$B$1=3,'Radiation data'!I69,"Wrong input"))) -> 29.6 | I68: -22.76839834 | J68: 2.752175342 | K68: -4.141460178 | L68: =4*('Radiation data'!$L$27-'Radiation data'!$L$28)+K68 -> -12.46146018 | M68: 17.792309 | N68: 86.88463496 | O68: =ASIN(COS(I68*PI()/180)*COS(N68*PI()/180)*COS('Radiation data'!$L$26*PI()/180)+SIN('Solar radiation and angles'!I68*PI()/180)*SIN('Radiation data'!$L$26*PI()/180))*180/PI() -> 11.23027312 | P68: =IF(N68=0,0,ACOS((COS(I68*PI()/180)*COS(N68*PI()/180)*SIN('Radiation data'!$L$26*PI()/180)-SIN(I68*PI()/180)*COS('Radiation data'!$L$26*PI()/180))/COS(O68*PI()/180))*N68/ABS(N68)*180/PI()) -> 69.83232166 | Q68: =ACOS(COS(O68*PI()/180)*SIN(Input!$J$5*PI()/180)*COS(('Solar radiation and angles'!P68-Input!$B$3)*PI()/180)+SIN('Solar radiation and angles'!O68*PI()/180)*COS(Input!$J$5*PI()/180))*180/PI() -> 88.0750625 | R68: 159.1762867 | S68: 5.346759715 | T68: =F68*(1+COS(Input!$J$5*PI()/180))/2 -> 92.45592767 | U68: ='Radiation data'!$L$29*E68*(1-COS(Input!$J$5*PI()/180))/2 -> 1.199260326 | V68: 99.00194771
A69: 3 | B69: 19 | C69: 0.832 | D69: 3.832 | E69: =IF(Input!$B$1=1,'Radiation data'!A70,IF(Input!$B$1=2,'Radiation data'!D70,IF(Input!$B$1=3,'Radiation data'!G70,"Wrong input"))) -> 4 | F69: =IF(Input!$B$1=1,'Radiation data'!B70,IF(Input!$B$1=2,'Radiation data'!E70,IF(Input!$B$1=3,'Radiation data'!H70,"Wrong input"))) -> 4 | G69: 0 | H69: =IF(Input!$B$1=1,'Radiation data'!C70,IF(Input!$B$1=2,'Radiation data'!F70,IF(Input!$B$1=3,'Radiation data'!I70,"Wrong input"))) -> 28.4 | I69: -22.76437318 | J69: 2.793205479 | K69: -4.159630064 | L69: =4*('Radiation data'!$L$27-'Radiation data'!$L$28)+K69 -> -12.47963006 | M69: 18.79200617 | N69: 101.8800925 | O69: =ASIN(COS(I69*PI()/180)*COS(N69*PI()/180)*COS('Radiation data'!$L$26*PI()/180)+SIN('Solar radiation and angles'!I69*PI()/180)*SIN('Radiation data'!$L$26*PI()/180))*180/PI() -> -1.538663436 | P69: =IF(N69=0,0,ACOS((COS(I69*PI()/180)*COS(N69*PI()/180)*SIN('Radiation data'!$L$26*PI()/180)-SIN(I69*PI()/180)*COS('Radiation data'!$L$26*PI()/180))/COS(O69*PI()/180))*N69/ABS(N69)*180/PI()) -> 64.51240467 | Q69: =ACOS(COS(O69*PI()/180)*SIN(Input!$J$5*PI()/180)*COS(('Solar radiation and angles'!P69-Input!$B$3)*PI()/180)+SIN('Solar radiation and angles'!O69*PI()/180)*COS(Input!$J$5*PI()/180))*180/PI() -> 101.8956226 | R69: 0 | S69: 0 | T69: =F69*(1+COS(Input!$J$5*PI()/180))/2 -> 3.812615574 | U69: ='Radiation data'!$L$29*E69*(1-COS(Input!$J$5*PI()/180))/2 -> 0.03747688519 | V69: 3.850092459
A70: 3 | B70: 20 | C70: 0.8736 | D70: 3.8736 | E70: =IF(Input!$B$1=1,'Radiation data'!A71,IF(Input!$B$1=2,'Radiation data'!D71,IF(Input!$B$1=3,'Radiation data'!G71,"Wrong input"))) -> 0 | F70: =IF(Input!$B$1=1,'Radiation data'!B71,IF(Input!$B$1=2,'Radiation data'!E71,IF(Input!$B$1=3,'Radiation data'!H71,"Wrong input"))) -> 0 | G70: 0 | H70: =IF(Input!$B$1=1,'Radiation data'!C71,IF(Input!$B$1=2,'Radiation data'!F71,IF(Input!$B$1=3,'Radiation data'!I71,"Wrong input"))) -> 27.3 | I70: -22.76033634 | J70: 2.834235616 | K70: -4.177791275 | L70: =4*('Radiation data'!$L$27-'Radiation data'!$L$28)+K70 -> -12.49779128 | M70: 19.79170348 | N70: 116.8755522 | O70: =ASIN(COS(I70*PI()/180)*COS(N70*PI()/180)*COS('Radiation data'!$L$26*PI()/180)+SIN('Solar radiation and angles'!I70*PI()/180)*SIN('Radiation data'!$L$26*PI()/180))*180/PI() -> -13.6817776 | P70: =IF(N70=0,0,ACOS((COS(I70*PI()/180)*COS(N70*PI()/180)*SIN('Radiation data'!$L$26*PI()/180)-SIN(I70*PI()/180)*COS('Radiation data'!$L$26*PI()/180))/COS(O70*PI()/180))*N70/ABS(N70)*180/PI()) -> 57.83879018 | Q70: =ACOS(COS(O70*PI()/180)*SIN(Input!$J$5*PI()/180)*COS(('Solar radiation and angles'!P70-Input!$B$3)*PI()/180)+SIN('Solar radiation and angles'!O70*PI()/180)*COS(Input!$J$5*PI()/180))*180/PI() -> 115.6546587 | R70: 0 | S70: 0 | T70: =F70*(1+COS(Input!$J$5*PI()/180))/2 -> 0 | U70: ='Radiation data'!$L$29*E70*(1-COS(Input!$J$5*PI()/180))/2 -> 0 | V70: 0
A71: 3 | B71: 21 | C71: 0.9152 | D71: 3.9152 | E71: =IF(Input!$B$1=1,'Radiation data'!A72,IF(Input!$B$1=2,'Radiation data'!D72,IF(Input!$B$1=3,'Radiation data'!G72,"Wrong input"))) -> 0 | F71: =IF(Input!$B$1=1,'Radiation data'!B72,IF(Input!$B$1=2,'Radiation data'!E72,IF(Input!$B$1=3,'Radiation data'!H72,"Wrong input"))) -> 0 | G71: 0 | H71: =IF(Input!$B$1=1,'Radiation data'!C72,IF(Input!$B$1=2,'Radiation data'!F72,IF(Input!$B$1=3,'Radiation data'!I72,"Wrong input"))) -> 26.2 | I71: -22.75628783 | J71: 2.875265753 | K71: -4.195943783 | L71: =4*('Radiation data'!$L$27-'Radiation data'!$L$28)+K71 -> -12.51594378 | M71: 20.79140094 | N71: 131.8710141 | O71: =ASIN(COS(I71*PI()/180)*COS(N71*PI()/180)*COS('Radiation data'!$L$26*PI()/180)+SIN('Solar radiation and angles'!I71*PI()/180)*SIN('Radiation data'!$L$26*PI()/180))*180/PI() -> -24.8346051 | P71: =IF(N71=0,0,ACOS((COS(I71*PI()/180)*COS(N71*PI()/180)*SIN('Radiation data'!$L$26*PI()/180)-SIN(I71*PI()/180)*COS('Radiation data'!$L$26*PI()/180))/COS(O71*PI()/180))*N71/ABS(N71)*180/PI()) -> 49.17039901 | Q71: =ACOS(COS(O71*PI()/180)*SIN(Input!$J$5*PI()/180)*COS(('Solar radiation and angles'!P71-Input!$B$3)*PI()/180)+SIN('Solar radiation and angles'!O71*PI()/180)*COS(Input!$J$5*PI()/180))*180/PI() -> 129.1542226 | R71: 0 | S71: 0 | T71: =F71*(1+COS(Input!$J$5*PI()/180))/2 -> 0 | U71: ='Radiation data'!$L$29*E71*(1-COS(Input!$J$5*PI()/180))/2 -> 0 | V71: 0
A72: 3 | B72: 22 | C72: 0.9568 | D72: 3.9568 | E72: =IF(Input!$B$1=1,'Radiation data'!A73,IF(Input!$B$1=2,'Radiation data'!D73,IF(Input!$B$1=3,'Radiation data'!G73,"Wrong input"))) -> 0 | F72: =IF(Input!$B$1=1,'Radiation data'!B73,IF(Input!$B$1=2,'Radiation data'!E73,IF(Input!$B$1=3,'Radiation data'!H73,"Wrong input"))) -> 0 | G72: 0 | H72: =IF(Input!$B$1=1,'Radiation data'!C73,IF(Input!$B$1=2,'Radiation data'!F73,IF(Input!$B$1=3,'Radiation data'!I73,"Wrong input"))) -> 25.2 | I72: -22.75222766 | J72: 2.91629589 | K72: -4.214087558 | L72: =4*('Radiation data'!$L$27-'Radiation data'!$L$28)+K72 -> -12.53408756 | M72: 21.79109854 | N72: 146.8664781 | O72: =ASIN(COS(I72*PI()/180)*COS(N72*PI()/180)*COS('Radiation data'!$L$26*PI()/180)+SIN('Solar radiation and angles'!I72*PI()/180)*SIN('Radiation data'!$L$26*PI()/180))*180/PI() -> -34.38625184 | P72: =IF(N72=0,0,ACOS((COS(I72*PI()/180)*COS(N72*PI()/180)*SIN('Radiation data'!$L$26*PI()/180)-SIN(I72*PI()/180)*COS('Radiation data'!$L$26*PI()/180))/COS(O72*PI()/180))*N72/ABS(N72)*180/PI()) -> 37.64713676 | Q72: =ACOS(COS(O72*PI()/180)*SIN(Input!$J$5*PI()/180)*COS(('Solar radiation and angles'!P72-Input!$B$3)*PI()/180)+SIN('Solar radiation and angles'!O72*PI()/180)*COS(Input!$J$5*PI()/180))*180/PI() -> 141.9992346 | R72: 0 | S72: 0 | T72: =F72*(1+COS(Input!$J$5*PI()/180))/2 -> 0 | U72: ='Radiation data'!$L$29*E72*(1-COS(Input!$J$5*PI()/180))/2 -> 0 | V72: 0
A73: 3 | B73: 23 | C73: 0.9984 | D73: 3.9984 | E73: =IF(Input!$B$1=1,'Radiation data'!A74,IF(Input!$B$1=2,'Radiation data'!D74,IF(Input!$B$1=3,'Radiation data'!G74,"Wrong input"))) -> 0 | F73: =IF(Input!$B$1=1,'Radiation data'!B74,IF(Input!$B$1=2,'Radiation data'!E74,IF(Input!$B$1=3,'Radiation data'!H74,"Wrong input"))) -> 0 | G73: 0 | H73: =IF(Input!$B$1=1,'Radiation data'!C74,IF(Input!$B$1=2,'Radiation data'!F74,IF(Input!$B$1=3,'Radiation data'!I74,"Wrong input"))) -> 24.1 | I73: -22.74815581 | J73: 2.957326027 | K73: -4.232222571 | L73: =4*('Radiation data'!$L$27-'Radiation data'!$L$28)+K73 -> -12.55222257 | M73: 22.79079629 | N73: 161.8619444 | O73: =ASIN(COS(I73*PI()/180)*COS(N73*PI()/180)*COS('Radiation data'!$L$26*PI()/180)+SIN('Solar radiation and angles'!I73*PI()/180)*SIN('Radiation data'!$L$26*PI()/180))*180/PI() -> -41.3742451 | P73: =IF(N73=0,0,ACOS((COS(I73*PI()/180)*COS(N73*PI()/180)*SIN('Radiation data'!$L$26*PI()/180)-SIN(I73*PI()/180)*COS('Radiation data'!$L$26*PI()/180))/COS(O73*PI()/180))*N73/ABS(N73)*180/PI()) -> 22.4936631 | Q73: =ACOS(COS(O73*PI()/180)*SIN(Input!$J$5*PI()/180)*COS(('Solar radiation and angles'!P73-Input!$B$3)*PI()/180)+SIN('Solar radiation and angles'!O73*PI()/180)*COS(Input!$J$5*PI()/180))*180/PI() -> 153.1326924 | R73: 0 | S73: 0 | T73: =F73*(1+COS(Input!$J$5*PI()/180))/2 -> 0 | U73: ='Radiation data'!$L$29*E73*(1-COS(Input!$J$5*PI()/180))/2 -> 0 | V73: 0
A74: 4 | B74: 0.0001 | C74: 0.0416 | D74: 4.0416 | E74: =IF(Input!$B$1=1,'Radiation data'!A75,IF(Input!$B$1=2,'Radiation data'!D75,IF(Input!$B$1=3,'Radiation data'!G75,"Wrong input"))) -> 0 | F74: =IF(Input!$B$1=1,'Radiation data'!B75,IF(Input!$B$1=2,'Radiation data'!E75,IF(Input!$B$1=3,'Radiation data'!H75,"Wrong input"))) -> 0 | G74: 0 | H74: =IF(Input!$B$1=1,'Radiation data'!C75,IF(Input!$B$1=2,'Radiation data'!F75,IF(Input!$B$1=3,'Radiation data'!I75,"Wrong input"))) -> 23.2 | I74: -22.74391501 | J74: 2.999934247 | K74: -4.25104578 | L74: =4*('Radiation data'!$L$27-'Radiation data'!$L$28)+K74 -> -12.57104578 | M74: -0.2094174297 | N74: -183.1412614 | O74: =ASIN(COS(I74*PI()/180)*COS(N74*PI()/180)*COS('Radiation data'!$L$26*PI()/180)+SIN('Solar radiation and angles'!I74*PI()/180)*SIN('Radiation data'!$L$26*PI()/180))*180/PI() -> -44.59303313 | P74: =IF(N74=0,0,ACOS((COS(I74*PI()/180)*COS(N74*PI()/180)*SIN('Radiation data'!$L$26*PI()/180)-SIN(I74*PI()/180)*COS('Radiation data'!$L$26*PI()/180))/COS(O74*PI()/180))*N74/ABS(N74)*180/PI()) -> -4.069571476 | Q74: =ACOS(COS(O74*PI()/180)*SIN(Input!$J$5*PI()/180)*COS(('Solar radiation and angles'!P74-Input!$B$3)*PI()/180)+SIN('Solar radiation and angles'!O74*PI()/180)*COS(Input!$J$5*PI()/180))*180/PI() -> 159.4687078 | R74: 0 | S74: 0 | T74: =F74*(1+COS(Input!$J$5*PI()/180))/2 -> 0 | U74: ='Radiation data'!$L$29*E74*(1-COS(Input!$J$5*PI()/180))/2 -> 0 | V74: 0
A75: 4 | B75: 1 | C75: 0.0832 | D75: 4.0832 | E75: =IF(Input!$B$1=1,'Radiation data'!A76,IF(Input!$B$1=2,'Radiation data'!D76,IF(Input!$B$1=3,'Radiation data'!G76,"Wrong input"))) -> 0 | F75: =IF(Input!$B$1=1,'Radiation data'!B76,IF(Input!$B$1=2,'Radiation data'!E76,IF(Input!$B$1=3,'Radiation data'!H76,"Wrong input"))) -> 0 | G75: 0 | H75: =IF(Input!$B$1=1,'Radiation data'!C76,IF(Input!$B$1=2,'Radiation data'!F76,IF(Input!$B$1=3,'Radiation data'!I76,"Wrong input"))) -> 22.3 | I75: -22.73981938 | J75: 3.040964384 | K75: -4.269162842 | L75: =4*('Radiation data'!$L$27-'Radiation data'!$L$28)+K75 -> -12.58916284 | M75: 0.7901806193 | N75: -168.1472907 | O75: =ASIN(COS(I75*PI()/180)*COS(N75*PI()/180)*COS('Radiation data'!$L$26*PI()/180)+SIN('Solar radiation and angles'!I75*PI()/180)*SIN('Radiation data'!$L$26*PI()/180))*180/PI() -> -43.25431193 | P75: =IF(N75=0,0,ACOS((COS(I75*PI()/180)*COS(N75*PI()/180)*SIN('Radiation data'!$L$26*PI()/180)-SIN(I75*PI()/180)*COS('Radiation data'!$L$26*PI()/180))/COS(O75*PI()/180))*N75/ABS(N75)*180/PI()) -> -15.0755936 | Q75: =ACOS(COS(O75*PI()/180)*SIN(Input!$J$5*PI()/180)*COS(('Solar radiation and angles'!P75-Input!$B$3)*PI()/180)+SIN('Solar radiation and angles'!O75*PI()/180)*COS(Input!$J$5*PI()/180))*180/PI() -> 156.6707026 | R75: 0 | S75: 0 | T75: =F75*(1+COS(Input!$J$5*PI()/180))/2 -> 0 | U75: ='Radiation data'!$L$29*E75*(1-COS(Input!$J$5*PI()/180))/2 -> 0 | V75: 0
A76: 4 | B76: 2 | C76: 0.1248 | D76: 4.1248 | E76: =IF(Input!$B$1=1,'Radiation data'!A77,IF(Input!$B$1=2,'Radiation data'!D77,IF(Input!$B$1=3,'Radiation data'!G77,"Wrong input"))) -> 0 | F76: =IF(Input!$B$1=1,'Radiation data'!B77,IF(Input!$B$1=2,'Radiation data'!E77,IF(Input!$B$1=3,'Radiation data'!H77,"Wrong input"))) -> 0 | G76: 0 | H76: =IF(Input!$B$1=1,'Radiation data'!C77,IF(Input!$B$1=2,'Radiation data'!F77,IF(Input!$B$1=3,'Radiation data'!I77,"Wrong input"))) -> 21.3 | I76: -22.7357121 | J76: 3.081994521 | K76: -4.287271055 | L76: =4*('Radiation data'!$L$27-'Radiation data'!$L$28)+K76 -> -12.60727105 | M76: 1.789878816 | N76: -153.1518178 | O76: =ASIN(COS(I76*PI()/180)*COS(N76*PI()/180)*COS('Radiation data'!$L$26*PI()/180)+SIN('Solar radiation and angles'!I76*PI()/180)*SIN('Radiation data'!$L$26*PI()/180))*180/PI() -> -37.70801446 | P76: =IF(N76=0,0,ACOS((COS(I76*PI()/180)*COS(N76*PI()/180)*SIN('Radiation data'!$L$26*PI()/180)-SIN(I76*PI()/180)*COS('Radiation data'!$L$26*PI()/180))/COS(O76*PI()/180))*N76/ABS(N76)*180/PI()) -> -31.76937653 | Q76: =ACOS(COS(O76*PI()/180)*SIN(Input!$J$5*PI()/180)*COS(('Solar radiation and angles'!P76-Input!$B$3)*PI()/180)+SIN('Solar radiation and angles'!O76*PI()/180)*COS(Input!$J$5*PI()/180))*180/PI() -> 146.9912334 | R76: 0 | S76: 0 | T76: =F76*(1+COS(Input!$J$5*PI()/180))/2 -> 0 | U76: ='Radiation data'!$L$29*E76*(1-COS(Input!$J$5*PI()/180))/2 -> 0 | V76: 0
A77: 4 | B77: 3 | C77: 0.1664 | D77: 4.1664 | E77: =IF(Input!$B$1=1,'Radiation data'!A78,IF(Input!$B$1=2,'Radiation data'!D78,IF(Input!$B$1=3,'Radiation data'!G78,"Wrong input"))) -> 0 | F77: =IF(Input!$B$1=1,'Radiation data'!B78,IF(Input!$B$1=2,'Radiation data'!E78,IF(Input!$B$1=3,'Radiation data'!H78,"Wrong input"))) -> 0 | G77: 0 | H77: =IF(Input!$B$1=1,'Radiation data'!C78,IF(Input!$B$1=2,'Radiation data'!F78,IF(Input!$B$1=3,'Radiation data'!I78,"Wrong input"))) -> 20.8 | I77: -22.73159316 | J77: 3.123024658 | K77: -4.305370388 | L77: =4*('Radiation data'!$L$27-'Radiation data'!$L$28)+K77 -> -12.62537039 | M77: 2.78957716 | N77: -138.1563426 | O77: =ASIN(COS(I77*PI()/180)*COS(N77*PI()/180)*COS('Radiation data'!$L$26*PI()/180)+SIN('Solar radiation and angles'!I77*PI()/180)*SIN('Radiation data'!$L$26*PI()/180))*180/PI() -> -29.09611326 | P77: =IF(N77=0,0,ACOS((COS(I77*PI()/180)*COS(N77*PI()/180)*SIN('Radiation data'!$L$26*PI()/180)-SIN(I77*PI()/180)*COS('Radiation data'!$L$26*PI()/180))/COS(O77*PI()/180))*N77/ABS(N77)*180/PI()) -> -44.76031013 | Q77: =ACOS(COS(O77*PI()/180)*SIN(Input!$J$5*PI()/180)*COS(('Solar radiation and angles'!P77-Input!$B$3)*PI()/180)+SIN('Solar radiation and angles'!O77*PI()/180)*COS(Input!$J$5*PI()/180))*180/PI() -> 134.6626002 | R77: 0 | S77: 0 | T77: =F77*(1+COS(Input!$J$5*PI()/180))/2 -> 0 | U77: ='Radiation data'!$L$29*E77*(1-COS(Input!$J$5*PI()/180))/2 -> 0 | V77: 0
A78: 4 | B78: 4 | C78: 0.208 | D78: 4.208 | E78: =IF(Input!$B$1=1,'Radiation data'!A79,IF(Input!$B$1=2,'Radiation data'!D79,IF(Input!$B$1=3,'Radiation data'!G79,"Wrong input"))) -> 0 | F78: =IF(Input!$B$1=1,'Radiation data'!B79,IF(Input!$B$1=2,'Radiation data'!E79,IF(Input!$B$1=3,'Radiation data'!H79,"Wrong input"))) -> 0 | G78: 0 | H78: =IF(Input!$B$1=1,'Radiation data'!C79,IF(Input!$B$1=2,'Radiation data'!F79,IF(Input!$B$1=3,'Radiation data'!I79,"Wrong input"))) -> 20.2 | I78: -22.72746256 | J78: 3.164054795 | K78: -4.323460813 | L78: =4*('Radiation data'!$L$27-'Radiation data'!$L$28)+K78 -> -12.64346081 | M78: 3.789275653 | N78: -123.1608652 | O78: =ASIN(COS(I78*PI()/180)*COS(N78*PI()/180)*COS('Radiation data'!$L$26*PI()/180)+SIN('Solar radiation and angles'!I78*PI()/180)*SIN('Radiation data'!$L$26*PI()/180))*180/PI() -> -18.52327575 | P78: =IF(N78=0,0,ACOS((COS(I78*PI()/180)*COS(N78*PI()/180)*SIN('Radiation data'!$L$26*PI()/180)-SIN(I78*PI()/180)*COS('Radiation data'!$L$26*PI()/180))/COS(O78*PI()/180))*N78/ABS(N78)*180/PI()) -> -54.52049075 | Q78: =ACOS(COS(O78*PI()/180)*SIN(Input!$J$5*PI()/180)*COS(('Solar radiation and angles'!P78-Input!$B$3)*PI()/180)+SIN('Solar radiation and angles'!O78*PI()/180)*COS(Input!$J$5*PI()/180))*180/PI() -> 121.3664646 | R78: 0 | S78: 0 | T78: =F78*(1+COS(Input!$J$5*PI()/180))/2 -> 0 | U78: ='Radiation data'!$L$29*E78*(1-COS(Input!$J$5*PI()/180))/2 -> 0 | V78: 0
A79: 4 | B79: 5 | C79: 0.2496 | D79: 4.2496 | E79: =IF(Input!$B$1=1,'Radiation data'!A80,IF(Input!$B$1=2,'Radiation data'!D80,IF(Input!$B$1=3,'Radiation data'!G80,"Wrong input"))) -> 0 | F79: =IF(Input!$B$1=1,'Radiation data'!B80,IF(Input!$B$1=2,'Radiation data'!E80,IF(Input!$B$1=3,'Radiation data'!H80,"Wrong input"))) -> 0 | G79: 0 | H79: =IF(Input!$B$1=1,'Radiation data'!C80,IF(Input!$B$1=2,'Radiation data'!F80,IF(Input!$B$1=3,'Radiation data'!I80,"Wrong input"))) -> 19.9 | I79: -22.7233203 | J79: 3.205084932 | K79: -4.341542301 | L79: =4*('Radiation data'!$L$27-'Radiation data'!$L$28)+K79 -> -12.6615423 | M79: 4.788974295 | N79: -108.1653856 | O79: =ASIN(COS(I79*PI()/180)*COS(N79*PI()/180)*COS('Radiation data'!$L$26*PI()/180)+SIN('Solar radiation and angles'!I79*PI()/180)*SIN('Radiation data'!$L$26*PI()/180))*180/PI() -> -6.739789434 | P79: =IF(N79=0,0,ACOS((COS(I79*PI()/180)*COS(N79*PI()/180)*SIN('Radiation data'!$L$26*PI()/180)-SIN(I79*PI()/180)*COS('Radiation data'!$L$26*PI()/180))/COS(O79*PI()/180))*N79/ABS(N79)*180/PI()) -> -61.9464806 | Q79: =ACOS(COS(O79*PI()/180)*SIN(Input!$J$5*PI()/180)*COS(('Solar radiation and angles'!P79-Input!$B$3)*PI()/180)+SIN('Solar radiation and angles'!O79*PI()/180)*COS(Input!$J$5*PI()/180))*180/PI() -> 107.6827882 | R79: 0 | S79: 0 | T79: =F79*(1+COS(Input!$J$5*PI()/180))/2 -> 0 | U79: ='Radiation data'!$L$29*E79*(1-COS(Input!$J$5*PI()/180))/2 -> 0 | V79: 0
A80: 4 | B80: 6 | C80: 0.2912 | D80: 4.2912 | E80: =IF(Input!$B$1=1,'Radiation data'!A81,IF(Input!$B$1=2,'Radiation data'!D81,IF(Input!$B$1=3,'Radiation data'!G81,"Wrong input"))) -> 18 | F80: =IF(Input!$B$1=1,'Radiation data'!B81,IF(Input!$B$1=2,'Radiation data'!E81,IF(Input!$B$1=3,'Radiation data'!H81,"Wrong input"))) -> 18 | G80: 0 | H80: =IF(Input!$B$1=1,'Radiation data'!C81,IF(Input!$B$1=2,'Radiation data'!F81,IF(Input!$B$1=3,'Radiation data'!I81,"Wrong input"))) -> 20.1 | I80: -22.71916639 | J80: 3.246115068 | K80: -4.359614822 | L80: =4*('Radiation data'!$L$27-'Radiation data'!$L$28)+K80 -> -12.67961482 | M80: 5.788673086 | N80: -93.16990371 | O80: =ASIN(COS(I80*PI()/180)*COS(N80*PI()/180)*COS('Radiation data'!$L$26*PI()/180)+SIN('Solar radiation and angles'!I80*PI()/180)*SIN('Radiation data'!$L$26*PI()/180))*180/PI() -> 5.800681804 | P80: =IF(N80=0,0,ACOS((COS(I80*PI()/180)*COS(N80*PI()/180)*SIN('Radiation data'!$L$26*PI()/180)-SIN(I80*PI()/180)*COS('Radiation data'!$L$26*PI()/180))/COS(O80*PI()/180))*N80/ABS(N80)*180/PI()) -> -67.77988035 | Q80: =ACOS(COS(O80*PI()/180)*SIN(Input!$J$5*PI()/180)*COS(('Solar radiation and angles'!P80-Input!$B$3)*PI()/180)+SIN('Solar radiation and angles'!O80*PI()/180)*COS(Input!$J$5*PI()/180))*180/PI() -> 93.86481551 | R80: 0 | S80: 0 | T80: =F80*(1+COS(Input!$J$5*PI()/180))/2 -> 17.15677008 | U80: ='Radiation data'!$L$29*E80*(1-COS(Input!$J$5*PI()/180))/2 -> 0.1686459833 | V80: 17.32541607
A81: 4 | B81: 7 | C81: 0.3328 | D81: 4.3328 | E81: =IF(Input!$B$1=1,'Radiation data'!A82,IF(Input!$B$1=2,'Radiation data'!D82,IF(Input!$B$1=3,'Radiation data'!G82,"Wrong input"))) -> 311 | F81: =IF(Input!$B$1=1,'Radiation data'!B82,IF(Input!$B$1=2,'Radiation data'!E82,IF(Input!$B$1=3,'Radiation data'!H82,"Wrong input"))) -> 173 | G81: 138 | H81: =IF(Input!$B$1=1,'Radiation data'!C82,IF(Input!$B$1=2,'Radiation data'!F82,IF(Input!$B$1=3,'Radiation data'!I82,"Wrong input"))) -> 22.6 | I81: -22.71500083 | J81: 3.287145205 | K81: -4.377678349 | L81: =4*('Radiation data'!$L$27-'Radiation data'!$L$28)+K81 -> -12.69767835 | M81: 6.788372028 | N81: -78.17441959 | O81: =ASIN(COS(I81*PI()/180)*COS(N81*PI()/180)*COS('Radiation data'!$L$26*PI()/180)+SIN('Solar radiation and angles'!I81*PI()/180)*SIN('Radiation data'!$L$26*PI()/180))*180/PI() -> 18.82738548 | P81: =IF(N81=0,0,ACOS((COS(I81*PI()/180)*COS(N81*PI()/180)*SIN('Radiation data'!$L$26*PI()/180)-SIN(I81*PI()/180)*COS('Radiation data'!$L$26*PI()/180))/COS(O81*PI()/180))*N81/ABS(N81)*180/PI()) -> -72.53441056 | Q81: =ACOS(COS(O81*PI()/180)*SIN(Input!$J$5*PI()/180)*COS(('Solar radiation and angles'!P81-Input!$B$3)*PI()/180)+SIN('Solar radiation and angles'!O81*PI()/180)*COS(Input!$J$5*PI()/180))*180/PI() -> 80.07104421 | R81: 427.6177542 | S81: 73.73281522 | T81: =F81*(1+COS(Input!$J$5*PI()/180))/2 -> 164.8956236 | U81: ='Radiation data'!$L$29*E81*(1-COS(Input!$J$5*PI()/180))/2 -> 2.913827823 | V81: 241.5422666
A82: 4 | B82: 8 | C82: 0.3744 | D82: 4.3744 | E82: =IF(Input!$B$1=1,'Radiation data'!A83,IF(Input!$B$1=2,'Radiation data'!D83,IF(Input!$B$1=3,'Radiation data'!G83,"Wrong input"))) -> 629 | F82: =IF(Input!$B$1=1,'Radiation data'!B83,IF(Input!$B$1=2,'Radiation data'!E83,IF(Input!$B$1=3,'Radiation data'!H83,"Wrong input"))) -> 167 | G82: 462 | H82: =IF(Input!$B$1=1,'Radiation data'!C83,IF(Input!$B$1=2,'Radiation data'!F83,IF(Input!$B$1=3,'Radiation data'!I83,"Wrong input"))) -> 25.2 | I82: -22.71082362 | J82: 3.328175342 | K82: -4.395732852 | L82: =4*('Radiation data'!$L$27-'Radiation data'!$L$28)+K82 -> -12.71573285 | M82: 7.788071119 | N82: -63.17893321 | O82: =ASIN(COS(I82*PI()/180)*COS(N82*PI()/180)*COS('Radiation data'!$L$26*PI()/180)+SIN('Solar radiation and angles'!I82*PI()/180)*SIN('Radiation data'!$L$26*PI()/180))*180/PI() -> 32.17395323 | P82: =IF(N82=0,0,ACOS((COS(I82*PI()/180)*COS(N82*PI()/180)*SIN('Radiation data'!$L$26*PI()/180)-SIN(I82*PI()/180)*COS('Radiation data'!$L$26*PI()/180))/COS(O82*PI()/180))*N82/ABS(N82)*180/PI()) -> -76.55173934 | Q82: =ACOS(COS(O82*PI()/180)*SIN(Input!$J$5*PI()/180)*COS(('Solar radiation and angles'!P82-Input!$B$3)*PI()/180)+SIN('Solar radiation and angles'!O82*PI()/180)*COS(Input!$J$5*PI()/180))*180/PI() -> 66.45885522 | R82: 867.6194181 | S82: 346.5337182 | T82: =F82*(1+COS(Input!$J$5*PI()/180))/2 -> 159.1767002 | U82: ='Radiation data'!$L$29*E82*(1-COS(Input!$J$5*PI()/180))/2 -> 5.893240195 | V82: 511.6036586
A83: 4 | B83: 9 | C83: 0.416 | D83: 4.416 | E83: =IF(Input!$B$1=1,'Radiation data'!A84,IF(Input!$B$1=2,'Radiation data'!D84,IF(Input!$B$1=3,'Radiation data'!G84,"Wrong input"))) -> 910 | F83: =IF(Input!$B$1=1,'Radiation data'!B84,IF(Input!$B$1=2,'Radiation data'!E84,IF(Input!$B$1=3,'Radiation data'!H84,"Wrong input"))) -> 246 | G83: 664 | H83: =IF(Input!$B$1=1,'Radiation data'!C84,IF(Input!$B$1=2,'Radiation data'!F84,IF(Input!$B$1=3,'Radiation data'!I84,"Wrong input"))) -> 27.7 | I83: -22.70663477 | J83: 3.369205479 | K83: -4.413778301 | L83: =4*('Radiation data'!$L$27-'Radiation data'!$L$28)+K83 -> -12.7337783 | M83: 8.787770362 | N83: -48.18344458 | O83: =ASIN(COS(I83*PI()/180)*COS(N83*PI()/180)*COS('Radiation data'!$L$26*PI()/180)+SIN('Solar radiation and angles'!I83*PI()/180)*SIN('Radiation data'!$L$26*PI()/180))*180/PI() -> 45.7332848 | P83: =IF(N83=0,0,ACOS((COS(I83*PI()/180)*COS(N83*PI()/180)*SIN('Radiation data'!$L$26*PI()/180)-SIN(I83*PI()/180)*COS('Radiation data'!$L$26*PI()/180))/COS(O83*PI()/180))*N83/ABS(N83)*180/PI()) -> -80.05867868 | Q83: =ACOS(COS(O83*PI()/180)*SIN(Input!$J$5*PI()/180)*COS(('Solar radiation and angles'!P83-Input!$B$3)*PI()/180)+SIN('Solar radiation and angles'!O83*PI()/180)*COS(Input!$J$5*PI()/180))*180/PI() -> 53.26755725 | R83: 927.246944 | S83: 554.5669647 | T83: =F83*(1+COS(Input!$J$5*PI()/180))/2 -> 234.4758578 | U83: ='Radiation data'!$L$29*E83*(1-COS(Input!$J$5*PI()/180))/2 -> 8.52599138 | V83: 797.5688139
A84: 4 | B84: 10 | C84: 0.4576 | D84: 4.4576 | E84: =IF(Input!$B$1=1,'Radiation data'!A85,IF(Input!$B$1=2,'Radiation data'!D85,IF(Input!$B$1=3,'Radiation data'!G85,"Wrong input"))) -> 1017 | F84: =IF(Input!$B$1=1,'Radiation data'!B85,IF(Input!$B$1=2,'Radiation data'!E85,IF(Input!$B$1=3,'Radiation data'!H85,"Wrong input"))) -> 298 | G84: 719 | H84: =IF(Input!$B$1=1,'Radiation data'!C85,IF(Input!$B$1=2,'Radiation data'!F85,IF(Input!$B$1=3,'Radiation data'!I85,"Wrong input"))) -> 29.6 | I84: -22.70243427 | J84: 3.410235616 | K84: -4.431814669 | L84: =4*('Radiation data'!$L$27-'Radiation data'!$L$28)+K84 -> -12.75181467 | M84: 9.787469756 | N84: -33.18795367 | O84: =ASIN(COS(I84*PI()/180)*COS(N84*PI()/180)*COS('Radiation data'!$L$26*PI()/180)+SIN('Solar radiation and angles'!I84*PI()/180)*SIN('Radiation data'!$L$26*PI()/180))*180/PI() -> 59.43240591 | P84: =IF(N84=0,0,ACOS((COS(I84*PI()/180)*COS(N84*PI()/180)*SIN('Radiation data'!$L$26*PI()/180)-SIN(I84*PI()/180)*COS('Radiation data'!$L$26*PI()/180))/COS(O84*PI()/180))*N84/ABS(N84)*180/PI()) -> -83.19957979 | Q84: =ACOS(COS(O84*PI()/180)*SIN(Input!$J$5*PI()/180)*COS(('Solar radiation and angles'!P84-Input!$B$3)*PI()/180)+SIN('Solar radiation and angles'!O84*PI()/180)*COS(Input!$J$5*PI()/180))*180/PI() -> 40.98262106 | R84: 835.0465939 | S84: 630.3838059 | T84: =F84*(1+COS(Input!$J$5*PI()/180))/2 -> 284.0398603 | U84: ='Radiation data'!$L$29*E84*(1-COS(Input!$J$5*PI()/180))/2 -> 9.528498058 | V84: 923.9521643
A85: 4 | B85: 11 | C85: 0.4992 | D85: 4.4992 | E85: =IF(Input!$B$1=1,'Radiation data'!A86,IF(Input!$B$1=2,'Radiation data'!D86,IF(Input!$B$1=3,'Radiation data'!G86,"Wrong input"))) -> 568 | F85: =IF(Input!$B$1=1,'Radiation data'!B86,IF(Input!$B$1=2,'Radiation data'!E86,IF(Input!$B$1=3,'Radiation data'!H86,"Wrong input"))) -> 447 | G85: 121 | H85: =IF(Input!$B$1=1,'Radiation data'!C86,IF(Input!$B$1=2,'Radiation data'!F86,IF(Input!$B$1=3,'Radiation data'!I86,"Wrong input"))) -> 29.5 | I85: -22.69822213 | J85: 3.451265753 | K85: -4.449841926 | L85: =4*('Radiation data'!$L$27-'Radiation data'!$L$28)+K85 -> -12.76984193 | M85: 10.7871693 | N85: -18.19246048 | O85: =ASIN(COS(I85*PI()/180)*COS(N85*PI()/180)*COS('Radiation data'!$L$26*PI()/180)+SIN('Solar radiation and angles'!I85*PI()/180)*SIN('Radiation data'!$L$26*PI()/180))*180/PI() -> 73.21805714 | P85: =IF(N85=0,0,ACOS((COS(I85*PI()/180)*COS(N85*PI()/180)*SIN('Radiation data'!$L$26*PI()/180)-SIN(I85*PI()/180)*COS('Radiation data'!$L$26*PI()/180))/COS(O85*PI()/180))*N85/ABS(N85)*180/PI()) -> -86.00719426 | Q85: =ACOS(COS(O85*PI()/180)*SIN(Input!$J$5*PI()/180)*COS(('Solar radiation and angles'!P85-Input!$B$3)*PI()/180)+SIN('Solar radiation and angles'!O85*PI()/180)*COS(Input!$J$5*PI()/180))*180/PI() -> 30.77177377 | R85: 126.3825652 | S85: 108.5894224 | T85: =F85*(1+COS(Input!$J$5*PI()/180))/2 -> 426.0597904 | U85: ='Radiation data'!$L$29*E85*(1-COS(Input!$J$5*PI()/180))/2 -> 5.321717696 | V85: 539.9709305
A86: 4 | B86: 12 | C86: 0.5408 | D86: 4.5408 | E86: =IF(Input!$B$1=1,'Radiation data'!A87,IF(Input!$B$1=2,'Radiation data'!D87,IF(Input!$B$1=3,'Radiation data'!G87,"Wrong input"))) -> 567 | F86: =IF(Input!$B$1=1,'Radiation data'!B87,IF(Input!$B$1=2,'Radiation data'!E87,IF(Input!$B$1=3,'Radiation data'!H87,"Wrong input"))) -> 505 | G86: 62 | H86: =IF(Input!$B$1=1,'Radiation data'!C87,IF(Input!$B$1=2,'Radiation data'!F87,IF(Input!$B$1=3,'Radiation data'!I87,"Wrong input"))) -> 29.3 | I86: -22.69399835 | J86: 3.49229589 | K86: -4.467860043 | L86: =4*('Radiation data'!$L$27-'Radiation data'!$L$28)+K86 -> -12.78786004 | M86: 11.786869 | N86: -3.196965011 | O86: =ASIN(COS(I86*PI()/180)*COS(N86*PI()/180)*COS('Radiation data'!$L$26*PI()/180)+SIN('Solar radiation and angles'!I86*PI()/180)*SIN('Radiation data'!$L$26*PI()/180))*180/PI() -> 87.04612531 | P86: =IF(N86=0,0,ACOS((COS(I86*PI()/180)*COS(N86*PI()/180)*SIN('Radiation data'!$L$26*PI()/180)-SIN(I86*PI()/180)*COS('Radiation data'!$L$26*PI()/180))/COS(O86*PI()/180))*N86/ABS(N86)*180/PI()) -> -86.78556967 | Q86: =ACOS(COS(O86*PI()/180)*SIN(Input!$J$5*PI()/180)*COS(('Solar radiation and angles'!P86-Input!$B$3)*PI()/180)+SIN('Solar radiation and angles'!O86*PI()/180)*COS(Input!$J$5*PI()/180))*180/PI() -> 25.32681568 | R86: 62.08248629 | S86: 56.11526905 | T86: =F86*(1+COS(Input!$J$5*PI()/180))/2 -> 481.3427162 | U86: ='Radiation data'!$L$29*E86*(1-COS(Input!$J$5*PI()/180))/2 -> 5.312348475 | V86: 542.7703338
A87: 4 | B87: 13 | C87: 0.5824 | D87: 4.5824 | E87: =IF(Input!$B$1=1,'Radiation data'!A88,IF(Input!$B$1=2,'Radiation data'!D88,IF(Input!$B$1=3,'Radiation data'!G88,"Wrong input"))) -> 707 | F87: =IF(Input!$B$1=1,'Radiation data'!B88,IF(Input!$B$1=2,'Radiation data'!E88,IF(Input!$B$1=3,'Radiation data'!H88,"Wrong input"))) -> 498 | G87: 209 | H87: =IF(Input!$B$1=1,'Radiation data'!C88,IF(Input!$B$1=2,'Radiation data'!F88,IF(Input!$B$1=3,'Radiation data'!I88,"Wrong input"))) -> 29.5 | I87: -22.68976293 | J87: 3.533326027 | K87: -4.485868992 | L87: =4*('Radiation data'!$L$27-'Radiation data'!$L$28)+K87 -> -12.80586899 | M87: 12.78656885 | N87: 11.79853275 | O87: =ASIN(COS(I87*PI()/180)*COS(N87*PI()/180)*COS('Radiation data'!$L$26*PI()/180)+SIN('Solar radiation and angles'!I87*PI()/180)*SIN('Radiation data'!$L$26*PI()/180))*180/PI() -> 79.11153208 | P87: =IF(N87=0,0,ACOS((COS(I87*PI()/180)*COS(N87*PI()/180)*SIN('Radiation data'!$L$26*PI()/180)-SIN(I87*PI()/180)*COS('Radiation data'!$L$26*PI()/180))/COS(O87*PI()/180))*N87/ABS(N87)*180/PI()) -> 87.04347464 | Q87: =ACOS(COS(O87*PI()/180)*SIN(Input!$J$5*PI()/180)*COS(('Solar radiation and angles'!P87-Input!$B$3)*PI()/180)+SIN('Solar radiation and angles'!O87*PI()/180)*COS(Input!$J$5*PI()/180))*180/PI() -> 27.64076469 | R87: 212.8316611 | S87: 188.5419774 | T87: =F87*(1+COS(Input!$J$5*PI()/180))/2 -> 474.670639 | U87: ='Radiation data'!$L$29*E87*(1-COS(Input!$J$5*PI()/180))/2 -> 6.624039457 | V87: 669.8366559
A88: 4 | B88: 14 | C88: 0.624 | D88: 4.624 | E88: =IF(Input!$B$1=1,'Radiation data'!A89,IF(Input!$B$1=2,'Radiation data'!D89,IF(Input!$B$1=3,'Radiation data'!G89,"Wrong input"))) -> 600 | F88: =IF(Input!$B$1=1,'Radiation data'!B89,IF(Input!$B$1=2,'Radiation data'!E89,IF(Input!$B$1=3,'Radiation data'!H89,"Wrong input"))) -> 464 | G88: 136 | H88: =IF(Input!$B$1=1,'Radiation data'!C89,IF(Input!$B$1=2,'Radiation data'!F89,IF(Input!$B$1=3,'Radiation data'!I89,"Wrong input"))) -> 29.5 | I88: -22.68551587 | J88: 3.574356164 | K88: -4.503868743 | L88: =4*('Radiation data'!$L$27-'Radiation data'!$L$28)+K88 -> -12.82386874 | M88: 13.78626885 | N88: 26.79403281 | O88: =ASIN(COS(I88*PI()/180)*COS(N88*PI()/180)*COS('Radiation data'!$L$26*PI()/180)+SIN('Solar radiation and angles'!I88*PI()/180)*SIN('Radiation data'!$L$26*PI()/180))*180/PI() -> 65.30122017 | P88: =IF(N88=0,0,ACOS((COS(I88*PI()/180)*COS(N88*PI()/180)*SIN('Radiation data'!$L$26*PI()/180)-SIN(I88*PI()/180)*COS('Radiation data'!$L$26*PI()/180))/COS(O88*PI()/180))*N88/ABS(N88)*180/PI()) -> 84.47981974 | Q88: =ACOS(COS(O88*PI()/180)*SIN(Input!$J$5*PI()/180)*COS(('Solar radiation and angles'!P88-Input!$B$3)*PI()/180)+SIN('Solar radiation and angles'!O88*PI()/180)*COS(Input!$J$5*PI()/180))*180/PI() -> 36.2534709 | R88: 149.6944896 | S88: 120.714951 | T88: =F88*(1+COS(Input!$J$5*PI()/180))/2 -> 442.2634066 | U88: ='Radiation data'!$L$29*E88*(1-COS(Input!$J$5*PI()/180))/2 -> 5.621532778 | V88: 568.5998904
A89: 4 | B89: 15 | C89: 0.6656 | D89: 4.6656 | E89: =IF(Input!$B$1=1,'Radiation data'!A90,IF(Input!$B$1=2,'Radiation data'!D90,IF(Input!$B$1=3,'Radiation data'!G90,"Wrong input"))) -> 474 | F89: =IF(Input!$B$1=1,'Radiation data'!B90,IF(Input!$B$1=2,'Radiation data'!E90,IF(Input!$B$1=3,'Radiation data'!H90,"Wrong input"))) -> 395 | G89: 79 | H89: =IF(Input!$B$1=1,'Radiation data'!C90,IF(Input!$B$1=2,'Radiation data'!F90,IF(Input!$B$1=3,'Radiation data'!I90,"Wrong input"))) -> 29 | I89: -22.68125719 | J89: 3.615386301 | K89: -4.521859269 | L89: =4*('Radiation data'!$L$27-'Radiation data'!$L$28)+K89 -> -12.84185927 | M89: 14.78596901 | N89: 41.78953518 | O89: =ASIN(COS(I89*PI()/180)*COS(N89*PI()/180)*COS('Radiation data'!$L$26*PI()/180)+SIN('Solar radiation and angles'!I89*PI()/180)*SIN('Radiation data'!$L$26*PI()/180))*180/PI() -> 51.5574222 | P89: =IF(N89=0,0,ACOS((COS(I89*PI()/180)*COS(N89*PI()/180)*SIN('Radiation data'!$L$26*PI()/180)-SIN(I89*PI()/180)*COS('Radiation data'!$L$26*PI()/180))/COS(O89*PI()/180))*N89/ABS(N89)*180/PI()) -> 81.47462533 | Q89: =ACOS(COS(O89*PI()/180)*SIN(Input!$J$5*PI()/180)*COS(('Solar radiation and angles'!P89-Input!$B$3)*PI()/180)+SIN('Solar radiation and angles'!O89*PI()/180)*COS(Input!$J$5*PI()/180))*180/PI() -> 47.86372209 | R89: 100.8641566 | S89: 67.66938751 | T89: =F89*(1+COS(Input!$J$5*PI()/180))/2 -> 376.4957879 | U89: ='Radiation data'!$L$29*E89*(1-COS(Input!$J$5*PI()/180))/2 -> 4.441010894 | V89: 448.6061863
A90: 4 | B90: 16 | C90: 0.7072 | D90: 4.7072 | E90: =IF(Input!$B$1=1,'Radiation data'!A91,IF(Input!$B$1=2,'Radiation data'!D91,IF(Input!$B$1=3,'Radiation data'!G91,"Wrong input"))) -> 331 | F90: =IF(Input!$B$1=1,'Radiation data'!B91,IF(Input!$B$1=2,'Radiation data'!E91,IF(Input!$B$1=3,'Radiation data'!H91,"Wrong input"))) -> 308 | G90: 23 | H90: =IF(Input!$B$1=1,'Radiation data'!C91,IF(Input!$B$1=2,'Radiation data'!F91,IF(Input!$B$1=3,'Radiation data'!I91,"Wrong input"))) -> 28.2 | I90: -22.67698687 | J90: 3.656416438 | K90: -4.539840539 | L90: =4*('Radiation data'!$L$27-'Radiation data'!$L$28)+K90 -> -12.85984054 | M90: 15.78566932 | N90: 56.78503987 | O90: =ASIN(COS(I90*PI()/180)*COS(N90*PI()/180)*COS('Radiation data'!$L$26*PI()/180)+SIN('Solar radiation and angles'!I90*PI()/180)*SIN('Radiation data'!$L$26*PI()/180))*180/PI() -> 37.92784324 | P90: =IF(N90=0,0,ACOS((COS(I90*PI()/180)*COS(N90*PI()/180)*SIN('Radiation data'!$L$26*PI()/180)-SIN(I90*PI()/180)*COS('Radiation data'!$L$26*PI()/180))/COS(O90*PI()/180))*N90/ABS(N90)*180/PI()) -> 78.13915339 | Q90: =ACOS(COS(O90*PI()/180)*SIN(Input!$J$5*PI()/180)*COS(('Solar radiation and angles'!P90-Input!$B$3)*PI()/180)+SIN('Solar radiation and angles'!O90*PI()/180)*COS(Input!$J$5*PI()/180))*180/PI() -> 60.75384943 | R90: 37.41853815 | S90: 18.28129909 | T90: =F90*(1+COS(Input!$J$5*PI()/180))/2 -> 293.5713992 | U90: ='Radiation data'!$L$29*E90*(1-COS(Input!$J$5*PI()/180))/2 -> 3.101212249 | V90: 314.9539105
A91: 4 | B91: 17 | C91: 0.7488 | D91: 4.7488 | E91: =IF(Input!$B$1=1,'Radiation data'!A92,IF(Input!$B$1=2,'Radiation data'!D92,IF(Input!$B$1=3,'Radiation data'!G92,"Wrong input"))) -> 252 | F91: =IF(Input!$B$1=1,'Radiation data'!B92,IF(Input!$B$1=2,'Radiation data'!E92,IF(Input!$B$1=3,'Radiation data'!H92,"Wrong input"))) -> 219 | G91: 33 | H91: =IF(Input!$B$1=1,'Radiation data'!C92,IF(Input!$B$1=2,'Radiation data'!F92,IF(Input!$B$1=3,'Radiation data'!I92,"Wrong input"))) -> 27.4 | I91: -22.67270492 | J91: 3.697446575 | K91: -4.557812526 | L91: =4*('Radiation data'!$L$27-'Radiation data'!$L$28)+K91 -> -12.87781253 | M91: 16.78536979 | N91: 71.78054687 | O91: =ASIN(COS(I91*PI()/180)*COS(N91*PI()/180)*COS('Radiation data'!$L$26*PI()/180)+SIN('Solar radiation and angles'!I91*PI()/180)*SIN('Radiation data'!$L$26*PI()/180))*180/PI() -> 24.47550266 | P91: =IF(N91=0,0,ACOS((COS(I91*PI()/180)*COS(N91*PI()/180)*SIN('Radiation data'!$L$26*PI()/180)-SIN(I91*PI()/180)*COS('Radiation data'!$L$26*PI()/180))/COS(O91*PI()/180))*N91/ABS(N91)*180/PI()) -> 74.36509203 | Q91: =ACOS(COS(O91*PI()/180)*SIN(Input!$J$5*PI()/180)*COS(('Solar radiation and angles'!P91-Input!$B$3)*PI()/180)+SIN('Solar radiation and angles'!O91*PI()/180)*COS(Input!$J$5*PI()/180))*180/PI() -> 74.22718067 | R91: 79.65162939 | S91: 21.65120441 | T91: =F91*(1+COS(Input!$J$5*PI()/180))/2 -> 208.7407027 | U91: ='Radiation data'!$L$29*E91*(1-COS(Input!$J$5*PI()/180))/2 -> 2.361043767 | V91: 232.7529509
A92: 4 | B92: 18 | C92: 0.7904 | D92: 4.7904 | E92: =IF(Input!$B$1=1,'Radiation data'!A93,IF(Input!$B$1=2,'Radiation data'!D93,IF(Input!$B$1=3,'Radiation data'!G93,"Wrong input"))) -> 121 | F92: =IF(Input!$B$1=1,'Radiation data'!B93,IF(Input!$B$1=2,'Radiation data'!E93,IF(Input!$B$1=3,'Radiation data'!H93,"Wrong input"))) -> 98 | G92: 23 | H92: =IF(Input!$B$1=1,'Radiation data'!C93,IF(Input!$B$1=2,'Radiation data'!F93,IF(Input!$B$1=3,'Radiation data'!I93,"Wrong input"))) -> 26.3 | I92: -22.66841134 | J92: 3.738476712 | K92: -4.575775201 | L92: =4*('Radiation data'!$L$27-'Radiation data'!$L$28)+K92 -> -12.8957752 | M92: 17.78507041 | N92: 86.7760562 | O92: =ASIN(COS(I92*PI()/180)*COS(N92*PI()/180)*COS('Radiation data'!$L$26*PI()/180)+SIN('Solar radiation and angles'!I92*PI()/180)*SIN('Radiation data'!$L$26*PI()/180))*180/PI() -> 11.29036683 | P92: =IF(N92=0,0,ACOS((COS(I92*PI()/180)*COS(N92*PI()/180)*SIN('Radiation data'!$L$26*PI()/180)-SIN(I92*PI()/180)*COS('Radiation data'!$L$26*PI()/180))/COS(O92*PI()/180))*N92/ABS(N92)*180/PI()) -> 69.9629657 | Q92: =ACOS(COS(O92*PI()/180)*SIN(Input!$J$5*PI()/180)*COS(('Solar radiation and angles'!P92-Input!$B$3)*PI()/180)+SIN('Solar radiation and angles'!O92*PI()/180)*COS(Input!$J$5*PI()/180))*180/PI() -> 87.96902897 | R92: 117.4780405 | S92: 4.163387538 | T92: =F92*(1+COS(Input!$J$5*PI()/180))/2 -> 93.40908156 | U92: ='Radiation data'!$L$29*E92*(1-COS(Input!$J$5*PI()/180))/2 -> 1.133675777 | V92: 98.70614488
A93: 4 | B93: 19 | C93: 0.832 | D93: 4.832 | E93: =IF(Input!$B$1=1,'Radiation data'!A94,IF(Input!$B$1=2,'Radiation data'!D94,IF(Input!$B$1=3,'Radiation data'!G94,"Wrong input"))) -> 3 | F93: =IF(Input!$B$1=1,'Radiation data'!B94,IF(Input!$B$1=2,'Radiation data'!E94,IF(Input!$B$1=3,'Radiation data'!H94,"Wrong input"))) -> 3 | G93: 0 | H93: =IF(Input!$B$1=1,'Radiation data'!C94,IF(Input!$B$1=2,'Radiation data'!F94,IF(Input!$B$1=3,'Radiation data'!I94,"Wrong input"))) -> 25.2 | I93: -22.66410614 | J93: 3.779506849 | K93: -4.593728534 | L93: =4*('Radiation data'!$L$27-'Radiation data'!$L$28)+K93 -> -12.91372853 | M93: 18.78477119 | N93: 101.7715679 | O93: =ASIN(COS(I93*PI()/180)*COS(N93*PI()/180)*COS('Radiation data'!$L$26*PI()/180)+SIN('Solar radiation and angles'!I93*PI()/180)*SIN('Radiation data'!$L$26*PI()/180))*180/PI() -> -1.490973107 | P93: =IF(N93=0,0,ACOS((COS(I93*PI()/180)*COS(N93*PI()/180)*SIN('Radiation data'!$L$26*PI()/180)-SIN(I93*PI()/180)*COS('Radiation data'!$L$26*PI()/180))/COS(O93*PI()/180))*N93/ABS(N93)*180/PI()) -> 64.64587041 | Q93: =ACOS(COS(O93*PI()/180)*SIN(Input!$J$5*PI()/180)*COS(('Solar radiation and angles'!P93-Input!$B$3)*PI()/180)+SIN('Solar radiation and angles'!O93*PI()/180)*COS(Input!$J$5*PI()/180))*180/PI() -> 101.7996743 | R93: 0 | S93: 0 | T93: =F93*(1+COS(Input!$J$5*PI()/180))/2 -> 2.859461681 | U93: ='Radiation data'!$L$29*E93*(1-COS(Input!$J$5*PI()/180))/2 -> 0.02810766389 | V93: 2.887569344
A94: 4 | B94: 20 | C94: 0.8736 | D94: 4.8736 | E94: =IF(Input!$B$1=1,'Radiation data'!A95,IF(Input!$B$1=2,'Radiation data'!D95,IF(Input!$B$1=3,'Radiation data'!G95,"Wrong input"))) -> 0 | F94: =IF(Input!$B$1=1,'Radiation data'!B95,IF(Input!$B$1=2,'Radiation data'!E95,IF(Input!$B$1=3,'Radiation data'!H95,"Wrong input"))) -> 0 | G94: 0 | H94: =IF(Input!$B$1=1,'Radiation data'!C95,IF(Input!$B$1=2,'Radiation data'!F95,IF(Input!$B$1=3,'Radiation data'!I95,"Wrong input"))) -> 24.2 | I94: -22.65978932 | J94: 3.820536986 | K94: -4.611672497 | L94: =4*('Radiation data'!$L$27-'Radiation data'!$L$28)+K94 -> -12.9316725 | M94: 19.78447213 | N94: 116.7670819 | O94: =ASIN(COS(I94*PI()/180)*COS(N94*PI()/180)*COS('Radiation data'!$L$26*PI()/180)+SIN('Solar radiation and angles'!I94*PI()/180)*SIN('Radiation data'!$L$26*PI()/180))*180/PI() -> -13.65017923 | P94: =IF(N94=0,0,ACOS((COS(I94*PI()/180)*COS(N94*PI()/180)*SIN('Radiation data'!$L$26*PI()/180)-SIN(I94*PI()/180)*COS('Radiation data'!$L$26*PI()/180))/COS(O94*PI()/180))*N94/ABS(N94)*180/PI()) -> 57.9811065 | Q94: =ACOS(COS(O94*PI()/180)*SIN(Input!$J$5*PI()/180)*COS(('Solar radiation and angles'!P94-Input!$B$3)*PI()/180)+SIN('Solar radiation and angles'!O94*PI()/180)*COS(Input!$J$5*PI()/180))*180/PI() -> 115.570749 | R94: 0 | S94: 0 | T94: =F94*(1+COS(Input!$J$5*PI()/180))/2 -> 0 | U94: ='Radiation data'!$L$29*E94*(1-COS(Input!$J$5*PI()/180))/2 -> 0 | V94: 0
A95: 4 | B95: 21 | C95: 0.9152 | D95: 4.9152 | E95: =IF(Input!$B$1=1,'Radiation data'!A96,IF(Input!$B$1=2,'Radiation data'!D96,IF(Input!$B$1=3,'Radiation data'!G96,"Wrong input"))) -> 0 | F95: =IF(Input!$B$1=1,'Radiation data'!B96,IF(Input!$B$1=2,'Radiation data'!E96,IF(Input!$B$1=3,'Radiation data'!H96,"Wrong input"))) -> 0 | G95: 0 | H95: =IF(Input!$B$1=1,'Radiation data'!C96,IF(Input!$B$1=2,'Radiation data'!F96,IF(Input!$B$1=3,'Radiation data'!I96,"Wrong input"))) -> 23.2 | I95: -22.65546088 | J95: 3.861567123 | K95: -4.629607062 | L95: =4*('Radiation data'!$L$27-'Radiation data'!$L$28)+K95 -> -12.94960706 | M95: 20.78417322 | N95: 131.7625982 | O95: =ASIN(COS(I95*PI()/180)*COS(N95*PI()/180)*COS('Radiation data'!$L$26*PI()/180)+SIN('Solar radiation and angles'!I95*PI()/180)*SIN('Radiation data'!$L$26*PI()/180))*180/PI() -> -24.82448336 | P95: =IF(N95=0,0,ACOS((COS(I95*PI()/180)*COS(N95*PI()/180)*SIN('Radiation data'!$L$26*PI()/180)-SIN(I95*PI()/180)*COS('Radiation data'!$L$26*PI()/180))/COS(O95*PI()/180))*N95/ABS(N95)*180/PI()) -> 49.32648283 | Q95: =ACOS(COS(O95*PI()/180)*SIN(Input!$J$5*PI()/180)*COS(('Solar radiation and angles'!P95-Input!$B$3)*PI()/180)+SIN('Solar radiation and angles'!O95*PI()/180)*COS(Input!$J$5*PI()/180))*180/PI() -> 129.0865468 | R95: 0 | S95: 0 | T95: =F95*(1+COS(Input!$J$5*PI()/180))/2 -> 0 | U95: ='Radiation data'!$L$29*E95*(1-COS(Input!$J$5*PI()/180))/2 -> 0 | V95: 0
A96: 4 | B96: 22 | C96: 0.9568 | D96: 4.9568 | E96: =IF(Input!$B$1=1,'Radiation data'!A97,IF(Input!$B$1=2,'Radiation data'!D97,IF(Input!$B$1=3,'Radiation data'!G97,"Wrong input"))) -> 0 | F96: =IF(Input!$B$1=1,'Radiation data'!B97,IF(Input!$B$1=2,'Radiation data'!E97,IF(Input!$B$1=3,'Radiation data'!H97,"Wrong input"))) -> 0 | G96: 0 | H96: =IF(Input!$B$1=1,'Radiation data'!C97,IF(Input!$B$1=2,'Radiation data'!F97,IF(Input!$B$1=3,'Radiation data'!I97,"Wrong input"))) -> 22.2 | I96: -22.65112082 | J96: 3.90259726 | K96: -4.6475322 | L96: =4*('Radiation data'!$L$27-'Radiation data'!$L$28)+K96 -> -12.9675322 | M96: 21.78387446 | N96: 146.758117 | O96: =ASIN(COS(I96*PI()/180)*COS(N96*PI()/180)*COS('Radiation data'!$L$26*PI()/180)+SIN('Solar radiation and angles'!I96*PI()/180)*SIN('Radiation data'!$L$26*PI()/180))*180/PI() -> -34.40492546 | P96: =IF(N96=0,0,ACOS((COS(I96*PI()/180)*COS(N96*PI()/180)*SIN('Radiation data'!$L$26*PI()/180)-SIN(I96*PI()/180)*COS('Radiation data'!$L$26*PI()/180))/COS(O96*PI()/180))*N96/ABS(N96)*180/PI()) -> 37.81795361 | Q96: =ACOS(COS(O96*PI()/180)*SIN(Input!$J$5*PI()/180)*COS(('Solar radiation and angles'!P96-Input!$B$3)*PI()/180)+SIN('Solar radiation and angles'!O96*PI()/180)*COS(Input!$J$5*PI()/180))*180/PI() -> 141.9569996 | R96: 0 | S96: 0 | T96: =F96*(1+COS(Input!$J$5*PI()/180))/2 -> 0 | U96: ='Radiation data'!$L$29*E96*(1-COS(Input!$J$5*PI()/180))/2 -> 0 | V96: 0
A97: 4 | B97: 23 | C97: 0.9984 | D97: 4.9984 | E97: =IF(Input!$B$1=1,'Radiation data'!A98,IF(Input!$B$1=2,'Radiation data'!D98,IF(Input!$B$1=3,'Radiation data'!G98,"Wrong input"))) -> 0 | F97: =IF(Input!$B$1=1,'Radiation data'!B98,IF(Input!$B$1=2,'Radiation data'!E98,IF(Input!$B$1=3,'Radiation data'!H98,"Wrong input"))) -> 0 | G97: 0 | H97: =IF(Input!$B$1=1,'Radiation data'!C98,IF(Input!$B$1=2,'Radiation data'!F98,IF(Input!$B$1=3,'Radiation data'!I98,"Wrong input"))) -> 21.3 | I97: -22.64676914 | J97: 3.943627397 | K97: -4.665447881 | L97: =4*('Radiation data'!$L$27-'Radiation data'!$L$28)+K97 -> -12.98544788 | M97: 22.78357587 | N97: 161.753638 | O97: =ASIN(COS(I97*PI()/180)*COS(N97*PI()/180)*COS('Radiation data'!$L$26*PI()/180)+SIN('Solar radiation and angles'!I97*PI()/180)*SIN('Radiation data'!$L$26*PI()/180))*180/PI() -> -41.42943676 | P97: =IF(N97=0,0,ACOS((COS(I97*PI()/180)*COS(N97*PI()/180)*SIN('Radiation data'!$L$26*PI()/180)-SIN(I97*PI()/180)*COS('Radiation data'!$L$26*PI()/180))/COS(O97*PI()/180))*N97/ABS(N97)*180/PI()) -> 22.66859287 | Q97: =ACOS(COS(O97*PI()/180)*SIN(Input!$J$5*PI()/180)*COS(('Solar radiation and angles'!P97-Input!$B$3)*PI()/180)+SIN('Solar radiation and angles'!O97*PI()/180)*COS(Input!$J$5*PI()/180))*180/PI() -> 153.1370816 | R97: 0 | S97: 0 | T97: =F97*(1+COS(Input!$J$5*PI()/180))/2 -> 0 | U97: ='Radiation data'!$L$29*E97*(1-COS(Input!$J$5*PI()/180))/2 -> 0 | V97: 0
A98: 5 | B98: 0.0001 | C98: 0.0416 | D98: 5.0416 | E98: =IF(Input!$B$1=1,'Radiation data'!A99,IF(Input!$B$1=2,'Radiation data'!D99,IF(Input!$B$1=3,'Radiation data'!G99,"Wrong input"))) -> 0 | F98: =IF(Input!$B$1=1,'Radiation data'!B99,IF(Input!$B$1=2,'Radiation data'!E99,IF(Input!$B$1=3,'Radiation data'!H99,"Wrong input"))) -> 0 | G98: 0 | H98: =IF(Input!$B$1=1,'Radiation data'!C99,IF(Input!$B$1=2,'Radiation data'!F99,IF(Input!$B$1=3,'Radiation data'!I99,"Wrong input"))) -> 20.7 | I98: -22.6422378 | J98: 3.986235616 | K98: -4.684042589 | L98: =4*('Radiation data'!$L$27-'Radiation data'!$L$28)+K98 -> -13.00404259 | M98: -0.2166340431 | N98: -183.2495106 | O98: =ASIN(COS(I98*PI()/180)*COS(N98*PI()/180)*COS('Radiation data'!$L$26*PI()/180)+SIN('Solar radiation and angles'!I98*PI()/180)*SIN('Radiation data'!$L$26*PI()/180))*180/PI() -> -44.68721883 | P98: =IF(N98=0,0,ACOS((COS(I98*PI()/180)*COS(N98*PI()/180)*SIN('Radiation data'!$L$26*PI()/180)-SIN(I98*PI()/180)*COS('Radiation data'!$L$26*PI()/180))/COS(O98*PI()/180))*N98/ABS(N98)*180/PI()) -> -4.219899176 | Q98: =ACOS(COS(O98*PI()/180)*SIN(Input!$J$5*PI()/180)*COS(('Solar radiation and angles'!P98-Input!$B$3)*PI()/180)+SIN('Solar radiation and angles'!O98*PI()/180)*COS(Input!$J$5*PI()/180))*180/PI() -> 159.5531999 | R98: 0 | S98: 0 | T98: =F98*(1+COS(Input!$J$5*PI()/180))/2 -> 0 | U98: ='Radiation data'!$L$29*E98*(1-COS(Input!$J$5*PI()/180))/2 -> 0 | V98: 0
A99: 5 | B99: 1 | C99: 0.0832 | D99: 5.0832 | E99: =IF(Input!$B$1=1,'Radiation data'!A100,IF(Input!$B$1=2,'Radiation data'!D100,IF(Input!$B$1=3,'Radiation data'!G100,"Wrong input"))) -> 0 | F99: =IF(Input!$B$1=1,'Radiation data'!B100,IF(Input!$B$1=2,'Radiation data'!E100,IF(Input!$B$1=3,'Radiation data'!H100,"Wrong input"))) -> 0 | G99: 0 | H99: =IF(Input!$B$1=1,'Radiation data'!C100,IF(Input!$B$1=2,'Radiation data'!F100,IF(Input!$B$1=3,'Radiation data'!I100,"Wrong input"))) -> 20.2 | I99: -22.63786245 | J99: 4.027265753 | K99: -4.701938906 | L99: =4*('Radiation data'!$L$27-'Radiation data'!$L$28)+K99 -> -13.02193891 | M99: 0.7829676849 | N99: -168.2554847 | O99: =ASIN(COS(I99*PI()/180)*COS(N99*PI()/180)*COS('Radiation data'!$L$26*PI()/180)+SIN('Solar radiation and angles'!I99*PI()/180)*SIN('Radiation data'!$L$26*PI()/180))*180/PI() -> -43.37868168 | P99: =IF(N99=0,0,ACOS((COS(I99*PI()/180)*COS(N99*PI()/180)*SIN('Radiation data'!$L$26*PI()/180)-SIN(I99*PI()/180)*COS('Radiation data'!$L$26*PI()/180))/COS(O99*PI()/180))*N99/ABS(N99)*180/PI()) -> -14.97946552 | Q99: =ACOS(COS(O99*PI()/180)*SIN(Input!$J$5*PI()/180)*COS(('Solar radiation and angles'!P99-Input!$B$3)*PI()/180)+SIN('Solar radiation and angles'!O99*PI()/180)*COS(Input!$J$5*PI()/180))*180/PI() -> 156.8095957 | R99: 0 | S99: 0 | T99: =F99*(1+COS(Input!$J$5*PI()/180))/2 -> 0 | U99: ='Radiation data'!$L$29*E99*(1-COS(Input!$J$5*PI()/180))/2 -> 0 | V99: 0
A100: 5 | B100: 2 | C100: 0.1248 | D100: 5.1248 | E100: =IF(Input!$B$1=1,'Radiation data'!A101,IF(Input!$B$1=2,'Radiation data'!D101,IF(Input!$B$1=3,'Radiation data'!G101,"Wrong input"))) -> 0 | F100: =IF(Input!$B$1=1,'Radiation data'!B101,IF(Input!$B$1=2,'Radiation data'!E101,IF(Input!$B$1=3,'Radiation data'!H101,"Wrong input"))) -> 0 | G100: 0 | H100: =IF(Input!$B$1=1,'Radiation data'!C101,IF(Input!$B$1=2,'Radiation data'!F101,IF(Input!$B$1=3,'Radiation data'!I101,"Wrong input"))) -> 19.6 | I100: -22.6334755 | J100: 4.06829589 | K100: -4.719825681 | L100: =4*('Radiation data'!$L$27-'Radiation data'!$L$28)+K100 -> -13.03982568 | M100: 1.782669572 | N100: -153.2599564 | O100: =ASIN(COS(I100*PI()/180)*COS(N100*PI()/180)*COS('Radiation data'!$L$26*PI()/180)+SIN('Solar radiation and angles'!I100*PI()/180)*SIN('Radiation data'!$L$26*PI()/180))*180/PI() -> -37.84747094 | P100: =IF(N100=0,0,ACOS((COS(I100*PI()/180)*COS(N100*PI()/180)*SIN('Radiation data'!$L$26*PI()/180)-SIN(I100*PI()/180)*COS('Radiation data'!$L$26*PI()/180))/COS(O100*PI()/180))*N100/ABS(N100)*180/PI()) -> -31.73019818 | Q100: =ACOS(COS(O100*PI()/180)*SIN(Input!$J$5*PI()/180)*COS(('Solar radiation and angles'!P100-Input!$B$3)*PI()/180)+SIN('Solar radiation and angles'!O100*PI()/180)*COS(Input!$J$5*PI()/180))*180/PI() -> 147.1311577 | R100: 0 | S100: 0 | T100: =F100*(1+COS(Input!$J$5*PI()/180))/2 -> 0 | U100: ='Radiation data'!$L$29*E100*(1-COS(Input!$J$5*PI()/180))/2 -> 0 | V100: 0
A101: 5 | B101: 3 | C101: 0.1664 | D101: 5.1664 | E101: =IF(Input!$B$1=1,'Radiation data'!A102,IF(Input!$B$1=2,'Radiation data'!D102,IF(Input!$B$1=3,'Radiation data'!G102,"Wrong input"))) -> 0 | F101: =IF(Input!$B$1=1,'Radiation data'!B102,IF(Input!$B$1=2,'Radiation data'!E102,IF(Input!$B$1=3,'Radiation data'!H102,"Wrong input"))) -> 0 | G101: 0 | H101: =IF(Input!$B$1=1,'Radiation data'!C102,IF(Input!$B$1=2,'Radiation data'!F102,IF(Input!$B$1=3,'Radiation data'!I102,"Wrong input"))) -> 19.3 | I101: -22.62907693 | J101: 4.109326027 | K101: -4.737702884 | L101: =4*('Radiation data'!$L$27-'Radiation data'!$L$28)+K101 -> -13.05770288 | M101: 2.782371619 | N101: -138.2644257 | O101: =ASIN(COS(I101*PI()/180)*COS(N101*PI()/180)*COS('Radiation data'!$L$26*PI()/180)+SIN('Solar radiation and angles'!I101*PI()/180)*SIN('Radiation data'!$L$26*PI()/180))*180/PI() -> -29.2391252 | P101: =IF(N101=0,0,ACOS((COS(I101*PI()/180)*COS(N101*PI()/180)*SIN('Radiation data'!$L$26*PI()/180)-SIN(I101*PI()/180)*COS('Radiation data'!$L$26*PI()/180))/COS(O101*PI()/180))*N101/ABS(N101)*180/PI()) -> -44.76202998 | Q101: =ACOS(COS(O101*PI()/180)*SIN(Input!$J$5*PI()/180)*COS(('Solar radiation and angles'!P101-Input!$B$3)*PI()/180)+SIN('Solar radiation and angles'!O101*PI()/180)*COS(Input!$J$5*PI()/180))*180/PI() -> 134.791833 | R101: 0 | S101: 0 | T101: =F101*(1+COS(Input!$J$5*PI()/180))/2 -> 0 | U101: ='Radiation data'!$L$29*E101*(1-COS(Input!$J$5*PI()/180))/2 -> 0 | V101: 0
A102: 5 | B102: 4 | C102: 0.208 | D102: 5.208 | E102: =IF(Input!$B$1=1,'Radiation data'!A103,IF(Input!$B$1=2,'Radiation data'!D103,IF(Input!$B$1=3,'Radiation data'!G103,"Wrong input"))) -> 0 | F102: =IF(Input!$B$1=1,'Radiation data'!B103,IF(Input!$B$1=2,'Radiation data'!E103,IF(Input!$B$1=3,'Radiation data'!H103,"Wrong input"))) -> 0 | G102: 0 | H102: =IF(Input!$B$1=1,'Radiation data'!C103,IF(Input!$B$1=2,'Radiation data'!F103,IF(Input!$B$1=3,'Radiation data'!I103,"Wrong input"))) -> 19 | I102: -22.62466676 | J102: 4.150356164 | K102: -4.755570488 | L102: =4*('Radiation data'!$L$27-'Radiation data'!$L$28)+K102 -> -13.07557049 | M102: 3.782073825 | N102: -123.2688926 | O102: =ASIN(COS(I102*PI()/180)*COS(N102*PI()/180)*COS('Radiation data'!$L$26*PI()/180)+SIN('Solar radiation and angles'!I102*PI()/180)*SIN('Radiation data'!$L$26*PI()/180))*180/PI() -> -18.66407173 | P102: =IF(N102=0,0,ACOS((COS(I102*PI()/180)*COS(N102*PI()/180)*SIN('Radiation data'!$L$26*PI()/180)-SIN(I102*PI()/180)*COS('Radiation data'!$L$26*PI()/180))/COS(O102*PI()/180))*N102/ABS(N102)*180/PI()) -> -54.54798196 | Q102: =ACOS(COS(O102*PI()/180)*SIN(Input!$J$5*PI()/180)*COS(('Solar radiation and angles'!P102-Input!$B$3)*PI()/180)+SIN('Solar radiation and angles'!O102*PI()/180)*COS(Input!$J$5*PI()/180))*180/PI() -> 121.4847874 | R102: 0 | S102: 0 | T102: =F102*(1+COS(Input!$J$5*PI()/180))/2 -> 0 | U102: ='Radiation data'!$L$29*E102*(1-COS(Input!$J$5*PI()/180))/2 -> 0 | V102: 0
A103: 5 | B103: 5 | C103: 0.2496 | D103: 5.2496 | E103: =IF(Input!$B$1=1,'Radiation data'!A104,IF(Input!$B$1=2,'Radiation data'!D104,IF(Input!$B$1=3,'Radiation data'!G104,"Wrong input"))) -> 0 | F103: =IF(Input!$B$1=1,'Radiation data'!B104,IF(Input!$B$1=2,'Radiation data'!E104,IF(Input!$B$1=3,'Radiation data'!H104,"Wrong input"))) -> 0 | G103: 0 | H103: =IF(Input!$B$1=1,'Radiation data'!C104,IF(Input!$B$1=2,'Radiation data'!F104,IF(Input!$B$1=3,'Radiation data'!I104,"Wrong input"))) -> 18.8 | I103: -22.62024499 | J103: 4.191386301 | K103: -4.773428463 | L103: =4*('Radiation data'!$L$27-'Radiation data'!$L$28)+K103 -> -13.09342846 | M103: 4.781776192 | N103: -108.2733571 | O103: =ASIN(COS(I103*PI()/180)*COS(N103*PI()/180)*COS('Radiation data'!$L$26*PI()/180)+SIN('Solar radiation and angles'!I103*PI()/180)*SIN('Radiation data'!$L$26*PI()/180))*180/PI() -> -6.8761033 | P103: =IF(N103=0,0,ACOS((COS(I103*PI()/180)*COS(N103*PI()/180)*SIN('Radiation data'!$L$26*PI()/180)-SIN(I103*PI()/180)*COS('Radiation data'!$L$26*PI()/180))/COS(O103*PI()/180))*N103/ABS(N103)*180/PI()) -> -61.99116748 | Q103: =ACOS(COS(O103*PI()/180)*SIN(Input!$J$5*PI()/180)*COS(('Solar radiation and angles'!P103-Input!$B$3)*PI()/180)+SIN('Solar radiation and angles'!O103*PI()/180)*COS(Input!$J$5*PI()/180))*180/PI() -> 107.7908334 | R103: 0 | S103: 0 | T103: =F103*(1+COS(Input!$J$5*PI()/180))/2 -> 0 | U103: ='Radiation data'!$L$29*E103*(1-COS(Input!$J$5*PI()/180))/2 -> 0 | V103: 0
A104: 5 | B104: 6 | C104: 0.2912 | D104: 5.2912 | E104: =IF(Input!$B$1=1,'Radiation data'!A105,IF(Input!$B$1=2,'Radiation data'!D105,IF(Input!$B$1=3,'Radiation data'!G105,"Wrong input"))) -> 19 | F104: =IF(Input!$B$1=1,'Radiation data'!B105,IF(Input!$B$1=2,'Radiation data'!E105,IF(Input!$B$1=3,'Radiation data'!H105,"Wrong input"))) -> 19 | G104: 0 | H104: =IF(Input!$B$1=1,'Radiation data'!C105,IF(Input!$B$1=2,'Radiation data'!F105,IF(Input!$B$1=3,'Radiation data'!I105,"Wrong input"))) -> 19.1 | I104: -22.61581162 | J104: 4.232416438 | K104: -4.79127678 | L104: =4*('Radiation data'!$L$27-'Radiation data'!$L$28)+K104 -> -13.11127678 | M104: 5.78147872 | N104: -93.2778192 | O104: =ASIN(COS(I104*PI()/180)*COS(N104*PI()/180)*COS('Radiation data'!$L$26*PI()/180)+SIN('Solar radiation and angles'!I104*PI()/180)*SIN('Radiation data'!$L$26*PI()/180))*180/PI() -> 5.66955339 | P104: =IF(N104=0,0,ACOS((COS(I104*PI()/180)*COS(N104*PI()/180)*SIN('Radiation data'!$L$26*PI()/180)-SIN(I104*PI()/180)*COS('Radiation data'!$L$26*PI()/180))/COS(O104*PI()/180))*N104/ABS(N104)*180/PI()) -> -67.83851486 | Q104: =ACOS(COS(O104*PI()/180)*SIN(Input!$J$5*PI()/180)*COS(('Solar radiation and angles'!P104-Input!$B$3)*PI()/180)+SIN('Solar radiation and angles'!O104*PI()/180)*COS(Input!$J$5*PI()/180))*180/PI() -> 93.96255312 | R104: 0 | S104: 0 | T104: =F104*(1+COS(Input!$J$5*PI()/180))/2 -> 18.10992398 | U104: ='Radiation data'!$L$29*E104*(1-COS(Input!$J$5*PI()/180))/2 -> 0.1780152046 | V104: 18.28793918
A105: 5 | B105: 7 | C105: 0.3328 | D105: 5.3328 | E105: =IF(Input!$B$1=1,'Radiation data'!A106,IF(Input!$B$1=2,'Radiation data'!D106,IF(Input!$B$1=3,'Radiation data'!G106,"Wrong input"))) -> 299 | F105: =IF(Input!$B$1=1,'Radiation data'!B106,IF(Input!$B$1=2,'Radiation data'!E106,IF(Input!$B$1=3,'Radiation data'!H106,"Wrong input"))) -> 163 | G105: 136 | H105: =IF(Input!$B$1=1,'Radiation data'!C106,IF(Input!$B$1=2,'Radiation data'!F106,IF(Input!$B$1=3,'Radiation data'!I106,"Wrong input"))) -> 21.6 | I105: -22.61136665 | J105: 4.273446575 | K105: -4.809115413 | L105: =4*('Radiation data'!$L$27-'Radiation data'!$L$28)+K105 -> -13.12911541 | M105: 6.78118141 | N105: -78.28227885 | O105: =ASIN(COS(I105*PI()/180)*COS(N105*PI()/180)*COS('Radiation data'!$L$26*PI()/180)+SIN('Solar radiation and angles'!I105*PI()/180)*SIN('Radiation data'!$L$26*PI()/180))*180/PI() -> 18.70154936 | P105: =IF(N105=0,0,ACOS((COS(I105*PI()/180)*COS(N105*PI()/180)*SIN('Radiation data'!$L$26*PI()/180)-SIN(I105*PI()/180)*COS('Radiation data'!$L$26*PI()/180))/COS(O105*PI()/180))*N105/ABS(N105)*180/PI()) -> -72.60767109 | Q105: =ACOS(COS(O105*PI()/180)*SIN(Input!$J$5*PI()/180)*COS(('Solar radiation and angles'!P105-Input!$B$3)*PI()/180)+SIN('Solar radiation and angles'!O105*PI()/180)*COS(Input!$J$5*PI()/180))*180/PI() -> 80.15746624 | R105: 424.1535428 | S105: 72.5052197 | T105: =F105*(1+COS(Input!$J$5*PI()/180))/2 -> 155.3640846 | U105: ='Radiation data'!$L$29*E105*(1-COS(Input!$J$5*PI()/180))/2 -> 2.801397168 | V105: 230.6707015
A106: 5 | B106: 8 | C106: 0.3744 | D106: 5.3744 | E106: =IF(Input!$B$1=1,'Radiation data'!A107,IF(Input!$B$1=2,'Radiation data'!D107,IF(Input!$B$1=3,'Radiation data'!G107,"Wrong input"))) -> 590 | F106: =IF(Input!$B$1=1,'Radiation data'!B107,IF(Input!$B$1=2,'Radiation data'!E107,IF(Input!$B$1=3,'Radiation data'!H107,"Wrong input"))) -> 119 | G106: 471 | H106: =IF(Input!$B$1=1,'Radiation data'!C107,IF(Input!$B$1=2,'Radiation data'!F107,IF(Input!$B$1=3,'Radiation data'!I107,"Wrong input"))) -> 24.3 | I106: -22.60691009 | J106: 4.314476712 | K106: -4.826944331 | L106: =4*('Radiation data'!$L$27-'Radiation data'!$L$28)+K106 -> -13.14694433 | M106: 7.780884261 | N106: -63.28673608 | O106: =ASIN(COS(I106*PI()/180)*COS(N106*PI()/180)*COS('Radiation data'!$L$26*PI()/180)+SIN('Solar radiation and angles'!I106*PI()/180)*SIN('Radiation data'!$L$26*PI()/180))*180/PI() -> 32.05333259 | P106: =IF(N106=0,0,ACOS((COS(I106*PI()/180)*COS(N106*PI()/180)*SIN('Radiation data'!$L$26*PI()/180)-SIN(I106*PI()/180)*COS('Radiation data'!$L$26*PI()/180))/COS(O106*PI()/180))*N106/ABS(N106)*180/PI()) -> -76.6442929 | Q106: =ACOS(COS(O106*PI()/180)*SIN(Input!$J$5*PI()/180)*COS(('Solar radiation and angles'!P106-Input!$B$3)*PI()/180)+SIN('Solar radiation and angles'!O106*PI()/180)*COS(Input!$J$5*PI()/180))*180/PI() -> 66.53153168 | R106: 887.4929809 | S106: 353.43904 | T106: =F106*(1+COS(Input!$J$5*PI()/180))/2 -> 113.4253133 | U106: ='Radiation data'!$L$29*E106*(1-COS(Input!$J$5*PI()/180))/2 -> 5.527840565 | V106: 472.3921939
A107: 5 | B107: 9 | C107: 0.416 | D107: 5.416 | E107: =IF(Input!$B$1=1,'Radiation data'!A108,IF(Input!$B$1=2,'Radiation data'!D108,IF(Input!$B$1=3,'Radiation data'!G108,"Wrong input"))) -> 896 | F107: =IF(Input!$B$1=1,'Radiation data'!B108,IF(Input!$B$1=2,'Radiation data'!E108,IF(Input!$B$1=3,'Radiation data'!H108,"Wrong input"))) -> 224 | G107: 672 | H107: =IF(Input!$B$1=1,'Radiation data'!C108,IF(Input!$B$1=2,'Radiation data'!F108,IF(Input!$B$1=3,'Radiation data'!I108,"Wrong input"))) -> 27 | I107: -22.60244193 | J107: 4.355506849 | K107: -4.844763507 | L107: =4*('Radiation data'!$L$27-'Radiation data'!$L$28)+K107 -> -13.16476351 | M107: 8.780587275 | N107: -48.29119088 | O107: =ASIN(COS(I107*PI()/180)*COS(N107*PI()/180)*COS('Radiation data'!$L$26*PI()/180)+SIN('Solar radiation and angles'!I107*PI()/180)*SIN('Radiation data'!$L$26*PI()/180))*180/PI() -> 45.61779168 | P107: =IF(N107=0,0,ACOS((COS(I107*PI()/180)*COS(N107*PI()/180)*SIN('Radiation data'!$L$26*PI()/180)-SIN(I107*PI()/180)*COS('Radiation data'!$L$26*PI()/180))/COS(O107*PI()/180))*N107/ABS(N107)*180/PI()) -> -80.18183079 | Q107: =ACOS(COS(O107*PI()/180)*SIN(Input!$J$5*PI()/180)*COS(('Solar radiation and angles'!P107-Input!$B$3)*PI()/180)+SIN('Solar radiation and angles'!O107*PI()/180)*COS(Input!$J$5*PI()/180))*180/PI() -> 53.32156802 | R107: 940.2679308 | S107: 561.6439338 | T107: =F107*(1+COS(Input!$J$5*PI()/180))/2 -> 213.5064721 | U107: ='Radiation data'!$L$29*E107*(1-COS(Input!$J$5*PI()/180))/2 -> 8.394822282 | V107: 783.5452282
A108: 5 | B108: 10 | C108: 0.4576 | D108: 5.4576 | E108: =IF(Input!$B$1=1,'Radiation data'!A109,IF(Input!$B$1=2,'Radiation data'!D109,IF(Input!$B$1=3,'Radiation data'!G109,"Wrong input"))) -> 1113 | F108: =IF(Input!$B$1=1,'Radiation data'!B109,IF(Input!$B$1=2,'Radiation data'!E109,IF(Input!$B$1=3,'Radiation data'!H109,"Wrong input"))) -> 425 | G108: 688 | H108: =IF(Input!$B$1=1,'Radiation data'!C109,IF(Input!$B$1=2,'Radiation data'!F109,IF(Input!$B$1=3,'Radiation data'!I109,"Wrong input"))) -> 29.5 | I108: -22.59796219 | J108: 4.396536986 | K108: -4.862572911 | L108: =4*('Radiation data'!$L$27-'Radiation data'!$L$28)+K108 -> -13.18257291 | M108: 9.780290451 | N108: -33.29564323 | O108: =ASIN(COS(I108*PI()/180)*COS(N108*PI()/180)*COS('Radiation data'!$L$26*PI()/180)+SIN('Solar radiation and angles'!I108*PI()/180)*SIN('Radiation data'!$L$26*PI()/180))*180/PI() -> 59.32202559 | P108: =IF(N108=0,0,ACOS((COS(I108*PI()/180)*COS(N108*PI()/180)*SIN('Radiation data'!$L$26*PI()/180)-SIN(I108*PI()/180)*COS('Radiation data'!$L$26*PI()/180))/COS(O108*PI()/180))*N108/ABS(N108)*180/PI()) -> -83.38171768 | Q108: =ACOS(COS(O108*PI()/180)*SIN(Input!$J$5*PI()/180)*COS(('Solar radiation and angles'!P108-Input!$B$3)*PI()/180)+SIN('Solar radiation and angles'!O108*PI()/180)*COS(Input!$J$5*PI()/180))*180/PI() -> 41.00808893 | R108: 799.9549137 | S108: 603.6595382 | T108: =F108*(1+COS(Input!$J$5*PI()/180))/2 -> 405.0904047 | U108: ='Radiation data'!$L$29*E108*(1-COS(Input!$J$5*PI()/180))/2 -> 10.4279433 | V108: 1019.177886
A109: 5 | B109: 11 | C109: 0.4992 | D109: 5.4992 | E109: =IF(Input!$B$1=1,'Radiation data'!A110,IF(Input!$B$1=2,'Radiation data'!D110,IF(Input!$B$1=3,'Radiation data'!G110,"Wrong input"))) -> 582 | F109: =IF(Input!$B$1=1,'Radiation data'!B110,IF(Input!$B$1=2,'Radiation data'!E110,IF(Input!$B$1=3,'Radiation data'!H110,"Wrong input"))) -> 448 | G109: 134 | H109: =IF(Input!$B$1=1,'Radiation data'!C110,IF(Input!$B$1=2,'Radiation data'!F110,IF(Input!$B$1=3,'Radiation data'!I110,"Wrong input"))) -> 29.4 | I109: -22.59347085 | J109: 4.437567123 | K109: -4.880372517 | L109: =4*('Radiation data'!$L$27-'Radiation data'!$L$28)+K109 -> -13.20037252 | M109: 10.77999379 | N109: -18.30009313 | O109: =ASIN(COS(I109*PI()/180)*COS(N109*PI()/180)*COS('Radiation data'!$L$26*PI()/180)+SIN('Solar radiation and angles'!I109*PI()/180)*SIN('Radiation data'!$L$26*PI()/180))*180/PI() -> 73.11295758 | P109: =IF(N109=0,0,ACOS((COS(I109*PI()/180)*COS(N109*PI()/180)*SIN('Radiation data'!$L$26*PI()/180)-SIN(I109*PI()/180)*COS('Radiation data'!$L$26*PI()/180))/COS(O109*PI()/180))*N109/ABS(N109)*180/PI()) -> -86.34891971 | Q109: =ACOS(COS(O109*PI()/180)*SIN(Input!$J$5*PI()/180)*COS(('Solar radiation and angles'!P109-Input!$B$3)*PI()/180)+SIN('Solar radiation and angles'!O109*PI()/180)*COS(Input!$J$5*PI()/180))*180/PI() -> 30.74965592 | R109: 140.0385604 | S109: 120.3504666 | T109: =F109*(1+COS(Input!$J$5*PI()/180))/2 -> 427.0129443 | U109: ='Radiation data'!$L$29*E109*(1-COS(Input!$J$5*PI()/180))/2 -> 5.452886794 | V109: 552.8162977
A110: 5 | B110: 12 | C110: 0.5408 | D110: 5.5408 | E110: =IF(Input!$B$1=1,'Radiation data'!A111,IF(Input!$B$1=2,'Radiation data'!D111,IF(Input!$B$1=3,'Radiation data'!G111,"Wrong input"))) -> 569 | F110: =IF(Input!$B$1=1,'Radiation data'!B111,IF(Input!$B$1=2,'Radiation data'!E111,IF(Input!$B$1=3,'Radiation data'!H111,"Wrong input"))) -> 525 | G110: 44 | H110: =IF(Input!$B$1=1,'Radiation data'!C111,IF(Input!$B$1=2,'Radiation data'!F111,IF(Input!$B$1=3,'Radiation data'!I111,"Wrong input"))) -> 29.3 | I110: -22.58896793 | J110: 4.47859726 | K110: -4.898162295 | L110: =4*('Radiation data'!$L$27-'Radiation data'!$L$28)+K110 -> -13.21816229 | M110: 11.7796973 | N110: -3.304540574 | O110: =ASIN(COS(I110*PI()/180)*COS(N110*PI()/180)*COS('Radiation data'!$L$26*PI()/180)+SIN('Solar radiation and angles'!I110*PI()/180)*SIN('Radiation data'!$L$26*PI()/180))*180/PI() -> 86.94857403 | P110: =IF(N110=0,0,ACOS((COS(I110*PI()/180)*COS(N110*PI()/180)*SIN('Radiation data'!$L$26*PI()/180)-SIN(I110*PI()/180)*COS('Radiation data'!$L$26*PI()/180))/COS(O110*PI()/180))*N110/ABS(N110)*180/PI()) -> -88.82180067 | Q110: =ACOS(COS(O110*PI()/180)*SIN(Input!$J$5*PI()/180)*COS(('Solar radiation and angles'!P110-Input!$B$3)*PI()/180)+SIN('Solar radiation and angles'!O110*PI()/180)*COS(Input!$J$5*PI()/180))*180/PI() -> 25.23588507 | R110: 44.06247362 | S110: 39.85716012 | T110: =F110*(1+COS(Input!$J$5*PI()/180))/2 -> 500.4057941 | U110: ='Radiation data'!$L$29*E110*(1-COS(Input!$J$5*PI()/180))/2 -> 5.331086918 | V110: 545.5940411
A111: 5 | B111: 13 | C111: 0.5824 | D111: 5.5824 | E111: =IF(Input!$B$1=1,'Radiation data'!A112,IF(Input!$B$1=2,'Radiation data'!D112,IF(Input!$B$1=3,'Radiation data'!G112,"Wrong input"))) -> 566 | F111: =IF(Input!$B$1=1,'Radiation data'!B112,IF(Input!$B$1=2,'Radiation data'!E112,IF(Input!$B$1=3,'Radiation data'!H112,"Wrong input"))) -> 489 | G111: 77 | H111: =IF(Input!$B$1=1,'Radiation data'!C112,IF(Input!$B$1=2,'Radiation data'!F112,IF(Input!$B$1=3,'Radiation data'!I112,"Wrong input"))) -> 29.2 | I111: -22.58445342 | J111: 4.519627397 | K111: -4.915942216 | L111: =4*('Radiation data'!$L$27-'Radiation data'!$L$28)+K111 -> -13.23594222 | M111: 12.77940096 | N111: 11.69101445 | O111: =ASIN(COS(I111*PI()/180)*COS(N111*PI()/180)*COS('Radiation data'!$L$26*PI()/180)+SIN('Solar radiation and angles'!I111*PI()/180)*SIN('Radiation data'!$L$26*PI()/180))*180/PI() -> 79.20730085 | P111: =IF(N111=0,0,ACOS((COS(I111*PI()/180)*COS(N111*PI()/180)*SIN('Radiation data'!$L$26*PI()/180)-SIN(I111*PI()/180)*COS('Radiation data'!$L$26*PI()/180))/COS(O111*PI()/180))*N111/ABS(N111)*180/PI()) -> 87.62022212 | Q111: =ACOS(COS(O111*PI()/180)*SIN(Input!$J$5*PI()/180)*COS(('Solar radiation and angles'!P111-Input!$B$3)*PI()/180)+SIN('Solar radiation and angles'!O111*PI()/180)*COS(Input!$J$5*PI()/180))*180/PI() -> 27.50256338 | R111: 78.38657067 | S111: 69.52811795 | T111: =F111*(1+COS(Input!$J$5*PI()/180))/2 -> 466.0922539 | U111: ='Radiation data'!$L$29*E111*(1-COS(Input!$J$5*PI()/180))/2 -> 5.302979254 | V111: 540.9233511
A112: 5 | B112: 14 | C112: 0.624 | D112: 5.624 | E112: =IF(Input!$B$1=1,'Radiation data'!A113,IF(Input!$B$1=2,'Radiation data'!D113,IF(Input!$B$1=3,'Radiation data'!G113,"Wrong input"))) -> 540 | F112: =IF(Input!$B$1=1,'Radiation data'!B113,IF(Input!$B$1=2,'Radiation data'!E113,IF(Input!$B$1=3,'Radiation data'!H113,"Wrong input"))) -> 449 | G112: 91 | H112: =IF(Input!$B$1=1,'Radiation data'!C113,IF(Input!$B$1=2,'Radiation data'!F113,IF(Input!$B$1=3,'Radiation data'!I113,"Wrong input"))) -> 29 | I112: -22.57992733 | J112: 4.560657534 | K112: -4.933712254 | L112: =4*('Radiation data'!$L$27-'Radiation data'!$L$28)+K112 -> -13.25371225 | M112: 13.7791048 | N112: 26.68657194 | O112: =ASIN(COS(I112*PI()/180)*COS(N112*PI()/180)*COS('Radiation data'!$L$26*PI()/180)+SIN('Solar radiation and angles'!I112*PI()/180)*SIN('Radiation data'!$L$26*PI()/180))*180/PI() -> 65.390721 | P112: =IF(N112=0,0,ACOS((COS(I112*PI()/180)*COS(N112*PI()/180)*SIN('Radiation data'!$L$26*PI()/180)-SIN(I112*PI()/180)*COS('Radiation data'!$L$26*PI()/180))/COS(O112*PI()/180))*N112/ABS(N112)*180/PI()) -> 84.75290377 | Q112: =ACOS(COS(O112*PI()/180)*SIN(Input!$J$5*PI()/180)*COS(('Solar radiation and angles'!P112-Input!$B$3)*PI()/180)+SIN('Solar radiation and angles'!O112*PI()/180)*COS(Input!$J$5*PI()/180))*180/PI() -> 36.10950211 | R112: 100.0914373 | S112: 80.86308733 | T112: =F112*(1+COS(Input!$J$5*PI()/180))/2 -> 427.9660982 | U112: ='Radiation data'!$L$29*E112*(1-COS(Input!$J$5*PI()/180))/2 -> 5.0593795 | V112: 513.888565
A113: 5 | B113: 15 | C113: 0.6656 | D113: 5.6656 | E113: =IF(Input!$B$1=1,'Radiation data'!A114,IF(Input!$B$1=2,'Radiation data'!D114,IF(Input!$B$1=3,'Radiation data'!G114,"Wrong input"))) -> 469 | F113: =IF(Input!$B$1=1,'Radiation data'!B114,IF(Input!$B$1=2,'Radiation data'!E114,IF(Input!$B$1=3,'Radiation data'!H114,"Wrong input"))) -> 395 | G113: 74 | H113: =IF(Input!$B$1=1,'Radiation data'!C114,IF(Input!$B$1=2,'Radiation data'!F114,IF(Input!$B$1=3,'Radiation data'!I114,"Wrong input"))) -> 28.6 | I113: -22.57538966 | J113: 4.601687671 | K113: -4.951472378 | L113: =4*('Radiation data'!$L$27-'Radiation data'!$L$28)+K113 -> -13.27147238 | M113: 14.77880879 | N113: 41.68213191 | O113: =ASIN(COS(I113*PI()/180)*COS(N113*PI()/180)*COS('Radiation data'!$L$26*PI()/180)+SIN('Solar radiation and angles'!I113*PI()/180)*SIN('Radiation data'!$L$26*PI()/180))*180/PI() -> 51.64037035 | P113: =IF(N113=0,0,ACOS((COS(I113*PI()/180)*COS(N113*PI()/180)*SIN('Radiation data'!$L$26*PI()/180)-SIN(I113*PI()/180)*COS('Radiation data'!$L$26*PI()/180))/COS(O113*PI()/180))*N113/ABS(N113)*180/PI()) -> 81.66616348 | Q113: =ACOS(COS(O113*PI()/180)*SIN(Input!$J$5*PI()/180)*COS(('Solar radiation and angles'!P113-Input!$B$3)*PI()/180)+SIN('Solar radiation and angles'!O113*PI()/180)*COS(Input!$J$5*PI()/180))*180/PI() -> 47.7281006 | R113: 94.37199586 | S113: 63.479293 | T113: =F113*(1+COS(Input!$J$5*PI()/180))/2 -> 376.4957879 | U113: ='Radiation data'!$L$29*E113*(1-COS(Input!$J$5*PI()/180))/2 -> 4.394164788 | V113: 444.3692457
A114: 5 | B114: 16 | C114: 0.7072 | D114: 5.7072 | E114: =IF(Input!$B$1=1,'Radiation data'!A115,IF(Input!$B$1=2,'Radiation data'!D115,IF(Input!$B$1=3,'Radiation data'!G115,"Wrong input"))) -> 409 | F114: =IF(Input!$B$1=1,'Radiation data'!B115,IF(Input!$B$1=2,'Radiation data'!E115,IF(Input!$B$1=3,'Radiation data'!H115,"Wrong input"))) -> 323 | G114: 86 | H114: =IF(Input!$B$1=1,'Radiation data'!C115,IF(Input!$B$1=2,'Radiation data'!F115,IF(Input!$B$1=3,'Radiation data'!I115,"Wrong input"))) -> 28.1 | I114: -22.57084042 | J114: 4.642717808 | K114: -4.969222561 | L114: =4*('Radiation data'!$L$27-'Radiation data'!$L$28)+K114 -> -13.28922256 | M114: 15.77851296 | N114: 56.67769436 | O114: =ASIN(COS(I114*PI()/180)*COS(N114*PI()/180)*COS('Radiation data'!$L$26*PI()/180)+SIN('Solar radiation and angles'!I114*PI()/180)*SIN('Radiation data'!$L$26*PI()/180))*180/PI() -> 38.00344402 | P114: =IF(N114=0,0,ACOS((COS(I114*PI()/180)*COS(N114*PI()/180)*SIN('Radiation data'!$L$26*PI()/180)-SIN(I114*PI()/180)*COS('Radiation data'!$L$26*PI()/180))/COS(O114*PI()/180))*N114/ABS(N114)*180/PI()) -> 78.29640465 | Q114: =ACOS(COS(O114*PI()/180)*SIN(Input!$J$5*PI()/180)*COS(('Solar radiation and angles'!P114-Input!$B$3)*PI()/180)+SIN('Solar radiation and angles'!O114*PI()/180)*COS(Input!$J$5*PI()/180))*180/PI() -> 60.6284804 | R114: 139.6764091 | S114: 68.50717678 | T114: =F114*(1+COS(Input!$J$5*PI()/180))/2 -> 307.8687076 | U114: ='Radiation data'!$L$29*E114*(1-COS(Input!$J$5*PI()/180))/2 -> 3.83201151 | V114: 380.2078959
A115: 5 | B115: 17 | C115: 0.7488 | D115: 5.7488 | E115: =IF(Input!$B$1=1,'Radiation data'!A116,IF(Input!$B$1=2,'Radiation data'!D116,IF(Input!$B$1=3,'Radiation data'!G116,"Wrong input"))) -> 281 | F115: =IF(Input!$B$1=1,'Radiation data'!B116,IF(Input!$B$1=2,'Radiation data'!E116,IF(Input!$B$1=3,'Radiation data'!H116,"Wrong input"))) -> 230 | G115: 51 | H115: =IF(Input!$B$1=1,'Radiation data'!C116,IF(Input!$B$1=2,'Radiation data'!F116,IF(Input!$B$1=3,'Radiation data'!I116,"Wrong input"))) -> 27.3 | I115: -22.5662796 | J115: 4.683747945 | K115: -4.986962775 | L115: =4*('Radiation data'!$L$27-'Radiation data'!$L$28)+K115 -> -13.30696277 | M115: 16.77821729 | N115: 71.67325931 | O115: =ASIN(COS(I115*PI()/180)*COS(N115*PI()/180)*COS('Radiation data'!$L$26*PI()/180)+SIN('Solar radiation and angles'!I115*PI()/180)*SIN('Radiation data'!$L$26*PI()/180))*180/PI() -> 24.54255126 | P115: =IF(N115=0,0,ACOS((COS(I115*PI()/180)*COS(N115*PI()/180)*SIN('Radiation data'!$L$26*PI()/180)-SIN(I115*PI()/180)*COS('Radiation data'!$L$26*PI()/180))/COS(O115*PI()/180))*N115/ABS(N115)*180/PI()) -> 74.50685691 | Q115: =ACOS(COS(O115*PI()/180)*SIN(Input!$J$5*PI()/180)*COS(('Solar radiation and angles'!P115-Input!$B$3)*PI()/180)+SIN('Solar radiation and angles'!O115*PI()/180)*COS(Input!$J$5*PI()/180))*180/PI() -> 74.11184593 | R115: 122.7824172 | S115: 33.61296025 | T115: =F115*(1+COS(Input!$J$5*PI()/180))/2 -> 219.2253955 | U115: ='Radiation data'!$L$29*E115*(1-COS(Input!$J$5*PI()/180))/2 -> 2.632751184 | V115: 255.4711069
A116: 5 | B116: 18 | C116: 0.7904 | D116: 5.7904 | E116: =IF(Input!$B$1=1,'Radiation data'!A117,IF(Input!$B$1=2,'Radiation data'!D117,IF(Input!$B$1=3,'Radiation data'!G117,"Wrong input"))) -> 137 | F116: =IF(Input!$B$1=1,'Radiation data'!B117,IF(Input!$B$1=2,'Radiation data'!E117,IF(Input!$B$1=3,'Radiation data'!H117,"Wrong input"))) -> 97 | G116: 40 | H116: =IF(Input!$B$1=1,'Radiation data'!C117,IF(Input!$B$1=2,'Radiation data'!F117,IF(Input!$B$1=3,'Radiation data'!I117,"Wrong input"))) -> 26.3 | I116: -22.56170721 | J116: 4.724778082 | K116: -5.004692991 | L116: =4*('Radiation data'!$L$27-'Radiation data'!$L$28)+K116 -> -13.32469299 | M116: 17.77792178 | N116: 86.66882675 | O116: =ASIN(COS(I116*PI()/180)*COS(N116*PI()/180)*COS('Radiation data'!$L$26*PI()/180)+SIN('Solar radiation and angles'!I116*PI()/180)*SIN('Radiation data'!$L$26*PI()/180))*180/PI() -> 11.34710784 | P116: =IF(N116=0,0,ACOS((COS(I116*PI()/180)*COS(N116*PI()/180)*SIN('Radiation data'!$L$26*PI()/180)-SIN(I116*PI()/180)*COS('Radiation data'!$L$26*PI()/180))/COS(O116*PI()/180))*N116/ABS(N116)*180/PI()) -> 70.09965466 | Q116: =ACOS(COS(O116*PI()/180)*SIN(Input!$J$5*PI()/180)*COS(('Solar radiation and angles'!P116-Input!$B$3)*PI()/180)+SIN('Solar radiation and angles'!O116*PI()/180)*COS(Input!$J$5*PI()/180))*180/PI() -> 87.86368916 | R116: 203.301281 | S116: 7.578465775 | T116: =F116*(1+COS(Input!$J$5*PI()/180))/2 -> 92.45592767 | U116: ='Radiation data'!$L$29*E116*(1-COS(Input!$J$5*PI()/180))/2 -> 1.283583318 | V116: 101.3179768
A117: 5 | B117: 19 | C117: 0.832 | D117: 5.832 | E117: =IF(Input!$B$1=1,'Radiation data'!A118,IF(Input!$B$1=2,'Radiation data'!D118,IF(Input!$B$1=3,'Radiation data'!G118,"Wrong input"))) -> 8 | F117: =IF(Input!$B$1=1,'Radiation data'!B118,IF(Input!$B$1=2,'Radiation data'!E118,IF(Input!$B$1=3,'Radiation data'!H118,"Wrong input"))) -> 8 | G117: 0 | H117: =IF(Input!$B$1=1,'Radiation data'!C118,IF(Input!$B$1=2,'Radiation data'!F118,IF(Input!$B$1=3,'Radiation data'!I118,"Wrong input"))) -> 25.1 | I117: -22.55712325 | J117: 4.765808219 | K117: -5.022413181 | L117: =4*('Radiation data'!$L$27-'Radiation data'!$L$28)+K117 -> -13.34241318 | M117: 18.77762645 | N117: 101.6643967 | O117: =ASIN(COS(I117*PI()/180)*COS(N117*PI()/180)*COS('Radiation data'!$L$26*PI()/180)+SIN('Solar radiation and angles'!I117*PI()/180)*SIN('Radiation data'!$L$26*PI()/180))*180/PI() -> -1.44710323 | P117: =IF(N117=0,0,ACOS((COS(I117*PI()/180)*COS(N117*PI()/180)*SIN('Radiation data'!$L$26*PI()/180)-SIN(I117*PI()/180)*COS('Radiation data'!$L$26*PI()/180))/COS(O117*PI()/180))*N117/ABS(N117)*180/PI()) -> 64.78487179 | Q117: =ACOS(COS(O117*PI()/180)*SIN(Input!$J$5*PI()/180)*COS(('Solar radiation and angles'!P117-Input!$B$3)*PI()/180)+SIN('Solar radiation and angles'!O117*PI()/180)*COS(Input!$J$5*PI()/180))*180/PI() -> 101.705048 | R117: 0 | S117: 0 | T117: =F117*(1+COS(Input!$J$5*PI()/180))/2 -> 7.625231148 | U117: ='Radiation data'!$L$29*E117*(1-COS(Input!$J$5*PI()/180))/2 -> 0.07495377037 | V117: 7.700184919
A118: 5 | B118: 20 | C118: 0.8736 | D118: 5.8736 | E118: =IF(Input!$B$1=1,'Radiation data'!A119,IF(Input!$B$1=2,'Radiation data'!D119,IF(Input!$B$1=3,'Radiation data'!G119,"Wrong input"))) -> 0 | F118: =IF(Input!$B$1=1,'Radiation data'!B119,IF(Input!$B$1=2,'Radiation data'!E119,IF(Input!$B$1=3,'Radiation data'!H119,"Wrong input"))) -> 0 | G118: 0 | H118: =IF(Input!$B$1=1,'Radiation data'!C119,IF(Input!$B$1=2,'Radiation data'!F119,IF(Input!$B$1=3,'Radiation data'!I119,"Wrong input"))) -> 23.9 | I118: -22.55252772 | J118: 4.806838356 | K118: -5.040123317 | L118: =4*('Radiation data'!$L$27-'Radiation data'!$L$28)+K118 -> -13.36012332 | M118: 19.77733128 | N118: 116.6599692 | O118: =ASIN(COS(I118*PI()/180)*COS(N118*PI()/180)*COS('Radiation data'!$L$26*PI()/180)+SIN('Solar radiation and angles'!I118*PI()/180)*SIN('Radiation data'!$L$26*PI()/180))*180/PI() -> -13.62294733 | P118: =IF(N118=0,0,ACOS((COS(I118*PI()/180)*COS(N118*PI()/180)*SIN('Radiation data'!$L$26*PI()/180)-SIN(I118*PI()/180)*COS('Radiation data'!$L$26*PI()/180))/COS(O118*PI()/180))*N118/ABS(N118)*180/PI()) -> 58.12858636 | Q118: =ACOS(COS(O118*PI()/180)*SIN(Input!$J$5*PI()/180)*COS(('Solar radiation and angles'!P118-Input!$B$3)*PI()/180)+SIN('Solar radiation and angles'!O118*PI()/180)*COS(Input!$J$5*PI()/180))*180/PI() -> 115.488801 | R118: 0 | S118: 0 | T118: =F118*(1+COS(Input!$J$5*PI()/180))/2 -> 0 | U118: ='Radiation data'!$L$29*E118*(1-COS(Input!$J$5*PI()/180))/2 -> 0 | V118: 0
A119: 5 | B119: 21 | C119: 0.9152 | D119: 5.9152 | E119: =IF(Input!$B$1=1,'Radiation data'!A120,IF(Input!$B$1=2,'Radiation data'!D120,IF(Input!$B$1=3,'Radiation data'!G120,"Wrong input"))) -> 0 | F119: =IF(Input!$B$1=1,'Radiation data'!B120,IF(Input!$B$1=2,'Radiation data'!E120,IF(Input!$B$1=3,'Radiation data'!H120,"Wrong input"))) -> 0 | G119: 0 | H119: =IF(Input!$B$1=1,'Radiation data'!C120,IF(Input!$B$1=2,'Radiation data'!F120,IF(Input!$B$1=3,'Radiation data'!I120,"Wrong input"))) -> 22.7 | I119: -22.54792062 | J119: 4.847868493 | K119: -5.057823371 | L119: =4*('Radiation data'!$L$27-'Radiation data'!$L$28)+K119 -> -13.37782337 | M119: 20.77703628 | N119: 131.6555442 | O119: =ASIN(COS(I119*PI()/180)*COS(N119*PI()/180)*COS('Radiation data'!$L$26*PI()/180)+SIN('Solar radiation and angles'!I119*PI()/180)*SIN('Radiation data'!$L$26*PI()/180))*180/PI() -> -24.81935824 | P119: =IF(N119=0,0,ACOS((COS(I119*PI()/180)*COS(N119*PI()/180)*SIN('Radiation data'!$L$26*PI()/180)-SIN(I119*PI()/180)*COS('Radiation data'!$L$26*PI()/180))/COS(O119*PI()/180))*N119/ABS(N119)*180/PI()) -> 49.48730758 | Q119: =ACOS(COS(O119*PI()/180)*SIN(Input!$J$5*PI()/180)*COS(('Solar radiation and angles'!P119-Input!$B$3)*PI()/180)+SIN('Solar radiation and angles'!O119*PI()/180)*COS(Input!$J$5*PI()/180))*180/PI() -> 129.0215579 | R119: 0 | S119: 0 | T119: =F119*(1+COS(Input!$J$5*PI()/180))/2 -> 0 | U119: ='Radiation data'!$L$29*E119*(1-COS(Input!$J$5*PI()/180))/2 -> 0 | V119: 0
A120: 5 | B120: 22 | C120: 0.9568 | D120: 5.9568 | E120: =IF(Input!$B$1=1,'Radiation data'!A121,IF(Input!$B$1=2,'Radiation data'!D121,IF(Input!$B$1=3,'Radiation data'!G121,"Wrong input"))) -> 0 | F120: =IF(Input!$B$1=1,'Radiation data'!B121,IF(Input!$B$1=2,'Radiation data'!E121,IF(Input!$B$1=3,'Radiation data'!H121,"Wrong input"))) -> 0 | G120: 0 | H120: =IF(Input!$B$1=1,'Radiation data'!C121,IF(Input!$B$1=2,'Radiation data'!F121,IF(Input!$B$1=3,'Radiation data'!I121,"Wrong input"))) -> 21.5 | I120: -22.54330197 | J120: 4.88889863 | K120: -5.075513314 | L120: =4*('Radiation data'!$L$27-'Radiation data'!$L$28)+K120 -> -13.39551331 | M120: 21.77674144 | N120: 146.6511217 | O120: =ASIN(COS(I120*PI()/180)*COS(N120*PI()/180)*COS('Radiation data'!$L$26*PI()/180)+SIN('Solar radiation and angles'!I120*PI()/180)*SIN('Radiation data'!$L$26*PI()/180))*180/PI() -> -34.42928009 | P120: =IF(N120=0,0,ACOS((COS(I120*PI()/180)*COS(N120*PI()/180)*SIN('Radiation data'!$L$26*PI()/180)-SIN(I120*PI()/180)*COS('Radiation data'!$L$26*PI()/180))/COS(O120*PI()/180))*N120/ABS(N120)*180/PI()) -> 37.99273565 | Q120: =ACOS(COS(O120*PI()/180)*SIN(Input!$J$5*PI()/180)*COS(('Solar radiation and angles'!P120-Input!$B$3)*PI()/180)+SIN('Solar radiation and angles'!O120*PI()/180)*COS(Input!$J$5*PI()/180))*180/PI() -> 141.9183671 | R120: 0 | S120: 0 | T120: =F120*(1+COS(Input!$J$5*PI()/180))/2 -> 0 | U120: ='Radiation data'!$L$29*E120*(1-COS(Input!$J$5*PI()/180))/2 -> 0 | V120: 0
A121: 5 | B121: 23 | C121: 0.9984 | D121: 5.9984 | E121: =IF(Input!$B$1=1,'Radiation data'!A122,IF(Input!$B$1=2,'Radiation data'!D122,IF(Input!$B$1=3,'Radiation data'!G122,"Wrong input"))) -> 0 | F121: =IF(Input!$B$1=1,'Radiation data'!B122,IF(Input!$B$1=2,'Radiation data'!E122,IF(Input!$B$1=3,'Radiation data'!H122,"Wrong input"))) -> 0 | G121: 0 | H121: =IF(Input!$B$1=1,'Radiation data'!C122,IF(Input!$B$1=2,'Radiation data'!F122,IF(Input!$B$1=3,'Radiation data'!I122,"Wrong input"))) -> 20.3 | I121: -22.53867175 | J121: 4.929928767 | K121: -5.093193118 | L121: =4*('Radiation data'!$L$27-'Radiation data'!$L$28)+K121 -> -13.41319312 | M121: 22.77644678 | N121: 161.6467017 | O121: =ASIN(COS(I121*PI()/180)*COS(N121*PI()/180)*COS('Radiation data'!$L$26*PI()/180)+SIN('Solar radiation and angles'!I121*PI()/180)*SIN('Radiation data'!$L$26*PI()/180))*180/PI() -> -41.4909144 | P121: =IF(N121=0,0,ACOS((COS(I121*PI()/180)*COS(N121*PI()/180)*SIN('Radiation data'!$L$26*PI()/180)-SIN(I121*PI()/180)*COS('Radiation data'!$L$26*PI()/180))/COS(O121*PI()/180))*N121/ABS(N121)*180/PI()) -> 22.84588443 | Q121: =ACOS(COS(O121*PI()/180)*SIN(Input!$J$5*PI()/180)*COS(('Solar radiation and angles'!P121-Input!$B$3)*PI()/180)+SIN('Solar radiation and angles'!O121*PI()/180)*COS(Input!$J$5*PI()/180))*180/PI() -> 153.1463154 | R121: 0 | S121: 0 | T121: =F121*(1+COS(Input!$J$5*PI()/180))/2 -> 0 | U121: ='Radiation data'!$L$29*E121*(1-COS(Input!$J$5*PI()/180))/2 -> 0 | V121: 0
A122: 6 | B122: 0.0001 | C122: 0.0416 | D122: 6.0416 | E122: =IF(Input!$B$1=1,'Radiation data'!A123,IF(Input!$B$1=2,'Radiation data'!D123,IF(Input!$B$1=3,'Radiation data'!G123,"Wrong input"))) -> 0 | F122: =IF(Input!$B$1=1,'Radiation data'!B123,IF(Input!$B$1=2,'Radiation data'!E123,IF(Input!$B$1=3,'Radiation data'!H123,"Wrong input"))) -> 0 | G122: 0 | H122: =IF(Input!$B$1=1,'Radiation data'!C123,IF(Input!$B$1=2,'Radiation data'!F123,IF(Input!$B$1=3,'Radiation data'!I123,"Wrong input"))) -> 19.3 | I122: -22.53385121 | J122: 4.972536986 | K122: -5.111542153 | L122: =4*('Radiation data'!$L$27-'Radiation data'!$L$28)+K122 -> -13.43154215 | M122: -0.2237590359 | N122: -183.3563855 | O122: =ASIN(COS(I122*PI()/180)*COS(N122*PI()/180)*COS('Radiation data'!$L$26*PI()/180)+SIN('Solar radiation and angles'!I122*PI()/180)*SIN('Radiation data'!$L$26*PI()/180))*180/PI() -> -44.78790967 | P122: =IF(N122=0,0,ACOS((COS(I122*PI()/180)*COS(N122*PI()/180)*SIN('Radiation data'!$L$26*PI()/180)-SIN(I122*PI()/180)*COS('Radiation data'!$L$26*PI()/180))/COS(O122*PI()/180))*N122/ABS(N122)*180/PI()) -> -4.369853086 | Q122: =ACOS(COS(O122*PI()/180)*SIN(Input!$J$5*PI()/180)*COS(('Solar radiation and angles'!P122-Input!$B$3)*PI()/180)+SIN('Solar radiation and angles'!O122*PI()/180)*COS(Input!$J$5*PI()/180))*180/PI() -> 159.6438038 | R122: 0 | S122: 0 | T122: =F122*(1+COS(Input!$J$5*PI()/180))/2 -> 0 | U122: ='Radiation data'!$L$29*E122*(1-COS(Input!$J$5*PI()/180))/2 -> 0 | V122: 0
A123: 6 | B123: 1 | C123: 0.0832 | D123: 6.0832 | E123: =IF(Input!$B$1=1,'Radiation data'!A124,IF(Input!$B$1=2,'Radiation data'!D124,IF(Input!$B$1=3,'Radiation data'!G124,"Wrong input"))) -> 0 | F123: =IF(Input!$B$1=1,'Radiation data'!B124,IF(Input!$B$1=2,'Radiation data'!E124,IF(Input!$B$1=3,'Radiation data'!H124,"Wrong input"))) -> 0 | G123: 0 | H123: =IF(Input!$B$1=1,'Radiation data'!C124,IF(Input!$B$1=2,'Radiation data'!F124,IF(Input!$B$1=3,'Radiation data'!I124,"Wrong input"))) -> 18.3 | I123: -22.52919743 | J123: 5.013567123 | K123: -5.129201202 | L123: =4*('Radiation data'!$L$27-'Radiation data'!$L$28)+K123 -> -13.4492012 | M123: 0.7758466466 | N123: -168.3623003 | O123: =ASIN(COS(I123*PI()/180)*COS(N123*PI()/180)*COS('Radiation data'!$L$26*PI()/180)+SIN('Solar radiation and angles'!I123*PI()/180)*SIN('Radiation data'!$L$26*PI()/180))*180/PI() -> -43.50909472 | P123: =IF(N123=0,0,ACOS((COS(I123*PI()/180)*COS(N123*PI()/180)*SIN('Radiation data'!$L$26*PI()/180)-SIN(I123*PI()/180)*COS('Radiation data'!$L$26*PI()/180))/COS(O123*PI()/180))*N123/ABS(N123)*180/PI()) -> -14.88679103 | Q123: =ACOS(COS(O123*PI()/180)*SIN(Input!$J$5*PI()/180)*COS(('Solar radiation and angles'!P123-Input!$B$3)*PI()/180)+SIN('Solar radiation and angles'!O123*PI()/180)*COS(Input!$J$5*PI()/180))*180/PI() -> 156.9535549 | R123: 0 | S123: 0 | T123: =F123*(1+COS(Input!$J$5*PI()/180))/2 -> 0 | U123: ='Radiation data'!$L$29*E123*(1-COS(Input!$J$5*PI()/180))/2 -> 0 | V123: 0
A124: 6 | B124: 2 | C124: 0.1248 | D124: 6.1248 | E124: =IF(Input!$B$1=1,'Radiation data'!A125,IF(Input!$B$1=2,'Radiation data'!D125,IF(Input!$B$1=3,'Radiation data'!G125,"Wrong input"))) -> 0 | F124: =IF(Input!$B$1=1,'Radiation data'!B125,IF(Input!$B$1=2,'Radiation data'!E125,IF(Input!$B$1=3,'Radiation data'!H125,"Wrong input"))) -> 0 | G124: 0 | H124: =IF(Input!$B$1=1,'Radiation data'!C125,IF(Input!$B$1=2,'Radiation data'!F125,IF(Input!$B$1=3,'Radiation data'!I125,"Wrong input"))) -> 17.3 | I124: -22.52453211 | J124: 5.05459726 | K124: -5.146850027 | L124: =4*('Radiation data'!$L$27-'Radiation data'!$L$28)+K124 -> -13.46685003 | M124: 1.7755525 | N124: -153.3667125 | O124: =ASIN(COS(I124*PI()/180)*COS(N124*PI()/180)*COS('Radiation data'!$L$26*PI()/180)+SIN('Solar radiation and angles'!I124*PI()/180)*SIN('Radiation data'!$L$26*PI()/180))*180/PI() -> -37.99196715 | P124: =IF(N124=0,0,ACOS((COS(I124*PI()/180)*COS(N124*PI()/180)*SIN('Radiation data'!$L$26*PI()/180)-SIN(I124*PI()/180)*COS('Radiation data'!$L$26*PI()/180))/COS(O124*PI()/180))*N124/ABS(N124)*180/PI()) -> -31.6965114 | Q124: =ACOS(COS(O124*PI()/180)*SIN(Input!$J$5*PI()/180)*COS(('Solar radiation and angles'!P124-Input!$B$3)*PI()/180)+SIN('Solar radiation and angles'!O124*PI()/180)*COS(Input!$J$5*PI()/180))*180/PI() -> 147.273841 | R124: 0 | S124: 0 | T124: =F124*(1+COS(Input!$J$5*PI()/180))/2 -> 0 | U124: ='Radiation data'!$L$29*E124*(1-COS(Input!$J$5*PI()/180))/2 -> 0 | V124: 0
A125: 6 | B125: 3 | C125: 0.1664 | D125: 6.1664 | E125: =IF(Input!$B$1=1,'Radiation data'!A126,IF(Input!$B$1=2,'Radiation data'!D126,IF(Input!$B$1=3,'Radiation data'!G126,"Wrong input"))) -> 0 | F125: =IF(Input!$B$1=1,'Radiation data'!B126,IF(Input!$B$1=2,'Radiation data'!E126,IF(Input!$B$1=3,'Radiation data'!H126,"Wrong input"))) -> 0 | G125: 0 | H125: =IF(Input!$B$1=1,'Radiation data'!C126,IF(Input!$B$1=2,'Radiation data'!F126,IF(Input!$B$1=3,'Radiation data'!I126,"Wrong input"))) -> 16.8 | I125: -22.51985522 | J125: 5.095627397 | K125: -5.1644886 | L125: =4*('Radiation data'!$L$27-'Radiation data'!$L$28)+K125 -> -13.4844886 | M125: 2.775258523 | N125: -138.3711222 | O125: =ASIN(COS(I125*PI()/180)*COS(N125*PI()/180)*COS('Radiation data'!$L$26*PI()/180)+SIN('Solar radiation and angles'!I125*PI()/180)*SIN('Radiation data'!$L$26*PI()/180))*180/PI() -> -29.38605075 | P125: =IF(N125=0,0,ACOS((COS(I125*PI()/180)*COS(N125*PI()/180)*SIN('Radiation data'!$L$26*PI()/180)-SIN(I125*PI()/180)*COS('Radiation data'!$L$26*PI()/180))/COS(O125*PI()/180))*N125/ABS(N125)*180/PI()) -> -44.77003679 | Q125: =ACOS(COS(O125*PI()/180)*SIN(Input!$J$5*PI()/180)*COS(('Solar radiation and angles'!P125-Input!$B$3)*PI()/180)+SIN('Solar radiation and angles'!O125*PI()/180)*COS(Input!$J$5*PI()/180))*180/PI() -> 134.922251 | R125: 0 | S125: 0 | T125: =F125*(1+COS(Input!$J$5*PI()/180))/2 -> 0 | U125: ='Radiation data'!$L$29*E125*(1-COS(Input!$J$5*PI()/180))/2 -> 0 | V125: 0
A126: 6 | B126: 4 | C126: 0.208 | D126: 6.208 | E126: =IF(Input!$B$1=1,'Radiation data'!A127,IF(Input!$B$1=2,'Radiation data'!D127,IF(Input!$B$1=3,'Radiation data'!G127,"Wrong input"))) -> 0 | F126: =IF(Input!$B$1=1,'Radiation data'!B127,IF(Input!$B$1=2,'Radiation data'!E127,IF(Input!$B$1=3,'Radiation data'!H127,"Wrong input"))) -> 0 | G126: 0 | H126: =IF(Input!$B$1=1,'Radiation data'!C127,IF(Input!$B$1=2,'Radiation data'!F127,IF(Input!$B$1=3,'Radiation data'!I127,"Wrong input"))) -> 16.2 | I126: -22.5151668 | J126: 5.136657534 | K126: -5.182116892 | L126: =4*('Radiation data'!$L$27-'Radiation data'!$L$28)+K126 -> -13.50211689 | M126: 3.774964718 | N126: -123.3755292 | O126: =ASIN(COS(I126*PI()/180)*COS(N126*PI()/180)*COS('Radiation data'!$L$26*PI()/180)+SIN('Solar radiation and angles'!I126*PI()/180)*SIN('Radiation data'!$L$26*PI()/180))*180/PI() -> -18.80778463 | P126: =IF(N126=0,0,ACOS((COS(I126*PI()/180)*COS(N126*PI()/180)*SIN('Radiation data'!$L$26*PI()/180)-SIN(I126*PI()/180)*COS('Radiation data'!$L$26*PI()/180))/COS(O126*PI()/180))*N126/ABS(N126)*180/PI()) -> -54.5819221 | Q126: =ACOS(COS(O126*PI()/180)*SIN(Input!$J$5*PI()/180)*COS(('Solar radiation and angles'!P126-Input!$B$3)*PI()/180)+SIN('Solar radiation and angles'!O126*PI()/180)*COS(Input!$J$5*PI()/180))*180/PI() -> 121.603261 | R126: 0 | S126: 0 | T126: =F126*(1+COS(Input!$J$5*PI()/180))/2 -> 0 | U126: ='Radiation data'!$L$29*E126*(1-COS(Input!$J$5*PI()/180))/2 -> 0 | V126: 0
A127: 6 | B127: 5 | C127: 0.2496 | D127: 6.2496 | E127: =IF(Input!$B$1=1,'Radiation data'!A128,IF(Input!$B$1=2,'Radiation data'!D128,IF(Input!$B$1=3,'Radiation data'!G128,"Wrong input"))) -> 0 | F127: =IF(Input!$B$1=1,'Radiation data'!B128,IF(Input!$B$1=2,'Radiation data'!E128,IF(Input!$B$1=3,'Radiation data'!H128,"Wrong input"))) -> 0 | G127: 0 | H127: =IF(Input!$B$1=1,'Radiation data'!C128,IF(Input!$B$1=2,'Radiation data'!F128,IF(Input!$B$1=3,'Radiation data'!I128,"Wrong input"))) -> 15.8 | I127: -22.51046682 | J127: 5.177687671 | K127: -5.199734876 | L127: =4*('Radiation data'!$L$27-'Radiation data'!$L$28)+K127 -> -13.51973488 | M127: 4.774671085 | N127: -108.3799337 | O127: =ASIN(COS(I127*PI()/180)*COS(N127*PI()/180)*COS('Radiation data'!$L$26*PI()/180)+SIN('Solar radiation and angles'!I127*PI()/180)*SIN('Radiation data'!$L$26*PI()/180))*180/PI() -> -7.014519818 | P127: =IF(N127=0,0,ACOS((COS(I127*PI()/180)*COS(N127*PI()/180)*SIN('Radiation data'!$L$26*PI()/180)-SIN(I127*PI()/180)*COS('Radiation data'!$L$26*PI()/180))/COS(O127*PI()/180))*N127/ABS(N127)*180/PI()) -> -62.04231769 | Q127: =ACOS(COS(O127*PI()/180)*SIN(Input!$J$5*PI()/180)*COS(('Solar radiation and angles'!P127-Input!$B$3)*PI()/180)+SIN('Solar radiation and angles'!O127*PI()/180)*COS(Input!$J$5*PI()/180))*180/PI() -> 107.8982604 | R127: 0 | S127: 0 | T127: =F127*(1+COS(Input!$J$5*PI()/180))/2 -> 0 | U127: ='Radiation data'!$L$29*E127*(1-COS(Input!$J$5*PI()/180))/2 -> 0 | V127: 0
A128: 6 | B128: 6 | C128: 0.2912 | D128: 6.2912 | E128: =IF(Input!$B$1=1,'Radiation data'!A129,IF(Input!$B$1=2,'Radiation data'!D129,IF(Input!$B$1=3,'Radiation data'!G129,"Wrong input"))) -> 17 | F128: =IF(Input!$B$1=1,'Radiation data'!B129,IF(Input!$B$1=2,'Radiation data'!E129,IF(Input!$B$1=3,'Radiation data'!H129,"Wrong input"))) -> 17 | G128: 0 | H128: =IF(Input!$B$1=1,'Radiation data'!C129,IF(Input!$B$1=2,'Radiation data'!F129,IF(Input!$B$1=3,'Radiation data'!I129,"Wrong input"))) -> 16.1 | I128: -22.5057553 | J128: 5.218717808 | K128: -5.217342523 | L128: =4*('Radiation data'!$L$27-'Radiation data'!$L$28)+K128 -> -13.53734252 | M128: 5.774377625 | N128: -93.38433563 | O128: =ASIN(COS(I128*PI()/180)*COS(N128*PI()/180)*COS('Radiation data'!$L$26*PI()/180)+SIN('Solar radiation and angles'!I128*PI()/180)*SIN('Radiation data'!$L$26*PI()/180))*180/PI() -> 5.536977728 | P128: =IF(N128=0,0,ACOS((COS(I128*PI()/180)*COS(N128*PI()/180)*SIN('Radiation data'!$L$26*PI()/180)-SIN(I128*PI()/180)*COS('Radiation data'!$L$26*PI()/180))/COS(O128*PI()/180))*N128/ABS(N128)*180/PI()) -> -67.90372458 | Q128: =ACOS(COS(O128*PI()/180)*SIN(Input!$J$5*PI()/180)*COS(('Solar radiation and angles'!P128-Input!$B$3)*PI()/180)+SIN('Solar radiation and angles'!O128*PI()/180)*COS(Input!$J$5*PI()/180))*180/PI() -> 94.05902355 | R128: 0 | S128: 0 | T128: =F128*(1+COS(Input!$J$5*PI()/180))/2 -> 16.20361619 | U128: ='Radiation data'!$L$29*E128*(1-COS(Input!$J$5*PI()/180))/2 -> 0.159276762 | V128: 16.36289295
A129: 6 | B129: 7 | C129: 0.3328 | D129: 6.3328 | E129: =IF(Input!$B$1=1,'Radiation data'!A130,IF(Input!$B$1=2,'Radiation data'!D130,IF(Input!$B$1=3,'Radiation data'!G130,"Wrong input"))) -> 276 | F129: =IF(Input!$B$1=1,'Radiation data'!B130,IF(Input!$B$1=2,'Radiation data'!E130,IF(Input!$B$1=3,'Radiation data'!H130,"Wrong input"))) -> 142 | G129: 134 | H129: =IF(Input!$B$1=1,'Radiation data'!C130,IF(Input!$B$1=2,'Radiation data'!F130,IF(Input!$B$1=3,'Radiation data'!I130,"Wrong input"))) -> 18.5 | I129: -22.50103224 | J129: 5.259747945 | K129: -5.234939806 | L129: =4*('Radiation data'!$L$27-'Radiation data'!$L$28)+K129 -> -13.55493981 | M129: 6.774084337 | N129: -78.38873495 | O129: =ASIN(COS(I129*PI()/180)*COS(N129*PI()/180)*COS('Radiation data'!$L$26*PI()/180)+SIN('Solar radiation and angles'!I129*PI()/180)*SIN('Radiation data'!$L$26*PI()/180))*180/PI() -> 18.57479771 | P129: =IF(N129=0,0,ACOS((COS(I129*PI()/180)*COS(N129*PI()/180)*SIN('Radiation data'!$L$26*PI()/180)-SIN(I129*PI()/180)*COS('Radiation data'!$L$26*PI()/180))/COS(O129*PI()/180))*N129/ABS(N129)*180/PI()) -> -72.6878571 | Q129: =ACOS(COS(O129*PI()/180)*SIN(Input!$J$5*PI()/180)*COS(('Solar radiation and angles'!P129-Input!$B$3)*PI()/180)+SIN('Solar radiation and angles'!O129*PI()/180)*COS(Input!$J$5*PI()/180))*180/PI() -> 80.24200777 | R129: 420.6661471 | S129: 71.29743404 | T129: =F129*(1+COS(Input!$J$5*PI()/180))/2 -> 135.3478529 | U129: ='Radiation data'!$L$29*E129*(1-COS(Input!$J$5*PI()/180))/2 -> 2.585905078 | V129: 209.231192
A130: 6 | B130: 8 | C130: 0.3744 | D130: 6.3744 | E130: =IF(Input!$B$1=1,'Radiation data'!A131,IF(Input!$B$1=2,'Radiation data'!D131,IF(Input!$B$1=3,'Radiation data'!G131,"Wrong input"))) -> 548 | F130: =IF(Input!$B$1=1,'Radiation data'!B131,IF(Input!$B$1=2,'Radiation data'!E131,IF(Input!$B$1=3,'Radiation data'!H131,"Wrong input"))) -> 79 | G130: 469 | H130: =IF(Input!$B$1=1,'Radiation data'!C131,IF(Input!$B$1=2,'Radiation data'!F131,IF(Input!$B$1=3,'Radiation data'!I131,"Wrong input"))) -> 21 | I130: =23.45*SIN(PI()*2*((284+D130)/365)) -> -22.49629764 | J130: 5.300778082 | K130: -5.252526696 | L130: =4*('Radiation data'!$L$27-'Radiation data'!$L$28)+K130 -> -13.5725267 | M130: 7.773791222 | N130: -63.39313167 | O130: =ASIN(COS(I130*PI()/180)*COS(N130*PI()/180)*COS('Radiation data'!$L$26*PI()/180)+SIN('Solar radiation and angles'!I130*PI()/180)*SIN('Radiation data'!$L$26*PI()/180))*180/PI() -> 31.93223164 | P130: =IF(N130=0,0,ACOS((COS(I130*PI()/180)*COS(N130*PI()/180)*SIN('Radiation data'!$L$26*PI()/180)-SIN(I130*PI()/180)*COS('Radiation data'!$L$26*PI()/180))/COS(O130*PI()/180))*N130/ABS(N130)*180/PI()) -> -76.7445131 | Q130: =ACOS(COS(O130*PI()/180)*SIN(Input!$J$5*PI()/180)*COS(('Solar radiation and angles'!P130-Input!$B$3)*PI()/180)+SIN('Solar radiation and angles'!O130*PI()/180)*COS(Input!$J$5*PI()/180))*180/PI() -> 66.60168533 | R130: 886.7195228 | S130: 352.1348506 | T130: =F130*(1+COS(Input!$J$5*PI()/180))/2 -> 75.29915759 | U130: ='Radiation data'!$L$29*E130*(1-COS(Input!$J$5*PI()/180))/2 -> 5.13433327 | V130: 432.5683415
A131: 6 | B131: 9 | C131: 0.416 | D131: =A131+C131 -> 6.416 | E131: =IF(Input!$B$1=1,'Radiation data'!A132,IF(Input!$B$1=2,'Radiation data'!D132,IF(Input!$B$1=3,'Radiation data'!G132,"Wrong input"))) -> 796 | F131: =IF(Input!$B$1=1,'Radiation data'!B132,IF(Input!$B$1=2,'Radiation data'!E132,IF(Input!$B$1=3,'Radiation data'!H132,"Wrong input"))) -> 99 | G131: =E131-F131 -> 697 | H131: =IF(Input!$B$1=1,'Radiation data'!C132,IF(Input!$B$1=2,'Radiation data'!F132,IF(Input!$B$1=3,'Radiation data'!I132,"Wrong input"))) -> 23.5 | I131: -22.49155151 | J131: =360*(D131-1)/365 -> 5.341808219 | K131: =229.2*(0.000075+0.001868*COS(J131*PI()/180)-0.032077*SIN(J131*PI()/180)-0.014615*COS(2*J131*PI()/180)-0.04089*SIN(2*J131*PI()/180)) -> -5.270103166 | L131: =4*('Radiation data'!$L$27-'Radiation data'!$L$28)+K131 -> -13.59010317 | M131: =B131+L131/60 -> 8.773498281 | N131: =((B131-12)+(L131/60))*15 -> -48.39752579 | O131: =ASIN(COS(I131*PI()/180)*COS(N131*PI()/180)*COS('Radiation data'!$L$26*PI()/180)+SIN('Solar radiation and angles'!I131*PI()/180)*SIN('Radiation data'!$L$26*PI()/180))*180/PI() -> 45.50216991 | P131: =IF(N131=0,0,ACOS((COS(I131*PI()/180)*COS(N131*PI()/180)*SIN('Radiation data'!$L$26*PI()/180)-SIN(I131*PI()/180)*COS('Radiation data'!$L$26*PI()/180))/COS(O131*PI()/180))*N131/ABS(N131)*180/PI()) -> -80.31407202 | Q131: =ACOS(COS(O131*PI()/180)*SIN(Input!$J$5*PI()/180)*COS(('Solar radiation and angles'!P131-Input!$B$3)*PI()/180)+SIN('Solar radiation and angles'!O131*PI()/180)*COS(Input!$J$5*PI()/180))*180/PI() -> 53.37231661 | R131: =IF(O131<3,0,G131/(COS((90-O131)*PI()/180))) -> 977.1799823 | S131: =IF(Q131>90,0,R131*COS(Q131*PI()/180)) -> 582.9979874 | T131: =F131*(1+COS(Input!$J$5*PI()/180))/2 -> 94.36223546 | U131: ='Radiation data'!$L$29*E131*(1-COS(Input!$J$5*PI()/180))/2 -> 7.457900152 | V131: =S131+T131+U131 -> 684.818123
A132: 6 | B132: 10 | C132: 0.4576 | D132: 6.4576 | E132: =IF(Input!$B$1=1,'Radiation data'!A133,IF(Input!$B$1=2,'Radiation data'!D133,IF(Input!$B$1=3,'Radiation data'!G133,"Wrong input"))) -> 996 | F132: =IF(Input!$B$1=1,'Radiation data'!B133,IF(Input!$B$1=2,'Radiation data'!E133,IF(Input!$B$1=3,'Radiation data'!H133,"Wrong input"))) -> 115 | G132: 881 | H132: =IF(Input!$B$1=1,'Radiation data'!C133,IF(Input!$B$1=2,'Radiation data'!F133,IF(Input!$B$1=3,'Radiation data'!I133,"Wrong input"))) -> 25.7 | I132: -22.48679384 | J132: 5.382838356 | K132: -5.287669187 | L132: =4*('Radiation data'!$L$27-'Radiation data'!$L$28)+K132 -> -13.60766919 | M132: 9.773205514 | N132: -33.4019173 | O132: =ASIN(COS(I132*PI()/180)*COS(N132*PI()/180)*COS('Radiation data'!$L$26*PI()/180)+SIN('Solar radiation and angles'!I132*PI()/180)*SIN('Radiation data'!$L$26*PI()/180))*180/PI() -> 59.21177094 | P132: =IF(N132=0,0,ACOS((COS(I132*PI()/180)*COS(N132*PI()/180)*SIN('Radiation data'!$L$26*PI()/180)-SIN(I132*PI()/180)*COS('Radiation data'!$L$26*PI()/180))/COS(O132*PI()/180))*N132/ABS(N132)*180/PI()) -> -83.5757921 | Q132: =ACOS(COS(O132*PI()/180)*SIN(Input!$J$5*PI()/180)*COS(('Solar radiation and angles'!P132-Input!$B$3)*PI()/180)+SIN('Solar radiation and angles'!O132*PI()/180)*COS(Input!$J$5*PI()/180))*180/PI() -> 41.02937512 | R132: 1025.533486 | S132: 773.6349003 | T132: =F132*(1+COS(Input!$J$5*PI()/180))/2 -> 109.6126978 | U132: ='Radiation data'!$L$29*E132*(1-COS(Input!$J$5*PI()/180))/2 -> 9.331744411 | V132: 892.5793425
A133: 6 | B133: 11 | C133: 0.4992 | D133: 6.4992 | E133: =IF(Input!$B$1=1,'Radiation data'!A134,IF(Input!$B$1=2,'Radiation data'!D134,IF(Input!$B$1=3,'Radiation data'!G134,"Wrong input"))) -> 1132 | F133: =IF(Input!$B$1=1,'Radiation data'!B134,IF(Input!$B$1=2,'Radiation data'!E134,IF(Input!$B$1=3,'Radiation data'!H134,"Wrong input"))) -> 119 | G133: 1013 | H133: =IF(Input!$B$1=1,'Radiation data'!C134,IF(Input!$B$1=2,'Radiation data'!F134,IF(Input!$B$1=3,'Radiation data'!I134,"Wrong input"))) -> 27.6 | I133: -22.48202464 | J133: 5.423868493 | K133: -5.305224732 | L133: =4*('Radiation data'!$L$27-'Radiation data'!$L$28)+K133 -> -13.62522473 | M133: 10.77291292 | N133: -18.40630618 | O133: =ASIN(COS(I133*PI()/180)*COS(N133*PI()/180)*COS('Radiation data'!$L$26*PI()/180)+SIN('Solar radiation and angles'!I133*PI()/180)*SIN('Radiation data'!$L$26*PI()/180))*180/PI() -> 73.00801712 | P133: =IF(N133=0,0,ACOS((COS(I133*PI()/180)*COS(N133*PI()/180)*SIN('Radiation data'!$L$26*PI()/180)-SIN(I133*PI()/180)*COS('Radiation data'!$L$26*PI()/180))/COS(O133*PI()/180))*N133/ABS(N133)*180/PI()) -> -86.70940648 | Q133: =ACOS(COS(O133*PI()/180)*SIN(Input!$J$5*PI()/180)*COS(('Solar radiation and angles'!P133-Input!$B$3)*PI()/180)+SIN('Solar radiation and angles'!O133*PI()/180)*COS(Input!$J$5*PI()/180))*180/PI() -> 30.72220909 | R133: 1059.240446 | S133: 910.5806142 | T133: =F133*(1+COS(Input!$J$5*PI()/180))/2 -> 113.4253133 | U133: ='Radiation data'!$L$29*E133*(1-COS(Input!$J$5*PI()/180))/2 -> 10.60595851 | V133: 1034.611886
A134: 6 | B134: 12 | C134: 0.5408 | D134: 6.5408 | E134: =IF(Input!$B$1=1,'Radiation data'!A135,IF(Input!$B$1=2,'Radiation data'!D135,IF(Input!$B$1=3,'Radiation data'!G135,"Wrong input"))) -> 1197 | F134: =IF(Input!$B$1=1,'Radiation data'!B135,IF(Input!$B$1=2,'Radiation data'!E135,IF(Input!$B$1=3,'Radiation data'!H135,"Wrong input"))) -> 127 | G134: 1070 | H134: =IF(Input!$B$1=1,'Radiation data'!C135,IF(Input!$B$1=2,'Radiation data'!F135,IF(Input!$B$1=3,'Radiation data'!I135,"Wrong input"))) -> 29.1 | I134: -22.47724391 | J134: 5.46489863 | K134: -5.322769773 | L134: =4*('Radiation data'!$L$27-'Radiation data'!$L$28)+K134 -> -13.64276977 | M134: 11.7726205 | N134: -3.410692443 | O134: =ASIN(COS(I134*PI()/180)*COS(N134*PI()/180)*COS('Radiation data'!$L$26*PI()/180)+SIN('Solar radiation and angles'!I134*PI()/180)*SIN('Radiation data'!$L$26*PI()/180))*180/PI() -> 86.84833742 | P134: =IF(N134=0,0,ACOS((COS(I134*PI()/180)*COS(N134*PI()/180)*SIN('Radiation data'!$L$26*PI()/180)-SIN(I134*PI()/180)*COS('Radiation data'!$L$26*PI()/180))/COS(O134*PI()/180))*N134/ABS(N134)*180/PI()) -> -90.85087913 | Q134: =ACOS(COS(O134*PI()/180)*SIN(Input!$J$5*PI()/180)*COS(('Solar radiation and angles'!P134-Input!$B$3)*PI()/180)+SIN('Solar radiation and angles'!O134*PI()/180)*COS(Input!$J$5*PI()/180))*180/PI() -> 25.13870358 | R134: 1071.620824 | S134: 970.1190894 | T134: =F134*(1+COS(Input!$J$5*PI()/180))/2 -> 121.0505445 | U134: ='Radiation data'!$L$29*E134*(1-COS(Input!$J$5*PI()/180))/2 -> 11.21495789 | V134: 1102.384592
A135: 6 | B135: 13 | C135: 0.5824 | D135: 6.5824 | E135: =IF(Input!$B$1=1,'Radiation data'!A136,IF(Input!$B$1=2,'Radiation data'!D136,IF(Input!$B$1=3,'Radiation data'!G136,"Wrong input"))) -> 1186 | F135: =IF(Input!$B$1=1,'Radiation data'!B136,IF(Input!$B$1=2,'Radiation data'!E136,IF(Input!$B$1=3,'Radiation data'!H136,"Wrong input"))) -> 125 | G135: 1061 | H135: =IF(Input!$B$1=1,'Radiation data'!C136,IF(Input!$B$1=2,'Radiation data'!F136,IF(Input!$B$1=3,'Radiation data'!I136,"Wrong input"))) -> 30.2 | I135: -22.47245165 | J135: 5.505928767 | K135: -5.340304282 | L135: =4*('Radiation data'!$L$27-'Radiation data'!$L$28)+K135 -> -13.66030428 | M135: 12.77232826 | N135: 11.58492393 | O135: =ASIN(COS(I135*PI()/180)*COS(N135*PI()/180)*COS('Radiation data'!$L$26*PI()/180)+SIN('Solar radiation and angles'!I135*PI()/180)*SIN('Radiation data'!$L$26*PI()/180))*180/PI() -> 79.30050775 | P135: =IF(N135=0,0,ACOS((COS(I135*PI()/180)*COS(N135*PI()/180)*SIN('Radiation data'!$L$26*PI()/180)-SIN(I135*PI()/180)*COS('Radiation data'!$L$26*PI()/180))/COS(O135*PI()/180))*N135/ABS(N135)*180/PI()) -> 88.24244627 | Q135: =ACOS(COS(O135*PI()/180)*SIN(Input!$J$5*PI()/180)*COS(('Solar radiation and angles'!P135-Input!$B$3)*PI()/180)+SIN('Solar radiation and angles'!O135*PI()/180)*COS(Input!$J$5*PI()/180))*180/PI() -> 27.3589769 | R135: 1079.772447 | S135: 958.9941273 | T135: =F135*(1+COS(Input!$J$5*PI()/180))/2 -> 119.1442367 | U135: ='Radiation data'!$L$29*E135*(1-COS(Input!$J$5*PI()/180))/2 -> 11.11189646 | V135: 1089.25026
A136: 6 | B136: 14 | C136: 0.624 | D136: 6.624 | E136: =IF(Input!$B$1=1,'Radiation data'!A137,IF(Input!$B$1=2,'Radiation data'!D137,IF(Input!$B$1=3,'Radiation data'!G137,"Wrong input"))) -> 1104 | F136: =IF(Input!$B$1=1,'Radiation data'!B137,IF(Input!$B$1=2,'Radiation data'!E137,IF(Input!$B$1=3,'Radiation data'!H137,"Wrong input"))) -> 112 | G136: 992 | H136: =IF(Input!$B$1=1,'Radiation data'!C137,IF(Input!$B$1=2,'Radiation data'!F137,IF(Input!$B$1=3,'Radiation data'!I137,"Wrong input"))) -> 30.8 | I136: -22.46764787 | J136: 5.546958904 | K136: -5.35782823 | L136: =4*('Radiation data'!$L$27-'Radiation data'!$L$28)+K136 -> -13.67782823 | M136: 13.7720362 | N136: 26.58054294 | O136: =ASIN(COS(I136*PI()/180)*COS(N136*PI()/180)*COS('Radiation data'!$L$26*PI()/180)+SIN('Solar radiation and angles'!I136*PI()/180)*SIN('Radiation data'!$L$26*PI()/180))*180/PI() -> 65.47794001 | P136: =IF(N136=0,0,ACOS((COS(I136*PI()/180)*COS(N136*PI()/180)*SIN('Radiation data'!$L$26*PI()/180)-SIN(I136*PI()/180)*COS('Radiation data'!$L$26*PI()/180))/COS(O136*PI()/180))*N136/ABS(N136)*180/PI()) -> 85.04346704 | Q136: =ACOS(COS(O136*PI()/180)*SIN(Input!$J$5*PI()/180)*COS(('Solar radiation and angles'!P136-Input!$B$3)*PI()/180)+SIN('Solar radiation and angles'!O136*PI()/180)*COS(Input!$J$5*PI()/180))*180/PI() -> 35.96213813 | R136: 1090.347684 | S136: 882.5331226 | T136: =F136*(1+COS(Input!$J$5*PI()/180))/2 -> 106.7532361 | U136: ='Radiation data'!$L$29*E136*(1-COS(Input!$J$5*PI()/180))/2 -> 10.34362031 | V136: 999.629979
A137: 6 | B137: 15 | C137: 0.6656 | D137: 6.6656 | E137: =IF(Input!$B$1=1,'Radiation data'!A138,IF(Input!$B$1=2,'Radiation data'!D138,IF(Input!$B$1=3,'Radiation data'!G138,"Wrong input"))) -> 947 | F137: =IF(Input!$B$1=1,'Radiation data'!B138,IF(Input!$B$1=2,'Radiation data'!E138,IF(Input!$B$1=3,'Radiation data'!H138,"Wrong input"))) -> 96 | G137: 851 | H137: =IF(Input!$B$1=1,'Radiation data'!C138,IF(Input!$B$1=2,'Radiation data'!F138,IF(Input!$B$1=3,'Radiation data'!I138,"Wrong input"))) -> 31 | I137: -22.46283257 | J137: 5.587989041 | K137: -5.375341591 | L137: =4*('Radiation data'!$L$27-'Radiation data'!$L$28)+K137 -> -13.69534159 | M137: 14.77174431 | N137: 41.5761646 | O137: =ASIN(COS(I137*PI()/180)*COS(N137*PI()/180)*COS('Radiation data'!$L$26*PI()/180)+SIN('Solar radiation and angles'!I137*PI()/180)*SIN('Radiation data'!$L$26*PI()/180))*180/PI() -> 51.72087652 | P137: =IF(N137=0,0,ACOS((COS(I137*PI()/180)*COS(N137*PI()/180)*SIN('Radiation data'!$L$26*PI()/180)-SIN(I137*PI()/180)*COS('Radiation data'!$L$26*PI()/180))/COS(O137*PI()/180))*N137/ABS(N137)*180/PI()) -> 81.86869416 | Q137: =ACOS(COS(O137*PI()/180)*SIN(Input!$J$5*PI()/180)*COS(('Solar radiation and angles'!P137-Input!$B$3)*PI()/180)+SIN('Solar radiation and angles'!O137*PI()/180)*COS(Input!$J$5*PI()/180))*180/PI() -> 47.59066309 | R137: 1084.073473 | S137: 731.1237772 | T137: =F137*(1+COS(Input!$J$5*PI()/180))/2 -> 91.50277378 | U137: ='Radiation data'!$L$29*E137*(1-COS(Input!$J$5*PI()/180))/2 -> 8.872652568 | V137: 831.4992036
A138: 6 | B138: 16 | C138: 0.7072 | D138: 6.7072 | E138: =IF(Input!$B$1=1,'Radiation data'!A139,IF(Input!$B$1=2,'Radiation data'!D139,IF(Input!$B$1=3,'Radiation data'!G139,"Wrong input"))) -> 734 | F138: =IF(Input!$B$1=1,'Radiation data'!B139,IF(Input!$B$1=2,'Radiation data'!E139,IF(Input!$B$1=3,'Radiation data'!H139,"Wrong input"))) -> 73 | G138: 661 | H138: =IF(Input!$B$1=1,'Radiation data'!C139,IF(Input!$B$1=2,'Radiation data'!F139,IF(Input!$B$1=3,'Radiation data'!I139,"Wrong input"))) -> 30.7 | I138: -22.45800574 | J138: 5.629019178 | K138: -5.392844336 | L138: =4*('Radiation data'!$L$27-'Radiation data'!$L$28)+K138 -> -13.71284434 | M138: 15.77145259 | N138: 56.57178892 | O138: =ASIN(COS(I138*PI()/180)*COS(N138*PI()/180)*COS('Radiation data'!$L$26*PI()/180)+SIN('Solar radiation and angles'!I138*PI()/180)*SIN('Radiation data'!$L$26*PI()/180))*180/PI() -> 38.07633508 | P138: =IF(N138=0,0,ACOS((COS(I138*PI()/180)*COS(N138*PI()/180)*SIN('Radiation data'!$L$26*PI()/180)-SIN(I138*PI()/180)*COS('Radiation data'!$L$26*PI()/180))/COS(O138*PI()/180))*N138/ABS(N138)*180/PI()) -> 78.46190571 | Q138: =ACOS(COS(O138*PI()/180)*SIN(Input!$J$5*PI()/180)*COS(('Solar radiation and angles'!P138-Input!$B$3)*PI()/180)+SIN('Solar radiation and angles'!O138*PI()/180)*COS(Input!$J$5*PI()/180))*180/PI() -> 60.50239497 | R138: 1071.815195 | S138: 527.74806 | T138: =F138*(1+COS(Input!$J$5*PI()/180))/2 -> 69.58023423 | U138: ='Radiation data'!$L$29*E138*(1-COS(Input!$J$5*PI()/180))/2 -> 6.877008432 | V138: 604.2053026
A139: 6 | B139: 17 | C139: 0.7488 | D139: 6.7488 | E139: =IF(Input!$B$1=1,'Radiation data'!A140,IF(Input!$B$1=2,'Radiation data'!D140,IF(Input!$B$1=3,'Radiation data'!G140,"Wrong input"))) -> 483 | F139: =IF(Input!$B$1=1,'Radiation data'!B140,IF(Input!$B$1=2,'Radiation data'!E140,IF(Input!$B$1=3,'Radiation data'!H140,"Wrong input"))) -> 54 | G139: 429 | H139: =IF(Input!$B$1=1,'Radiation data'!C140,IF(Input!$B$1=2,'Radiation data'!F140,IF(Input!$B$1=3,'Radiation data'!I140,"Wrong input"))) -> 29.7 | I139: -22.45316741 | J139: 5.670049315 | K139: -5.410336437 | L139: =4*('Radiation data'!$L$27-'Radiation data'!$L$28)+K139 -> -13.73033644 | M139: 16.77116106 | N139: 71.56741589 | O139: =ASIN(COS(I139*PI()/180)*COS(N139*PI()/180)*COS('Radiation data'!$L$26*PI()/180)+SIN('Solar radiation and angles'!I139*PI()/180)*SIN('Radiation data'!$L$26*PI()/180))*180/PI() -> 24.60656019 | P139: =IF(N139=0,0,ACOS((COS(I139*PI()/180)*COS(N139*PI()/180)*SIN('Radiation data'!$L$26*PI()/180)-SIN(I139*PI()/180)*COS('Radiation data'!$L$26*PI()/180))/COS(O139*PI()/180))*N139/ABS(N139)*180/PI()) -> 74.65543775 | Q139: =ACOS(COS(O139*PI()/180)*SIN(Input!$J$5*PI()/180)*COS(('Solar radiation and angles'!P139-Input!$B$3)*PI()/180)+SIN('Solar radiation and angles'!O139*PI()/180)*COS(Input!$J$5*PI()/180))*180/PI() -> 73.99661394 | R139: 1030.296742 | S139: 284.0467989 | T139: =F139*(1+COS(Input!$J$5*PI()/180))/2 -> 51.47031025 | U139: ='Radiation data'!$L$29*E139*(1-COS(Input!$J$5*PI()/180))/2 -> 4.525333886 | V139: 340.042443
A140: 6 | B140: 18 | C140: 0.7904 | D140: 6.7904 | E140: =IF(Input!$B$1=1,'Radiation data'!A141,IF(Input!$B$1=2,'Radiation data'!D141,IF(Input!$B$1=3,'Radiation data'!G141,"Wrong input"))) -> 222 | F140: =IF(Input!$B$1=1,'Radiation data'!B141,IF(Input!$B$1=2,'Radiation data'!E141,IF(Input!$B$1=3,'Radiation data'!H141,"Wrong input"))) -> 106 | G140: 116 | H140: =IF(Input!$B$1=1,'Radiation data'!C141,IF(Input!$B$1=2,'Radiation data'!F141,IF(Input!$B$1=3,'Radiation data'!I141,"Wrong input"))) -> 28.1 | I140: -22.44831755 | J140: 5.711079452 | K140: -5.427817868 | L140: =4*('Radiation data'!$L$27-'Radiation data'!$L$28)+K140 -> -13.74781787 | M140: 17.7708697 | N140: 86.56304553 | O140: =ASIN(COS(I140*PI()/180)*COS(N140*PI()/180)*COS('Radiation data'!$L$26*PI()/180)+SIN('Solar radiation and angles'!I140*PI()/180)*SIN('Radiation data'!$L$26*PI()/180))*180/PI() -> 11.40042158 | P140: =IF(N140=0,0,ACOS((COS(I140*PI()/180)*COS(N140*PI()/180)*SIN('Radiation data'!$L$26*PI()/180)-SIN(I140*PI()/180)*COS('Radiation data'!$L$26*PI()/180))/COS(O140*PI()/180))*N140/ABS(N140)*180/PI()) -> 70.24233207 | Q140: =ACOS(COS(O140*PI()/180)*SIN(Input!$J$5*PI()/180)*COS(('Solar radiation and angles'!P140-Input!$B$3)*PI()/180)+SIN('Solar radiation and angles'!O140*PI()/180)*COS(Input!$J$5*PI()/180))*180/PI() -> 87.75912689 | R140: 586.8528179 | S140: 22.94632304 | T140: =F140*(1+COS(Input!$J$5*PI()/180))/2 -> 101.0343127 | U140: ='Radiation data'!$L$29*E140*(1-COS(Input!$J$5*PI()/180))/2 -> 2.079967128 | V140: 126.0606029
A141: 6 | B141: 19 | C141: 0.832 | D141: 6.832 | E141: =IF(Input!$B$1=1,'Radiation data'!A142,IF(Input!$B$1=2,'Radiation data'!D142,IF(Input!$B$1=3,'Radiation data'!G142,"Wrong input"))) -> 4 | F141: =IF(Input!$B$1=1,'Radiation data'!B142,IF(Input!$B$1=2,'Radiation data'!E142,IF(Input!$B$1=3,'Radiation data'!H142,"Wrong input"))) -> 4 | G141: 0 | H141: =IF(Input!$B$1=1,'Radiation data'!C142,IF(Input!$B$1=2,'Radiation data'!F142,IF(Input!$B$1=3,'Radiation data'!I142,"Wrong input"))) -> 26.3 | I141: -22.44345619 | J141: 5.752109589 | K141: -5.445288599 | L141: =4*('Radiation data'!$L$27-'Radiation data'!$L$28)+K141 -> -13.7652886 | M141: 18.77057852 | N141: 101.5586779 | O141: =ASIN(COS(I141*PI()/180)*COS(N141*PI()/180)*COS('Radiation data'!$L$26*PI()/180)+SIN('Solar radiation and angles'!I141*PI()/180)*SIN('Radiation data'!$L$26*PI()/180))*180/PI() -> -1.407113648 | P141: =IF(N141=0,0,ACOS((COS(I141*PI()/180)*COS(N141*PI()/180)*SIN('Radiation data'!$L$26*PI()/180)-SIN(I141*PI()/180)*COS('Radiation data'!$L$26*PI()/180))/COS(O141*PI()/180))*N141/ABS(N141)*180/PI()) -> 64.92934897 | Q141: =ACOS(COS(O141*PI()/180)*SIN(Input!$J$5*PI()/180)*COS(('Solar radiation and angles'!P141-Input!$B$3)*PI()/180)+SIN('Solar radiation and angles'!O141*PI()/180)*COS(Input!$J$5*PI()/180))*180/PI() -> 101.6118155 | R141: 0 | S141: 0 | T141: =F141*(1+COS(Input!$J$5*PI()/180))/2 -> 3.812615574 | U141: ='Radiation data'!$L$29*E141*(1-COS(Input!$J$5*PI()/180))/2 -> 0.03747688519 | V141: 3.850092459
A142: 6 | B142: 20 | C142: 0.8736 | D142: 6.8736 | E142: =IF(Input!$B$1=1,'Radiation data'!A143,IF(Input!$B$1=2,'Radiation data'!D143,IF(Input!$B$1=3,'Radiation data'!G143,"Wrong input"))) -> 0 | F142: =IF(Input!$B$1=1,'Radiation data'!B143,IF(Input!$B$1=2,'Radiation data'!E143,IF(Input!$B$1=3,'Radiation data'!H143,"Wrong input"))) -> 0 | G142: 0 | H142: =IF(Input!$B$1=1,'Radiation data'!C143,IF(Input!$B$1=2,'Radiation data'!F143,IF(Input!$B$1=3,'Radiation data'!I143,"Wrong input"))) -> 25.1 | I142: -22.43858331 | J142: 5.793139726 | K142: -5.462748604 | L142: =4*('Radiation data'!$L$27-'Radiation data'!$L$28)+K142 -> -13.7827486 | M142: 19.77028752 | N142: 116.5543128 | O142: =ASIN(COS(I142*PI()/180)*COS(N142*PI()/180)*COS('Radiation data'!$L$26*PI()/180)+SIN('Solar radiation and angles'!I142*PI()/180)*SIN('Radiation data'!$L$26*PI()/180))*180/PI() -> -13.60012607 | P142: =IF(N142=0,0,ACOS((COS(I142*PI()/180)*COS(N142*PI()/180)*SIN('Radiation data'!$L$26*PI()/180)-SIN(I142*PI()/180)*COS('Radiation data'!$L$26*PI()/180))/COS(O142*PI()/180))*N142/ABS(N142)*180/PI()) -> 58.28116733 | Q142: =ACOS(COS(O142*PI()/180)*SIN(Input!$J$5*PI()/180)*COS(('Solar radiation and angles'!P142-Input!$B$3)*PI()/180)+SIN('Solar radiation and angles'!O142*PI()/180)*COS(Input!$J$5*PI()/180))*180/PI() -> 115.4088715 | R142: 0 | S142: 0 | T142: =F142*(1+COS(Input!$J$5*PI()/180))/2 -> 0 | U142: ='Radiation data'!$L$29*E142*(1-COS(Input!$J$5*PI()/180))/2 -> 0 | V142: 0
A143: 6 | B143: 21 | C143: 0.9152 | D143: 6.9152 | E143: =IF(Input!$B$1=1,'Radiation data'!A144,IF(Input!$B$1=2,'Radiation data'!D144,IF(Input!$B$1=3,'Radiation data'!G144,"Wrong input"))) -> 0 | F143: =IF(Input!$B$1=1,'Radiation data'!B144,IF(Input!$B$1=2,'Radiation data'!E144,IF(Input!$B$1=3,'Radiation data'!H144,"Wrong input"))) -> 0 | G143: 0 | H143: =IF(Input!$B$1=1,'Radiation data'!C144,IF(Input!$B$1=2,'Radiation data'!F144,IF(Input!$B$1=3,'Radiation data'!I144,"Wrong input"))) -> 23.9 | I143: -22.43369893 | J143: 5.834169863 | K143: -5.480197854 | L143: =4*('Radiation data'!$L$27-'Radiation data'!$L$28)+K143 -> -13.80019785 | M143: 20.7699967 | N143: 131.5499505 | O143: =ASIN(COS(I143*PI()/180)*COS(N143*PI()/180)*COS('Radiation data'!$L$26*PI()/180)+SIN('Solar radiation and angles'!I143*PI()/180)*SIN('Radiation data'!$L$26*PI()/180))*180/PI() -> -24.81925698 | P143: =IF(N143=0,0,ACOS((COS(I143*PI()/180)*COS(N143*PI()/180)*SIN('Radiation data'!$L$26*PI()/180)-SIN(I143*PI()/180)*COS('Radiation data'!$L$26*PI()/180))/COS(O143*PI()/180))*N143/ABS(N143)*180/PI()) -> 49.65281052 | Q143: =ACOS(COS(O143*PI()/180)*SIN(Input!$J$5*PI()/180)*COS(('Solar radiation and angles'!P143-Input!$B$3)*PI()/180)+SIN('Solar radiation and angles'!O143*PI()/180)*COS(Input!$J$5*PI()/180))*180/PI() -> 128.9592926 | R143: 0 | S143: 0 | T143: =F143*(1+COS(Input!$J$5*PI()/180))/2 -> 0 | U143: ='Radiation data'!$L$29*E143*(1-COS(Input!$J$5*PI()/180))/2 -> 0 | V143: 0
A144: 6 | B144: 22 | C144: 0.9568 | D144: 6.9568 | E144: =IF(Input!$B$1=1,'Radiation data'!A145,IF(Input!$B$1=2,'Radiation data'!D145,IF(Input!$B$1=3,'Radiation data'!G145,"Wrong input"))) -> 0 | F144: =IF(Input!$B$1=1,'Radiation data'!B145,IF(Input!$B$1=2,'Radiation data'!E145,IF(Input!$B$1=3,'Radiation data'!H145,"Wrong input"))) -> 0 | G144: 0 | H144: =IF(Input!$B$1=1,'Radiation data'!C145,IF(Input!$B$1=2,'Radiation data'!F145,IF(Input!$B$1=3,'Radiation data'!I145,"Wrong input"))) -> 22.8 | I144: -22.42880305 | J144: 5.8752 | K144: -5.497636322 | L144: =4*('Radiation data'!$L$27-'Radiation data'!$L$28)+K144 -> -13.81763632 | M144: 21.76970606 | N144: 146.5455909 | O144: =ASIN(COS(I144*PI()/180)*COS(N144*PI()/180)*COS('Radiation data'!$L$26*PI()/180)+SIN('Solar radiation and angles'!I144*PI()/180)*SIN('Radiation data'!$L$26*PI()/180))*180/PI() -> -34.45932559 | P144: =IF(N144=0,0,ACOS((COS(I144*PI()/180)*COS(N144*PI()/180)*SIN('Radiation data'!$L$26*PI()/180)-SIN(I144*PI()/180)*COS('Radiation data'!$L$26*PI()/180))/COS(O144*PI()/180))*N144/ABS(N144)*180/PI()) -> 38.17142401 | Q144: =ACOS(COS(O144*PI()/180)*SIN(Input!$J$5*PI()/180)*COS(('Solar radiation and angles'!P144-Input!$B$3)*PI()/180)+SIN('Solar radiation and angles'!O144*PI()/180)*COS(Input!$J$5*PI()/180))*180/PI() -> 141.8833465 | R144: 0 | S144: 0 | T144: =F144*(1+COS(Input!$J$5*PI()/180))/2 -> 0 | U144: ='Radiation data'!$L$29*E144*(1-COS(Input!$J$5*PI()/180))/2 -> 0 | V144: 0
A145: 6 | B145: 23 | C145: 0.9984 | D145: 6.9984 | E145: =IF(Input!$B$1=1,'Radiation data'!A146,IF(Input!$B$1=2,'Radiation data'!D146,IF(Input!$B$1=3,'Radiation data'!G146,"Wrong input"))) -> 0 | F145: =IF(Input!$B$1=1,'Radiation data'!B146,IF(Input!$B$1=2,'Radiation data'!E146,IF(Input!$B$1=3,'Radiation data'!H146,"Wrong input"))) -> 0 | G145: 0 | H145: =IF(Input!$B$1=1,'Radiation data'!C146,IF(Input!$B$1=2,'Radiation data'!F146,IF(Input!$B$1=3,'Radiation data'!I146,"Wrong input"))) -> 21.6 | I145: -22.42389566 | J145: 5.916230137 | K145: -5.515063981 | L145: =4*('Radiation data'!$L$27-'Radiation data'!$L$28)+K145 -> -13.83506398 | M145: 22.7694156 | N145: 161.541234 | O145: =ASIN(COS(I145*PI()/180)*COS(N145*PI()/180)*COS('Radiation data'!$L$26*PI()/180)+SIN('Solar radiation and angles'!I145*PI()/180)*SIN('Radiation data'!$L$26*PI()/180))*180/PI() -> -41.55867206 | P145: =IF(N145=0,0,ACOS((COS(I145*PI()/180)*COS(N145*PI()/180)*SIN('Radiation data'!$L$26*PI()/180)-SIN(I145*PI()/180)*COS('Radiation data'!$L$26*PI()/180))/COS(O145*PI()/180))*N145/ABS(N145)*180/PI()) -> 23.0254831 | Q145: =ACOS(COS(O145*PI()/180)*SIN(Input!$J$5*PI()/180)*COS(('Solar radiation and angles'!P145-Input!$B$3)*PI()/180)+SIN('Solar radiation and angles'!O145*PI()/180)*COS(Input!$J$5*PI()/180))*180/PI() -> 153.1603711 | R145: 0 | S145: 0 | T145: =F145*(1+COS(Input!$J$5*PI()/180))/2 -> 0 | U145: ='Radiation data'!$L$29*E145*(1-COS(Input!$J$5*PI()/180))/2 -> 0 | V145: 0
A146: 7 | B146: 0.0001 | C146: 0.0416 | D146: 7.0416 | E146: =IF(Input!$B$1=1,'Radiation data'!A147,IF(Input!$B$1=2,'Radiation data'!D147,IF(Input!$B$1=3,'Radiation data'!G147,"Wrong input"))) -> 0 | F146: =IF(Input!$B$1=1,'Radiation data'!B147,IF(Input!$B$1=2,'Radiation data'!E147,IF(Input!$B$1=3,'Radiation data'!H147,"Wrong input"))) -> 0 | G146: 0 | H146: =IF(Input!$B$1=1,'Radiation data'!C147,IF(Input!$B$1=2,'Radiation data'!F147,IF(Input!$B$1=3,'Radiation data'!I147,"Wrong input"))) -> 20.9 | I146: -22.41878735 | J146: 5.958838356 | K146: -5.533150463 | L146: =4*('Radiation data'!$L$27-'Radiation data'!$L$28)+K146 -> -13.85315046 | M146: -0.230785841 | N146: -183.4617876 | O146: =ASIN(COS(I146*PI()/180)*COS(N146*PI()/180)*COS('Radiation data'!$L$26*PI()/180)+SIN('Solar radiation and angles'!I146*PI()/180)*SIN('Radiation data'!$L$26*PI()/180))*180/PI() -> -44.89508488 | P146: =IF(N146=0,0,ACOS((COS(I146*PI()/180)*COS(N146*PI()/180)*SIN('Radiation data'!$L$26*PI()/180)-SIN(I146*PI()/180)*COS('Radiation data'!$L$26*PI()/180))/COS(O146*PI()/180))*N146/ABS(N146)*180/PI()) -> -4.519367065 | Q146: =ACOS(COS(O146*PI()/180)*SIN(Input!$J$5*PI()/180)*COS(('Solar radiation and angles'!P146-Input!$B$3)*PI()/180)+SIN('Solar radiation and angles'!O146*PI()/180)*COS(Input!$J$5*PI()/180))*180/PI() -> 159.7404965 | R146: 0 | S146: 0 | T146: =F146*(1+COS(Input!$J$5*PI()/180))/2 -> 0 | U146: ='Radiation data'!$L$29*E146*(1-COS(Input!$J$5*PI()/180))/2 -> 0 | V146: 0
A147: 7 | B147: 1 | C147: 0.0832 | D147: 7.0832 | E147: =IF(Input!$B$1=1,'Radiation data'!A148,IF(Input!$B$1=2,'Radiation data'!D148,IF(Input!$B$1=3,'Radiation data'!G148,"Wrong input"))) -> 0 | F147: =IF(Input!$B$1=1,'Radiation data'!B148,IF(Input!$B$1=2,'Radiation data'!E148,IF(Input!$B$1=3,'Radiation data'!H148,"Wrong input"))) -> 0 | G147: 0 | H147: =IF(Input!$B$1=1,'Radiation data'!C148,IF(Input!$B$1=2,'Radiation data'!F148,IF(Input!$B$1=3,'Radiation data'!I148,"Wrong input"))) -> 20 | I147: -22.41385653 | J147: 5.999868493 | K147: -5.550556 | L147: =4*('Radiation data'!$L$27-'Radiation data'!$L$28)+K147 -> -13.870556 | M147: 0.7688240667 | N147: -168.467639 | O147: =ASIN(COS(I147*PI()/180)*COS(N147*PI()/180)*COS('Radiation data'!$L$26*PI()/180)+SIN('Solar radiation and angles'!I147*PI()/180)*SIN('Radiation data'!$L$26*PI()/180))*180/PI() -> -43.64551087 | P147: =IF(N147=0,0,ACOS((COS(I147*PI()/180)*COS(N147*PI()/180)*SIN('Radiation data'!$L$26*PI()/180)-SIN(I147*PI()/180)*COS('Radiation data'!$L$26*PI()/180))/COS(O147*PI()/180))*N147/ABS(N147)*180/PI()) -> -14.79766063 | Q147: =ACOS(COS(O147*PI()/180)*SIN(Input!$J$5*PI()/180)*COS(('Solar radiation and angles'!P147-Input!$B$3)*PI()/180)+SIN('Solar radiation and angles'!O147*PI()/180)*COS(Input!$J$5*PI()/180))*180/PI() -> 157.1025286 | R147: 0 | S147: 0 | T147: =F147*(1+COS(Input!$J$5*PI()/180))/2 -> 0 | U147: ='Radiation data'!$L$29*E147*(1-COS(Input!$J$5*PI()/180))/2 -> 0 | V147: 0
A148: 7 | B148: 2 | C148: 0.1248 | D148: 7.1248 | E148: =IF(Input!$B$1=1,'Radiation data'!A149,IF(Input!$B$1=2,'Radiation data'!D149,IF(Input!$B$1=3,'Radiation data'!G149,"Wrong input"))) -> 0 | F148: =IF(Input!$B$1=1,'Radiation data'!B149,IF(Input!$B$1=2,'Radiation data'!E149,IF(Input!$B$1=3,'Radiation data'!H149,"Wrong input"))) -> 0 | G148: 0 | H148: =IF(Input!$B$1=1,'Radiation data'!C149,IF(Input!$B$1=2,'Radiation data'!F149,IF(Input!$B$1=3,'Radiation data'!I149,"Wrong input"))) -> 19.2 | I148: -22.40891421 | J148: 6.04089863 | K148: -5.567950644 | L148: =4*('Radiation data'!$L$27-'Radiation data'!$L$28)+K148 -> -13.88795064 | M148: 1.768534156 | N148: -153.4719877 | O148: =ASIN(COS(I148*PI()/180)*COS(N148*PI()/180)*COS('Radiation data'!$L$26*PI()/180)+SIN('Solar radiation and angles'!I148*PI()/180)*SIN('Radiation data'!$L$26*PI()/180))*180/PI() -> -38.14144067 | P148: =IF(N148=0,0,ACOS((COS(I148*PI()/180)*COS(N148*PI()/180)*SIN('Radiation data'!$L$26*PI()/180)-SIN(I148*PI()/180)*COS('Radiation data'!$L$26*PI()/180))/COS(O148*PI()/180))*N148/ABS(N148)*180/PI()) -> -31.66840865 | Q148: =ACOS(COS(O148*PI()/180)*SIN(Input!$J$5*PI()/180)*COS(('Solar radiation and angles'!P148-Input!$B$3)*PI()/180)+SIN('Solar radiation and angles'!O148*PI()/180)*COS(Input!$J$5*PI()/180))*180/PI() -> 147.4191824 | R148: 0 | S148: 0 | T148: =F148*(1+COS(Input!$J$5*PI()/180))/2 -> 0 | U148: ='Radiation data'!$L$29*E148*(1-COS(Input!$J$5*PI()/180))/2 -> 0 | V148: 0
A149: 7 | B149: 3 | C149: 0.1664 | D149: 7.1664 | E149: =IF(Input!$B$1=1,'Radiation data'!A150,IF(Input!$B$1=2,'Radiation data'!D150,IF(Input!$B$1=3,'Radiation data'!G150,"Wrong input"))) -> 0 | F149: =IF(Input!$B$1=1,'Radiation data'!B150,IF(Input!$B$1=2,'Radiation data'!E150,IF(Input!$B$1=3,'Radiation data'!H150,"Wrong input"))) -> 0 | G149: 0 | H149: =IF(Input!$B$1=1,'Radiation data'!C150,IF(Input!$B$1=2,'Radiation data'!F150,IF(Input!$B$1=3,'Radiation data'!I150,"Wrong input"))) -> 18.8 | I149: -22.4039604 | J149: 6.081928767 | K149: -5.585334367 | L149: =4*('Radiation data'!$L$27-'Radiation data'!$L$28)+K149 -> -13.90533437 | M149: 2.768244427 | N149: -138.4763336 | O149: =ASIN(COS(I149*PI()/180)*COS(N149*PI()/180)*COS('Radiation data'!$L$26*PI()/180)+SIN('Solar radiation and angles'!I149*PI()/180)*SIN('Radiation data'!$L$26*PI()/180))*180/PI() -> -29.53681136 | P149: =IF(N149=0,0,ACOS((COS(I149*PI()/180)*COS(N149*PI()/180)*SIN('Radiation data'!$L$26*PI()/180)-SIN(I149*PI()/180)*COS('Radiation data'!$L$26*PI()/180))/COS(O149*PI()/180))*N149/ABS(N149)*180/PI()) -> -44.78440056 | Q149: =ACOS(COS(O149*PI()/180)*SIN(Input!$J$5*PI()/180)*COS(('Solar radiation and angles'!P149-Input!$B$3)*PI()/180)+SIN('Solar radiation and angles'!O149*PI()/180)*COS(Input!$J$5*PI()/180))*180/PI() -> 135.0537444 | R149: 0 | S149: 0 | T149: =F149*(1+COS(Input!$J$5*PI()/180))/2 -> 0 | U149: ='Radiation data'!$L$29*E149*(1-COS(Input!$J$5*PI()/180))/2 -> 0 | V149: 0
A150: 7 | B150: 4 | C150: 0.208 | D150: 7.208 | E150: =IF(Input!$B$1=1,'Radiation data'!A151,IF(Input!$B$1=2,'Radiation data'!D151,IF(Input!$B$1=3,'Radiation data'!G151,"Wrong input"))) -> 0 | F150: =IF(Input!$B$1=1,'Radiation data'!B151,IF(Input!$B$1=2,'Radiation data'!E151,IF(Input!$B$1=3,'Radiation data'!H151,"Wrong input"))) -> 0 | G150: 0 | H150: =IF(Input!$B$1=1,'Radiation data'!C151,IF(Input!$B$1=2,'Radiation data'!F151,IF(Input!$B$1=3,'Radiation data'!I151,"Wrong input"))) -> 18.3 | I150: -22.3989951 | J150: 6.122958904 | K150: -5.60270714 | L150: =4*('Radiation data'!$L$27-'Radiation data'!$L$28)+K150 -> -13.92270714 | M150: 3.767954881 | N150: -123.4806768 | O150: =ASIN(COS(I150*PI()/180)*COS(N150*PI()/180)*COS('Radiation data'!$L$26*PI()/180)+SIN('Solar radiation and angles'!I150*PI()/180)*SIN('Radiation data'!$L$26*PI()/180))*180/PI() -> -18.95432841 | P150: =IF(N150=0,0,ACOS((COS(I150*PI()/180)*COS(N150*PI()/180)*SIN('Radiation data'!$L$26*PI()/180)-SIN(I150*PI()/180)*COS('Radiation data'!$L$26*PI()/180))/COS(O150*PI()/180))*N150/ABS(N150)*180/PI()) -> -54.62235367 | Q150: =ACOS(COS(O150*PI()/180)*SIN(Input!$J$5*PI()/180)*COS(('Solar radiation and angles'!P150-Input!$B$3)*PI()/180)+SIN('Solar radiation and angles'!O150*PI()/180)*COS(Input!$J$5*PI()/180))*180/PI() -> 121.7217815 | R150: 0 | S150: 0 | T150: =F150*(1+COS(Input!$J$5*PI()/180))/2 -> 0 | U150: ='Radiation data'!$L$29*E150*(1-COS(Input!$J$5*PI()/180))/2 -> 0 | V150: 0
